Workbook

Sheet Guidance
B2: Guidance
B4: Version | C4: Date | D4: Description | E4: Prepared by | F4: Approved by
B5: 1.0 | C5: 24th December 2020 | D5: First version | E5: C. Collins & M. Charalambous (Baringa Partners) | F5: S. Brooke (ENWL/ENA)
B6: 2.0 | C6: 10th December 2021 | D6: Second version | E6: C. Collins & A. Townsend (Baringa Partners) | F6: S. Brooke (ENWL/ENA)
B9: Group | C9: Tab Name | D9: Instructions
B10: Intro | C10: Purpose of CBA | D10: Describes the aim of the investment decision
B11: Inputs | C11: Control | D11: Defines modelling parameters and sets up the model structure
C12: Baseline Reinforcement | D12: Reinforcement costs and site capacity (current, projections by scenario). The Baseline option is the reinforcement option in this tool
C13: Flex input a) Flex Cost Inputs | D13: Flexibility cost estimates are input directly
C14: Flex input b) Flex Volume and Cost Inputs | D14: Flexibility volume requirements and price assumptions are input
C15: Flex Costs Summary | D15: Summary flexibility cost data given selected inputs, including option to add in multi-year flexibility procurement discounts
C16: Fixed Inputs | D16: Financial assumptions and prices applicable to the business
C17: Incentives and Penalties | D17: Impacts related to incentives and penalties for each scenario i.e. losses, CIs, CMLs
C18: Embedded emissions inputs | D18: Assumptions on emissions embedded in assets used for reinforcement
C19: Carbon impacts | D19: Impacts related to carbon emissions for each scenario i.e. losses, embedded emissions, load shifting
C20: Workings | D20: (Optional input) Calculations used to derive flexibility requirements and/or incentive-related impacts
C21: Additional inputs and control | D21: Defines additional inputs, and runs the benefit analysis and ceiling price calculations
B22: Analysis and Insights | C22: Benefit by strategy | D22: CBA results showing the Net Present Value (NPV) by scenario, strategy and deferral duration.
C23: Insights and Reporting | D23: Insights on optimal deferral years and maximum flexibility value for specific strategies and scenarios, and across scenarios on a Least Worst Regret and Weighted Average basis
C24: Ceiling price | D24: Calculates the availability ceiling price (or indifference price) above which flexibility of any duration is sub-optimal
C25: Option value | D25: Calculates the intrinsic value, uncertainty value and total option value of flexibility or a selected strategy
B26: Background calculations | C26: Comparison | D26: Tabs with no user input required. The NPV of each option (Baseline, and up to 10 combinations of scenarios and strategies) is calculated, following the standard Ofgem CBA methodology. The NPV results are linked through and presented in the Results and Insight tabs.
C27: Baseline
C28: Config 1-10
C30: Key
C31: Drop-down
C32: Manual input
C33: Calculated output
C34: Macro-populated output
C36: The user should populate the yellow cells. All other cells are either fixed or auto-populated. Costs should be entered as positive values. In turn, Benefits (i.e. avoided costs) should be entered as negative values. Costs entered should correspond to values set out in company business plans (i.e. should exclude RPEs and include ongoing efficiencies consistent with assumptions contained in your business plan submission). In order to avoid accidental editing of calculation fields, the sheets in this workbook are protected. Protection can be removed, however, without the need for a password. Some of the functionality within this tool may be lost when using older versions of MS Excel.

Sheet Purpose of CBA
B2: Purpose of CBA
B4: Purpose of CBA: describe the stated aim of the investment decision
B7: If investment is to replace an existing asset / asset class, please state the condition of the asset / asset class (HI / CI etc.)

Sheet Control
A2: Control
E5: Potential long list of scenarios and strategies (user-defined)
E6: Market scenario | F6: Strategy
E7: Provider 1 | F7: Flexibility
E8: [2] | F8: [2]
B9: Reference Year (for discount and index) | C9: 2024/25 | E9: [3] | F9: [3]
B10: Reference Calendar Year (for discount and index) | C10: =INDEX('Fixed Inputs'!$M$27:$M$124,MATCH(Ref_year,'Fixed Inputs'!$K$27:$K$124,0)) -> 2025 | E10: [4] | F10: [4]
B11: Start Year | C11: 2026 | E11: [5] | F11: [5]
B12: Baseline exceedance directly or via peak load | C12: Directly | E12: [6] | F12: [6]
B13: Flexibility Cost Input Type | C13: Input all flex costs directly | E13: [7] | F13: [7]
E14: [8] | F14: [8]
E15: [9] | F15: [9]
E16: [10] | F16: [10]
B18: Configuration id | C18: Scenario | D18: Strategy | E18: First year where availability requirement exceeds flex availability | F18: Configuration name
B19: Config1 | C19: Provider 1 | D19: Flexibility | E19: =IF(OR(C19="",D19=""),"",IF(flex_cost_input_type="Flex Costs from Volumes",IF(MAX('Flex Volume and Cost Inputs'!$D41:$BR41)<'Additional inputs and control'!$D$6,9999,INDEX('Flex Volume and Cost Inputs'!$D$40:$BR$40,1,MATCH('Additional inputs and control'!$D$6,'Flex Volume and Cost Inputs'!$D41:$BR41,1)+1)),9999)) -> 9999 | F19: =IF(OR(C19="",D19=""),"",D19&" under "&C19) -> Flexibility under Provider 1
B20: Config2 | C20: [2] | D20: Flexibility | E20: =IF(OR(C20="",D20=""),"",IF(flex_cost_input_type="Flex Costs from Volumes",IF(MAX('Flex Volume and Cost Inputs'!$D42:$BR42)<'Additional inputs and control'!$D$6,9999,INDEX('Flex Volume and Cost Inputs'!$D$40:$BR$40,1,MATCH('Additional inputs and control'!$D$6,'Flex Volume and Cost Inputs'!$D42:$BR42,1)+1)),9999)) -> 9999 | F20: Flexibility under [2]
B21: Config3 | C21: [3] | D21: Flexibility | E21: =IF(OR(C21="",D21=""),"",IF(flex_cost_input_type="Flex Costs from Volumes",IF(MAX('Flex Volume and Cost Inputs'!$D43:$BR43)<'Additional inputs and control'!$D$6,9999,INDEX('Flex Volume and Cost Inputs'!$D$40:$BR$40,1,MATCH('Additional inputs and control'!$D$6,'Flex Volume and Cost Inputs'!$D43:$BR43,1)+1)),9999)) -> 9999 | F21: Flexibility under [3]
B22: Config4 | C22: [4] | D22: Flexibility | E22: =IF(OR(C22="",D22=""),"",IF(flex_cost_input_type="Flex Costs from Volumes",IF(MAX('Flex Volume and Cost Inputs'!$D44:$BR44)<'Additional inputs and control'!$D$6,9999,INDEX('Flex Volume and Cost Inputs'!$D$40:$BR$40,1,MATCH('Additional inputs and control'!$D$6,'Flex Volume and Cost Inputs'!$D44:$BR44,1)+1)),9999)) -> 9999 | F22: Flexibility under [4]
B23: Config5 | C23: [5] | D23: Flexibility | E23: =IF(OR(C23="",D23=""),"",IF(flex_cost_input_type="Flex Costs from Volumes",IF(MAX('Flex Volume and Cost Inputs'!$D45:$BR45)<'Additional inputs and control'!$D$6,9999,INDEX('Flex Volume and Cost Inputs'!$D$40:$BR$40,1,MATCH('Additional inputs and control'!$D$6,'Flex Volume and Cost Inputs'!$D45:$BR45,1)+1)),9999)) -> 9999 | F23: Flexibility under [5]
B24: Config6 | E24: =IF(OR(C24="",D24=""),"",IF(flex_cost_input_type="Flex Costs from Volumes",IF(MAX('Flex Volume and Cost Inputs'!$D46:$BR46)<'Additional inputs and control'!$D$6,9999,INDEX('Flex Volume and Cost Inputs'!$D$40:$BR$40,1,MATCH('Additional inputs and control'!$D$6,'Flex Volume and Cost Inputs'!$D46:$BR46,1)+1)),9999)) -> 
B25: Config7 | E25: =IF(OR(C25="",D25=""),"",IF(flex_cost_input_type="Flex Costs from Volumes",IF(MAX('Flex Volume and Cost Inputs'!$D47:$BR47)<'Additional inputs and control'!$D$6,9999,INDEX('Flex Volume and Cost Inputs'!$D$40:$BR$40,1,MATCH('Additional inputs and control'!$D$6,'Flex Volume and Cost Inputs'!$D47:$BR47,1)+1)),9999)) -> 
B26: Config8 | E26: =IF(OR(C26="",D26=""),"",IF(flex_cost_input_type="Flex Costs from Volumes",IF(MAX('Flex Volume and Cost Inputs'!$D48:$BR48)<'Additional inputs and control'!$D$6,9999,INDEX('Flex Volume and Cost Inputs'!$D$40:$BR$40,1,MATCH('Additional inputs and control'!$D$6,'Flex Volume and Cost Inputs'!$D48:$BR48,1)+1)),9999)) -> 
B27: Config9 | E27: =IF(OR(C27="",D27=""),"",IF(flex_cost_input_type="Flex Costs from Volumes",IF(MAX('Flex Volume and Cost Inputs'!$D49:$BR49)<'Additional inputs and control'!$D$6,9999,INDEX('Flex Volume and Cost Inputs'!$D$40:$BR$40,1,MATCH('Additional inputs and control'!$D$6,'Flex Volume and Cost Inputs'!$D49:$BR49,1)+1)),9999)) -> 
B28: Config10 | E28: =IF(OR(C28="",D28=""),"",IF(flex_cost_input_type="Flex Costs from Volumes",IF(MAX('Flex Volume and Cost Inputs'!$D50:$BR50)<'Additional inputs and control'!$D$6,9999,INDEX('Flex Volume and Cost Inputs'!$D$40:$BR$40,1,MATCH('Additional inputs and control'!$D$6,'Flex Volume and Cost Inputs'!$D50:$BR50,1)+1)),9999)) -> 
E29: Configuration count | F29: =COUNTA($F$19:$F$28)-COUNTIF($F$19:$F$28,"") -> 5
H30: Click if changing any of the inputs on this sheet
B34: Scenario # | C34: Scenario Name | E34: Strategy # | F34: Strategy Name
B35: 1 | C35: =C19 -> Provider 1 | E35: 1 | F35: =D19 -> Flexibility
B36: 2 | C36: =IFERROR(INDEX(OFFSET(Control!$C$19,0,0,config_count),MATCH(0,COUNTIF(C$34:C35,OFFSET(Control!$C$19,0,0,config_count)),0)),"") -> [2] | E36: 2 | F36: =IFERROR(INDEX(OFFSET(Control!$D$19,0,0,config_count),MATCH(0,COUNTIF(F$34:F35,OFFSET(Control!$D$19,0,0,config_count)),0)),"") -> 
B37: 3 | C37: =IFERROR(INDEX(OFFSET(Control!$C$19,0,0,config_count),MATCH(0,COUNTIF(C$34:C36,OFFSET(Control!$C$19,0,0,config_count)),0)),"") -> [3] | E37: 3 | F37: =IFERROR(INDEX(OFFSET(Control!$D$19,0,0,config_count),MATCH(0,COUNTIF(F$34:F36,OFFSET(Control!$D$19,0,0,config_count)),0)),"") -> 
B38: 4 | C38: =IFERROR(INDEX(OFFSET(Control!$C$19,0,0,config_count),MATCH(0,COUNTIF(C$34:C37,OFFSET(Control!$C$19,0,0,config_count)),0)),"") -> [4] | E38: 4 | F38: =IFERROR(INDEX(OFFSET(Control!$D$19,0,0,config_count),MATCH(0,COUNTIF(F$34:F37,OFFSET(Control!$D$19,0,0,config_count)),0)),"") -> 
B39: 5 | C39: =IFERROR(INDEX(OFFSET(Control!$C$19,0,0,config_count),MATCH(0,COUNTIF(C$34:C38,OFFSET(Control!$C$19,0,0,config_count)),0)),"") -> [5] | E39: 5 | F39: =IFERROR(INDEX(OFFSET(Control!$D$19,0,0,config_count),MATCH(0,COUNTIF(F$34:F38,OFFSET(Control!$D$19,0,0,config_count)),0)),"") -> 
B40: 6 | C40: =IFERROR(INDEX(OFFSET(Control!$C$19,0,0,config_count),MATCH(0,COUNTIF(C$34:C39,OFFSET(Control!$C$19,0,0,config_count)),0)),"") ->  | E40: 6 | F40: =IFERROR(INDEX(OFFSET(Control!$D$19,0,0,config_count),MATCH(0,COUNTIF(F$34:F39,OFFSET(Control!$D$19,0,0,config_count)),0)),"") -> 
B41: 7 | C41: =IFERROR(INDEX(OFFSET(Control!$C$19,0,0,config_count),MATCH(0,COUNTIF(C$34:C40,OFFSET(Control!$C$19,0,0,config_count)),0)),"") ->  | E41: 7 | F41: =IFERROR(INDEX(OFFSET(Control!$D$19,0,0,config_count),MATCH(0,COUNTIF(F$34:F40,OFFSET(Control!$D$19,0,0,config_count)),0)),"") -> 
B42: 8 | C42: =IFERROR(INDEX(OFFSET(Control!$C$19,0,0,config_count),MATCH(0,COUNTIF(C$34:C41,OFFSET(Control!$C$19,0,0,config_count)),0)),"") ->  | E42: 8 | F42: =IFERROR(INDEX(OFFSET(Control!$D$19,0,0,config_count),MATCH(0,COUNTIF(F$34:F41,OFFSET(Control!$D$19,0,0,config_count)),0)),"") -> 
B43: 9 | C43: =IFERROR(INDEX(OFFSET(Control!$C$19,0,0,config_count),MATCH(0,COUNTIF(C$34:C42,OFFSET(Control!$C$19,0,0,config_count)),0)),"") ->  | E43: 9 | F43: =IFERROR(INDEX(OFFSET(Control!$D$19,0,0,config_count),MATCH(0,COUNTIF(F$34:F42,OFFSET(Control!$D$19,0,0,config_count)),0)),"") -> 
B44: 10 | C44: =IFERROR(INDEX(OFFSET(Control!$C$19,0,0,config_count),MATCH(0,COUNTIF(C$34:C43,OFFSET(Control!$C$19,0,0,config_count)),0)),"") ->  | E44: 10 | F44: =IFERROR(INDEX(OFFSET(Control!$D$19,0,0,config_count),MATCH(0,COUNTIF(F$34:F43,OFFSET(Control!$D$19,0,0,config_count)),0)),"") -> 
B45: Scenario Count | C45: =COUNTA(C$35:C$44)-COUNTIF(C$35:C$44,"") -> 5 | E45: Strategy Count | F45: =COUNTA(F$35:F$44)-COUNTIF(F$35:F$44,"") -> 1

Sheet Baseline Reinforcement
B1: =MATCH("end",A:A,0) -> 55 | D1: =ROUNDDOWN(MIN(OFFSET($D$11:$AH$11,0,0,scenario_count))/5,0)*5 -> 95
A2: Baseline reinforcement
C4: Basis for identifying intervention start year | D4: Manual input
C5: Intervention start year (for manual input) | D5: 2026
C6: Scenario driving intervention requirement (if selected) | D6: Best view
C7: Intervention start year | D7: 2026
D8: =$D$9 -> 100 | E8: =$D$9 -> 100 | F8: 100 | G8: 100 | H8: 100 | I8: 100 | J8: 100 | K8: 100 | L8: 100 | M8: 100 | N8: 100 | O8: 100 | P8: 100 | Q8: 100 | R8: 100 | S8: 100 | T8: 100 | U8: 100 | V8: 100 | W8: 100 | X8: 100 | Y8: 100 | Z8: 100 | AA8: 100 | AB8: 100 | AC8: 100 | AD8: 100 | AE8: 100 | AF8: 100 | AG8: 100 | AH8: 100 | AI8: 100 | AJ8: 100 | AK8: 100 | AL8: 100 | AM8: 100 | AN8: 100 | AO8: 100 | AP8: 100 | AQ8: 100 | AR8: 100 | AS8: 100 | AT8: 100 | AU8: 100 | AV8: 100 | AW8: 100 | AX8: 100 | AY8: 100 | AZ8: 100 | BA8: 100 | BB8: 100 | BC8: 100 | BD8: 100 | BE8: 100 | BF8: 100 | BG8: 100 | BH8: 100 | BI8: 100 | BJ8: 100 | BK8: 100 | BL8: 100 | BM8: 100 | BN8: 100 | BO8: 100 | BP8: 100 | BQ8: =$D$9 -> 100 | BR8: 100
C9: Start Year Capacity (MVA) | D9: 100
C10: Peak Network Load Projection (MVA) | D10: =Current_year -> 2026 | E10: =D10+1 -> 2027 | F10: 2028 | G10: 2029 | H10: 2030 | I10: 2031 | J10: 2032 | K10: 2033 | L10: 2034 | M10: 2035 | N10: 2036 | O10: 2037 | P10: 2038 | Q10: 2039 | R10: 2040 | S10: 2041 | T10: 2042 | U10: 2043 | V10: 2044 | W10: 2045 | X10: 2046 | Y10: 2047 | Z10: 2048 | AA10: 2049 | AB10: 2050 | AC10: 2051 | AD10: 2052 | AE10: 2053 | AF10: 2054 | AG10: 2055 | AH10: 2056 | AI10: 2057 | AJ10: 2058 | AK10: =AJ10+1 -> 2059 | AL10: 2060 | AM10: 2061 | AN10: 2062 | AO10: 2063 | AP10: 2064 | AQ10: 2065 | AR10: 2066 | AS10: 2067 | AT10: 2068 | AU10: 2069 | AV10: 2070 | AW10: 2071 | AX10: 2072 | AY10: 2073 | AZ10: 2074 | BA10: 2075 | BB10: 2076 | BC10: 2077 | BD10: 2078 | BE10: 2079 | BF10: 2080 | BG10: 2081 | BH10: 2082 | BI10: 2083 | BJ10: 2084 | BK10: 2085 | BL10: 2086 | BM10: 2087 | BN10: 2088 | BO10: 2089 | BP10: 2090 | BQ10: 2091 | BR10: 2092
A11: Scn | B11: 1 | C11: =IF(Control!C35="","",Control!C35) -> Provider 1 | D11: 99 | E11: 99.3 | F11: 99.6 | G11: 99.9 | H11: 100.2 | I11: 100.5 | J11: 100.8 | K11: 101.1 | L11: 101.4 | M11: 101.7 | N11: 102 | O11: 102.3 | P11: 102.6 | Q11: 102.9 | R11: 103.2 | S11: 103.5 | T11: 103.8 | U11: 104.1 | V11: 104.4 | W11: 104.7 | X11: 105 | Y11: 105.3 | Z11: 105.6 | AA11: 105.9 | AB11: 106.2 | AC11: 106.5 | AD11: 106.8 | AE11: 107.1 | AF11: 107.4 | AG11: 107.7 | AH11: 108 | AI11: 108.3 | AJ11: 108.6 | AK11: 108.9 | AL11: 109.2 | AM11: 109.5 | AN11: 109.8 | AO11: 110.1 | AP11: 110.4 | AQ11: 110.7 | AR11: 111 | AS11: 111.3 | AT11: 111.6 | AU11: 111.9 | AV11: 112.2 | AW11: 112.5 | AX11: 112.8 | AY11: 113.1 | AZ11: 113.4 | BA11: 113.7 | BB11: 114 | BC11: 114.3 | BD11: 114.6 | BE11: 114.9 | BF11: 115.2 | BG11: 115.5 | BH11: 115.8 | BI11: 116.1 | BJ11: 116.4 | BK11: 116.7 | BL11: 117 | BM11: 117.3 | BN11: 117.6 | BO11: 117.9 | BP11: 118.2 | BQ11: 118.5 | BR11: 118.8
A12: Scn | B12: 2 | C12: =IF(Control!C36="","",Control!C36) -> [2] | D12: 99 | E12: 99.4 | F12: 99.8 | G12: 100.2 | H12: 100.6 | I12: 101 | J12: 101.4 | K12: 101.8 | L12: 102.2 | M12: 102.6 | N12: 103 | O12: 103.4 | P12: 103.8 | Q12: 104.2 | R12: 104.6 | S12: 105 | T12: 105.4 | U12: 105.8 | V12: 106.2 | W12: 106.6 | X12: 107 | Y12: 107.4 | Z12: 107.8 | AA12: 108.2 | AB12: 108.6 | AC12: 109 | AD12: 109.4 | AE12: 109.8 | AF12: 110.2 | AG12: 110.6 | AH12: 111 | AI12: 111.4 | AJ12: 111.8 | AK12: 112.2 | AL12: 112.6 | AM12: 113 | AN12: 113.4 | AO12: 113.8 | AP12: 114.2 | AQ12: 114.6 | AR12: 115 | AS12: 115.4 | AT12: 115.8 | AU12: 116.2 | AV12: 116.6 | AW12: 117 | AX12: 117.4 | AY12: 117.8 | AZ12: 118.2 | BA12: 118.6 | BB12: 119 | BC12: 119.4 | BD12: 119.8 | BE12: 120.2 | BF12: 120.6 | BG12: 121 | BH12: 121.4 | BI12: 121.8 | BJ12: 122.2 | BK12: 122.6 | BL12: 123 | BM12: 123.4 | BN12: 123.8 | BO12: 124.2 | BP12: 124.6 | BQ12: 125 | BR12: 125.4
A13: Scn | B13: 3 | C13: =IF(Control!C37="","",Control!C37) -> [3] | D13: 99 | E13: 99.5 | F13: 100 | G13: 100.5 | H13: 101 | I13: 101.5 | J13: 102 | K13: 102.5 | L13: 103 | M13: 103.5 | N13: 104 | O13: 104.5 | P13: 105 | Q13: 105.5 | R13: 106 | S13: 106.5 | T13: 107 | U13: 107.5 | V13: 108 | W13: 108.5 | X13: 109 | Y13: 109.5 | Z13: 110 | AA13: 110.5 | AB13: 111 | AC13: 111.5 | AD13: 112 | AE13: 112.5 | AF13: 113 | AG13: 113.5 | AH13: 114 | AI13: 114.5 | AJ13: 115 | AK13: 115.5 | AL13: 116 | AM13: 116.5 | AN13: 117 | AO13: 117.5 | AP13: 118 | AQ13: 118.5 | AR13: 119 | AS13: 119.5 | AT13: 120 | AU13: 120.5 | AV13: 121 | AW13: 121.5 | AX13: 122 | AY13: 122.5 | AZ13: 123 | BA13: 123.5 | BB13: 124 | BC13: 124.5 | BD13: 125 | BE13: 125.5 | BF13: 126 | BG13: 126.5 | BH13: 127 | BI13: 127.5 | BJ13: 128 | BK13: 128.5 | BL13: 129 | BM13: 129.5 | BN13: 130 | BO13: 130.5 | BP13: 131 | BQ13: 131.5 | BR13: 132
A14: Scn | B14: 4 | C14: =IF(Control!C38="","",Control!C38) -> [4] | D14: 99 | E14: 99.2 | F14: 99.4 | G14: 99.6 | H14: 99.8 | I14: 100 | J14: 100.2 | K14: 100.4 | L14: 100.6 | M14: 100.8 | N14: 101 | O14: 101.2 | P14: 101.4 | Q14: 101.6 | R14: 101.8 | S14: 102 | T14: 102.2 | U14: 102.4 | V14: 102.6 | W14: 102.8 | X14: 103 | Y14: 103.2 | Z14: 103.4 | AA14: 103.6 | AB14: 103.8 | AC14: 104 | AD14: 104.2 | AE14: 104.4 | AF14: 104.6 | AG14: 104.8 | AH14: 105 | AI14: 105.2 | AJ14: 105.4 | AK14: 105.6 | AL14: 105.8 | AM14: 106 | AN14: 106.2 | AO14: 106.4 | AP14: 106.6 | AQ14: 106.8 | AR14: 107 | AS14: 107.2 | AT14: 107.4 | AU14: 107.6 | AV14: 107.8 | AW14: 108 | AX14: 108.2 | AY14: 108.4 | AZ14: 108.6 | BA14: 108.8 | BB14: 109 | BC14: 109.2 | BD14: 109.4 | BE14: 109.6 | BF14: 109.8 | BG14: 110 | BH14: 110.2 | BI14: 110.4 | BJ14: 110.6 | BK14: 110.8 | BL14: 111 | BM14: 111.2 | BN14: 111.4 | BO14: 111.6 | BP14: 111.8 | BQ14: 112 | BR14: 112.2
A15: Scn | B15: 5 | C15: =IF(Control!C39="","",Control!C39) -> [5] | D15: 99 | E15: 99.1 | F15: 99.2 | G15: 99.3 | H15: 99.4 | I15: 99.5 | J15: 99.6 | K15: 99.7 | L15: 99.8 | M15: 99.9 | N15: 100 | O15: 100.1 | P15: 100.2 | Q15: 100.3 | R15: 100.4 | S15: 100.5 | T15: 100.6 | U15: 100.7 | V15: 100.8 | W15: 100.9 | X15: 101 | Y15: 101.1 | Z15: 101.2 | AA15: 101.3 | AB15: 101.4 | AC15: 101.5 | AD15: 101.6 | AE15: 101.7 | AF15: 101.8 | AG15: 101.9 | AH15: 102 | AI15: 102.1 | AJ15: 102.2 | AK15: 102.3 | AL15: 102.4 | AM15: 102.5 | AN15: 102.6 | AO15: 102.7 | AP15: 102.8 | AQ15: 102.9 | AR15: 103 | AS15: 103.1 | AT15: 103.2 | AU15: 103.3 | AV15: 103.4 | AW15: 103.5 | AX15: 103.6 | AY15: 103.7 | AZ15: 103.8 | BA15: 103.9 | BB15: 104 | BC15: 104.1 | BD15: 104.2 | BE15: 104.3 | BF15: 104.4 | BG15: 104.5 | BH15: 104.6 | BI15: 104.7 | BJ15: 104.8 | BK15: 104.9 | BL15: 105 | BM15: 105.1 | BN15: 105.2 | BO15: 105.3 | BP15: 105.4 | BQ15: 105.5 | BR15: 105.6
A16: Scn | B16: 6 | C16: =IF(Control!C40="","",Control!C40) -> 
A17: Scn | B17: 7 | C17: =IF(Control!C41="","",Control!C41) -> 
A18: Scn | B18: 8 | C18: =IF(Control!C42="","",Control!C42) -> 
A19: Scn | B19: 9 | C19: =IF(Control!C43="","",Control!C43) -> 
A20: Scn | B20: 10 | C20: =IF(Control!C44="","",Control!C44) -> 
C22: Exceedance per year (MVA) - Manual Entry | D22: =Current_year -> 2026 | E22: =D22+1 -> 2027 | F22: =E22+1 -> 2028 | G22: =F22+1 -> 2029 | H22: =G22+1 -> 2030 | I22: =H22+1 -> 2031 | J22: =I22+1 -> 2032 | K22: =J22+1 -> 2033 | L22: =K22+1 -> 2034 | M22: =L22+1 -> 2035 | N22: =M22+1 -> 2036 | O22: =N22+1 -> 2037 | P22: =O22+1 -> 2038 | Q22: =P22+1 -> 2039 | R22: =Q22+1 -> 2040 | S22: =R22+1 -> 2041 | T22: =S22+1 -> 2042 | U22: =T22+1 -> 2043 | V22: =U22+1 -> 2044 | W22: =V22+1 -> 2045 | X22: =W22+1 -> 2046 | Y22: =X22+1 -> 2047 | Z22: =Y22+1 -> 2048 | AA22: =Z22+1 -> 2049 | AB22: =AA22+1 -> 2050 | AC22: =AB22+1 -> 2051 | AD22: =AC22+1 -> 2052 | AE22: =AD22+1 -> 2053 | AF22: =AE22+1 -> 2054 | AG22: =AF22+1 -> 2055 | AH22: =AG22+1 -> 2056 | AI22: =AH22+1 -> 2057 | AJ22: =AI22+1 -> 2058 | AK22: =AJ22+1 -> 2059 | AL22: =AK22+1 -> 2060 | AM22: =AL22+1 -> 2061 | AN22: =AM22+1 -> 2062 | AO22: =AN22+1 -> 2063 | AP22: =AO22+1 -> 2064 | AQ22: =AP22+1 -> 2065 | AR22: =AQ22+1 -> 2066 | AS22: =AR22+1 -> 2067 | AT22: =AS22+1 -> 2068 | AU22: =AT22+1 -> 2069 | AV22: =AU22+1 -> 2070 | AW22: =AV22+1 -> 2071 | AX22: =AW22+1 -> 2072 | AY22: =AX22+1 -> 2073 | AZ22: =AY22+1 -> 2074 | BA22: =AZ22+1 -> 2075 | BB22: =BA22+1 -> 2076 | BC22: =BB22+1 -> 2077 | BD22: =BC22+1 -> 2078 | BE22: =BD22+1 -> 2079 | BF22: =BE22+1 -> 2080 | BG22: =BF22+1 -> 2081 | BH22: =BG22+1 -> 2082 | BI22: =BH22+1 -> 2083 | BJ22: =BI22+1 -> 2084 | BK22: =BJ22+1 -> 2085 | BL22: =BK22+1 -> 2086 | BM22: =BL22+1 -> 2087 | BN22: =BM22+1 -> 2088 | BO22: =BN22+1 -> 2089 | BP22: =BO22+1 -> 2090 | BQ22: =BP22+1 -> 2091 | BR22: =BQ22+1 -> 2092
A23: Scn | B23: 1 | C23: =IF(Control!C35="","",Control!C35) -> Provider 1 | D23: 0.22 | E23: 0.67
A24: Scn | B24: 2 | C24: =IF(Control!C36="","",Control!C36) -> [2]
A25: Scn | B25: 3 | C25: =IF(Control!C37="","",Control!C37) -> [3]
A26: Scn | B26: 4 | C26: =IF(Control!C38="","",Control!C38) -> [4]
A27: Scn | B27: 5 | C27: =IF(Control!C39="","",Control!C39) -> [5]
A28: Scn | B28: 6 | C28: =IF(Control!C40="","",Control!C40) -> 
A29: Scn | B29: 7 | C29: =IF(Control!C41="","",Control!C41) -> 
A30: Scn | B30: 8 | C30: =IF(Control!C42="","",Control!C42) -> 
A31: Scn | B31: 9 | C31: =IF(Control!C43="","",Control!C43) -> 
A32: Scn | B32: 10 | C32: =IF(Control!C44="","",Control!C44) -> 
C34: Exceedance per year (MVA) | D34: =Current_year -> 2026 | E34: =D34+1 -> 2027 | F34: 2028 | G34: 2029 | H34: 2030 | I34: 2031 | J34: 2032 | K34: 2033 | L34: 2034 | M34: 2035 | N34: 2036 | O34: 2037 | P34: 2038 | Q34: 2039 | R34: 2040 | S34: 2041 | T34: 2042 | U34: 2043 | V34: 2044 | W34: 2045 | X34: 2046 | Y34: 2047 | Z34: 2048 | AA34: 2049 | AB34: 2050 | AC34: 2051 | AD34: 2052 | AE34: 2053 | AF34: 2054 | AG34: 2055 | AH34: 2056 | AI34: 2057 | AJ34: 2058 | AK34: =AJ34+1 -> 2059 | AL34: 2060 | AM34: 2061 | AN34: 2062 | AO34: 2063 | AP34: 2064 | AQ34: 2065 | AR34: 2066 | AS34: 2067 | AT34: 2068 | AU34: 2069 | AV34: 2070 | AW34: 2071 | AX34: 2072 | AY34: 2073 | AZ34: 2074 | BA34: 2075 | BB34: 2076 | BC34: 2077 | BD34: 2078 | BE34: 2079 | BF34: 2080 | BG34: 2081 | BH34: 2082 | BI34: 2083 | BJ34: 2084 | BK34: 2085 | BL34: 2086 | BM34: 2087 | BN34: 2088 | BO34: 2089 | BP34: 2090 | BQ34: 2091 | BR34: 2092
A35: Scn | B35: 1 | C35: =IF(Control!C35="","",Control!C35) -> Provider 1 | D35: 0.22 | E35: 0.67 | F35: =IF($C35="","",IF(Control!$C$12="Directly",F23,IF(MAX(F11-'Baseline Reinforcement'!$D$9,0)=0,"",MAX(F11-'Baseline Reinforcement'!$D$9,0)))) -> 0 | G35: =IF($C35="","",IF(Control!$C$12="Directly",G23,IF(MAX(G11-'Baseline Reinforcement'!$D$9,0)=0,"",MAX(G11-'Baseline Reinforcement'!$D$9,0)))) -> 0 | H35: =IF($C35="","",IF(Control!$C$12="Directly",H23,IF(MAX(H11-'Baseline Reinforcement'!$D$9,0)=0,"",MAX(H11-'Baseline Reinforcement'!$D$9,0)))) -> 0 | I35: =IF($C35="","",IF(Control!$C$12="Directly",I23,IF(MAX(I11-'Baseline Reinforcement'!$D$9,0)=0,"",MAX(I11-'Baseline Reinforcement'!$D$9,0)))) -> 0 | J35: =IF($C35="","",IF(Control!$C$12="Directly",J23,IF(MAX(J11-'Baseline Reinforcement'!$D$9,0)=0,"",MAX(J11-'Baseline Reinforcement'!$D$9,0)))) -> 0 | K35: =IF($C35="","",IF(Control!$C$12="Directly",K23,IF(MAX(K11-'Baseline Reinforcement'!$D$9,0)=0,"",MAX(K11-'Baseline Reinforcement'!$D$9,0)))) -> 0 | L35: =IF($C35="","",IF(Control!$C$12="Directly",L23,IF(MAX(L11-'Baseline Reinforcement'!$D$9,0)=0,"",MAX(L11-'Baseline Reinforcement'!$D$9,0)))) -> 0 | M35: =IF($C35="","",IF(Control!$C$12="Directly",M23,IF(MAX(M11-'Baseline Reinforcement'!$D$9,0)=0,"",MAX(M11-'Baseline Reinforcement'!$D$9,0)))) -> 0 | N35: =IF($C35="","",IF(Control!$C$12="Directly",N23,IF(MAX(N11-'Baseline Reinforcement'!$D$9,0)=0,"",MAX(N11-'Baseline Reinforcement'!$D$9,0)))) -> 0 | O35: =IF($C35="","",IF(Control!$C$12="Directly",O23,IF(MAX(O11-'Baseline Reinforcement'!$D$9,0)=0,"",MAX(O11-'Baseline Reinforcement'!$D$9,0)))) -> 0 | P35: =IF($C35="","",IF(Control!$C$12="Directly",P23,IF(MAX(P11-'Baseline Reinforcement'!$D$9,0)=0,"",MAX(P11-'Baseline Reinforcement'!$D$9,0)))) -> 0 | Q35: =IF($C35="","",IF(Control!$C$12="Directly",Q23,IF(MAX(Q11-'Baseline Reinforcement'!$D$9,0)=0,"",MAX(Q11-'Baseline Reinforcement'!$D$9,0)))) -> 0 | R35: =IF($C35="","",IF(Control!$C$12="Directly",R23,IF(MAX(R11-'Baseline Reinforcement'!$D$9,0)=0,"",MAX(R11-'Baseline Reinforcement'!$D$9,0)))) -> 0 | S35: =IF($C35="","",IF(Control!$C$12="Directly",S23,IF(MAX(S11-'Baseline Reinforcement'!$D$9,0)=0,"",MAX(S11-'Baseline Reinforcement'!$D$9,0)))) -> 0 | T35: =IF($C35="","",IF(Control!$C$12="Directly",T23,IF(MAX(T11-'Baseline Reinforcement'!$D$9,0)=0,"",MAX(T11-'Baseline Reinforcement'!$D$9,0)))) -> 0 | U35: =IF($C35="","",IF(Control!$C$12="Directly",U23,IF(MAX(U11-'Baseline Reinforcement'!$D$9,0)=0,"",MAX(U11-'Baseline Reinforcement'!$D$9,0)))) -> 0 | V35: =IF($C35="","",IF(Control!$C$12="Directly",V23,IF(MAX(V11-'Baseline Reinforcement'!$D$9,0)=0,"",MAX(V11-'Baseline Reinforcement'!$D$9,0)))) -> 0 | W35: =IF($C35="","",IF(Control!$C$12="Directly",W23,IF(MAX(W11-'Baseline Reinforcement'!$D$9,0)=0,"",MAX(W11-'Baseline Reinforcement'!$D$9,0)))) -> 0 | X35: =IF($C35="","",IF(Control!$C$12="Directly",X23,IF(MAX(X11-'Baseline Reinforcement'!$D$9,0)=0,"",MAX(X11-'Baseline Reinforcement'!$D$9,0)))) -> 0 | Y35: =IF($C35="","",IF(Control!$C$12="Directly",Y23,IF(MAX(Y11-'Baseline Reinforcement'!$D$9,0)=0,"",MAX(Y11-'Baseline Reinforcement'!$D$9,0)))) -> 0 | Z35: =IF($C35="","",IF(Control!$C$12="Directly",Z23,IF(MAX(Z11-'Baseline Reinforcement'!$D$9,0)=0,"",MAX(Z11-'Baseline Reinforcement'!$D$9,0)))) -> 0 | AA35: =IF($C35="","",IF(Control!$C$12="Directly",AA23,IF(MAX(AA11-'Baseline Reinforcement'!$D$9,0)=0,"",MAX(AA11-'Baseline Reinforcement'!$D$9,0)))) -> 0 | AB35: =IF($C35="","",IF(Control!$C$12="Directly",AB23,IF(MAX(AB11-'Baseline Reinforcement'!$D$9,0)=0,"",MAX(AB11-'Baseline Reinforcement'!$D$9,0)))) -> 0 | AC35: =IF($C35="","",IF(Control!$C$12="Directly",AC23,IF(MAX(AC11-'Baseline Reinforcement'!$D$9,0)=0,"",MAX(AC11-'Baseline Reinforcement'!$D$9,0)))) -> 0 | AD35: =IF($C35="","",IF(Control!$C$12="Directly",AD23,IF(MAX(AD11-'Baseline Reinforcement'!$D$9,0)=0,"",MAX(AD11-'Baseline Reinforcement'!$D$9,0)))) -> 0 | AE35: =IF($C35="","",IF(Control!$C$12="Directly",AE23,IF(MAX(AE11-'Baseline Reinforcement'!$D$9,0)=0,"",MAX(AE11-'Baseline Reinforcement'!$D$9,0)))) -> 0 | AF35: =IF($C35="","",IF(Control!$C$12="Directly",AF23,IF(MAX(AF11-'Baseline Reinforcement'!$D$9,0)=0,"",MAX(AF11-'Baseline Reinforcement'!$D$9,0)))) -> 0 | AG35: =IF($C35="","",IF(Control!$C$12="Directly",AG23,IF(MAX(AG11-'Baseline Reinforcement'!$D$9,0)=0,"",MAX(AG11-'Baseline Reinforcement'!$D$9,0)))) -> 0 | AH35: =IF($C35="","",IF(Control!$C$12="Directly",AH23,IF(MAX(AH11-'Baseline Reinforcement'!$D$9,0)=0,"",MAX(AH11-'Baseline Reinforcement'!$D$9,0)))) -> 0 | AI35: =IF($C35="","",IF(Control!$C$12="Directly",AI23,IF(MAX(AI11-'Baseline Reinforcement'!$D$9,0)=0,"",MAX(AI11-'Baseline Reinforcement'!$D$9,0)))) -> 0 | AJ35: =IF($C35="","",IF(Control!$C$12="Directly",AJ23,IF(MAX(AJ11-'Baseline Reinforcement'!$D$9,0)=0,"",MAX(AJ11-'Baseline Reinforcement'!$D$9,0)))) -> 0 | AK35: =IF($C35="","",IF(Control!$C$12="Directly",AK23,IF(MAX(AK11-'Baseline Reinforcement'!$D$9,0)=0,"",MAX(AK11-'Baseline Reinforcement'!$D$9,0)))) -> 0 | AL35: =IF($C35="","",IF(Control!$C$12="Directly",AL23,IF(MAX(AL11-'Baseline Reinforcement'!$D$9,0)=0,"",MAX(AL11-'Baseline Reinforcement'!$D$9,0)))) -> 0 | AM35: =IF($C35="","",IF(Control!$C$12="Directly",AM23,IF(MAX(AM11-'Baseline Reinforcement'!$D$9,0)=0,"",MAX(AM11-'Baseline Reinforcement'!$D$9,0)))) -> 0 | AN35: =IF($C35="","",IF(Control!$C$12="Directly",AN23,IF(MAX(AN11-'Baseline Reinforcement'!$D$9,0)=0,"",MAX(AN11-'Baseline Reinforcement'!$D$9,0)))) -> 0 | AO35: =IF($C35="","",IF(Control!$C$12="Directly",AO23,IF(MAX(AO11-'Baseline Reinforcement'!$D$9,0)=0,"",MAX(AO11-'Baseline Reinforcement'!$D$9,0)))) -> 0 | AP35: =IF($C35="","",IF(Control!$C$12="Directly",AP23,IF(MAX(AP11-'Baseline Reinforcement'!$D$9,0)=0,"",MAX(AP11-'Baseline Reinforcement'!$D$9,0)))) -> 0 | AQ35: =IF($C35="","",IF(Control!$C$12="Directly",AQ23,IF(MAX(AQ11-'Baseline Reinforcement'!$D$9,0)=0,"",MAX(AQ11-'Baseline Reinforcement'!$D$9,0)))) -> 0 | AR35: =IF($C35="","",IF(Control!$C$12="Directly",AR23,IF(MAX(AR11-'Baseline Reinforcement'!$D$9,0)=0,"",MAX(AR11-'Baseline Reinforcement'!$D$9,0)))) -> 0 | AS35: =IF($C35="","",IF(Control!$C$12="Directly",AS23,IF(MAX(AS11-'Baseline Reinforcement'!$D$9,0)=0,"",MAX(AS11-'Baseline Reinforcement'!$D$9,0)))) -> 0 | AT35: =IF($C35="","",IF(Control!$C$12="Directly",AT23,IF(MAX(AT11-'Baseline Reinforcement'!$D$9,0)=0,"",MAX(AT11-'Baseline Reinforcement'!$D$9,0)))) -> 0 | AU35: =IF($C35="","",IF(Control!$C$12="Directly",AU23,IF(MAX(AU11-'Baseline Reinforcement'!$D$9,0)=0,"",MAX(AU11-'Baseline Reinforcement'!$D$9,0)))) -> 0 | AV35: =IF($C35="","",IF(Control!$C$12="Directly",AV23,IF(MAX(AV11-'Baseline Reinforcement'!$D$9,0)=0,"",MAX(AV11-'Baseline Reinforcement'!$D$9,0)))) -> 0 | AW35: =IF($C35="","",IF(Control!$C$12="Directly",AW23,IF(MAX(AW11-'Baseline Reinforcement'!$D$9,0)=0,"",MAX(AW11-'Baseline Reinforcement'!$D$9,0)))) -> 0 | AX35: =IF($C35="","",IF(Control!$C$12="Directly",AX23,IF(MAX(AX11-'Baseline Reinforcement'!$D$9,0)=0,"",MAX(AX11-'Baseline Reinforcement'!$D$9,0)))) -> 0 | AY35: =IF($C35="","",IF(Control!$C$12="Directly",AY23,IF(MAX(AY11-'Baseline Reinforcement'!$D$9,0)=0,"",MAX(AY11-'Baseline Reinforcement'!$D$9,0)))) -> 0 | AZ35: =IF($C35="","",IF(Control!$C$12="Directly",AZ23,IF(MAX(AZ11-'Baseline Reinforcement'!$D$9,0)=0,"",MAX(AZ11-'Baseline Reinforcement'!$D$9,0)))) -> 0 | BA35: =IF($C35="","",IF(Control!$C$12="Directly",BA23,IF(MAX(BA11-'Baseline Reinforcement'!$D$9,0)=0,"",MAX(BA11-'Baseline Reinforcement'!$D$9,0)))) -> 0 | BB35: =IF($C35="","",IF(Control!$C$12="Directly",BB23,IF(MAX(BB11-'Baseline Reinforcement'!$D$9,0)=0,"",MAX(BB11-'Baseline Reinforcement'!$D$9,0)))) -> 0 | BC35: =IF($C35="","",IF(Control!$C$12="Directly",BC23,IF(MAX(BC11-'Baseline Reinforcement'!$D$9,0)=0,"",MAX(BC11-'Baseline Reinforcement'!$D$9,0)))) -> 0 | BD35: =IF($C35="","",IF(Control!$C$12="Directly",BD23,IF(MAX(BD11-'Baseline Reinforcement'!$D$9,0)=0,"",MAX(BD11-'Baseline Reinforcement'!$D$9,0)))) -> 0 | BE35: =IF($C35="","",IF(Control!$C$12="Directly",BE23,IF(MAX(BE11-'Baseline Reinforcement'!$D$9,0)=0,"",MAX(BE11-'Baseline Reinforcement'!$D$9,0)))) -> 0 | BF35: =IF($C35="","",IF(Control!$C$12="Directly",BF23,IF(MAX(BF11-'Baseline Reinforcement'!$D$9,0)=0,"",MAX(BF11-'Baseline Reinforcement'!$D$9,0)))) -> 0 | BG35: =IF($C35="","",IF(Control!$C$12="Directly",BG23,IF(MAX(BG11-'Baseline Reinforcement'!$D$9,0)=0,"",MAX(BG11-'Baseline Reinforcement'!$D$9,0)))) -> 0 | BH35: =IF($C35="","",IF(Control!$C$12="Directly",BH23,IF(MAX(BH11-'Baseline Reinforcement'!$D$9,0)=0,"",MAX(BH11-'Baseline Reinforcement'!$D$9,0)))) -> 0 | BI35: =IF($C35="","",IF(Control!$C$12="Directly",BI23,IF(MAX(BI11-'Baseline Reinforcement'!$D$9,0)=0,"",MAX(BI11-'Baseline Reinforcement'!$D$9,0)))) -> 0 | BJ35: =IF($C35="","",IF(Control!$C$12="Directly",BJ23,IF(MAX(BJ11-'Baseline Reinforcement'!$D$9,0)=0,"",MAX(BJ11-'Baseline Reinforcement'!$D$9,0)))) -> 0 | BK35: =IF($C35="","",IF(Control!$C$12="Directly",BK23,IF(MAX(BK11-'Baseline Reinforcement'!$D$9,0)=0,"",MAX(BK11-'Baseline Reinforcement'!$D$9,0)))) -> 0 | BL35: =IF($C35="","",IF(Control!$C$12="Directly",BL23,IF(MAX(BL11-'Baseline Reinforcement'!$D$9,0)=0,"",MAX(BL11-'Baseline Reinforcement'!$D$9,0)))) -> 0 | BM35: =IF($C35="","",IF(Control!$C$12="Directly",BM23,IF(MAX(BM11-'Baseline Reinforcement'!$D$9,0)=0,"",MAX(BM11-'Baseline Reinforcement'!$D$9,0)))) -> 0 | BN35: =IF($C35="","",IF(Control!$C$12="Directly",BN23,IF(MAX(BN11-'Baseline Reinforcement'!$D$9,0)=0,"",MAX(BN11-'Baseline Reinforcement'!$D$9,0)))) -> 0 | BO35: =IF($C35="","",IF(Control!$C$12="Directly",BO23,IF(MAX(BO11-'Baseline Reinforcement'!$D$9,0)=0,"",MAX(BO11-'Baseline Reinforcement'!$D$9,0)))) -> 0 | BP35: =IF($C35="","",IF(Control!$C$12="Directly",BP23,IF(MAX(BP11-'Baseline Reinforcement'!$D$9,0)=0,"",MAX(BP11-'Baseline Reinforcement'!$D$9,0)))) -> 0 | BQ35: =IF($C35="","",IF(Control!$C$12="Directly",BQ23,IF(MAX(BQ11-'Baseline Reinforcement'!$D$9,0)=0,"",MAX(BQ11-'Baseline Reinforcement'!$D$9,0)))) -> 0 | BR35: =IF($C35="","",IF(Control!$C$12="Directly",BR23,IF(MAX(BR11-'Baseline Reinforcement'!$D$9,0)=0,"",MAX(BR11-'Baseline Reinforcement'!$D$9,0)))) -> 0
A36: Scn | B36: 2 | C36: =IF(Control!C36="","",Control!C36) -> [2] | F36: =IF($C36="","",IF(Control!$C$12="Directly",F24,IF(MAX(F12-'Baseline Reinforcement'!$D$9,0)=0,"",MAX(F12-'Baseline Reinforcement'!$D$9,0)))) -> 0 | G36: =IF($C36="","",IF(Control!$C$12="Directly",G24,IF(MAX(G12-'Baseline Reinforcement'!$D$9,0)=0,"",MAX(G12-'Baseline Reinforcement'!$D$9,0)))) -> 0 | H36: =IF($C36="","",IF(Control!$C$12="Directly",H24,IF(MAX(H12-'Baseline Reinforcement'!$D$9,0)=0,"",MAX(H12-'Baseline Reinforcement'!$D$9,0)))) -> 0 | I36: =IF($C36="","",IF(Control!$C$12="Directly",I24,IF(MAX(I12-'Baseline Reinforcement'!$D$9,0)=0,"",MAX(I12-'Baseline Reinforcement'!$D$9,0)))) -> 0 | J36: =IF($C36="","",IF(Control!$C$12="Directly",J24,IF(MAX(J12-'Baseline Reinforcement'!$D$9,0)=0,"",MAX(J12-'Baseline Reinforcement'!$D$9,0)))) -> 0 | K36: =IF($C36="","",IF(Control!$C$12="Directly",K24,IF(MAX(K12-'Baseline Reinforcement'!$D$9,0)=0,"",MAX(K12-'Baseline Reinforcement'!$D$9,0)))) -> 0 | L36: =IF($C36="","",IF(Control!$C$12="Directly",L24,IF(MAX(L12-'Baseline Reinforcement'!$D$9,0)=0,"",MAX(L12-'Baseline Reinforcement'!$D$9,0)))) -> 0 | M36: =IF($C36="","",IF(Control!$C$12="Directly",M24,IF(MAX(M12-'Baseline Reinforcement'!$D$9,0)=0,"",MAX(M12-'Baseline Reinforcement'!$D$9,0)))) -> 0 | N36: =IF($C36="","",IF(Control!$C$12="Directly",N24,IF(MAX(N12-'Baseline Reinforcement'!$D$9,0)=0,"",MAX(N12-'Baseline Reinforcement'!$D$9,0)))) -> 0 | O36: =IF($C36="","",IF(Control!$C$12="Directly",O24,IF(MAX(O12-'Baseline Reinforcement'!$D$9,0)=0,"",MAX(O12-'Baseline Reinforcement'!$D$9,0)))) -> 0 | P36: =IF($C36="","",IF(Control!$C$12="Directly",P24,IF(MAX(P12-'Baseline Reinforcement'!$D$9,0)=0,"",MAX(P12-'Baseline Reinforcement'!$D$9,0)))) -> 0 | Q36: =IF($C36="","",IF(Control!$C$12="Directly",Q24,IF(MAX(Q12-'Baseline Reinforcement'!$D$9,0)=0,"",MAX(Q12-'Baseline Reinforcement'!$D$9,0)))) -> 0 | R36: =IF($C36="","",IF(Control!$C$12="Directly",R24,IF(MAX(R12-'Baseline Reinforcement'!$D$9,0)=0,"",MAX(R12-'Baseline Reinforcement'!$D$9,0)))) -> 0 | S36: =IF($C36="","",IF(Control!$C$12="Directly",S24,IF(MAX(S12-'Baseline Reinforcement'!$D$9,0)=0,"",MAX(S12-'Baseline Reinforcement'!$D$9,0)))) -> 0 | T36: =IF($C36="","",IF(Control!$C$12="Directly",T24,IF(MAX(T12-'Baseline Reinforcement'!$D$9,0)=0,"",MAX(T12-'Baseline Reinforcement'!$D$9,0)))) -> 0 | U36: =IF($C36="","",IF(Control!$C$12="Directly",U24,IF(MAX(U12-'Baseline Reinforcement'!$D$9,0)=0,"",MAX(U12-'Baseline Reinforcement'!$D$9,0)))) -> 0 | V36: =IF($C36="","",IF(Control!$C$12="Directly",V24,IF(MAX(V12-'Baseline Reinforcement'!$D$9,0)=0,"",MAX(V12-'Baseline Reinforcement'!$D$9,0)))) -> 0 | W36: =IF($C36="","",IF(Control!$C$12="Directly",W24,IF(MAX(W12-'Baseline Reinforcement'!$D$9,0)=0,"",MAX(W12-'Baseline Reinforcement'!$D$9,0)))) -> 0 | X36: =IF($C36="","",IF(Control!$C$12="Directly",X24,IF(MAX(X12-'Baseline Reinforcement'!$D$9,0)=0,"",MAX(X12-'Baseline Reinforcement'!$D$9,0)))) -> 0 | Y36: =IF($C36="","",IF(Control!$C$12="Directly",Y24,IF(MAX(Y12-'Baseline Reinforcement'!$D$9,0)=0,"",MAX(Y12-'Baseline Reinforcement'!$D$9,0)))) -> 0 | Z36: =IF($C36="","",IF(Control!$C$12="Directly",Z24,IF(MAX(Z12-'Baseline Reinforcement'!$D$9,0)=0,"",MAX(Z12-'Baseline Reinforcement'!$D$9,0)))) -> 0 | AA36: =IF($C36="","",IF(Control!$C$12="Directly",AA24,IF(MAX(AA12-'Baseline Reinforcement'!$D$9,0)=0,"",MAX(AA12-'Baseline Reinforcement'!$D$9,0)))) -> 0 | AB36: =IF($C36="","",IF(Control!$C$12="Directly",AB24,IF(MAX(AB12-'Baseline Reinforcement'!$D$9,0)=0,"",MAX(AB12-'Baseline Reinforcement'!$D$9,0)))) -> 0 | AC36: =IF($C36="","",IF(Control!$C$12="Directly",AC24,IF(MAX(AC12-'Baseline Reinforcement'!$D$9,0)=0,"",MAX(AC12-'Baseline Reinforcement'!$D$9,0)))) -> 0 | AD36: =IF($C36="","",IF(Control!$C$12="Directly",AD24,IF(MAX(AD12-'Baseline Reinforcement'!$D$9,0)=0,"",MAX(AD12-'Baseline Reinforcement'!$D$9,0)))) -> 0 | AE36: =IF($C36="","",IF(Control!$C$12="Directly",AE24,IF(MAX(AE12-'Baseline Reinforcement'!$D$9,0)=0,"",MAX(AE12-'Baseline Reinforcement'!$D$9,0)))) -> 0 | AF36: =IF($C36="","",IF(Control!$C$12="Directly",AF24,IF(MAX(AF12-'Baseline Reinforcement'!$D$9,0)=0,"",MAX(AF12-'Baseline Reinforcement'!$D$9,0)))) -> 0 | AG36: =IF($C36="","",IF(Control!$C$12="Directly",AG24,IF(MAX(AG12-'Baseline Reinforcement'!$D$9,0)=0,"",MAX(AG12-'Baseline Reinforcement'!$D$9,0)))) -> 0 | AH36: =IF($C36="","",IF(Control!$C$12="Directly",AH24,IF(MAX(AH12-'Baseline Reinforcement'!$D$9,0)=0,"",MAX(AH12-'Baseline Reinforcement'!$D$9,0)))) -> 0 | AI36: =IF($C36="","",IF(Control!$C$12="Directly",AI24,IF(MAX(AI12-'Baseline Reinforcement'!$D$9,0)=0,"",MAX(AI12-'Baseline Reinforcement'!$D$9,0)))) -> 0 | AJ36: =IF($C36="","",IF(Control!$C$12="Directly",AJ24,IF(MAX(AJ12-'Baseline Reinforcement'!$D$9,0)=0,"",MAX(AJ12-'Baseline Reinforcement'!$D$9,0)))) -> 0 | AK36: =IF($C36="","",IF(Control!$C$12="Directly",AK24,IF(MAX(AK12-'Baseline Reinforcement'!$D$9,0)=0,"",MAX(AK12-'Baseline Reinforcement'!$D$9,0)))) -> 0 | AL36: =IF($C36="","",IF(Control!$C$12="Directly",AL24,IF(MAX(AL12-'Baseline Reinforcement'!$D$9,0)=0,"",MAX(AL12-'Baseline Reinforcement'!$D$9,0)))) -> 0 | AM36: =IF($C36="","",IF(Control!$C$12="Directly",AM24,IF(MAX(AM12-'Baseline Reinforcement'!$D$9,0)=0,"",MAX(AM12-'Baseline Reinforcement'!$D$9,0)))) -> 0 | AN36: =IF($C36="","",IF(Control!$C$12="Directly",AN24,IF(MAX(AN12-'Baseline Reinforcement'!$D$9,0)=0,"",MAX(AN12-'Baseline Reinforcement'!$D$9,0)))) -> 0 | AO36: =IF($C36="","",IF(Control!$C$12="Directly",AO24,IF(MAX(AO12-'Baseline Reinforcement'!$D$9,0)=0,"",MAX(AO12-'Baseline Reinforcement'!$D$9,0)))) -> 0 | AP36: =IF($C36="","",IF(Control!$C$12="Directly",AP24,IF(MAX(AP12-'Baseline Reinforcement'!$D$9,0)=0,"",MAX(AP12-'Baseline Reinforcement'!$D$9,0)))) -> 0 | AQ36: =IF($C36="","",IF(Control!$C$12="Directly",AQ24,IF(MAX(AQ12-'Baseline Reinforcement'!$D$9,0)=0,"",MAX(AQ12-'Baseline Reinforcement'!$D$9,0)))) -> 0 | AR36: =IF($C36="","",IF(Control!$C$12="Directly",AR24,IF(MAX(AR12-'Baseline Reinforcement'!$D$9,0)=0,"",MAX(AR12-'Baseline Reinforcement'!$D$9,0)))) -> 0 | AS36: =IF($C36="","",IF(Control!$C$12="Directly",AS24,IF(MAX(AS12-'Baseline Reinforcement'!$D$9,0)=0,"",MAX(AS12-'Baseline Reinforcement'!$D$9,0)))) -> 0 | AT36: =IF($C36="","",IF(Control!$C$12="Directly",AT24,IF(MAX(AT12-'Baseline Reinforcement'!$D$9,0)=0,"",MAX(AT12-'Baseline Reinforcement'!$D$9,0)))) -> 0 | AU36: =IF($C36="","",IF(Control!$C$12="Directly",AU24,IF(MAX(AU12-'Baseline Reinforcement'!$D$9,0)=0,"",MAX(AU12-'Baseline Reinforcement'!$D$9,0)))) -> 0 | AV36: =IF($C36="","",IF(Control!$C$12="Directly",AV24,IF(MAX(AV12-'Baseline Reinforcement'!$D$9,0)=0,"",MAX(AV12-'Baseline Reinforcement'!$D$9,0)))) -> 0 | AW36: =IF($C36="","",IF(Control!$C$12="Directly",AW24,IF(MAX(AW12-'Baseline Reinforcement'!$D$9,0)=0,"",MAX(AW12-'Baseline Reinforcement'!$D$9,0)))) -> 0 | AX36: =IF($C36="","",IF(Control!$C$12="Directly",AX24,IF(MAX(AX12-'Baseline Reinforcement'!$D$9,0)=0,"",MAX(AX12-'Baseline Reinforcement'!$D$9,0)))) -> 0 | AY36: =IF($C36="","",IF(Control!$C$12="Directly",AY24,IF(MAX(AY12-'Baseline Reinforcement'!$D$9,0)=0,"",MAX(AY12-'Baseline Reinforcement'!$D$9,0)))) -> 0 | AZ36: =IF($C36="","",IF(Control!$C$12="Directly",AZ24,IF(MAX(AZ12-'Baseline Reinforcement'!$D$9,0)=0,"",MAX(AZ12-'Baseline Reinforcement'!$D$9,0)))) -> 0 | BA36: =IF($C36="","",IF(Control!$C$12="Directly",BA24,IF(MAX(BA12-'Baseline Reinforcement'!$D$9,0)=0,"",MAX(BA12-'Baseline Reinforcement'!$D$9,0)))) -> 0 | BB36: =IF($C36="","",IF(Control!$C$12="Directly",BB24,IF(MAX(BB12-'Baseline Reinforcement'!$D$9,0)=0,"",MAX(BB12-'Baseline Reinforcement'!$D$9,0)))) -> 0 | BC36: =IF($C36="","",IF(Control!$C$12="Directly",BC24,IF(MAX(BC12-'Baseline Reinforcement'!$D$9,0)=0,"",MAX(BC12-'Baseline Reinforcement'!$D$9,0)))) -> 0 | BD36: =IF($C36="","",IF(Control!$C$12="Directly",BD24,IF(MAX(BD12-'Baseline Reinforcement'!$D$9,0)=0,"",MAX(BD12-'Baseline Reinforcement'!$D$9,0)))) -> 0 | BE36: =IF($C36="","",IF(Control!$C$12="Directly",BE24,IF(MAX(BE12-'Baseline Reinforcement'!$D$9,0)=0,"",MAX(BE12-'Baseline Reinforcement'!$D$9,0)))) -> 0 | BF36: =IF($C36="","",IF(Control!$C$12="Directly",BF24,IF(MAX(BF12-'Baseline Reinforcement'!$D$9,0)=0,"",MAX(BF12-'Baseline Reinforcement'!$D$9,0)))) -> 0 | BG36: =IF($C36="","",IF(Control!$C$12="Directly",BG24,IF(MAX(BG12-'Baseline Reinforcement'!$D$9,0)=0,"",MAX(BG12-'Baseline Reinforcement'!$D$9,0)))) -> 0 | BH36: =IF($C36="","",IF(Control!$C$12="Directly",BH24,IF(MAX(BH12-'Baseline Reinforcement'!$D$9,0)=0,"",MAX(BH12-'Baseline Reinforcement'!$D$9,0)))) -> 0 | BI36: =IF($C36="","",IF(Control!$C$12="Directly",BI24,IF(MAX(BI12-'Baseline Reinforcement'!$D$9,0)=0,"",MAX(BI12-'Baseline Reinforcement'!$D$9,0)))) -> 0 | BJ36: =IF($C36="","",IF(Control!$C$12="Directly",BJ24,IF(MAX(BJ12-'Baseline Reinforcement'!$D$9,0)=0,"",MAX(BJ12-'Baseline Reinforcement'!$D$9,0)))) -> 0 | BK36: =IF($C36="","",IF(Control!$C$12="Directly",BK24,IF(MAX(BK12-'Baseline Reinforcement'!$D$9,0)=0,"",MAX(BK12-'Baseline Reinforcement'!$D$9,0)))) -> 0 | BL36: =IF($C36="","",IF(Control!$C$12="Directly",BL24,IF(MAX(BL12-'Baseline Reinforcement'!$D$9,0)=0,"",MAX(BL12-'Baseline Reinforcement'!$D$9,0)))) -> 0 | BM36: =IF($C36="","",IF(Control!$C$12="Directly",BM24,IF(MAX(BM12-'Baseline Reinforcement'!$D$9,0)=0,"",MAX(BM12-'Baseline Reinforcement'!$D$9,0)))) -> 0 | BN36: =IF($C36="","",IF(Control!$C$12="Directly",BN24,IF(MAX(BN12-'Baseline Reinforcement'!$D$9,0)=0,"",MAX(BN12-'Baseline Reinforcement'!$D$9,0)))) -> 0 | BO36: =IF($C36="","",IF(Control!$C$12="Directly",BO24,IF(MAX(BO12-'Baseline Reinforcement'!$D$9,0)=0,"",MAX(BO12-'Baseline Reinforcement'!$D$9,0)))) -> 0 | BP36: =IF($C36="","",IF(Control!$C$12="Directly",BP24,IF(MAX(BP12-'Baseline Reinforcement'!$D$9,0)=0,"",MAX(BP12-'Baseline Reinforcement'!$D$9,0)))) -> 0 | BQ36: =IF($C36="","",IF(Control!$C$12="Directly",BQ24,IF(MAX(BQ12-'Baseline Reinforcement'!$D$9,0)=0,"",MAX(BQ12-'Baseline Reinforcement'!$D$9,0)))) -> 0 | BR36: =IF($C36="","",IF(Control!$C$12="Directly",BR24,IF(MAX(BR12-'Baseline Reinforcement'!$D$9,0)=0,"",MAX(BR12-'Baseline Reinforcement'!$D$9,0)))) -> 0
A37: Scn | B37: 3 | C37: =IF(Control!C37="","",Control!C37) -> [3] | D37: =IF($C37="","",IF(Control!$C$12="Directly",D25,IF(MAX(D13-'Baseline Reinforcement'!$D$9,0)=0,"",MAX(D13-'Baseline Reinforcement'!$D$9,0)))) ->  | E37: =IF($C37="","",IF(Control!$C$12="Directly",E25,IF(MAX(E13-'Baseline Reinforcement'!$D$9,0)=0,"",MAX(E13-'Baseline Reinforcement'!$D$9,0)))) ->  | F37: =IF($C37="","",IF(Control!$C$12="Directly",F25,IF(MAX(F13-'Baseline Reinforcement'!$D$9,0)=0,"",MAX(F13-'Baseline Reinforcement'!$D$9,0)))) -> 0 | G37: =IF($C37="","",IF(Control!$C$12="Directly",G25,IF(MAX(G13-'Baseline Reinforcement'!$D$9,0)=0,"",MAX(G13-'Baseline Reinforcement'!$D$9,0)))) -> 0 | H37: =IF($C37="","",IF(Control!$C$12="Directly",H25,IF(MAX(H13-'Baseline Reinforcement'!$D$9,0)=0,"",MAX(H13-'Baseline Reinforcement'!$D$9,0)))) -> 0 | I37: =IF($C37="","",IF(Control!$C$12="Directly",I25,IF(MAX(I13-'Baseline Reinforcement'!$D$9,0)=0,"",MAX(I13-'Baseline Reinforcement'!$D$9,0)))) -> 0 | J37: =IF($C37="","",IF(Control!$C$12="Directly",J25,IF(MAX(J13-'Baseline Reinforcement'!$D$9,0)=0,"",MAX(J13-'Baseline Reinforcement'!$D$9,0)))) -> 0 | K37: =IF($C37="","",IF(Control!$C$12="Directly",K25,IF(MAX(K13-'Baseline Reinforcement'!$D$9,0)=0,"",MAX(K13-'Baseline Reinforcement'!$D$9,0)))) -> 0 | L37: =IF($C37="","",IF(Control!$C$12="Directly",L25,IF(MAX(L13-'Baseline Reinforcement'!$D$9,0)=0,"",MAX(L13-'Baseline Reinforcement'!$D$9,0)))) -> 0 | M37: =IF($C37="","",IF(Control!$C$12="Directly",M25,IF(MAX(M13-'Baseline Reinforcement'!$D$9,0)=0,"",MAX(M13-'Baseline Reinforcement'!$D$9,0)))) -> 0 | N37: =IF($C37="","",IF(Control!$C$12="Directly",N25,IF(MAX(N13-'Baseline Reinforcement'!$D$9,0)=0,"",MAX(N13-'Baseline Reinforcement'!$D$9,0)))) -> 0 | O37: =IF($C37="","",IF(Control!$C$12="Directly",O25,IF(MAX(O13-'Baseline Reinforcement'!$D$9,0)=0,"",MAX(O13-'Baseline Reinforcement'!$D$9,0)))) -> 0 | P37: =IF($C37="","",IF(Control!$C$12="Directly",P25,IF(MAX(P13-'Baseline Reinforcement'!$D$9,0)=0,"",MAX(P13-'Baseline Reinforcement'!$D$9,0)))) -> 0 | Q37: =IF($C37="","",IF(Control!$C$12="Directly",Q25,IF(MAX(Q13-'Baseline Reinforcement'!$D$9,0)=0,"",MAX(Q13-'Baseline Reinforcement'!$D$9,0)))) -> 0 | R37: =IF($C37="","",IF(Control!$C$12="Directly",R25,IF(MAX(R13-'Baseline Reinforcement'!$D$9,0)=0,"",MAX(R13-'Baseline Reinforcement'!$D$9,0)))) -> 0 | S37: =IF($C37="","",IF(Control!$C$12="Directly",S25,IF(MAX(S13-'Baseline Reinforcement'!$D$9,0)=0,"",MAX(S13-'Baseline Reinforcement'!$D$9,0)))) -> 0 | T37: =IF($C37="","",IF(Control!$C$12="Directly",T25,IF(MAX(T13-'Baseline Reinforcement'!$D$9,0)=0,"",MAX(T13-'Baseline Reinforcement'!$D$9,0)))) -> 0 | U37: =IF($C37="","",IF(Control!$C$12="Directly",U25,IF(MAX(U13-'Baseline Reinforcement'!$D$9,0)=0,"",MAX(U13-'Baseline Reinforcement'!$D$9,0)))) -> 0 | V37: =IF($C37="","",IF(Control!$C$12="Directly",V25,IF(MAX(V13-'Baseline Reinforcement'!$D$9,0)=0,"",MAX(V13-'Baseline Reinforcement'!$D$9,0)))) -> 0 | W37: =IF($C37="","",IF(Control!$C$12="Directly",W25,IF(MAX(W13-'Baseline Reinforcement'!$D$9,0)=0,"",MAX(W13-'Baseline Reinforcement'!$D$9,0)))) -> 0 | X37: =IF($C37="","",IF(Control!$C$12="Directly",X25,IF(MAX(X13-'Baseline Reinforcement'!$D$9,0)=0,"",MAX(X13-'Baseline Reinforcement'!$D$9,0)))) -> 0 | Y37: =IF($C37="","",IF(Control!$C$12="Directly",Y25,IF(MAX(Y13-'Baseline Reinforcement'!$D$9,0)=0,"",MAX(Y13-'Baseline Reinforcement'!$D$9,0)))) -> 0 | Z37: =IF($C37="","",IF(Control!$C$12="Directly",Z25,IF(MAX(Z13-'Baseline Reinforcement'!$D$9,0)=0,"",MAX(Z13-'Baseline Reinforcement'!$D$9,0)))) -> 0 | AA37: =IF($C37="","",IF(Control!$C$12="Directly",AA25,IF(MAX(AA13-'Baseline Reinforcement'!$D$9,0)=0,"",MAX(AA13-'Baseline Reinforcement'!$D$9,0)))) -> 0 | AB37: =IF($C37="","",IF(Control!$C$12="Directly",AB25,IF(MAX(AB13-'Baseline Reinforcement'!$D$9,0)=0,"",MAX(AB13-'Baseline Reinforcement'!$D$9,0)))) -> 0 | AC37: =IF($C37="","",IF(Control!$C$12="Directly",AC25,IF(MAX(AC13-'Baseline Reinforcement'!$D$9,0)=0,"",MAX(AC13-'Baseline Reinforcement'!$D$9,0)))) -> 0 | AD37: =IF($C37="","",IF(Control!$C$12="Directly",AD25,IF(MAX(AD13-'Baseline Reinforcement'!$D$9,0)=0,"",MAX(AD13-'Baseline Reinforcement'!$D$9,0)))) -> 0 | AE37: =IF($C37="","",IF(Control!$C$12="Directly",AE25,IF(MAX(AE13-'Baseline Reinforcement'!$D$9,0)=0,"",MAX(AE13-'Baseline Reinforcement'!$D$9,0)))) -> 0 | AF37: =IF($C37="","",IF(Control!$C$12="Directly",AF25,IF(MAX(AF13-'Baseline Reinforcement'!$D$9,0)=0,"",MAX(AF13-'Baseline Reinforcement'!$D$9,0)))) -> 0 | AG37: =IF($C37="","",IF(Control!$C$12="Directly",AG25,IF(MAX(AG13-'Baseline Reinforcement'!$D$9,0)=0,"",MAX(AG13-'Baseline Reinforcement'!$D$9,0)))) -> 0 | AH37: =IF($C37="","",IF(Control!$C$12="Directly",AH25,IF(MAX(AH13-'Baseline Reinforcement'!$D$9,0)=0,"",MAX(AH13-'Baseline Reinforcement'!$D$9,0)))) -> 0 | AI37: =IF($C37="","",IF(Control!$C$12="Directly",AI25,IF(MAX(AI13-'Baseline Reinforcement'!$D$9,0)=0,"",MAX(AI13-'Baseline Reinforcement'!$D$9,0)))) -> 0 | AJ37: =IF($C37="","",IF(Control!$C$12="Directly",AJ25,IF(MAX(AJ13-'Baseline Reinforcement'!$D$9,0)=0,"",MAX(AJ13-'Baseline Reinforcement'!$D$9,0)))) -> 0 | AK37: =IF($C37="","",IF(Control!$C$12="Directly",AK25,IF(MAX(AK13-'Baseline Reinforcement'!$D$9,0)=0,"",MAX(AK13-'Baseline Reinforcement'!$D$9,0)))) -> 0 | AL37: =IF($C37="","",IF(Control!$C$12="Directly",AL25,IF(MAX(AL13-'Baseline Reinforcement'!$D$9,0)=0,"",MAX(AL13-'Baseline Reinforcement'!$D$9,0)))) -> 0 | AM37: =IF($C37="","",IF(Control!$C$12="Directly",AM25,IF(MAX(AM13-'Baseline Reinforcement'!$D$9,0)=0,"",MAX(AM13-'Baseline Reinforcement'!$D$9,0)))) -> 0 | AN37: =IF($C37="","",IF(Control!$C$12="Directly",AN25,IF(MAX(AN13-'Baseline Reinforcement'!$D$9,0)=0,"",MAX(AN13-'Baseline Reinforcement'!$D$9,0)))) -> 0 | AO37: =IF($C37="","",IF(Control!$C$12="Directly",AO25,IF(MAX(AO13-'Baseline Reinforcement'!$D$9,0)=0,"",MAX(AO13-'Baseline Reinforcement'!$D$9,0)))) -> 0 | AP37: =IF($C37="","",IF(Control!$C$12="Directly",AP25,IF(MAX(AP13-'Baseline Reinforcement'!$D$9,0)=0,"",MAX(AP13-'Baseline Reinforcement'!$D$9,0)))) -> 0 | AQ37: =IF($C37="","",IF(Control!$C$12="Directly",AQ25,IF(MAX(AQ13-'Baseline Reinforcement'!$D$9,0)=0,"",MAX(AQ13-'Baseline Reinforcement'!$D$9,0)))) -> 0 | AR37: =IF($C37="","",IF(Control!$C$12="Directly",AR25,IF(MAX(AR13-'Baseline Reinforcement'!$D$9,0)=0,"",MAX(AR13-'Baseline Reinforcement'!$D$9,0)))) -> 0 | AS37: =IF($C37="","",IF(Control!$C$12="Directly",AS25,IF(MAX(AS13-'Baseline Reinforcement'!$D$9,0)=0,"",MAX(AS13-'Baseline Reinforcement'!$D$9,0)))) -> 0 | AT37: =IF($C37="","",IF(Control!$C$12="Directly",AT25,IF(MAX(AT13-'Baseline Reinforcement'!$D$9,0)=0,"",MAX(AT13-'Baseline Reinforcement'!$D$9,0)))) -> 0 | AU37: =IF($C37="","",IF(Control!$C$12="Directly",AU25,IF(MAX(AU13-'Baseline Reinforcement'!$D$9,0)=0,"",MAX(AU13-'Baseline Reinforcement'!$D$9,0)))) -> 0 | AV37: =IF($C37="","",IF(Control!$C$12="Directly",AV25,IF(MAX(AV13-'Baseline Reinforcement'!$D$9,0)=0,"",MAX(AV13-'Baseline Reinforcement'!$D$9,0)))) -> 0 | AW37: =IF($C37="","",IF(Control!$C$12="Directly",AW25,IF(MAX(AW13-'Baseline Reinforcement'!$D$9,0)=0,"",MAX(AW13-'Baseline Reinforcement'!$D$9,0)))) -> 0 | AX37: =IF($C37="","",IF(Control!$C$12="Directly",AX25,IF(MAX(AX13-'Baseline Reinforcement'!$D$9,0)=0,"",MAX(AX13-'Baseline Reinforcement'!$D$9,0)))) -> 0 | AY37: =IF($C37="","",IF(Control!$C$12="Directly",AY25,IF(MAX(AY13-'Baseline Reinforcement'!$D$9,0)=0,"",MAX(AY13-'Baseline Reinforcement'!$D$9,0)))) -> 0 | AZ37: =IF($C37="","",IF(Control!$C$12="Directly",AZ25,IF(MAX(AZ13-'Baseline Reinforcement'!$D$9,0)=0,"",MAX(AZ13-'Baseline Reinforcement'!$D$9,0)))) -> 0 | BA37: =IF($C37="","",IF(Control!$C$12="Directly",BA25,IF(MAX(BA13-'Baseline Reinforcement'!$D$9,0)=0,"",MAX(BA13-'Baseline Reinforcement'!$D$9,0)))) -> 0 | BB37: =IF($C37="","",IF(Control!$C$12="Directly",BB25,IF(MAX(BB13-'Baseline Reinforcement'!$D$9,0)=0,"",MAX(BB13-'Baseline Reinforcement'!$D$9,0)))) -> 0 | BC37: =IF($C37="","",IF(Control!$C$12="Directly",BC25,IF(MAX(BC13-'Baseline Reinforcement'!$D$9,0)=0,"",MAX(BC13-'Baseline Reinforcement'!$D$9,0)))) -> 0 | BD37: =IF($C37="","",IF(Control!$C$12="Directly",BD25,IF(MAX(BD13-'Baseline Reinforcement'!$D$9,0)=0,"",MAX(BD13-'Baseline Reinforcement'!$D$9,0)))) -> 0 | BE37: =IF($C37="","",IF(Control!$C$12="Directly",BE25,IF(MAX(BE13-'Baseline Reinforcement'!$D$9,0)=0,"",MAX(BE13-'Baseline Reinforcement'!$D$9,0)))) -> 0 | BF37: =IF($C37="","",IF(Control!$C$12="Directly",BF25,IF(MAX(BF13-'Baseline Reinforcement'!$D$9,0)=0,"",MAX(BF13-'Baseline Reinforcement'!$D$9,0)))) -> 0 | BG37: =IF($C37="","",IF(Control!$C$12="Directly",BG25,IF(MAX(BG13-'Baseline Reinforcement'!$D$9,0)=0,"",MAX(BG13-'Baseline Reinforcement'!$D$9,0)))) -> 0 | BH37: =IF($C37="","",IF(Control!$C$12="Directly",BH25,IF(MAX(BH13-'Baseline Reinforcement'!$D$9,0)=0,"",MAX(BH13-'Baseline Reinforcement'!$D$9,0)))) -> 0 | BI37: =IF($C37="","",IF(Control!$C$12="Directly",BI25,IF(MAX(BI13-'Baseline Reinforcement'!$D$9,0)=0,"",MAX(BI13-'Baseline Reinforcement'!$D$9,0)))) -> 0 | BJ37: =IF($C37="","",IF(Control!$C$12="Directly",BJ25,IF(MAX(BJ13-'Baseline Reinforcement'!$D$9,0)=0,"",MAX(BJ13-'Baseline Reinforcement'!$D$9,0)))) -> 0 | BK37: =IF($C37="","",IF(Control!$C$12="Directly",BK25,IF(MAX(BK13-'Baseline Reinforcement'!$D$9,0)=0,"",MAX(BK13-'Baseline Reinforcement'!$D$9,0)))) -> 0 | BL37: =IF($C37="","",IF(Control!$C$12="Directly",BL25,IF(MAX(BL13-'Baseline Reinforcement'!$D$9,0)=0,"",MAX(BL13-'Baseline Reinforcement'!$D$9,0)))) -> 0 | BM37: =IF($C37="","",IF(Control!$C$12="Directly",BM25,IF(MAX(BM13-'Baseline Reinforcement'!$D$9,0)=0,"",MAX(BM13-'Baseline Reinforcement'!$D$9,0)))) -> 0 | BN37: =IF($C37="","",IF(Control!$C$12="Directly",BN25,IF(MAX(BN13-'Baseline Reinforcement'!$D$9,0)=0,"",MAX(BN13-'Baseline Reinforcement'!$D$9,0)))) -> 0 | BO37: =IF($C37="","",IF(Control!$C$12="Directly",BO25,IF(MAX(BO13-'Baseline Reinforcement'!$D$9,0)=0,"",MAX(BO13-'Baseline Reinforcement'!$D$9,0)))) -> 0 | BP37: =IF($C37="","",IF(Control!$C$12="Directly",BP25,IF(MAX(BP13-'Baseline Reinforcement'!$D$9,0)=0,"",MAX(BP13-'Baseline Reinforcement'!$D$9,0)))) -> 0 | BQ37: =IF($C37="","",IF(Control!$C$12="Directly",BQ25,IF(MAX(BQ13-'Baseline Reinforcement'!$D$9,0)=0,"",MAX(BQ13-'Baseline Reinforcement'!$D$9,0)))) -> 0 | BR37: =IF($C37="","",IF(Control!$C$12="Directly",BR25,IF(MAX(BR13-'Baseline Reinforcement'!$D$9,0)=0,"",MAX(BR13-'Baseline Reinforcement'!$D$9,0)))) -> 0
A38: Scn | B38: 4 | C38: =IF(Control!C38="","",Control!C38) -> [4] | D38: =IF($C38="","",IF(Control!$C$12="Directly",D26,IF(MAX(D14-'Baseline Reinforcement'!$D$9,0)=0,"",MAX(D14-'Baseline Reinforcement'!$D$9,0)))) ->  | E38: =IF($C38="","",IF(Control!$C$12="Directly",E26,IF(MAX(E14-'Baseline Reinforcement'!$D$9,0)=0,"",MAX(E14-'Baseline Reinforcement'!$D$9,0)))) ->  | F38: =IF($C38="","",IF(Control!$C$12="Directly",F26,IF(MAX(F14-'Baseline Reinforcement'!$D$9,0)=0,"",MAX(F14-'Baseline Reinforcement'!$D$9,0)))) -> 0 | G38: =IF($C38="","",IF(Control!$C$12="Directly",G26,IF(MAX(G14-'Baseline Reinforcement'!$D$9,0)=0,"",MAX(G14-'Baseline Reinforcement'!$D$9,0)))) -> 0 | H38: =IF($C38="","",IF(Control!$C$12="Directly",H26,IF(MAX(H14-'Baseline Reinforcement'!$D$9,0)=0,"",MAX(H14-'Baseline Reinforcement'!$D$9,0)))) -> 0 | I38: =IF($C38="","",IF(Control!$C$12="Directly",I26,IF(MAX(I14-'Baseline Reinforcement'!$D$9,0)=0,"",MAX(I14-'Baseline Reinforcement'!$D$9,0)))) -> 0 | J38: =IF($C38="","",IF(Control!$C$12="Directly",J26,IF(MAX(J14-'Baseline Reinforcement'!$D$9,0)=0,"",MAX(J14-'Baseline Reinforcement'!$D$9,0)))) -> 0 | K38: =IF($C38="","",IF(Control!$C$12="Directly",K26,IF(MAX(K14-'Baseline Reinforcement'!$D$9,0)=0,"",MAX(K14-'Baseline Reinforcement'!$D$9,0)))) -> 0 | L38: =IF($C38="","",IF(Control!$C$12="Directly",L26,IF(MAX(L14-'Baseline Reinforcement'!$D$9,0)=0,"",MAX(L14-'Baseline Reinforcement'!$D$9,0)))) -> 0 | M38: =IF($C38="","",IF(Control!$C$12="Directly",M26,IF(MAX(M14-'Baseline Reinforcement'!$D$9,0)=0,"",MAX(M14-'Baseline Reinforcement'!$D$9,0)))) -> 0 | N38: =IF($C38="","",IF(Control!$C$12="Directly",N26,IF(MAX(N14-'Baseline Reinforcement'!$D$9,0)=0,"",MAX(N14-'Baseline Reinforcement'!$D$9,0)))) -> 0 | O38: =IF($C38="","",IF(Control!$C$12="Directly",O26,IF(MAX(O14-'Baseline Reinforcement'!$D$9,0)=0,"",MAX(O14-'Baseline Reinforcement'!$D$9,0)))) -> 0 | P38: =IF($C38="","",IF(Control!$C$12="Directly",P26,IF(MAX(P14-'Baseline Reinforcement'!$D$9,0)=0,"",MAX(P14-'Baseline Reinforcement'!$D$9,0)))) -> 0 | Q38: =IF($C38="","",IF(Control!$C$12="Directly",Q26,IF(MAX(Q14-'Baseline Reinforcement'!$D$9,0)=0,"",MAX(Q14-'Baseline Reinforcement'!$D$9,0)))) -> 0 | R38: =IF($C38="","",IF(Control!$C$12="Directly",R26,IF(MAX(R14-'Baseline Reinforcement'!$D$9,0)=0,"",MAX(R14-'Baseline Reinforcement'!$D$9,0)))) -> 0 | S38: =IF($C38="","",IF(Control!$C$12="Directly",S26,IF(MAX(S14-'Baseline Reinforcement'!$D$9,0)=0,"",MAX(S14-'Baseline Reinforcement'!$D$9,0)))) -> 0 | T38: =IF($C38="","",IF(Control!$C$12="Directly",T26,IF(MAX(T14-'Baseline Reinforcement'!$D$9,0)=0,"",MAX(T14-'Baseline Reinforcement'!$D$9,0)))) -> 0 | U38: =IF($C38="","",IF(Control!$C$12="Directly",U26,IF(MAX(U14-'Baseline Reinforcement'!$D$9,0)=0,"",MAX(U14-'Baseline Reinforcement'!$D$9,0)))) -> 0 | V38: =IF($C38="","",IF(Control!$C$12="Directly",V26,IF(MAX(V14-'Baseline Reinforcement'!$D$9,0)=0,"",MAX(V14-'Baseline Reinforcement'!$D$9,0)))) -> 0 | W38: =IF($C38="","",IF(Control!$C$12="Directly",W26,IF(MAX(W14-'Baseline Reinforcement'!$D$9,0)=0,"",MAX(W14-'Baseline Reinforcement'!$D$9,0)))) -> 0 | X38: =IF($C38="","",IF(Control!$C$12="Directly",X26,IF(MAX(X14-'Baseline Reinforcement'!$D$9,0)=0,"",MAX(X14-'Baseline Reinforcement'!$D$9,0)))) -> 0 | Y38: =IF($C38="","",IF(Control!$C$12="Directly",Y26,IF(MAX(Y14-'Baseline Reinforcement'!$D$9,0)=0,"",MAX(Y14-'Baseline Reinforcement'!$D$9,0)))) -> 0 | Z38: =IF($C38="","",IF(Control!$C$12="Directly",Z26,IF(MAX(Z14-'Baseline Reinforcement'!$D$9,0)=0,"",MAX(Z14-'Baseline Reinforcement'!$D$9,0)))) -> 0 | AA38: =IF($C38="","",IF(Control!$C$12="Directly",AA26,IF(MAX(AA14-'Baseline Reinforcement'!$D$9,0)=0,"",MAX(AA14-'Baseline Reinforcement'!$D$9,0)))) -> 0 | AB38: =IF($C38="","",IF(Control!$C$12="Directly",AB26,IF(MAX(AB14-'Baseline Reinforcement'!$D$9,0)=0,"",MAX(AB14-'Baseline Reinforcement'!$D$9,0)))) -> 0 | AC38: =IF($C38="","",IF(Control!$C$12="Directly",AC26,IF(MAX(AC14-'Baseline Reinforcement'!$D$9,0)=0,"",MAX(AC14-'Baseline Reinforcement'!$D$9,0)))) -> 0 | AD38: =IF($C38="","",IF(Control!$C$12="Directly",AD26,IF(MAX(AD14-'Baseline Reinforcement'!$D$9,0)=0,"",MAX(AD14-'Baseline Reinforcement'!$D$9,0)))) -> 0 | AE38: =IF($C38="","",IF(Control!$C$12="Directly",AE26,IF(MAX(AE14-'Baseline Reinforcement'!$D$9,0)=0,"",MAX(AE14-'Baseline Reinforcement'!$D$9,0)))) -> 0 | AF38: =IF($C38="","",IF(Control!$C$12="Directly",AF26,IF(MAX(AF14-'Baseline Reinforcement'!$D$9,0)=0,"",MAX(AF14-'Baseline Reinforcement'!$D$9,0)))) -> 0 | AG38: =IF($C38="","",IF(Control!$C$12="Directly",AG26,IF(MAX(AG14-'Baseline Reinforcement'!$D$9,0)=0,"",MAX(AG14-'Baseline Reinforcement'!$D$9,0)))) -> 0 | AH38: =IF($C38="","",IF(Control!$C$12="Directly",AH26,IF(MAX(AH14-'Baseline Reinforcement'!$D$9,0)=0,"",MAX(AH14-'Baseline Reinforcement'!$D$9,0)))) -> 0 | AI38: =IF($C38="","",IF(Control!$C$12="Directly",AI26,IF(MAX(AI14-'Baseline Reinforcement'!$D$9,0)=0,"",MAX(AI14-'Baseline Reinforcement'!$D$9,0)))) -> 0 | AJ38: =IF($C38="","",IF(Control!$C$12="Directly",AJ26,IF(MAX(AJ14-'Baseline Reinforcement'!$D$9,0)=0,"",MAX(AJ14-'Baseline Reinforcement'!$D$9,0)))) -> 0 | AK38: =IF($C38="","",IF(Control!$C$12="Directly",AK26,IF(MAX(AK14-'Baseline Reinforcement'!$D$9,0)=0,"",MAX(AK14-'Baseline Reinforcement'!$D$9,0)))) -> 0 | AL38: =IF($C38="","",IF(Control!$C$12="Directly",AL26,IF(MAX(AL14-'Baseline Reinforcement'!$D$9,0)=0,"",MAX(AL14-'Baseline Reinforcement'!$D$9,0)))) -> 0 | AM38: =IF($C38="","",IF(Control!$C$12="Directly",AM26,IF(MAX(AM14-'Baseline Reinforcement'!$D$9,0)=0,"",MAX(AM14-'Baseline Reinforcement'!$D$9,0)))) -> 0 | AN38: =IF($C38="","",IF(Control!$C$12="Directly",AN26,IF(MAX(AN14-'Baseline Reinforcement'!$D$9,0)=0,"",MAX(AN14-'Baseline Reinforcement'!$D$9,0)))) -> 0 | AO38: =IF($C38="","",IF(Control!$C$12="Directly",AO26,IF(MAX(AO14-'Baseline Reinforcement'!$D$9,0)=0,"",MAX(AO14-'Baseline Reinforcement'!$D$9,0)))) -> 0 | AP38: =IF($C38="","",IF(Control!$C$12="Directly",AP26,IF(MAX(AP14-'Baseline Reinforcement'!$D$9,0)=0,"",MAX(AP14-'Baseline Reinforcement'!$D$9,0)))) -> 0 | AQ38: =IF($C38="","",IF(Control!$C$12="Directly",AQ26,IF(MAX(AQ14-'Baseline Reinforcement'!$D$9,0)=0,"",MAX(AQ14-'Baseline Reinforcement'!$D$9,0)))) -> 0 | AR38: =IF($C38="","",IF(Control!$C$12="Directly",AR26,IF(MAX(AR14-'Baseline Reinforcement'!$D$9,0)=0,"",MAX(AR14-'Baseline Reinforcement'!$D$9,0)))) -> 0 | AS38: =IF($C38="","",IF(Control!$C$12="Directly",AS26,IF(MAX(AS14-'Baseline Reinforcement'!$D$9,0)=0,"",MAX(AS14-'Baseline Reinforcement'!$D$9,0)))) -> 0 | AT38: =IF($C38="","",IF(Control!$C$12="Directly",AT26,IF(MAX(AT14-'Baseline Reinforcement'!$D$9,0)=0,"",MAX(AT14-'Baseline Reinforcement'!$D$9,0)))) -> 0 | AU38: =IF($C38="","",IF(Control!$C$12="Directly",AU26,IF(MAX(AU14-'Baseline Reinforcement'!$D$9,0)=0,"",MAX(AU14-'Baseline Reinforcement'!$D$9,0)))) -> 0 | AV38: =IF($C38="","",IF(Control!$C$12="Directly",AV26,IF(MAX(AV14-'Baseline Reinforcement'!$D$9,0)=0,"",MAX(AV14-'Baseline Reinforcement'!$D$9,0)))) -> 0 | AW38: =IF($C38="","",IF(Control!$C$12="Directly",AW26,IF(MAX(AW14-'Baseline Reinforcement'!$D$9,0)=0,"",MAX(AW14-'Baseline Reinforcement'!$D$9,0)))) -> 0 | AX38: =IF($C38="","",IF(Control!$C$12="Directly",AX26,IF(MAX(AX14-'Baseline Reinforcement'!$D$9,0)=0,"",MAX(AX14-'Baseline Reinforcement'!$D$9,0)))) -> 0 | AY38: =IF($C38="","",IF(Control!$C$12="Directly",AY26,IF(MAX(AY14-'Baseline Reinforcement'!$D$9,0)=0,"",MAX(AY14-'Baseline Reinforcement'!$D$9,0)))) -> 0 | AZ38: =IF($C38="","",IF(Control!$C$12="Directly",AZ26,IF(MAX(AZ14-'Baseline Reinforcement'!$D$9,0)=0,"",MAX(AZ14-'Baseline Reinforcement'!$D$9,0)))) -> 0 | BA38: =IF($C38="","",IF(Control!$C$12="Directly",BA26,IF(MAX(BA14-'Baseline Reinforcement'!$D$9,0)=0,"",MAX(BA14-'Baseline Reinforcement'!$D$9,0)))) -> 0 | BB38: =IF($C38="","",IF(Control!$C$12="Directly",BB26,IF(MAX(BB14-'Baseline Reinforcement'!$D$9,0)=0,"",MAX(BB14-'Baseline Reinforcement'!$D$9,0)))) -> 0 | BC38: =IF($C38="","",IF(Control!$C$12="Directly",BC26,IF(MAX(BC14-'Baseline Reinforcement'!$D$9,0)=0,"",MAX(BC14-'Baseline Reinforcement'!$D$9,0)))) -> 0 | BD38: =IF($C38="","",IF(Control!$C$12="Directly",BD26,IF(MAX(BD14-'Baseline Reinforcement'!$D$9,0)=0,"",MAX(BD14-'Baseline Reinforcement'!$D$9,0)))) -> 0 | BE38: =IF($C38="","",IF(Control!$C$12="Directly",BE26,IF(MAX(BE14-'Baseline Reinforcement'!$D$9,0)=0,"",MAX(BE14-'Baseline Reinforcement'!$D$9,0)))) -> 0 | BF38: =IF($C38="","",IF(Control!$C$12="Directly",BF26,IF(MAX(BF14-'Baseline Reinforcement'!$D$9,0)=0,"",MAX(BF14-'Baseline Reinforcement'!$D$9,0)))) -> 0 | BG38: =IF($C38="","",IF(Control!$C$12="Directly",BG26,IF(MAX(BG14-'Baseline Reinforcement'!$D$9,0)=0,"",MAX(BG14-'Baseline Reinforcement'!$D$9,0)))) -> 0 | BH38: =IF($C38="","",IF(Control!$C$12="Directly",BH26,IF(MAX(BH14-'Baseline Reinforcement'!$D$9,0)=0,"",MAX(BH14-'Baseline Reinforcement'!$D$9,0)))) -> 0 | BI38: =IF($C38="","",IF(Control!$C$12="Directly",BI26,IF(MAX(BI14-'Baseline Reinforcement'!$D$9,0)=0,"",MAX(BI14-'Baseline Reinforcement'!$D$9,0)))) -> 0 | BJ38: =IF($C38="","",IF(Control!$C$12="Directly",BJ26,IF(MAX(BJ14-'Baseline Reinforcement'!$D$9,0)=0,"",MAX(BJ14-'Baseline Reinforcement'!$D$9,0)))) -> 0 | BK38: =IF($C38="","",IF(Control!$C$12="Directly",BK26,IF(MAX(BK14-'Baseline Reinforcement'!$D$9,0)=0,"",MAX(BK14-'Baseline Reinforcement'!$D$9,0)))) -> 0 | BL38: =IF($C38="","",IF(Control!$C$12="Directly",BL26,IF(MAX(BL14-'Baseline Reinforcement'!$D$9,0)=0,"",MAX(BL14-'Baseline Reinforcement'!$D$9,0)))) -> 0 | BM38: =IF($C38="","",IF(Control!$C$12="Directly",BM26,IF(MAX(BM14-'Baseline Reinforcement'!$D$9,0)=0,"",MAX(BM14-'Baseline Reinforcement'!$D$9,0)))) -> 0 | BN38: =IF($C38="","",IF(Control!$C$12="Directly",BN26,IF(MAX(BN14-'Baseline Reinforcement'!$D$9,0)=0,"",MAX(BN14-'Baseline Reinforcement'!$D$9,0)))) -> 0 | BO38: =IF($C38="","",IF(Control!$C$12="Directly",BO26,IF(MAX(BO14-'Baseline Reinforcement'!$D$9,0)=0,"",MAX(BO14-'Baseline Reinforcement'!$D$9,0)))) -> 0 | BP38: =IF($C38="","",IF(Control!$C$12="Directly",BP26,IF(MAX(BP14-'Baseline Reinforcement'!$D$9,0)=0,"",MAX(BP14-'Baseline Reinforcement'!$D$9,0)))) -> 0 | BQ38: =IF($C38="","",IF(Control!$C$12="Directly",BQ26,IF(MAX(BQ14-'Baseline Reinforcement'!$D$9,0)=0,"",MAX(BQ14-'Baseline Reinforcement'!$D$9,0)))) -> 0 | BR38: =IF($C38="","",IF(Control!$C$12="Directly",BR26,IF(MAX(BR14-'Baseline Reinforcement'!$D$9,0)=0,"",MAX(BR14-'Baseline Reinforcement'!$D$9,0)))) -> 0
A39: Scn | B39: 5 | C39: =IF(Control!C39="","",Control!C39) -> [5] | D39: =IF($C39="","",IF(Control!$C$12="Directly",D27,IF(MAX(D15-'Baseline Reinforcement'!$D$9,0)=0,"",MAX(D15-'Baseline Reinforcement'!$D$9,0)))) ->  | E39: =IF($C39="","",IF(Control!$C$12="Directly",E27,IF(MAX(E15-'Baseline Reinforcement'!$D$9,0)=0,"",MAX(E15-'Baseline Reinforcement'!$D$9,0)))) ->  | F39: =IF($C39="","",IF(Control!$C$12="Directly",F27,IF(MAX(F15-'Baseline Reinforcement'!$D$9,0)=0,"",MAX(F15-'Baseline Reinforcement'!$D$9,0)))) -> 0 | G39: =IF($C39="","",IF(Control!$C$12="Directly",G27,IF(MAX(G15-'Baseline Reinforcement'!$D$9,0)=0,"",MAX(G15-'Baseline Reinforcement'!$D$9,0)))) -> 0 | H39: =IF($C39="","",IF(Control!$C$12="Directly",H27,IF(MAX(H15-'Baseline Reinforcement'!$D$9,0)=0,"",MAX(H15-'Baseline Reinforcement'!$D$9,0)))) -> 0 | I39: =IF($C39="","",IF(Control!$C$12="Directly",I27,IF(MAX(I15-'Baseline Reinforcement'!$D$9,0)=0,"",MAX(I15-'Baseline Reinforcement'!$D$9,0)))) -> 0 | J39: =IF($C39="","",IF(Control!$C$12="Directly",J27,IF(MAX(J15-'Baseline Reinforcement'!$D$9,0)=0,"",MAX(J15-'Baseline Reinforcement'!$D$9,0)))) -> 0 | K39: =IF($C39="","",IF(Control!$C$12="Directly",K27,IF(MAX(K15-'Baseline Reinforcement'!$D$9,0)=0,"",MAX(K15-'Baseline Reinforcement'!$D$9,0)))) -> 0 | L39: =IF($C39="","",IF(Control!$C$12="Directly",L27,IF(MAX(L15-'Baseline Reinforcement'!$D$9,0)=0,"",MAX(L15-'Baseline Reinforcement'!$D$9,0)))) -> 0 | M39: =IF($C39="","",IF(Control!$C$12="Directly",M27,IF(MAX(M15-'Baseline Reinforcement'!$D$9,0)=0,"",MAX(M15-'Baseline Reinforcement'!$D$9,0)))) -> 0 | N39: =IF($C39="","",IF(Control!$C$12="Directly",N27,IF(MAX(N15-'Baseline Reinforcement'!$D$9,0)=0,"",MAX(N15-'Baseline Reinforcement'!$D$9,0)))) -> 0 | O39: =IF($C39="","",IF(Control!$C$12="Directly",O27,IF(MAX(O15-'Baseline Reinforcement'!$D$9,0)=0,"",MAX(O15-'Baseline Reinforcement'!$D$9,0)))) -> 0 | P39: =IF($C39="","",IF(Control!$C$12="Directly",P27,IF(MAX(P15-'Baseline Reinforcement'!$D$9,0)=0,"",MAX(P15-'Baseline Reinforcement'!$D$9,0)))) -> 0 | Q39: =IF($C39="","",IF(Control!$C$12="Directly",Q27,IF(MAX(Q15-'Baseline Reinforcement'!$D$9,0)=0,"",MAX(Q15-'Baseline Reinforcement'!$D$9,0)))) -> 0 | R39: =IF($C39="","",IF(Control!$C$12="Directly",R27,IF(MAX(R15-'Baseline Reinforcement'!$D$9,0)=0,"",MAX(R15-'Baseline Reinforcement'!$D$9,0)))) -> 0 | S39: =IF($C39="","",IF(Control!$C$12="Directly",S27,IF(MAX(S15-'Baseline Reinforcement'!$D$9,0)=0,"",MAX(S15-'Baseline Reinforcement'!$D$9,0)))) -> 0 | T39: =IF($C39="","",IF(Control!$C$12="Directly",T27,IF(MAX(T15-'Baseline Reinforcement'!$D$9,0)=0,"",MAX(T15-'Baseline Reinforcement'!$D$9,0)))) -> 0 | U39: =IF($C39="","",IF(Control!$C$12="Directly",U27,IF(MAX(U15-'Baseline Reinforcement'!$D$9,0)=0,"",MAX(U15-'Baseline Reinforcement'!$D$9,0)))) -> 0 | V39: =IF($C39="","",IF(Control!$C$12="Directly",V27,IF(MAX(V15-'Baseline Reinforcement'!$D$9,0)=0,"",MAX(V15-'Baseline Reinforcement'!$D$9,0)))) -> 0 | W39: =IF($C39="","",IF(Control!$C$12="Directly",W27,IF(MAX(W15-'Baseline Reinforcement'!$D$9,0)=0,"",MAX(W15-'Baseline Reinforcement'!$D$9,0)))) -> 0 | X39: =IF($C39="","",IF(Control!$C$12="Directly",X27,IF(MAX(X15-'Baseline Reinforcement'!$D$9,0)=0,"",MAX(X15-'Baseline Reinforcement'!$D$9,0)))) -> 0 | Y39: =IF($C39="","",IF(Control!$C$12="Directly",Y27,IF(MAX(Y15-'Baseline Reinforcement'!$D$9,0)=0,"",MAX(Y15-'Baseline Reinforcement'!$D$9,0)))) -> 0 | Z39: =IF($C39="","",IF(Control!$C$12="Directly",Z27,IF(MAX(Z15-'Baseline Reinforcement'!$D$9,0)=0,"",MAX(Z15-'Baseline Reinforcement'!$D$9,0)))) -> 0 | AA39: =IF($C39="","",IF(Control!$C$12="Directly",AA27,IF(MAX(AA15-'Baseline Reinforcement'!$D$9,0)=0,"",MAX(AA15-'Baseline Reinforcement'!$D$9,0)))) -> 0 | AB39: =IF($C39="","",IF(Control!$C$12="Directly",AB27,IF(MAX(AB15-'Baseline Reinforcement'!$D$9,0)=0,"",MAX(AB15-'Baseline Reinforcement'!$D$9,0)))) -> 0 | AC39: =IF($C39="","",IF(Control!$C$12="Directly",AC27,IF(MAX(AC15-'Baseline Reinforcement'!$D$9,0)=0,"",MAX(AC15-'Baseline Reinforcement'!$D$9,0)))) -> 0 | AD39: =IF($C39="","",IF(Control!$C$12="Directly",AD27,IF(MAX(AD15-'Baseline Reinforcement'!$D$9,0)=0,"",MAX(AD15-'Baseline Reinforcement'!$D$9,0)))) -> 0 | AE39: =IF($C39="","",IF(Control!$C$12="Directly",AE27,IF(MAX(AE15-'Baseline Reinforcement'!$D$9,0)=0,"",MAX(AE15-'Baseline Reinforcement'!$D$9,0)))) -> 0 | AF39: =IF($C39="","",IF(Control!$C$12="Directly",AF27,IF(MAX(AF15-'Baseline Reinforcement'!$D$9,0)=0,"",MAX(AF15-'Baseline Reinforcement'!$D$9,0)))) -> 0 | AG39: =IF($C39="","",IF(Control!$C$12="Directly",AG27,IF(MAX(AG15-'Baseline Reinforcement'!$D$9,0)=0,"",MAX(AG15-'Baseline Reinforcement'!$D$9,0)))) -> 0 | AH39: =IF($C39="","",IF(Control!$C$12="Directly",AH27,IF(MAX(AH15-'Baseline Reinforcement'!$D$9,0)=0,"",MAX(AH15-'Baseline Reinforcement'!$D$9,0)))) -> 0 | AI39: =IF($C39="","",IF(Control!$C$12="Directly",AI27,IF(MAX(AI15-'Baseline Reinforcement'!$D$9,0)=0,"",MAX(AI15-'Baseline Reinforcement'!$D$9,0)))) -> 0 | AJ39: =IF($C39="","",IF(Control!$C$12="Directly",AJ27,IF(MAX(AJ15-'Baseline Reinforcement'!$D$9,0)=0,"",MAX(AJ15-'Baseline Reinforcement'!$D$9,0)))) -> 0 | AK39: =IF($C39="","",IF(Control!$C$12="Directly",AK27,IF(MAX(AK15-'Baseline Reinforcement'!$D$9,0)=0,"",MAX(AK15-'Baseline Reinforcement'!$D$9,0)))) -> 0 | AL39: =IF($C39="","",IF(Control!$C$12="Directly",AL27,IF(MAX(AL15-'Baseline Reinforcement'!$D$9,0)=0,"",MAX(AL15-'Baseline Reinforcement'!$D$9,0)))) -> 0 | AM39: =IF($C39="","",IF(Control!$C$12="Directly",AM27,IF(MAX(AM15-'Baseline Reinforcement'!$D$9,0)=0,"",MAX(AM15-'Baseline Reinforcement'!$D$9,0)))) -> 0 | AN39: =IF($C39="","",IF(Control!$C$12="Directly",AN27,IF(MAX(AN15-'Baseline Reinforcement'!$D$9,0)=0,"",MAX(AN15-'Baseline Reinforcement'!$D$9,0)))) -> 0 | AO39: =IF($C39="","",IF(Control!$C$12="Directly",AO27,IF(MAX(AO15-'Baseline Reinforcement'!$D$9,0)=0,"",MAX(AO15-'Baseline Reinforcement'!$D$9,0)))) -> 0 | AP39: =IF($C39="","",IF(Control!$C$12="Directly",AP27,IF(MAX(AP15-'Baseline Reinforcement'!$D$9,0)=0,"",MAX(AP15-'Baseline Reinforcement'!$D$9,0)))) -> 0 | AQ39: =IF($C39="","",IF(Control!$C$12="Directly",AQ27,IF(MAX(AQ15-'Baseline Reinforcement'!$D$9,0)=0,"",MAX(AQ15-'Baseline Reinforcement'!$D$9,0)))) -> 0 | AR39: =IF($C39="","",IF(Control!$C$12="Directly",AR27,IF(MAX(AR15-'Baseline Reinforcement'!$D$9,0)=0,"",MAX(AR15-'Baseline Reinforcement'!$D$9,0)))) -> 0 | AS39: =IF($C39="","",IF(Control!$C$12="Directly",AS27,IF(MAX(AS15-'Baseline Reinforcement'!$D$9,0)=0,"",MAX(AS15-'Baseline Reinforcement'!$D$9,0)))) -> 0 | AT39: =IF($C39="","",IF(Control!$C$12="Directly",AT27,IF(MAX(AT15-'Baseline Reinforcement'!$D$9,0)=0,"",MAX(AT15-'Baseline Reinforcement'!$D$9,0)))) -> 0 | AU39: =IF($C39="","",IF(Control!$C$12="Directly",AU27,IF(MAX(AU15-'Baseline Reinforcement'!$D$9,0)=0,"",MAX(AU15-'Baseline Reinforcement'!$D$9,0)))) -> 0 | AV39: =IF($C39="","",IF(Control!$C$12="Directly",AV27,IF(MAX(AV15-'Baseline Reinforcement'!$D$9,0)=0,"",MAX(AV15-'Baseline Reinforcement'!$D$9,0)))) -> 0 | AW39: =IF($C39="","",IF(Control!$C$12="Directly",AW27,IF(MAX(AW15-'Baseline Reinforcement'!$D$9,0)=0,"",MAX(AW15-'Baseline Reinforcement'!$D$9,0)))) -> 0 | AX39: =IF($C39="","",IF(Control!$C$12="Directly",AX27,IF(MAX(AX15-'Baseline Reinforcement'!$D$9,0)=0,"",MAX(AX15-'Baseline Reinforcement'!$D$9,0)))) -> 0 | AY39: =IF($C39="","",IF(Control!$C$12="Directly",AY27,IF(MAX(AY15-'Baseline Reinforcement'!$D$9,0)=0,"",MAX(AY15-'Baseline Reinforcement'!$D$9,0)))) -> 0 | AZ39: =IF($C39="","",IF(Control!$C$12="Directly",AZ27,IF(MAX(AZ15-'Baseline Reinforcement'!$D$9,0)=0,"",MAX(AZ15-'Baseline Reinforcement'!$D$9,0)))) -> 0 | BA39: =IF($C39="","",IF(Control!$C$12="Directly",BA27,IF(MAX(BA15-'Baseline Reinforcement'!$D$9,0)=0,"",MAX(BA15-'Baseline Reinforcement'!$D$9,0)))) -> 0 | BB39: =IF($C39="","",IF(Control!$C$12="Directly",BB27,IF(MAX(BB15-'Baseline Reinforcement'!$D$9,0)=0,"",MAX(BB15-'Baseline Reinforcement'!$D$9,0)))) -> 0 | BC39: =IF($C39="","",IF(Control!$C$12="Directly",BC27,IF(MAX(BC15-'Baseline Reinforcement'!$D$9,0)=0,"",MAX(BC15-'Baseline Reinforcement'!$D$9,0)))) -> 0 | BD39: =IF($C39="","",IF(Control!$C$12="Directly",BD27,IF(MAX(BD15-'Baseline Reinforcement'!$D$9,0)=0,"",MAX(BD15-'Baseline Reinforcement'!$D$9,0)))) -> 0 | BE39: =IF($C39="","",IF(Control!$C$12="Directly",BE27,IF(MAX(BE15-'Baseline Reinforcement'!$D$9,0)=0,"",MAX(BE15-'Baseline Reinforcement'!$D$9,0)))) -> 0 | BF39: =IF($C39="","",IF(Control!$C$12="Directly",BF27,IF(MAX(BF15-'Baseline Reinforcement'!$D$9,0)=0,"",MAX(BF15-'Baseline Reinforcement'!$D$9,0)))) -> 0 | BG39: =IF($C39="","",IF(Control!$C$12="Directly",BG27,IF(MAX(BG15-'Baseline Reinforcement'!$D$9,0)=0,"",MAX(BG15-'Baseline Reinforcement'!$D$9,0)))) -> 0 | BH39: =IF($C39="","",IF(Control!$C$12="Directly",BH27,IF(MAX(BH15-'Baseline Reinforcement'!$D$9,0)=0,"",MAX(BH15-'Baseline Reinforcement'!$D$9,0)))) -> 0 | BI39: =IF($C39="","",IF(Control!$C$12="Directly",BI27,IF(MAX(BI15-'Baseline Reinforcement'!$D$9,0)=0,"",MAX(BI15-'Baseline Reinforcement'!$D$9,0)))) -> 0 | BJ39: =IF($C39="","",IF(Control!$C$12="Directly",BJ27,IF(MAX(BJ15-'Baseline Reinforcement'!$D$9,0)=0,"",MAX(BJ15-'Baseline Reinforcement'!$D$9,0)))) -> 0 | BK39: =IF($C39="","",IF(Control!$C$12="Directly",BK27,IF(MAX(BK15-'Baseline Reinforcement'!$D$9,0)=0,"",MAX(BK15-'Baseline Reinforcement'!$D$9,0)))) -> 0 | BL39: =IF($C39="","",IF(Control!$C$12="Directly",BL27,IF(MAX(BL15-'Baseline Reinforcement'!$D$9,0)=0,"",MAX(BL15-'Baseline Reinforcement'!$D$9,0)))) -> 0 | BM39: =IF($C39="","",IF(Control!$C$12="Directly",BM27,IF(MAX(BM15-'Baseline Reinforcement'!$D$9,0)=0,"",MAX(BM15-'Baseline Reinforcement'!$D$9,0)))) -> 0 | BN39: =IF($C39="","",IF(Control!$C$12="Directly",BN27,IF(MAX(BN15-'Baseline Reinforcement'!$D$9,0)=0,"",MAX(BN15-'Baseline Reinforcement'!$D$9,0)))) -> 0 | BO39: =IF($C39="","",IF(Control!$C$12="Directly",BO27,IF(MAX(BO15-'Baseline Reinforcement'!$D$9,0)=0,"",MAX(BO15-'Baseline Reinforcement'!$D$9,0)))) -> 0 | BP39: =IF($C39="","",IF(Control!$C$12="Directly",BP27,IF(MAX(BP15-'Baseline Reinforcement'!$D$9,0)=0,"",MAX(BP15-'Baseline Reinforcement'!$D$9,0)))) -> 0 | BQ39: =IF($C39="","",IF(Control!$C$12="Directly",BQ27,IF(MAX(BQ15-'Baseline Reinforcement'!$D$9,0)=0,"",MAX(BQ15-'Baseline Reinforcement'!$D$9,0)))) -> 0 | BR39: =IF($C39="","",IF(Control!$C$12="Directly",BR27,IF(MAX(BR15-'Baseline Reinforcement'!$D$9,0)=0,"",MAX(BR15-'Baseline Reinforcement'!$D$9,0)))) -> 0
A40: Scn | B40: 6 | C40: =IF(Control!C40="","",Control!C40) ->  | D40: =IF($C40="","",IF(Control!$C$12="Directly",D31,IF(MAX(D16-'Baseline Reinforcement'!$D$9,0)=0,"",MAX(D16-'Baseline Reinforcement'!$D$9,0)))) ->  | E40: =IF($C40="","",IF(Control!$C$12="Directly",E31,IF(MAX(E16-'Baseline Reinforcement'!$D$9,0)=0,"",MAX(E16-'Baseline Reinforcement'!$D$9,0)))) ->  | F40: =IF($C40="","",IF(Control!$C$12="Directly",F31,IF(MAX(F16-'Baseline Reinforcement'!$D$9,0)=0,"",MAX(F16-'Baseline Reinforcement'!$D$9,0)))) ->  | G40: =IF($C40="","",IF(Control!$C$12="Directly",G31,IF(MAX(G16-'Baseline Reinforcement'!$D$9,0)=0,"",MAX(G16-'Baseline Reinforcement'!$D$9,0)))) ->  | H40: =IF($C40="","",IF(Control!$C$12="Directly",H31,IF(MAX(H16-'Baseline Reinforcement'!$D$9,0)=0,"",MAX(H16-'Baseline Reinforcement'!$D$9,0)))) ->  | I40: =IF($C40="","",IF(Control!$C$12="Directly",I31,IF(MAX(I16-'Baseline Reinforcement'!$D$9,0)=0,"",MAX(I16-'Baseline Reinforcement'!$D$9,0)))) ->  | J40: =IF($C40="","",IF(Control!$C$12="Directly",J31,IF(MAX(J16-'Baseline Reinforcement'!$D$9,0)=0,"",MAX(J16-'Baseline Reinforcement'!$D$9,0)))) ->  | K40: =IF($C40="","",IF(Control!$C$12="Directly",K31,IF(MAX(K16-'Baseline Reinforcement'!$D$9,0)=0,"",MAX(K16-'Baseline Reinforcement'!$D$9,0)))) ->  | L40: =IF($C40="","",IF(Control!$C$12="Directly",L31,IF(MAX(L16-'Baseline Reinforcement'!$D$9,0)=0,"",MAX(L16-'Baseline Reinforcement'!$D$9,0)))) ->  | M40: =IF($C40="","",IF(Control!$C$12="Directly",M31,IF(MAX(M16-'Baseline Reinforcement'!$D$9,0)=0,"",MAX(M16-'Baseline Reinforcement'!$D$9,0)))) ->  | N40: =IF($C40="","",IF(Control!$C$12="Directly",N31,IF(MAX(N16-'Baseline Reinforcement'!$D$9,0)=0,"",MAX(N16-'Baseline Reinforcement'!$D$9,0)))) ->  | O40: =IF($C40="","",IF(Control!$C$12="Directly",O31,IF(MAX(O16-'Baseline Reinforcement'!$D$9,0)=0,"",MAX(O16-'Baseline Reinforcement'!$D$9,0)))) ->  | P40: =IF($C40="","",IF(Control!$C$12="Directly",P31,IF(MAX(P16-'Baseline Reinforcement'!$D$9,0)=0,"",MAX(P16-'Baseline Reinforcement'!$D$9,0)))) ->  | Q40: =IF($C40="","",IF(Control!$C$12="Directly",Q31,IF(MAX(Q16-'Baseline Reinforcement'!$D$9,0)=0,"",MAX(Q16-'Baseline Reinforcement'!$D$9,0)))) ->  | R40: =IF($C40="","",IF(Control!$C$12="Directly",R31,IF(MAX(R16-'Baseline Reinforcement'!$D$9,0)=0,"",MAX(R16-'Baseline Reinforcement'!$D$9,0)))) ->  | S40: =IF($C40="","",IF(Control!$C$12="Directly",S31,IF(MAX(S16-'Baseline Reinforcement'!$D$9,0)=0,"",MAX(S16-'Baseline Reinforcement'!$D$9,0)))) ->  | T40: =IF($C40="","",IF(Control!$C$12="Directly",T31,IF(MAX(T16-'Baseline Reinforcement'!$D$9,0)=0,"",MAX(T16-'Baseline Reinforcement'!$D$9,0)))) ->  | U40: =IF($C40="","",IF(Control!$C$12="Directly",U31,IF(MAX(U16-'Baseline Reinforcement'!$D$9,0)=0,"",MAX(U16-'Baseline Reinforcement'!$D$9,0)))) ->  | V40: =IF($C40="","",IF(Control!$C$12="Directly",V31,IF(MAX(V16-'Baseline Reinforcement'!$D$9,0)=0,"",MAX(V16-'Baseline Reinforcement'!$D$9,0)))) ->  | W40: =IF($C40="","",IF(Control!$C$12="Directly",W31,IF(MAX(W16-'Baseline Reinforcement'!$D$9,0)=0,"",MAX(W16-'Baseline Reinforcement'!$D$9,0)))) ->  | X40: =IF($C40="","",IF(Control!$C$12="Directly",X31,IF(MAX(X16-'Baseline Reinforcement'!$D$9,0)=0,"",MAX(X16-'Baseline Reinforcement'!$D$9,0)))) ->  | Y40: =IF($C40="","",IF(Control!$C$12="Directly",Y31,IF(MAX(Y16-'Baseline Reinforcement'!$D$9,0)=0,"",MAX(Y16-'Baseline Reinforcement'!$D$9,0)))) ->  | Z40: =IF($C40="","",IF(Control!$C$12="Directly",Z31,IF(MAX(Z16-'Baseline Reinforcement'!$D$9,0)=0,"",MAX(Z16-'Baseline Reinforcement'!$D$9,0)))) ->  | AA40: =IF($C40="","",IF(Control!$C$12="Directly",AA31,IF(MAX(AA16-'Baseline Reinforcement'!$D$9,0)=0,"",MAX(AA16-'Baseline Reinforcement'!$D$9,0)))) ->  | AB40: =IF($C40="","",IF(Control!$C$12="Directly",AB31,IF(MAX(AB16-'Baseline Reinforcement'!$D$9,0)=0,"",MAX(AB16-'Baseline Reinforcement'!$D$9,0)))) ->  | AC40: =IF($C40="","",IF(Control!$C$12="Directly",AC31,IF(MAX(AC16-'Baseline Reinforcement'!$D$9,0)=0,"",MAX(AC16-'Baseline Reinforcement'!$D$9,0)))) ->  | AD40: =IF($C40="","",IF(Control!$C$12="Directly",AD31,IF(MAX(AD16-'Baseline Reinforcement'!$D$9,0)=0,"",MAX(AD16-'Baseline Reinforcement'!$D$9,0)))) ->  | AE40: =IF($C40="","",IF(Control!$C$12="Directly",AE31,IF(MAX(AE16-'Baseline Reinforcement'!$D$9,0)=0,"",MAX(AE16-'Baseline Reinforcement'!$D$9,0)))) ->  | AF40: =IF($C40="","",IF(Control!$C$12="Directly",AF31,IF(MAX(AF16-'Baseline Reinforcement'!$D$9,0)=0,"",MAX(AF16-'Baseline Reinforcement'!$D$9,0)))) ->  | AG40: =IF($C40="","",IF(Control!$C$12="Directly",AG31,IF(MAX(AG16-'Baseline Reinforcement'!$D$9,0)=0,"",MAX(AG16-'Baseline Reinforcement'!$D$9,0)))) ->  | AH40: =IF($C40="","",IF(Control!$C$12="Directly",AH31,IF(MAX(AH16-'Baseline Reinforcement'!$D$9,0)=0,"",MAX(AH16-'Baseline Reinforcement'!$D$9,0)))) ->  | AI40: =IF($C40="","",IF(Control!$C$12="Directly",AI31,IF(MAX(AI16-'Baseline Reinforcement'!$D$9,0)=0,"",MAX(AI16-'Baseline Reinforcement'!$D$9,0)))) ->  | AJ40: =IF($C40="","",IF(Control!$C$12="Directly",AJ31,IF(MAX(AJ16-'Baseline Reinforcement'!$D$9,0)=0,"",MAX(AJ16-'Baseline Reinforcement'!$D$9,0)))) ->  | AK40: =IF($C40="","",IF(Control!$C$12="Directly",AK31,IF(MAX(AK16-'Baseline Reinforcement'!$D$9,0)=0,"",MAX(AK16-'Baseline Reinforcement'!$D$9,0)))) ->  | AL40: =IF($C40="","",IF(Control!$C$12="Directly",AL31,IF(MAX(AL16-'Baseline Reinforcement'!$D$9,0)=0,"",MAX(AL16-'Baseline Reinforcement'!$D$9,0)))) ->  | AM40: =IF($C40="","",IF(Control!$C$12="Directly",AM31,IF(MAX(AM16-'Baseline Reinforcement'!$D$9,0)=0,"",MAX(AM16-'Baseline Reinforcement'!$D$9,0)))) ->  | AN40: =IF($C40="","",IF(Control!$C$12="Directly",AN31,IF(MAX(AN16-'Baseline Reinforcement'!$D$9,0)=0,"",MAX(AN16-'Baseline Reinforcement'!$D$9,0)))) ->  | AO40: =IF($C40="","",IF(Control!$C$12="Directly",AO31,IF(MAX(AO16-'Baseline Reinforcement'!$D$9,0)=0,"",MAX(AO16-'Baseline Reinforcement'!$D$9,0)))) ->  | AP40: =IF($C40="","",IF(Control!$C$12="Directly",AP31,IF(MAX(AP16-'Baseline Reinforcement'!$D$9,0)=0,"",MAX(AP16-'Baseline Reinforcement'!$D$9,0)))) ->  | AQ40: =IF($C40="","",IF(Control!$C$12="Directly",AQ31,IF(MAX(AQ16-'Baseline Reinforcement'!$D$9,0)=0,"",MAX(AQ16-'Baseline Reinforcement'!$D$9,0)))) ->  | AR40: =IF($C40="","",IF(Control!$C$12="Directly",AR31,IF(MAX(AR16-'Baseline Reinforcement'!$D$9,0)=0,"",MAX(AR16-'Baseline Reinforcement'!$D$9,0)))) ->  | AS40: =IF($C40="","",IF(Control!$C$12="Directly",AS31,IF(MAX(AS16-'Baseline Reinforcement'!$D$9,0)=0,"",MAX(AS16-'Baseline Reinforcement'!$D$9,0)))) ->  | AT40: =IF($C40="","",IF(Control!$C$12="Directly",AT31,IF(MAX(AT16-'Baseline Reinforcement'!$D$9,0)=0,"",MAX(AT16-'Baseline Reinforcement'!$D$9,0)))) ->  | AU40: =IF($C40="","",IF(Control!$C$12="Directly",AU31,IF(MAX(AU16-'Baseline Reinforcement'!$D$9,0)=0,"",MAX(AU16-'Baseline Reinforcement'!$D$9,0)))) ->  | AV40: =IF($C40="","",IF(Control!$C$12="Directly",AV31,IF(MAX(AV16-'Baseline Reinforcement'!$D$9,0)=0,"",MAX(AV16-'Baseline Reinforcement'!$D$9,0)))) ->  | AW40: =IF($C40="","",IF(Control!$C$12="Directly",AW31,IF(MAX(AW16-'Baseline Reinforcement'!$D$9,0)=0,"",MAX(AW16-'Baseline Reinforcement'!$D$9,0)))) ->  | AX40: =IF($C40="","",IF(Control!$C$12="Directly",AX31,IF(MAX(AX16-'Baseline Reinforcement'!$D$9,0)=0,"",MAX(AX16-'Baseline Reinforcement'!$D$9,0)))) ->  | AY40: =IF($C40="","",IF(Control!$C$12="Directly",AY31,IF(MAX(AY16-'Baseline Reinforcement'!$D$9,0)=0,"",MAX(AY16-'Baseline Reinforcement'!$D$9,0)))) ->  | AZ40: =IF($C40="","",IF(Control!$C$12="Directly",AZ31,IF(MAX(AZ16-'Baseline Reinforcement'!$D$9,0)=0,"",MAX(AZ16-'Baseline Reinforcement'!$D$9,0)))) ->  | BA40: =IF($C40="","",IF(Control!$C$12="Directly",BA31,IF(MAX(BA16-'Baseline Reinforcement'!$D$9,0)=0,"",MAX(BA16-'Baseline Reinforcement'!$D$9,0)))) ->  | BB40: =IF($C40="","",IF(Control!$C$12="Directly",BB31,IF(MAX(BB16-'Baseline Reinforcement'!$D$9,0)=0,"",MAX(BB16-'Baseline Reinforcement'!$D$9,0)))) ->  | BC40: =IF($C40="","",IF(Control!$C$12="Directly",BC31,IF(MAX(BC16-'Baseline Reinforcement'!$D$9,0)=0,"",MAX(BC16-'Baseline Reinforcement'!$D$9,0)))) ->  | BD40: =IF($C40="","",IF(Control!$C$12="Directly",BD31,IF(MAX(BD16-'Baseline Reinforcement'!$D$9,0)=0,"",MAX(BD16-'Baseline Reinforcement'!$D$9,0)))) ->  | BE40: =IF($C40="","",IF(Control!$C$12="Directly",BE31,IF(MAX(BE16-'Baseline Reinforcement'!$D$9,0)=0,"",MAX(BE16-'Baseline Reinforcement'!$D$9,0)))) ->  | BF40: =IF($C40="","",IF(Control!$C$12="Directly",BF31,IF(MAX(BF16-'Baseline Reinforcement'!$D$9,0)=0,"",MAX(BF16-'Baseline Reinforcement'!$D$9,0)))) ->  | BG40: =IF($C40="","",IF(Control!$C$12="Directly",BG31,IF(MAX(BG16-'Baseline Reinforcement'!$D$9,0)=0,"",MAX(BG16-'Baseline Reinforcement'!$D$9,0)))) ->  | BH40: =IF($C40="","",IF(Control!$C$12="Directly",BH31,IF(MAX(BH16-'Baseline Reinforcement'!$D$9,0)=0,"",MAX(BH16-'Baseline Reinforcement'!$D$9,0)))) ->  | BI40: =IF($C40="","",IF(Control!$C$12="Directly",BI31,IF(MAX(BI16-'Baseline Reinforcement'!$D$9,0)=0,"",MAX(BI16-'Baseline Reinforcement'!$D$9,0)))) ->  | BJ40: =IF($C40="","",IF(Control!$C$12="Directly",BJ31,IF(MAX(BJ16-'Baseline Reinforcement'!$D$9,0)=0,"",MAX(BJ16-'Baseline Reinforcement'!$D$9,0)))) ->  | BK40: =IF($C40="","",IF(Control!$C$12="Directly",BK31,IF(MAX(BK16-'Baseline Reinforcement'!$D$9,0)=0,"",MAX(BK16-'Baseline Reinforcement'!$D$9,0)))) ->  | BL40: =IF($C40="","",IF(Control!$C$12="Directly",BL31,IF(MAX(BL16-'Baseline Reinforcement'!$D$9,0)=0,"",MAX(BL16-'Baseline Reinforcement'!$D$9,0)))) ->  | BM40: =IF($C40="","",IF(Control!$C$12="Directly",BM31,IF(MAX(BM16-'Baseline Reinforcement'!$D$9,0)=0,"",MAX(BM16-'Baseline Reinforcement'!$D$9,0)))) ->  | BN40: =IF($C40="","",IF(Control!$C$12="Directly",BN31,IF(MAX(BN16-'Baseline Reinforcement'!$D$9,0)=0,"",MAX(BN16-'Baseline Reinforcement'!$D$9,0)))) ->  | BO40: =IF($C40="","",IF(Control!$C$12="Directly",BO31,IF(MAX(BO16-'Baseline Reinforcement'!$D$9,0)=0,"",MAX(BO16-'Baseline Reinforcement'!$D$9,0)))) ->  | BP40: =IF($C40="","",IF(Control!$C$12="Directly",BP31,IF(MAX(BP16-'Baseline Reinforcement'!$D$9,0)=0,"",MAX(BP16-'Baseline Reinforcement'!$D$9,0)))) ->  | BQ40: =IF($C40="","",IF(Control!$C$12="Directly",BQ31,IF(MAX(BQ16-'Baseline Reinforcement'!$D$9,0)=0,"",MAX(BQ16-'Baseline Reinforcement'!$D$9,0)))) ->  | BR40: =IF($C40="","",IF(Control!$C$12="Directly",BR31,IF(MAX(BR16-'Baseline Reinforcement'!$D$9,0)=0,"",MAX(BR16-'Baseline Reinforcement'!$D$9,0)))) -> 
A41: Scn | B41: 7 | C41: =IF(Control!C41="","",Control!C41) ->  | D41: =IF($C41="","",IF(Control!$C$12="Directly",D32,IF(MAX(D17-'Baseline Reinforcement'!$D$9,0)=0,"",MAX(D17-'Baseline Reinforcement'!$D$9,0)))) ->  | E41: =IF($C41="","",IF(Control!$C$12="Directly",E32,IF(MAX(E17-'Baseline Reinforcement'!$D$9,0)=0,"",MAX(E17-'Baseline Reinforcement'!$D$9,0)))) ->  | F41: =IF($C41="","",IF(Control!$C$12="Directly",F32,IF(MAX(F17-'Baseline Reinforcement'!$D$9,0)=0,"",MAX(F17-'Baseline Reinforcement'!$D$9,0)))) ->  | G41: =IF($C41="","",IF(Control!$C$12="Directly",G32,IF(MAX(G17-'Baseline Reinforcement'!$D$9,0)=0,"",MAX(G17-'Baseline Reinforcement'!$D$9,0)))) ->  | H41: =IF($C41="","",IF(Control!$C$12="Directly",H32,IF(MAX(H17-'Baseline Reinforcement'!$D$9,0)=0,"",MAX(H17-'Baseline Reinforcement'!$D$9,0)))) ->  | I41: =IF($C41="","",IF(Control!$C$12="Directly",I32,IF(MAX(I17-'Baseline Reinforcement'!$D$9,0)=0,"",MAX(I17-'Baseline Reinforcement'!$D$9,0)))) ->  | J41: =IF($C41="","",IF(Control!$C$12="Directly",J32,IF(MAX(J17-'Baseline Reinforcement'!$D$9,0)=0,"",MAX(J17-'Baseline Reinforcement'!$D$9,0)))) ->  | K41: =IF($C41="","",IF(Control!$C$12="Directly",K32,IF(MAX(K17-'Baseline Reinforcement'!$D$9,0)=0,"",MAX(K17-'Baseline Reinforcement'!$D$9,0)))) ->  | L41: =IF($C41="","",IF(Control!$C$12="Directly",L32,IF(MAX(L17-'Baseline Reinforcement'!$D$9,0)=0,"",MAX(L17-'Baseline Reinforcement'!$D$9,0)))) ->  | M41: =IF($C41="","",IF(Control!$C$12="Directly",M32,IF(MAX(M17-'Baseline Reinforcement'!$D$9,0)=0,"",MAX(M17-'Baseline Reinforcement'!$D$9,0)))) ->  | N41: =IF($C41="","",IF(Control!$C$12="Directly",N32,IF(MAX(N17-'Baseline Reinforcement'!$D$9,0)=0,"",MAX(N17-'Baseline Reinforcement'!$D$9,0)))) ->  | O41: =IF($C41="","",IF(Control!$C$12="Directly",O32,IF(MAX(O17-'Baseline Reinforcement'!$D$9,0)=0,"",MAX(O17-'Baseline Reinforcement'!$D$9,0)))) ->  | P41: =IF($C41="","",IF(Control!$C$12="Directly",P32,IF(MAX(P17-'Baseline Reinforcement'!$D$9,0)=0,"",MAX(P17-'Baseline Reinforcement'!$D$9,0)))) ->  | Q41: =IF($C41="","",IF(Control!$C$12="Directly",Q32,IF(MAX(Q17-'Baseline Reinforcement'!$D$9,0)=0,"",MAX(Q17-'Baseline Reinforcement'!$D$9,0)))) ->  | R41: =IF($C41="","",IF(Control!$C$12="Directly",R32,IF(MAX(R17-'Baseline Reinforcement'!$D$9,0)=0,"",MAX(R17-'Baseline Reinforcement'!$D$9,0)))) ->  | S41: =IF($C41="","",IF(Control!$C$12="Directly",S32,IF(MAX(S17-'Baseline Reinforcement'!$D$9,0)=0,"",MAX(S17-'Baseline Reinforcement'!$D$9,0)))) ->  | T41: =IF($C41="","",IF(Control!$C$12="Directly",T32,IF(MAX(T17-'Baseline Reinforcement'!$D$9,0)=0,"",MAX(T17-'Baseline Reinforcement'!$D$9,0)))) ->  | U41: =IF($C41="","",IF(Control!$C$12="Directly",U32,IF(MAX(U17-'Baseline Reinforcement'!$D$9,0)=0,"",MAX(U17-'Baseline Reinforcement'!$D$9,0)))) ->  | V41: =IF($C41="","",IF(Control!$C$12="Directly",V32,IF(MAX(V17-'Baseline Reinforcement'!$D$9,0)=0,"",MAX(V17-'Baseline Reinforcement'!$D$9,0)))) ->  | W41: =IF($C41="","",IF(Control!$C$12="Directly",W32,IF(MAX(W17-'Baseline Reinforcement'!$D$9,0)=0,"",MAX(W17-'Baseline Reinforcement'!$D$9,0)))) ->  | X41: =IF($C41="","",IF(Control!$C$12="Directly",X32,IF(MAX(X17-'Baseline Reinforcement'!$D$9,0)=0,"",MAX(X17-'Baseline Reinforcement'!$D$9,0)))) ->  | Y41: =IF($C41="","",IF(Control!$C$12="Directly",Y32,IF(MAX(Y17-'Baseline Reinforcement'!$D$9,0)=0,"",MAX(Y17-'Baseline Reinforcement'!$D$9,0)))) ->  | Z41: =IF($C41="","",IF(Control!$C$12="Directly",Z32,IF(MAX(Z17-'Baseline Reinforcement'!$D$9,0)=0,"",MAX(Z17-'Baseline Reinforcement'!$D$9,0)))) ->  | AA41: =IF($C41="","",IF(Control!$C$12="Directly",AA32,IF(MAX(AA17-'Baseline Reinforcement'!$D$9,0)=0,"",MAX(AA17-'Baseline Reinforcement'!$D$9,0)))) ->  | AB41: =IF($C41="","",IF(Control!$C$12="Directly",AB32,IF(MAX(AB17-'Baseline Reinforcement'!$D$9,0)=0,"",MAX(AB17-'Baseline Reinforcement'!$D$9,0)))) ->  | AC41: =IF($C41="","",IF(Control!$C$12="Directly",AC32,IF(MAX(AC17-'Baseline Reinforcement'!$D$9,0)=0,"",MAX(AC17-'Baseline Reinforcement'!$D$9,0)))) ->  | AD41: =IF($C41="","",IF(Control!$C$12="Directly",AD32,IF(MAX(AD17-'Baseline Reinforcement'!$D$9,0)=0,"",MAX(AD17-'Baseline Reinforcement'!$D$9,0)))) ->  | AE41: =IF($C41="","",IF(Control!$C$12="Directly",AE32,IF(MAX(AE17-'Baseline Reinforcement'!$D$9,0)=0,"",MAX(AE17-'Baseline Reinforcement'!$D$9,0)))) ->  | AF41: =IF($C41="","",IF(Control!$C$12="Directly",AF32,IF(MAX(AF17-'Baseline Reinforcement'!$D$9,0)=0,"",MAX(AF17-'Baseline Reinforcement'!$D$9,0)))) ->  | AG41: =IF($C41="","",IF(Control!$C$12="Directly",AG32,IF(MAX(AG17-'Baseline Reinforcement'!$D$9,0)=0,"",MAX(AG17-'Baseline Reinforcement'!$D$9,0)))) ->  | AH41: =IF($C41="","",IF(Control!$C$12="Directly",AH32,IF(MAX(AH17-'Baseline Reinforcement'!$D$9,0)=0,"",MAX(AH17-'Baseline Reinforcement'!$D$9,0)))) ->  | AI41: =IF($C41="","",IF(Control!$C$12="Directly",AI32,IF(MAX(AI17-'Baseline Reinforcement'!$D$9,0)=0,"",MAX(AI17-'Baseline Reinforcement'!$D$9,0)))) ->  | AJ41: =IF($C41="","",IF(Control!$C$12="Directly",AJ32,IF(MAX(AJ17-'Baseline Reinforcement'!$D$9,0)=0,"",MAX(AJ17-'Baseline Reinforcement'!$D$9,0)))) ->  | AK41: =IF($C41="","",IF(Control!$C$12="Directly",AK32,IF(MAX(AK17-'Baseline Reinforcement'!$D$9,0)=0,"",MAX(AK17-'Baseline Reinforcement'!$D$9,0)))) ->  | AL41: =IF($C41="","",IF(Control!$C$12="Directly",AL32,IF(MAX(AL17-'Baseline Reinforcement'!$D$9,0)=0,"",MAX(AL17-'Baseline Reinforcement'!$D$9,0)))) ->  | AM41: =IF($C41="","",IF(Control!$C$12="Directly",AM32,IF(MAX(AM17-'Baseline Reinforcement'!$D$9,0)=0,"",MAX(AM17-'Baseline Reinforcement'!$D$9,0)))) ->  | AN41: =IF($C41="","",IF(Control!$C$12="Directly",AN32,IF(MAX(AN17-'Baseline Reinforcement'!$D$9,0)=0,"",MAX(AN17-'Baseline Reinforcement'!$D$9,0)))) ->  | AO41: =IF($C41="","",IF(Control!$C$12="Directly",AO32,IF(MAX(AO17-'Baseline Reinforcement'!$D$9,0)=0,"",MAX(AO17-'Baseline Reinforcement'!$D$9,0)))) ->  | AP41: =IF($C41="","",IF(Control!$C$12="Directly",AP32,IF(MAX(AP17-'Baseline Reinforcement'!$D$9,0)=0,"",MAX(AP17-'Baseline Reinforcement'!$D$9,0)))) ->  | AQ41: =IF($C41="","",IF(Control!$C$12="Directly",AQ32,IF(MAX(AQ17-'Baseline Reinforcement'!$D$9,0)=0,"",MAX(AQ17-'Baseline Reinforcement'!$D$9,0)))) ->  | AR41: =IF($C41="","",IF(Control!$C$12="Directly",AR32,IF(MAX(AR17-'Baseline Reinforcement'!$D$9,0)=0,"",MAX(AR17-'Baseline Reinforcement'!$D$9,0)))) ->  | AS41: =IF($C41="","",IF(Control!$C$12="Directly",AS32,IF(MAX(AS17-'Baseline Reinforcement'!$D$9,0)=0,"",MAX(AS17-'Baseline Reinforcement'!$D$9,0)))) ->  | AT41: =IF($C41="","",IF(Control!$C$12="Directly",AT32,IF(MAX(AT17-'Baseline Reinforcement'!$D$9,0)=0,"",MAX(AT17-'Baseline Reinforcement'!$D$9,0)))) ->  | AU41: =IF($C41="","",IF(Control!$C$12="Directly",AU32,IF(MAX(AU17-'Baseline Reinforcement'!$D$9,0)=0,"",MAX(AU17-'Baseline Reinforcement'!$D$9,0)))) ->  | AV41: =IF($C41="","",IF(Control!$C$12="Directly",AV32,IF(MAX(AV17-'Baseline Reinforcement'!$D$9,0)=0,"",MAX(AV17-'Baseline Reinforcement'!$D$9,0)))) ->  | AW41: =IF($C41="","",IF(Control!$C$12="Directly",AW32,IF(MAX(AW17-'Baseline Reinforcement'!$D$9,0)=0,"",MAX(AW17-'Baseline Reinforcement'!$D$9,0)))) ->  | AX41: =IF($C41="","",IF(Control!$C$12="Directly",AX32,IF(MAX(AX17-'Baseline Reinforcement'!$D$9,0)=0,"",MAX(AX17-'Baseline Reinforcement'!$D$9,0)))) ->  | AY41: =IF($C41="","",IF(Control!$C$12="Directly",AY32,IF(MAX(AY17-'Baseline Reinforcement'!$D$9,0)=0,"",MAX(AY17-'Baseline Reinforcement'!$D$9,0)))) ->  | AZ41: =IF($C41="","",IF(Control!$C$12="Directly",AZ32,IF(MAX(AZ17-'Baseline Reinforcement'!$D$9,0)=0,"",MAX(AZ17-'Baseline Reinforcement'!$D$9,0)))) ->  | BA41: =IF($C41="","",IF(Control!$C$12="Directly",BA32,IF(MAX(BA17-'Baseline Reinforcement'!$D$9,0)=0,"",MAX(BA17-'Baseline Reinforcement'!$D$9,0)))) ->  | BB41: =IF($C41="","",IF(Control!$C$12="Directly",BB32,IF(MAX(BB17-'Baseline Reinforcement'!$D$9,0)=0,"",MAX(BB17-'Baseline Reinforcement'!$D$9,0)))) ->  | BC41: =IF($C41="","",IF(Control!$C$12="Directly",BC32,IF(MAX(BC17-'Baseline Reinforcement'!$D$9,0)=0,"",MAX(BC17-'Baseline Reinforcement'!$D$9,0)))) ->  | BD41: =IF($C41="","",IF(Control!$C$12="Directly",BD32,IF(MAX(BD17-'Baseline Reinforcement'!$D$9,0)=0,"",MAX(BD17-'Baseline Reinforcement'!$D$9,0)))) ->  | BE41: =IF($C41="","",IF(Control!$C$12="Directly",BE32,IF(MAX(BE17-'Baseline Reinforcement'!$D$9,0)=0,"",MAX(BE17-'Baseline Reinforcement'!$D$9,0)))) ->  | BF41: =IF($C41="","",IF(Control!$C$12="Directly",BF32,IF(MAX(BF17-'Baseline Reinforcement'!$D$9,0)=0,"",MAX(BF17-'Baseline Reinforcement'!$D$9,0)))) ->  | BG41: =IF($C41="","",IF(Control!$C$12="Directly",BG32,IF(MAX(BG17-'Baseline Reinforcement'!$D$9,0)=0,"",MAX(BG17-'Baseline Reinforcement'!$D$9,0)))) ->  | BH41: =IF($C41="","",IF(Control!$C$12="Directly",BH32,IF(MAX(BH17-'Baseline Reinforcement'!$D$9,0)=0,"",MAX(BH17-'Baseline Reinforcement'!$D$9,0)))) ->  | BI41: =IF($C41="","",IF(Control!$C$12="Directly",BI32,IF(MAX(BI17-'Baseline Reinforcement'!$D$9,0)=0,"",MAX(BI17-'Baseline Reinforcement'!$D$9,0)))) ->  | BJ41: =IF($C41="","",IF(Control!$C$12="Directly",BJ32,IF(MAX(BJ17-'Baseline Reinforcement'!$D$9,0)=0,"",MAX(BJ17-'Baseline Reinforcement'!$D$9,0)))) ->  | BK41: =IF($C41="","",IF(Control!$C$12="Directly",BK32,IF(MAX(BK17-'Baseline Reinforcement'!$D$9,0)=0,"",MAX(BK17-'Baseline Reinforcement'!$D$9,0)))) ->  | BL41: =IF($C41="","",IF(Control!$C$12="Directly",BL32,IF(MAX(BL17-'Baseline Reinforcement'!$D$9,0)=0,"",MAX(BL17-'Baseline Reinforcement'!$D$9,0)))) ->  | BM41: =IF($C41="","",IF(Control!$C$12="Directly",BM32,IF(MAX(BM17-'Baseline Reinforcement'!$D$9,0)=0,"",MAX(BM17-'Baseline Reinforcement'!$D$9,0)))) ->  | BN41: =IF($C41="","",IF(Control!$C$12="Directly",BN32,IF(MAX(BN17-'Baseline Reinforcement'!$D$9,0)=0,"",MAX(BN17-'Baseline Reinforcement'!$D$9,0)))) ->  | BO41: =IF($C41="","",IF(Control!$C$12="Directly",BO32,IF(MAX(BO17-'Baseline Reinforcement'!$D$9,0)=0,"",MAX(BO17-'Baseline Reinforcement'!$D$9,0)))) ->  | BP41: =IF($C41="","",IF(Control!$C$12="Directly",BP32,IF(MAX(BP17-'Baseline Reinforcement'!$D$9,0)=0,"",MAX(BP17-'Baseline Reinforcement'!$D$9,0)))) ->  | BQ41: =IF($C41="","",IF(Control!$C$12="Directly",BQ32,IF(MAX(BQ17-'Baseline Reinforcement'!$D$9,0)=0,"",MAX(BQ17-'Baseline Reinforcement'!$D$9,0)))) ->  | BR41: =IF($C41="","",IF(Control!$C$12="Directly",BR32,IF(MAX(BR17-'Baseline Reinforcement'!$D$9,0)=0,"",MAX(BR17-'Baseline Reinforcement'!$D$9,0)))) -> 
A42: Scn | B42: 8 | C42: =IF(Control!C42="","",Control!C42) ->  | D42: =IF($C42="","",IF(Control!$C$12="Directly",D33,IF(MAX(D18-'Baseline Reinforcement'!$D$9,0)=0,"",MAX(D18-'Baseline Reinforcement'!$D$9,0)))) ->  | E42: =IF($C42="","",IF(Control!$C$12="Directly",E33,IF(MAX(E18-'Baseline Reinforcement'!$D$9,0)=0,"",MAX(E18-'Baseline Reinforcement'!$D$9,0)))) ->  | F42: =IF($C42="","",IF(Control!$C$12="Directly",F33,IF(MAX(F18-'Baseline Reinforcement'!$D$9,0)=0,"",MAX(F18-'Baseline Reinforcement'!$D$9,0)))) ->  | G42: =IF($C42="","",IF(Control!$C$12="Directly",G33,IF(MAX(G18-'Baseline Reinforcement'!$D$9,0)=0,"",MAX(G18-'Baseline Reinforcement'!$D$9,0)))) ->  | H42: =IF($C42="","",IF(Control!$C$12="Directly",H33,IF(MAX(H18-'Baseline Reinforcement'!$D$9,0)=0,"",MAX(H18-'Baseline Reinforcement'!$D$9,0)))) ->  | I42: =IF($C42="","",IF(Control!$C$12="Directly",I33,IF(MAX(I18-'Baseline Reinforcement'!$D$9,0)=0,"",MAX(I18-'Baseline Reinforcement'!$D$9,0)))) ->  | J42: =IF($C42="","",IF(Control!$C$12="Directly",J33,IF(MAX(J18-'Baseline Reinforcement'!$D$9,0)=0,"",MAX(J18-'Baseline Reinforcement'!$D$9,0)))) ->  | K42: =IF($C42="","",IF(Control!$C$12="Directly",K33,IF(MAX(K18-'Baseline Reinforcement'!$D$9,0)=0,"",MAX(K18-'Baseline Reinforcement'!$D$9,0)))) ->  | L42: =IF($C42="","",IF(Control!$C$12="Directly",L33,IF(MAX(L18-'Baseline Reinforcement'!$D$9,0)=0,"",MAX(L18-'Baseline Reinforcement'!$D$9,0)))) ->  | M42: =IF($C42="","",IF(Control!$C$12="Directly",M33,IF(MAX(M18-'Baseline Reinforcement'!$D$9,0)=0,"",MAX(M18-'Baseline Reinforcement'!$D$9,0)))) ->  | N42: =IF($C42="","",IF(Control!$C$12="Directly",N33,IF(MAX(N18-'Baseline Reinforcement'!$D$9,0)=0,"",MAX(N18-'Baseline Reinforcement'!$D$9,0)))) ->  | O42: =IF($C42="","",IF(Control!$C$12="Directly",O33,IF(MAX(O18-'Baseline Reinforcement'!$D$9,0)=0,"",MAX(O18-'Baseline Reinforcement'!$D$9,0)))) ->  | P42: =IF($C42="","",IF(Control!$C$12="Directly",P33,IF(MAX(P18-'Baseline Reinforcement'!$D$9,0)=0,"",MAX(P18-'Baseline Reinforcement'!$D$9,0)))) ->  | Q42: =IF($C42="","",IF(Control!$C$12="Directly",Q33,IF(MAX(Q18-'Baseline Reinforcement'!$D$9,0)=0,"",MAX(Q18-'Baseline Reinforcement'!$D$9,0)))) ->  | R42: =IF($C42="","",IF(Control!$C$12="Directly",R33,IF(MAX(R18-'Baseline Reinforcement'!$D$9,0)=0,"",MAX(R18-'Baseline Reinforcement'!$D$9,0)))) ->  | S42: =IF($C42="","",IF(Control!$C$12="Directly",S33,IF(MAX(S18-'Baseline Reinforcement'!$D$9,0)=0,"",MAX(S18-'Baseline Reinforcement'!$D$9,0)))) ->  | T42: =IF($C42="","",IF(Control!$C$12="Directly",T33,IF(MAX(T18-'Baseline Reinforcement'!$D$9,0)=0,"",MAX(T18-'Baseline Reinforcement'!$D$9,0)))) ->  | U42: =IF($C42="","",IF(Control!$C$12="Directly",U33,IF(MAX(U18-'Baseline Reinforcement'!$D$9,0)=0,"",MAX(U18-'Baseline Reinforcement'!$D$9,0)))) ->  | V42: =IF($C42="","",IF(Control!$C$12="Directly",V33,IF(MAX(V18-'Baseline Reinforcement'!$D$9,0)=0,"",MAX(V18-'Baseline Reinforcement'!$D$9,0)))) ->  | W42: =IF($C42="","",IF(Control!$C$12="Directly",W33,IF(MAX(W18-'Baseline Reinforcement'!$D$9,0)=0,"",MAX(W18-'Baseline Reinforcement'!$D$9,0)))) ->  | X42: =IF($C42="","",IF(Control!$C$12="Directly",X33,IF(MAX(X18-'Baseline Reinforcement'!$D$9,0)=0,"",MAX(X18-'Baseline Reinforcement'!$D$9,0)))) ->  | Y42: =IF($C42="","",IF(Control!$C$12="Directly",Y33,IF(MAX(Y18-'Baseline Reinforcement'!$D$9,0)=0,"",MAX(Y18-'Baseline Reinforcement'!$D$9,0)))) ->  | Z42: =IF($C42="","",IF(Control!$C$12="Directly",Z33,IF(MAX(Z18-'Baseline Reinforcement'!$D$9,0)=0,"",MAX(Z18-'Baseline Reinforcement'!$D$9,0)))) ->  | AA42: =IF($C42="","",IF(Control!$C$12="Directly",AA33,IF(MAX(AA18-'Baseline Reinforcement'!$D$9,0)=0,"",MAX(AA18-'Baseline Reinforcement'!$D$9,0)))) ->  | AB42: =IF($C42="","",IF(Control!$C$12="Directly",AB33,IF(MAX(AB18-'Baseline Reinforcement'!$D$9,0)=0,"",MAX(AB18-'Baseline Reinforcement'!$D$9,0)))) ->  | AC42: =IF($C42="","",IF(Control!$C$12="Directly",AC33,IF(MAX(AC18-'Baseline Reinforcement'!$D$9,0)=0,"",MAX(AC18-'Baseline Reinforcement'!$D$9,0)))) ->  | AD42: =IF($C42="","",IF(Control!$C$12="Directly",AD33,IF(MAX(AD18-'Baseline Reinforcement'!$D$9,0)=0,"",MAX(AD18-'Baseline Reinforcement'!$D$9,0)))) ->  | AE42: =IF($C42="","",IF(Control!$C$12="Directly",AE33,IF(MAX(AE18-'Baseline Reinforcement'!$D$9,0)=0,"",MAX(AE18-'Baseline Reinforcement'!$D$9,0)))) ->  | AF42: =IF($C42="","",IF(Control!$C$12="Directly",AF33,IF(MAX(AF18-'Baseline Reinforcement'!$D$9,0)=0,"",MAX(AF18-'Baseline Reinforcement'!$D$9,0)))) ->  | AG42: =IF($C42="","",IF(Control!$C$12="Directly",AG33,IF(MAX(AG18-'Baseline Reinforcement'!$D$9,0)=0,"",MAX(AG18-'Baseline Reinforcement'!$D$9,0)))) ->  | AH42: =IF($C42="","",IF(Control!$C$12="Directly",AH33,IF(MAX(AH18-'Baseline Reinforcement'!$D$9,0)=0,"",MAX(AH18-'Baseline Reinforcement'!$D$9,0)))) ->  | AI42: =IF($C42="","",IF(Control!$C$12="Directly",AI33,IF(MAX(AI18-'Baseline Reinforcement'!$D$9,0)=0,"",MAX(AI18-'Baseline Reinforcement'!$D$9,0)))) ->  | AJ42: =IF($C42="","",IF(Control!$C$12="Directly",AJ33,IF(MAX(AJ18-'Baseline Reinforcement'!$D$9,0)=0,"",MAX(AJ18-'Baseline Reinforcement'!$D$9,0)))) ->  | AK42: =IF($C42="","",IF(Control!$C$12="Directly",AK33,IF(MAX(AK18-'Baseline Reinforcement'!$D$9,0)=0,"",MAX(AK18-'Baseline Reinforcement'!$D$9,0)))) ->  | AL42: =IF($C42="","",IF(Control!$C$12="Directly",AL33,IF(MAX(AL18-'Baseline Reinforcement'!$D$9,0)=0,"",MAX(AL18-'Baseline Reinforcement'!$D$9,0)))) ->  | AM42: =IF($C42="","",IF(Control!$C$12="Directly",AM33,IF(MAX(AM18-'Baseline Reinforcement'!$D$9,0)=0,"",MAX(AM18-'Baseline Reinforcement'!$D$9,0)))) ->  | AN42: =IF($C42="","",IF(Control!$C$12="Directly",AN33,IF(MAX(AN18-'Baseline Reinforcement'!$D$9,0)=0,"",MAX(AN18-'Baseline Reinforcement'!$D$9,0)))) ->  | AO42: =IF($C42="","",IF(Control!$C$12="Directly",AO33,IF(MAX(AO18-'Baseline Reinforcement'!$D$9,0)=0,"",MAX(AO18-'Baseline Reinforcement'!$D$9,0)))) ->  | AP42: =IF($C42="","",IF(Control!$C$12="Directly",AP33,IF(MAX(AP18-'Baseline Reinforcement'!$D$9,0)=0,"",MAX(AP18-'Baseline Reinforcement'!$D$9,0)))) ->  | AQ42: =IF($C42="","",IF(Control!$C$12="Directly",AQ33,IF(MAX(AQ18-'Baseline Reinforcement'!$D$9,0)=0,"",MAX(AQ18-'Baseline Reinforcement'!$D$9,0)))) ->  | AR42: =IF($C42="","",IF(Control!$C$12="Directly",AR33,IF(MAX(AR18-'Baseline Reinforcement'!$D$9,0)=0,"",MAX(AR18-'Baseline Reinforcement'!$D$9,0)))) ->  | AS42: =IF($C42="","",IF(Control!$C$12="Directly",AS33,IF(MAX(AS18-'Baseline Reinforcement'!$D$9,0)=0,"",MAX(AS18-'Baseline Reinforcement'!$D$9,0)))) ->  | AT42: =IF($C42="","",IF(Control!$C$12="Directly",AT33,IF(MAX(AT18-'Baseline Reinforcement'!$D$9,0)=0,"",MAX(AT18-'Baseline Reinforcement'!$D$9,0)))) ->  | AU42: =IF($C42="","",IF(Control!$C$12="Directly",AU33,IF(MAX(AU18-'Baseline Reinforcement'!$D$9,0)=0,"",MAX(AU18-'Baseline Reinforcement'!$D$9,0)))) ->  | AV42: =IF($C42="","",IF(Control!$C$12="Directly",AV33,IF(MAX(AV18-'Baseline Reinforcement'!$D$9,0)=0,"",MAX(AV18-'Baseline Reinforcement'!$D$9,0)))) ->  | AW42: =IF($C42="","",IF(Control!$C$12="Directly",AW33,IF(MAX(AW18-'Baseline Reinforcement'!$D$9,0)=0,"",MAX(AW18-'Baseline Reinforcement'!$D$9,0)))) ->  | AX42: =IF($C42="","",IF(Control!$C$12="Directly",AX33,IF(MAX(AX18-'Baseline Reinforcement'!$D$9,0)=0,"",MAX(AX18-'Baseline Reinforcement'!$D$9,0)))) ->  | AY42: =IF($C42="","",IF(Control!$C$12="Directly",AY33,IF(MAX(AY18-'Baseline Reinforcement'!$D$9,0)=0,"",MAX(AY18-'Baseline Reinforcement'!$D$9,0)))) ->  | AZ42: =IF($C42="","",IF(Control!$C$12="Directly",AZ33,IF(MAX(AZ18-'Baseline Reinforcement'!$D$9,0)=0,"",MAX(AZ18-'Baseline Reinforcement'!$D$9,0)))) ->  | BA42: =IF($C42="","",IF(Control!$C$12="Directly",BA33,IF(MAX(BA18-'Baseline Reinforcement'!$D$9,0)=0,"",MAX(BA18-'Baseline Reinforcement'!$D$9,0)))) ->  | BB42: =IF($C42="","",IF(Control!$C$12="Directly",BB33,IF(MAX(BB18-'Baseline Reinforcement'!$D$9,0)=0,"",MAX(BB18-'Baseline Reinforcement'!$D$9,0)))) ->  | BC42: =IF($C42="","",IF(Control!$C$12="Directly",BC33,IF(MAX(BC18-'Baseline Reinforcement'!$D$9,0)=0,"",MAX(BC18-'Baseline Reinforcement'!$D$9,0)))) ->  | BD42: =IF($C42="","",IF(Control!$C$12="Directly",BD33,IF(MAX(BD18-'Baseline Reinforcement'!$D$9,0)=0,"",MAX(BD18-'Baseline Reinforcement'!$D$9,0)))) ->  | BE42: =IF($C42="","",IF(Control!$C$12="Directly",BE33,IF(MAX(BE18-'Baseline Reinforcement'!$D$9,0)=0,"",MAX(BE18-'Baseline Reinforcement'!$D$9,0)))) ->  | BF42: =IF($C42="","",IF(Control!$C$12="Directly",BF33,IF(MAX(BF18-'Baseline Reinforcement'!$D$9,0)=0,"",MAX(BF18-'Baseline Reinforcement'!$D$9,0)))) ->  | BG42: =IF($C42="","",IF(Control!$C$12="Directly",BG33,IF(MAX(BG18-'Baseline Reinforcement'!$D$9,0)=0,"",MAX(BG18-'Baseline Reinforcement'!$D$9,0)))) ->  | BH42: =IF($C42="","",IF(Control!$C$12="Directly",BH33,IF(MAX(BH18-'Baseline Reinforcement'!$D$9,0)=0,"",MAX(BH18-'Baseline Reinforcement'!$D$9,0)))) ->  | BI42: =IF($C42="","",IF(Control!$C$12="Directly",BI33,IF(MAX(BI18-'Baseline Reinforcement'!$D$9,0)=0,"",MAX(BI18-'Baseline Reinforcement'!$D$9,0)))) ->  | BJ42: =IF($C42="","",IF(Control!$C$12="Directly",BJ33,IF(MAX(BJ18-'Baseline Reinforcement'!$D$9,0)=0,"",MAX(BJ18-'Baseline Reinforcement'!$D$9,0)))) ->  | BK42: =IF($C42="","",IF(Control!$C$12="Directly",BK33,IF(MAX(BK18-'Baseline Reinforcement'!$D$9,0)=0,"",MAX(BK18-'Baseline Reinforcement'!$D$9,0)))) ->  | BL42: =IF($C42="","",IF(Control!$C$12="Directly",BL33,IF(MAX(BL18-'Baseline Reinforcement'!$D$9,0)=0,"",MAX(BL18-'Baseline Reinforcement'!$D$9,0)))) ->  | BM42: =IF($C42="","",IF(Control!$C$12="Directly",BM33,IF(MAX(BM18-'Baseline Reinforcement'!$D$9,0)=0,"",MAX(BM18-'Baseline Reinforcement'!$D$9,0)))) ->  | BN42: =IF($C42="","",IF(Control!$C$12="Directly",BN33,IF(MAX(BN18-'Baseline Reinforcement'!$D$9,0)=0,"",MAX(BN18-'Baseline Reinforcement'!$D$9,0)))) ->  | BO42: =IF($C42="","",IF(Control!$C$12="Directly",BO33,IF(MAX(BO18-'Baseline Reinforcement'!$D$9,0)=0,"",MAX(BO18-'Baseline Reinforcement'!$D$9,0)))) ->  | BP42: =IF($C42="","",IF(Control!$C$12="Directly",BP33,IF(MAX(BP18-'Baseline Reinforcement'!$D$9,0)=0,"",MAX(BP18-'Baseline Reinforcement'!$D$9,0)))) ->  | BQ42: =IF($C42="","",IF(Control!$C$12="Directly",BQ33,IF(MAX(BQ18-'Baseline Reinforcement'!$D$9,0)=0,"",MAX(BQ18-'Baseline Reinforcement'!$D$9,0)))) ->  | BR42: =IF($C42="","",IF(Control!$C$12="Directly",BR33,IF(MAX(BR18-'Baseline Reinforcement'!$D$9,0)=0,"",MAX(BR18-'Baseline Reinforcement'!$D$9,0)))) -> 
A43: Scn | B43: 9 | C43: =IF(Control!C43="","",Control!C43) ->  | D43: =IF($C43="","",IF(Control!$C$12="Directly",D34,IF(MAX(D19-'Baseline Reinforcement'!$D$9,0)=0,"",MAX(D19-'Baseline Reinforcement'!$D$9,0)))) ->  | E43: =IF($C43="","",IF(Control!$C$12="Directly",E34,IF(MAX(E19-'Baseline Reinforcement'!$D$9,0)=0,"",MAX(E19-'Baseline Reinforcement'!$D$9,0)))) ->  | F43: =IF($C43="","",IF(Control!$C$12="Directly",F34,IF(MAX(F19-'Baseline Reinforcement'!$D$9,0)=0,"",MAX(F19-'Baseline Reinforcement'!$D$9,0)))) ->  | G43: =IF($C43="","",IF(Control!$C$12="Directly",G34,IF(MAX(G19-'Baseline Reinforcement'!$D$9,0)=0,"",MAX(G19-'Baseline Reinforcement'!$D$9,0)))) ->  | H43: =IF($C43="","",IF(Control!$C$12="Directly",H34,IF(MAX(H19-'Baseline Reinforcement'!$D$9,0)=0,"",MAX(H19-'Baseline Reinforcement'!$D$9,0)))) ->  | I43: =IF($C43="","",IF(Control!$C$12="Directly",I34,IF(MAX(I19-'Baseline Reinforcement'!$D$9,0)=0,"",MAX(I19-'Baseline Reinforcement'!$D$9,0)))) ->  | J43: =IF($C43="","",IF(Control!$C$12="Directly",J34,IF(MAX(J19-'Baseline Reinforcement'!$D$9,0)=0,"",MAX(J19-'Baseline Reinforcement'!$D$9,0)))) ->  | K43: =IF($C43="","",IF(Control!$C$12="Directly",K34,IF(MAX(K19-'Baseline Reinforcement'!$D$9,0)=0,"",MAX(K19-'Baseline Reinforcement'!$D$9,0)))) ->  | L43: =IF($C43="","",IF(Control!$C$12="Directly",L34,IF(MAX(L19-'Baseline Reinforcement'!$D$9,0)=0,"",MAX(L19-'Baseline Reinforcement'!$D$9,0)))) ->  | M43: =IF($C43="","",IF(Control!$C$12="Directly",M34,IF(MAX(M19-'Baseline Reinforcement'!$D$9,0)=0,"",MAX(M19-'Baseline Reinforcement'!$D$9,0)))) ->  | N43: =IF($C43="","",IF(Control!$C$12="Directly",N34,IF(MAX(N19-'Baseline Reinforcement'!$D$9,0)=0,"",MAX(N19-'Baseline Reinforcement'!$D$9,0)))) ->  | O43: =IF($C43="","",IF(Control!$C$12="Directly",O34,IF(MAX(O19-'Baseline Reinforcement'!$D$9,0)=0,"",MAX(O19-'Baseline Reinforcement'!$D$9,0)))) ->  | P43: =IF($C43="","",IF(Control!$C$12="Directly",P34,IF(MAX(P19-'Baseline Reinforcement'!$D$9,0)=0,"",MAX(P19-'Baseline Reinforcement'!$D$9,0)))) ->  | Q43: =IF($C43="","",IF(Control!$C$12="Directly",Q34,IF(MAX(Q19-'Baseline Reinforcement'!$D$9,0)=0,"",MAX(Q19-'Baseline Reinforcement'!$D$9,0)))) ->  | R43: =IF($C43="","",IF(Control!$C$12="Directly",R34,IF(MAX(R19-'Baseline Reinforcement'!$D$9,0)=0,"",MAX(R19-'Baseline Reinforcement'!$D$9,0)))) ->  | S43: =IF($C43="","",IF(Control!$C$12="Directly",S34,IF(MAX(S19-'Baseline Reinforcement'!$D$9,0)=0,"",MAX(S19-'Baseline Reinforcement'!$D$9,0)))) ->  | T43: =IF($C43="","",IF(Control!$C$12="Directly",T34,IF(MAX(T19-'Baseline Reinforcement'!$D$9,0)=0,"",MAX(T19-'Baseline Reinforcement'!$D$9,0)))) ->  | U43: =IF($C43="","",IF(Control!$C$12="Directly",U34,IF(MAX(U19-'Baseline Reinforcement'!$D$9,0)=0,"",MAX(U19-'Baseline Reinforcement'!$D$9,0)))) ->  | V43: =IF($C43="","",IF(Control!$C$12="Directly",V34,IF(MAX(V19-'Baseline Reinforcement'!$D$9,0)=0,"",MAX(V19-'Baseline Reinforcement'!$D$9,0)))) ->  | W43: =IF($C43="","",IF(Control!$C$12="Directly",W34,IF(MAX(W19-'Baseline Reinforcement'!$D$9,0)=0,"",MAX(W19-'Baseline Reinforcement'!$D$9,0)))) ->  | X43: =IF($C43="","",IF(Control!$C$12="Directly",X34,IF(MAX(X19-'Baseline Reinforcement'!$D$9,0)=0,"",MAX(X19-'Baseline Reinforcement'!$D$9,0)))) ->  | Y43: =IF($C43="","",IF(Control!$C$12="Directly",Y34,IF(MAX(Y19-'Baseline Reinforcement'!$D$9,0)=0,"",MAX(Y19-'Baseline Reinforcement'!$D$9,0)))) ->  | Z43: =IF($C43="","",IF(Control!$C$12="Directly",Z34,IF(MAX(Z19-'Baseline Reinforcement'!$D$9,0)=0,"",MAX(Z19-'Baseline Reinforcement'!$D$9,0)))) ->  | AA43: =IF($C43="","",IF(Control!$C$12="Directly",AA34,IF(MAX(AA19-'Baseline Reinforcement'!$D$9,0)=0,"",MAX(AA19-'Baseline Reinforcement'!$D$9,0)))) ->  | AB43: =IF($C43="","",IF(Control!$C$12="Directly",AB34,IF(MAX(AB19-'Baseline Reinforcement'!$D$9,0)=0,"",MAX(AB19-'Baseline Reinforcement'!$D$9,0)))) ->  | AC43: =IF($C43="","",IF(Control!$C$12="Directly",AC34,IF(MAX(AC19-'Baseline Reinforcement'!$D$9,0)=0,"",MAX(AC19-'Baseline Reinforcement'!$D$9,0)))) ->  | AD43: =IF($C43="","",IF(Control!$C$12="Directly",AD34,IF(MAX(AD19-'Baseline Reinforcement'!$D$9,0)=0,"",MAX(AD19-'Baseline Reinforcement'!$D$9,0)))) ->  | AE43: =IF($C43="","",IF(Control!$C$12="Directly",AE34,IF(MAX(AE19-'Baseline Reinforcement'!$D$9,0)=0,"",MAX(AE19-'Baseline Reinforcement'!$D$9,0)))) ->  | AF43: =IF($C43="","",IF(Control!$C$12="Directly",AF34,IF(MAX(AF19-'Baseline Reinforcement'!$D$9,0)=0,"",MAX(AF19-'Baseline Reinforcement'!$D$9,0)))) ->  | AG43: =IF($C43="","",IF(Control!$C$12="Directly",AG34,IF(MAX(AG19-'Baseline Reinforcement'!$D$9,0)=0,"",MAX(AG19-'Baseline Reinforcement'!$D$9,0)))) ->  | AH43: =IF($C43="","",IF(Control!$C$12="Directly",AH34,IF(MAX(AH19-'Baseline Reinforcement'!$D$9,0)=0,"",MAX(AH19-'Baseline Reinforcement'!$D$9,0)))) ->  | AI43: =IF($C43="","",IF(Control!$C$12="Directly",AI34,IF(MAX(AI19-'Baseline Reinforcement'!$D$9,0)=0,"",MAX(AI19-'Baseline Reinforcement'!$D$9,0)))) ->  | AJ43: =IF($C43="","",IF(Control!$C$12="Directly",AJ34,IF(MAX(AJ19-'Baseline Reinforcement'!$D$9,0)=0,"",MAX(AJ19-'Baseline Reinforcement'!$D$9,0)))) ->  | AK43: =IF($C43="","",IF(Control!$C$12="Directly",AK34,IF(MAX(AK19-'Baseline Reinforcement'!$D$9,0)=0,"",MAX(AK19-'Baseline Reinforcement'!$D$9,0)))) ->  | AL43: =IF($C43="","",IF(Control!$C$12="Directly",AL34,IF(MAX(AL19-'Baseline Reinforcement'!$D$9,0)=0,"",MAX(AL19-'Baseline Reinforcement'!$D$9,0)))) ->  | AM43: =IF($C43="","",IF(Control!$C$12="Directly",AM34,IF(MAX(AM19-'Baseline Reinforcement'!$D$9,0)=0,"",MAX(AM19-'Baseline Reinforcement'!$D$9,0)))) ->  | AN43: =IF($C43="","",IF(Control!$C$12="Directly",AN34,IF(MAX(AN19-'Baseline Reinforcement'!$D$9,0)=0,"",MAX(AN19-'Baseline Reinforcement'!$D$9,0)))) ->  | AO43: =IF($C43="","",IF(Control!$C$12="Directly",AO34,IF(MAX(AO19-'Baseline Reinforcement'!$D$9,0)=0,"",MAX(AO19-'Baseline Reinforcement'!$D$9,0)))) ->  | AP43: =IF($C43="","",IF(Control!$C$12="Directly",AP34,IF(MAX(AP19-'Baseline Reinforcement'!$D$9,0)=0,"",MAX(AP19-'Baseline Reinforcement'!$D$9,0)))) ->  | AQ43: =IF($C43="","",IF(Control!$C$12="Directly",AQ34,IF(MAX(AQ19-'Baseline Reinforcement'!$D$9,0)=0,"",MAX(AQ19-'Baseline Reinforcement'!$D$9,0)))) ->  | AR43: =IF($C43="","",IF(Control!$C$12="Directly",AR34,IF(MAX(AR19-'Baseline Reinforcement'!$D$9,0)=0,"",MAX(AR19-'Baseline Reinforcement'!$D$9,0)))) ->  | AS43: =IF($C43="","",IF(Control!$C$12="Directly",AS34,IF(MAX(AS19-'Baseline Reinforcement'!$D$9,0)=0,"",MAX(AS19-'Baseline Reinforcement'!$D$9,0)))) ->  | AT43: =IF($C43="","",IF(Control!$C$12="Directly",AT34,IF(MAX(AT19-'Baseline Reinforcement'!$D$9,0)=0,"",MAX(AT19-'Baseline Reinforcement'!$D$9,0)))) ->  | AU43: =IF($C43="","",IF(Control!$C$12="Directly",AU34,IF(MAX(AU19-'Baseline Reinforcement'!$D$9,0)=0,"",MAX(AU19-'Baseline Reinforcement'!$D$9,0)))) ->  | AV43: =IF($C43="","",IF(Control!$C$12="Directly",AV34,IF(MAX(AV19-'Baseline Reinforcement'!$D$9,0)=0,"",MAX(AV19-'Baseline Reinforcement'!$D$9,0)))) ->  | AW43: =IF($C43="","",IF(Control!$C$12="Directly",AW34,IF(MAX(AW19-'Baseline Reinforcement'!$D$9,0)=0,"",MAX(AW19-'Baseline Reinforcement'!$D$9,0)))) ->  | AX43: =IF($C43="","",IF(Control!$C$12="Directly",AX34,IF(MAX(AX19-'Baseline Reinforcement'!$D$9,0)=0,"",MAX(AX19-'Baseline Reinforcement'!$D$9,0)))) ->  | AY43: =IF($C43="","",IF(Control!$C$12="Directly",AY34,IF(MAX(AY19-'Baseline Reinforcement'!$D$9,0)=0,"",MAX(AY19-'Baseline Reinforcement'!$D$9,0)))) ->  | AZ43: =IF($C43="","",IF(Control!$C$12="Directly",AZ34,IF(MAX(AZ19-'Baseline Reinforcement'!$D$9,0)=0,"",MAX(AZ19-'Baseline Reinforcement'!$D$9,0)))) ->  | BA43: =IF($C43="","",IF(Control!$C$12="Directly",BA34,IF(MAX(BA19-'Baseline Reinforcement'!$D$9,0)=0,"",MAX(BA19-'Baseline Reinforcement'!$D$9,0)))) ->  | BB43: =IF($C43="","",IF(Control!$C$12="Directly",BB34,IF(MAX(BB19-'Baseline Reinforcement'!$D$9,0)=0,"",MAX(BB19-'Baseline Reinforcement'!$D$9,0)))) ->  | BC43: =IF($C43="","",IF(Control!$C$12="Directly",BC34,IF(MAX(BC19-'Baseline Reinforcement'!$D$9,0)=0,"",MAX(BC19-'Baseline Reinforcement'!$D$9,0)))) ->  | BD43: =IF($C43="","",IF(Control!$C$12="Directly",BD34,IF(MAX(BD19-'Baseline Reinforcement'!$D$9,0)=0,"",MAX(BD19-'Baseline Reinforcement'!$D$9,0)))) ->  | BE43: =IF($C43="","",IF(Control!$C$12="Directly",BE34,IF(MAX(BE19-'Baseline Reinforcement'!$D$9,0)=0,"",MAX(BE19-'Baseline Reinforcement'!$D$9,0)))) ->  | BF43: =IF($C43="","",IF(Control!$C$12="Directly",BF34,IF(MAX(BF19-'Baseline Reinforcement'!$D$9,0)=0,"",MAX(BF19-'Baseline Reinforcement'!$D$9,0)))) ->  | BG43: =IF($C43="","",IF(Control!$C$12="Directly",BG34,IF(MAX(BG19-'Baseline Reinforcement'!$D$9,0)=0,"",MAX(BG19-'Baseline Reinforcement'!$D$9,0)))) ->  | BH43: =IF($C43="","",IF(Control!$C$12="Directly",BH34,IF(MAX(BH19-'Baseline Reinforcement'!$D$9,0)=0,"",MAX(BH19-'Baseline Reinforcement'!$D$9,0)))) ->  | BI43: =IF($C43="","",IF(Control!$C$12="Directly",BI34,IF(MAX(BI19-'Baseline Reinforcement'!$D$9,0)=0,"",MAX(BI19-'Baseline Reinforcement'!$D$9,0)))) ->  | BJ43: =IF($C43="","",IF(Control!$C$12="Directly",BJ34,IF(MAX(BJ19-'Baseline Reinforcement'!$D$9,0)=0,"",MAX(BJ19-'Baseline Reinforcement'!$D$9,0)))) ->  | BK43: =IF($C43="","",IF(Control!$C$12="Directly",BK34,IF(MAX(BK19-'Baseline Reinforcement'!$D$9,0)=0,"",MAX(BK19-'Baseline Reinforcement'!$D$9,0)))) ->  | BL43: =IF($C43="","",IF(Control!$C$12="Directly",BL34,IF(MAX(BL19-'Baseline Reinforcement'!$D$9,0)=0,"",MAX(BL19-'Baseline Reinforcement'!$D$9,0)))) ->  | BM43: =IF($C43="","",IF(Control!$C$12="Directly",BM34,IF(MAX(BM19-'Baseline Reinforcement'!$D$9,0)=0,"",MAX(BM19-'Baseline Reinforcement'!$D$9,0)))) ->  | BN43: =IF($C43="","",IF(Control!$C$12="Directly",BN34,IF(MAX(BN19-'Baseline Reinforcement'!$D$9,0)=0,"",MAX(BN19-'Baseline Reinforcement'!$D$9,0)))) ->  | BO43: =IF($C43="","",IF(Control!$C$12="Directly",BO34,IF(MAX(BO19-'Baseline Reinforcement'!$D$9,0)=0,"",MAX(BO19-'Baseline Reinforcement'!$D$9,0)))) ->  | BP43: =IF($C43="","",IF(Control!$C$12="Directly",BP34,IF(MAX(BP19-'Baseline Reinforcement'!$D$9,0)=0,"",MAX(BP19-'Baseline Reinforcement'!$D$9,0)))) ->  | BQ43: =IF($C43="","",IF(Control!$C$12="Directly",BQ34,IF(MAX(BQ19-'Baseline Reinforcement'!$D$9,0)=0,"",MAX(BQ19-'Baseline Reinforcement'!$D$9,0)))) ->  | BR43: =IF($C43="","",IF(Control!$C$12="Directly",BR34,IF(MAX(BR19-'Baseline Reinforcement'!$D$9,0)=0,"",MAX(BR19-'Baseline Reinforcement'!$D$9,0)))) -> 
A44: Scn | B44: 10 | C44: =IF(Control!C44="","",Control!C44) ->  | D44: =IF($C44="","",IF(Control!$C$12="Directly",D35,IF(MAX(D20-'Baseline Reinforcement'!$D$9,0)=0,"",MAX(D20-'Baseline Reinforcement'!$D$9,0)))) ->  | E44: =IF($C44="","",IF(Control!$C$12="Directly",E35,IF(MAX(E20-'Baseline Reinforcement'!$D$9,0)=0,"",MAX(E20-'Baseline Reinforcement'!$D$9,0)))) ->  | F44: =IF($C44="","",IF(Control!$C$12="Directly",F35,IF(MAX(F20-'Baseline Reinforcement'!$D$9,0)=0,"",MAX(F20-'Baseline Reinforcement'!$D$9,0)))) ->  | G44: =IF($C44="","",IF(Control!$C$12="Directly",G35,IF(MAX(G20-'Baseline Reinforcement'!$D$9,0)=0,"",MAX(G20-'Baseline Reinforcement'!$D$9,0)))) ->  | H44: =IF($C44="","",IF(Control!$C$12="Directly",H35,IF(MAX(H20-'Baseline Reinforcement'!$D$9,0)=0,"",MAX(H20-'Baseline Reinforcement'!$D$9,0)))) ->  | I44: =IF($C44="","",IF(Control!$C$12="Directly",I35,IF(MAX(I20-'Baseline Reinforcement'!$D$9,0)=0,"",MAX(I20-'Baseline Reinforcement'!$D$9,0)))) ->  | J44: =IF($C44="","",IF(Control!$C$12="Directly",J35,IF(MAX(J20-'Baseline Reinforcement'!$D$9,0)=0,"",MAX(J20-'Baseline Reinforcement'!$D$9,0)))) ->  | K44: =IF($C44="","",IF(Control!$C$12="Directly",K35,IF(MAX(K20-'Baseline Reinforcement'!$D$9,0)=0,"",MAX(K20-'Baseline Reinforcement'!$D$9,0)))) ->  | L44: =IF($C44="","",IF(Control!$C$12="Directly",L35,IF(MAX(L20-'Baseline Reinforcement'!$D$9,0)=0,"",MAX(L20-'Baseline Reinforcement'!$D$9,0)))) ->  | M44: =IF($C44="","",IF(Control!$C$12="Directly",M35,IF(MAX(M20-'Baseline Reinforcement'!$D$9,0)=0,"",MAX(M20-'Baseline Reinforcement'!$D$9,0)))) ->  | N44: =IF($C44="","",IF(Control!$C$12="Directly",N35,IF(MAX(N20-'Baseline Reinforcement'!$D$9,0)=0,"",MAX(N20-'Baseline Reinforcement'!$D$9,0)))) ->  | O44: =IF($C44="","",IF(Control!$C$12="Directly",O35,IF(MAX(O20-'Baseline Reinforcement'!$D$9,0)=0,"",MAX(O20-'Baseline Reinforcement'!$D$9,0)))) ->  | P44: =IF($C44="","",IF(Control!$C$12="Directly",P35,IF(MAX(P20-'Baseline Reinforcement'!$D$9,0)=0,"",MAX(P20-'Baseline Reinforcement'!$D$9,0)))) ->  | Q44: =IF($C44="","",IF(Control!$C$12="Directly",Q35,IF(MAX(Q20-'Baseline Reinforcement'!$D$9,0)=0,"",MAX(Q20-'Baseline Reinforcement'!$D$9,0)))) ->  | R44: =IF($C44="","",IF(Control!$C$12="Directly",R35,IF(MAX(R20-'Baseline Reinforcement'!$D$9,0)=0,"",MAX(R20-'Baseline Reinforcement'!$D$9,0)))) ->  | S44: =IF($C44="","",IF(Control!$C$12="Directly",S35,IF(MAX(S20-'Baseline Reinforcement'!$D$9,0)=0,"",MAX(S20-'Baseline Reinforcement'!$D$9,0)))) ->  | T44: =IF($C44="","",IF(Control!$C$12="Directly",T35,IF(MAX(T20-'Baseline Reinforcement'!$D$9,0)=0,"",MAX(T20-'Baseline Reinforcement'!$D$9,0)))) ->  | U44: =IF($C44="","",IF(Control!$C$12="Directly",U35,IF(MAX(U20-'Baseline Reinforcement'!$D$9,0)=0,"",MAX(U20-'Baseline Reinforcement'!$D$9,0)))) ->  | V44: =IF($C44="","",IF(Control!$C$12="Directly",V35,IF(MAX(V20-'Baseline Reinforcement'!$D$9,0)=0,"",MAX(V20-'Baseline Reinforcement'!$D$9,0)))) ->  | W44: =IF($C44="","",IF(Control!$C$12="Directly",W35,IF(MAX(W20-'Baseline Reinforcement'!$D$9,0)=0,"",MAX(W20-'Baseline Reinforcement'!$D$9,0)))) ->  | X44: =IF($C44="","",IF(Control!$C$12="Directly",X35,IF(MAX(X20-'Baseline Reinforcement'!$D$9,0)=0,"",MAX(X20-'Baseline Reinforcement'!$D$9,0)))) ->  | Y44: =IF($C44="","",IF(Control!$C$12="Directly",Y35,IF(MAX(Y20-'Baseline Reinforcement'!$D$9,0)=0,"",MAX(Y20-'Baseline Reinforcement'!$D$9,0)))) ->  | Z44: =IF($C44="","",IF(Control!$C$12="Directly",Z35,IF(MAX(Z20-'Baseline Reinforcement'!$D$9,0)=0,"",MAX(Z20-'Baseline Reinforcement'!$D$9,0)))) ->  | AA44: =IF($C44="","",IF(Control!$C$12="Directly",AA35,IF(MAX(AA20-'Baseline Reinforcement'!$D$9,0)=0,"",MAX(AA20-'Baseline Reinforcement'!$D$9,0)))) ->  | AB44: =IF($C44="","",IF(Control!$C$12="Directly",AB35,IF(MAX(AB20-'Baseline Reinforcement'!$D$9,0)=0,"",MAX(AB20-'Baseline Reinforcement'!$D$9,0)))) ->  | AC44: =IF($C44="","",IF(Control!$C$12="Directly",AC35,IF(MAX(AC20-'Baseline Reinforcement'!$D$9,0)=0,"",MAX(AC20-'Baseline Reinforcement'!$D$9,0)))) ->  | AD44: =IF($C44="","",IF(Control!$C$12="Directly",AD35,IF(MAX(AD20-'Baseline Reinforcement'!$D$9,0)=0,"",MAX(AD20-'Baseline Reinforcement'!$D$9,0)))) ->  | AE44: =IF($C44="","",IF(Control!$C$12="Directly",AE35,IF(MAX(AE20-'Baseline Reinforcement'!$D$9,0)=0,"",MAX(AE20-'Baseline Reinforcement'!$D$9,0)))) ->  | AF44: =IF($C44="","",IF(Control!$C$12="Directly",AF35,IF(MAX(AF20-'Baseline Reinforcement'!$D$9,0)=0,"",MAX(AF20-'Baseline Reinforcement'!$D$9,0)))) ->  | AG44: =IF($C44="","",IF(Control!$C$12="Directly",AG35,IF(MAX(AG20-'Baseline Reinforcement'!$D$9,0)=0,"",MAX(AG20-'Baseline Reinforcement'!$D$9,0)))) ->  | AH44: =IF($C44="","",IF(Control!$C$12="Directly",AH35,IF(MAX(AH20-'Baseline Reinforcement'!$D$9,0)=0,"",MAX(AH20-'Baseline Reinforcement'!$D$9,0)))) ->  | AI44: =IF($C44="","",IF(Control!$C$12="Directly",AI35,IF(MAX(AI20-'Baseline Reinforcement'!$D$9,0)=0,"",MAX(AI20-'Baseline Reinforcement'!$D$9,0)))) ->  | AJ44: =IF($C44="","",IF(Control!$C$12="Directly",AJ35,IF(MAX(AJ20-'Baseline Reinforcement'!$D$9,0)=0,"",MAX(AJ20-'Baseline Reinforcement'!$D$9,0)))) ->  | AK44: =IF($C44="","",IF(Control!$C$12="Directly",AK35,IF(MAX(AK20-'Baseline Reinforcement'!$D$9,0)=0,"",MAX(AK20-'Baseline Reinforcement'!$D$9,0)))) ->  | AL44: =IF($C44="","",IF(Control!$C$12="Directly",AL35,IF(MAX(AL20-'Baseline Reinforcement'!$D$9,0)=0,"",MAX(AL20-'Baseline Reinforcement'!$D$9,0)))) ->  | AM44: =IF($C44="","",IF(Control!$C$12="Directly",AM35,IF(MAX(AM20-'Baseline Reinforcement'!$D$9,0)=0,"",MAX(AM20-'Baseline Reinforcement'!$D$9,0)))) ->  | AN44: =IF($C44="","",IF(Control!$C$12="Directly",AN35,IF(MAX(AN20-'Baseline Reinforcement'!$D$9,0)=0,"",MAX(AN20-'Baseline Reinforcement'!$D$9,0)))) ->  | AO44: =IF($C44="","",IF(Control!$C$12="Directly",AO35,IF(MAX(AO20-'Baseline Reinforcement'!$D$9,0)=0,"",MAX(AO20-'Baseline Reinforcement'!$D$9,0)))) ->  | AP44: =IF($C44="","",IF(Control!$C$12="Directly",AP35,IF(MAX(AP20-'Baseline Reinforcement'!$D$9,0)=0,"",MAX(AP20-'Baseline Reinforcement'!$D$9,0)))) ->  | AQ44: =IF($C44="","",IF(Control!$C$12="Directly",AQ35,IF(MAX(AQ20-'Baseline Reinforcement'!$D$9,0)=0,"",MAX(AQ20-'Baseline Reinforcement'!$D$9,0)))) ->  | AR44: =IF($C44="","",IF(Control!$C$12="Directly",AR35,IF(MAX(AR20-'Baseline Reinforcement'!$D$9,0)=0,"",MAX(AR20-'Baseline Reinforcement'!$D$9,0)))) ->  | AS44: =IF($C44="","",IF(Control!$C$12="Directly",AS35,IF(MAX(AS20-'Baseline Reinforcement'!$D$9,0)=0,"",MAX(AS20-'Baseline Reinforcement'!$D$9,0)))) ->  | AT44: =IF($C44="","",IF(Control!$C$12="Directly",AT35,IF(MAX(AT20-'Baseline Reinforcement'!$D$9,0)=0,"",MAX(AT20-'Baseline Reinforcement'!$D$9,0)))) ->  | AU44: =IF($C44="","",IF(Control!$C$12="Directly",AU35,IF(MAX(AU20-'Baseline Reinforcement'!$D$9,0)=0,"",MAX(AU20-'Baseline Reinforcement'!$D$9,0)))) ->  | AV44: =IF($C44="","",IF(Control!$C$12="Directly",AV35,IF(MAX(AV20-'Baseline Reinforcement'!$D$9,0)=0,"",MAX(AV20-'Baseline Reinforcement'!$D$9,0)))) ->  | AW44: =IF($C44="","",IF(Control!$C$12="Directly",AW35,IF(MAX(AW20-'Baseline Reinforcement'!$D$9,0)=0,"",MAX(AW20-'Baseline Reinforcement'!$D$9,0)))) ->  | AX44: =IF($C44="","",IF(Control!$C$12="Directly",AX35,IF(MAX(AX20-'Baseline Reinforcement'!$D$9,0)=0,"",MAX(AX20-'Baseline Reinforcement'!$D$9,0)))) ->  | AY44: =IF($C44="","",IF(Control!$C$12="Directly",AY35,IF(MAX(AY20-'Baseline Reinforcement'!$D$9,0)=0,"",MAX(AY20-'Baseline Reinforcement'!$D$9,0)))) ->  | AZ44: =IF($C44="","",IF(Control!$C$12="Directly",AZ35,IF(MAX(AZ20-'Baseline Reinforcement'!$D$9,0)=0,"",MAX(AZ20-'Baseline Reinforcement'!$D$9,0)))) ->  | BA44: =IF($C44="","",IF(Control!$C$12="Directly",BA35,IF(MAX(BA20-'Baseline Reinforcement'!$D$9,0)=0,"",MAX(BA20-'Baseline Reinforcement'!$D$9,0)))) ->  | BB44: =IF($C44="","",IF(Control!$C$12="Directly",BB35,IF(MAX(BB20-'Baseline Reinforcement'!$D$9,0)=0,"",MAX(BB20-'Baseline Reinforcement'!$D$9,0)))) ->  | BC44: =IF($C44="","",IF(Control!$C$12="Directly",BC35,IF(MAX(BC20-'Baseline Reinforcement'!$D$9,0)=0,"",MAX(BC20-'Baseline Reinforcement'!$D$9,0)))) ->  | BD44: =IF($C44="","",IF(Control!$C$12="Directly",BD35,IF(MAX(BD20-'Baseline Reinforcement'!$D$9,0)=0,"",MAX(BD20-'Baseline Reinforcement'!$D$9,0)))) ->  | BE44: =IF($C44="","",IF(Control!$C$12="Directly",BE35,IF(MAX(BE20-'Baseline Reinforcement'!$D$9,0)=0,"",MAX(BE20-'Baseline Reinforcement'!$D$9,0)))) ->  | BF44: =IF($C44="","",IF(Control!$C$12="Directly",BF35,IF(MAX(BF20-'Baseline Reinforcement'!$D$9,0)=0,"",MAX(BF20-'Baseline Reinforcement'!$D$9,0)))) ->  | BG44: =IF($C44="","",IF(Control!$C$12="Directly",BG35,IF(MAX(BG20-'Baseline Reinforcement'!$D$9,0)=0,"",MAX(BG20-'Baseline Reinforcement'!$D$9,0)))) ->  | BH44: =IF($C44="","",IF(Control!$C$12="Directly",BH35,IF(MAX(BH20-'Baseline Reinforcement'!$D$9,0)=0,"",MAX(BH20-'Baseline Reinforcement'!$D$9,0)))) ->  | BI44: =IF($C44="","",IF(Control!$C$12="Directly",BI35,IF(MAX(BI20-'Baseline Reinforcement'!$D$9,0)=0,"",MAX(BI20-'Baseline Reinforcement'!$D$9,0)))) ->  | BJ44: =IF($C44="","",IF(Control!$C$12="Directly",BJ35,IF(MAX(BJ20-'Baseline Reinforcement'!$D$9,0)=0,"",MAX(BJ20-'Baseline Reinforcement'!$D$9,0)))) ->  | BK44: =IF($C44="","",IF(Control!$C$12="Directly",BK35,IF(MAX(BK20-'Baseline Reinforcement'!$D$9,0)=0,"",MAX(BK20-'Baseline Reinforcement'!$D$9,0)))) ->  | BL44: =IF($C44="","",IF(Control!$C$12="Directly",BL35,IF(MAX(BL20-'Baseline Reinforcement'!$D$9,0)=0,"",MAX(BL20-'Baseline Reinforcement'!$D$9,0)))) ->  | BM44: =IF($C44="","",IF(Control!$C$12="Directly",BM35,IF(MAX(BM20-'Baseline Reinforcement'!$D$9,0)=0,"",MAX(BM20-'Baseline Reinforcement'!$D$9,0)))) ->  | BN44: =IF($C44="","",IF(Control!$C$12="Directly",BN35,IF(MAX(BN20-'Baseline Reinforcement'!$D$9,0)=0,"",MAX(BN20-'Baseline Reinforcement'!$D$9,0)))) ->  | BO44: =IF($C44="","",IF(Control!$C$12="Directly",BO35,IF(MAX(BO20-'Baseline Reinforcement'!$D$9,0)=0,"",MAX(BO20-'Baseline Reinforcement'!$D$9,0)))) ->  | BP44: =IF($C44="","",IF(Control!$C$12="Directly",BP35,IF(MAX(BP20-'Baseline Reinforcement'!$D$9,0)=0,"",MAX(BP20-'Baseline Reinforcement'!$D$9,0)))) ->  | BQ44: =IF($C44="","",IF(Control!$C$12="Directly",BQ35,IF(MAX(BQ20-'Baseline Reinforcement'!$D$9,0)=0,"",MAX(BQ20-'Baseline Reinforcement'!$D$9,0)))) ->  | BR44: =IF($C44="","",IF(Control!$C$12="Directly",BR35,IF(MAX(BR20-'Baseline Reinforcement'!$D$9,0)=0,"",MAX(BR20-'Baseline Reinforcement'!$D$9,0)))) -> 
C47: BASELINE REINFORCEMENT AND UPFRONT CAPEX (TO BE DEFERRED) | D47: =Current_year -> 2026 | E47: =D47+1 -> 2027 | F47: 2028 | G47: 2029 | H47: 2030 | I47: 2031 | J47: 2032 | K47: 2033 | L47: 2034 | M47: 2035 | N47: 2036 | O47: 2037 | P47: 2038 | Q47: 2039 | R47: 2040 | S47: 2041 | T47: 2042 | U47: 2043 | V47: 2044 | W47: 2045 | X47: 2046 | Y47: 2047 | Z47: 2048 | AA47: 2049 | AB47: 2050 | AC47: 2051 | AD47: 2052 | AE47: 2053 | AF47: 2054 | AG47: 2055 | AH47: 2056 | AI47: 2057 | AJ47: 2058 | AK47: =AJ47+1 -> 2059 | AL47: 2060 | AM47: 2061 | AN47: 2062 | AO47: 2063 | AP47: 2064 | AQ47: 2065 | AR47: 2066 | AS47: 2067 | AT47: 2068 | AU47: 2069 | AV47: 2070 | AW47: 2071 | AX47: 2072 | AY47: 2073 | AZ47: 2074 | BA47: 2075 | BB47: 2076 | BC47: 2077 | BD47: 2078 | BE47: 2079 | BF47: 2080 | BG47: 2081 | BH47: 2082 | BI47: 2083 | BJ47: 2084 | BK47: 2085 | BL47: 2086 | BM47: 2087 | BN47: 2088 | BO47: 2089 | BP47: 2090 | BQ47: 2091 | BR47: 2092
C48: Cost 1 | D48: 648405 | E48: 648405
C49: Cost 2
C50: Cost 3
C51: Total | D51: =IF(AND(D48="",D49="",D50=""),"",SUM(D48:D50)) -> 648405 | E51: =IF(AND(E48="",E49="",E50=""),"",SUM(E48:E50)) -> 648405 | BQ51: =IF(AND(BQ48="",BQ49="",BQ50=""),"",SUM(BQ48:BQ50)) -> 
A55: end

Sheet Flex Cost Inputs
B1: =MATCH("end",A:A,0) -> 55
A2: Flex Cost Inputs
A3: Sheet only used if flex_cost_input_type (in Control sheet) is set to "Input all flex costs directly"
C5: Upfront Costs (incured regardless of strategy duration) (£/yr) | D5: =Current_year -> 2026 | E5: =D5+1 -> 2027 | F5: 2028 | G5: 2029 | H5: 2030 | I5: 2031 | J5: 2032 | K5: 2033 | L5: 2034 | M5: 2035 | N5: 2036 | O5: 2037 | P5: 2038 | Q5: 2039 | R5: 2040 | S5: 2041 | T5: 2042 | U5: 2043 | V5: 2044 | W5: 2045 | X5: 2046 | Y5: 2047 | Z5: 2048 | AA5: 2049 | AB5: 2050 | AC5: 2051 | AD5: 2052 | AE5: 2053 | AF5: 2054 | AG5: 2055 | AH5: 2056 | AI5: 2057 | AJ5: 2058 | AK5: =AJ5+1 -> 2059 | AL5: 2060 | AM5: 2061 | AN5: 2062 | AO5: 2063 | AP5: 2064 | AQ5: 2065 | AR5: 2066 | AS5: 2067 | AT5: 2068 | AU5: 2069 | AV5: 2070 | AW5: 2071 | AX5: 2072 | AY5: 2073 | AZ5: 2074 | BA5: 2075 | BB5: 2076 | BC5: 2077 | BD5: 2078 | BE5: 2079 | BF5: 2080 | BG5: 2081 | BH5: 2082 | BI5: 2083 | BJ5: 2084 | BK5: 2085 | BL5: 2086 | BM5: 2087 | BN5: 2088 | BO5: 2089 | BP5: 2090 | BQ5: 2091 | BR5: 2092
A6: Config | B6: 1 | C6: =IF(INDIRECT("Config"&B6&"_name")="","",INDIRECT("Config"&B6&"_name")) -> Flexibility under Provider 1
A7: Config | B7: 2 | C7: Flexibility under [2]
A8: Config | B8: 3 | C8: Flexibility under [3]
A9: Config | B9: 4 | C9: Flexibility under [4]
A10: Config | B10: 5 | C10: Flexibility under [5]
A11: Config | B11: 6
A12: Config | B12: 7
A13: Config | B13: 8
A14: Config | B14: 9
A15: Config | B15: 10
C17: Annual Fixed costs (incurred only if strategy is still being pursued) (£/yr) | D17: =Current_year -> 2026 | E17: =D17+1 -> 2027 | F17: 2028 | G17: 2029 | H17: 2030 | I17: 2031 | J17: 2032 | K17: 2033 | L17: 2034 | M17: 2035 | N17: 2036 | O17: 2037 | P17: 2038 | Q17: 2039 | R17: 2040 | S17: 2041 | T17: 2042 | U17: 2043 | V17: 2044 | W17: 2045 | X17: 2046 | Y17: 2047 | Z17: 2048 | AA17: 2049 | AB17: 2050 | AC17: 2051 | AD17: 2052 | AE17: 2053 | AF17: 2054 | AG17: 2055 | AH17: 2056 | AI17: 2057 | AJ17: 2058 | AK17: =AJ17+1 -> 2059 | AL17: 2060 | AM17: 2061 | AN17: 2062 | AO17: 2063 | AP17: 2064 | AQ17: 2065 | AR17: 2066 | AS17: 2067 | AT17: 2068 | AU17: 2069 | AV17: 2070 | AW17: 2071 | AX17: 2072 | AY17: 2073 | AZ17: 2074 | BA17: 2075 | BB17: 2076 | BC17: 2077 | BD17: 2078 | BE17: 2079 | BF17: 2080 | BG17: 2081 | BH17: 2082 | BI17: 2083 | BJ17: 2084 | BK17: 2085 | BL17: 2086 | BM17: 2087 | BN17: 2088 | BO17: 2089 | BP17: 2090 | BQ17: 2091 | BR17: 2092
A18: Config | B18: 1 | C18: =IF(INDIRECT("Config"&B18&"_name")="","",INDIRECT("Config"&B18&"_name")) -> Flexibility under Provider 1
A19: Config | B19: 2 | C19: Flexibility under [2]
A20: Config | B20: 3 | C20: Flexibility under [3]
A21: Config | B21: 4 | C21: Flexibility under [4]
A22: Config | B22: 5 | C22: Flexibility under [5]
A23: Config | B23: 6
A24: Config | B24: 7
A25: Config | B25: 8
A26: Config | B26: 9
A27: Config | B27: 10
C29: Availability costs (incurred only if strategy is still being pursued) (£/yr) | D29: =Current_year -> 2026 | E29: =D29+1 -> 2027 | F29: 2028 | G29: 2029 | H29: 2030 | I29: 2031 | J29: 2032 | K29: 2033 | L29: 2034 | M29: 2035 | N29: 2036 | O29: 2037 | P29: 2038 | Q29: 2039 | R29: 2040 | S29: 2041 | T29: 2042 | U29: 2043 | V29: 2044 | W29: 2045 | X29: 2046 | Y29: 2047 | Z29: 2048 | AA29: 2049 | AB29: 2050 | AC29: 2051 | AD29: 2052 | AE29: 2053 | AF29: 2054 | AG29: 2055 | AH29: 2056 | AI29: 2057 | AJ29: 2058 | AK29: =AJ29+1 -> 2059 | AL29: 2060 | AM29: 2061 | AN29: 2062 | AO29: 2063 | AP29: 2064 | AQ29: 2065 | AR29: 2066 | AS29: 2067 | AT29: 2068 | AU29: 2069 | AV29: 2070 | AW29: 2071 | AX29: 2072 | AY29: 2073 | AZ29: 2074 | BA29: 2075 | BB29: 2076 | BC29: 2077 | BD29: 2078 | BE29: 2079 | BF29: 2080 | BG29: 2081 | BH29: 2082 | BI29: 2083 | BJ29: 2084 | BK29: 2085 | BL29: 2086 | BM29: 2087 | BN29: 2088 | BO29: 2089 | BP29: 2090 | BQ29: 2091 | BR29: 2092
A30: Config | B30: 1 | C30: =IF(INDIRECT("Config"&B30&"_name")="","",INDIRECT("Config"&B30&"_name")) -> Flexibility under Provider 1 | D30: 5280 | E30: 42880
A31: Config | B31: 2 | C31: Flexibility under [2]
A32: Config | B32: 3 | C32: Flexibility under [3]
A33: Config | B33: 4 | C33: Flexibility under [4]
A34: Config | B34: 5 | C34: Flexibility under [5]
A35: Config | B35: 6
A36: Config | B36: 7
A37: Config | B37: 8
A38: Config | B38: 9
A39: Config | B39: 10
C41: Utilisation costs (incurred only if strategy is still being pursued) (£/yr) | D41: =Current_year -> 2026 | E41: =D41+1 -> 2027 | F41: 2028 | G41: 2029 | H41: 2030 | I41: 2031 | J41: 2032 | K41: 2033 | L41: 2034 | M41: 2035 | N41: 2036 | O41: 2037 | P41: 2038 | Q41: 2039 | R41: 2040 | S41: 2041 | T41: 2042 | U41: 2043 | V41: 2044 | W41: 2045 | X41: 2046 | Y41: 2047 | Z41: 2048 | AA41: 2049 | AB41: 2050 | AC41: 2051 | AD41: 2052 | AE41: 2053 | AF41: 2054 | AG41: 2055 | AH41: 2056 | AI41: 2057 | AJ41: 2058 | AK41: =AJ41+1 -> 2059 | AL41: 2060 | AM41: 2061 | AN41: 2062 | AO41: 2063 | AP41: 2064 | AQ41: 2065 | AR41: 2066 | AS41: 2067 | AT41: 2068 | AU41: 2069 | AV41: 2070 | AW41: 2071 | AX41: 2072 | AY41: 2073 | AZ41: 2074 | BA41: 2075 | BB41: 2076 | BC41: 2077 | BD41: 2078 | BE41: 2079 | BF41: 2080 | BG41: 2081 | BH41: 2082 | BI41: 2083 | BJ41: 2084 | BK41: 2085 | BL41: 2086 | BM41: 2087 | BN41: 2088 | BO41: 2089 | BP41: 2090 | BQ41: 2091 | BR41: 2092
A42: Config | B42: 1 | C42: =IF(INDIRECT("Config"&B42&"_name")="","",INDIRECT("Config"&B42&"_name")) -> Flexibility under Provider 1 | D42: 4752 | E42: 11256
A43: Config | B43: 2 | C43: Flexibility under [2]
A44: Config | B44: 3 | C44: Flexibility under [3]
A45: Config | B45: 4 | C45: Flexibility under [4]
A46: Config | B46: 5 | C46: Flexibility under [5]
A47: Config | B47: 6
A48: Config | B48: 7
A49: Config | B49: 8
A50: Config | B50: 9
A51: Config | B51: 10
A55: end

Sheet Flex Volume and Cost Inputs (hidden)
B1: =MATCH("end",A:A,0) -> 90
A2: Flex Volume and Cost Inputs
A3: Sheet only used if flex_cost_input_type (in Control sheet) is set to "Flex Costs from Volumes"
B5: Availability and Utilisation Price Assumptions
C6: Initial flexibility price assumptions
C7: Availability Price (£/MW/h) | D7: 0
C8: Utilisation Price (£/MWh) | D8: 0
C10: Availability price trend assumption | D10: =Current_year -> 2026 | E10: =D10+1 -> 2027 | F10: 2028 | G10: 2029 | H10: 2030 | I10: 2031 | J10: 2032 | K10: 2033 | L10: 2034 | M10: 2035 | N10: 2036 | O10: 2037 | P10: 2038 | Q10: 2039 | R10: 2040 | S10: 2041 | T10: 2042 | U10: 2043 | V10: 2044 | W10: 2045 | X10: 2046 | Y10: 2047 | Z10: 2048 | AA10: 2049 | AB10: 2050 | AC10: 2051 | AD10: 2052 | AE10: 2053 | AF10: 2054 | AG10: 2055 | AH10: 2056 | AI10: 2057 | AJ10: 2058 | AK10: =AJ10+1 -> 2059 | AL10: 2060 | AM10: 2061 | AN10: 2062 | AO10: 2063 | AP10: 2064 | AQ10: 2065 | AR10: 2066 | AS10: 2067 | AT10: 2068 | AU10: 2069 | AV10: 2070 | AW10: 2071 | AX10: 2072 | AY10: 2073 | AZ10: 2074 | BA10: 2075 | BB10: 2076 | BC10: 2077 | BD10: 2078 | BE10: 2079 | BF10: 2080 | BG10: 2081 | BH10: 2082 | BI10: 2083 | BJ10: 2084 | BK10: 2085 | BL10: 2086 | BM10: 2087 | BN10: 2088 | BO10: 2089 | BP10: 2090 | BQ10: 2091 | BR10: 2092
C11: Availability price trend | D11: 1 | E11: 0.195 | F11: 1 | G11: 1 | H11: 1 | I11: 1 | J11: 1 | K11: 1 | L11: 1 | M11: 1 | N11: 1 | O11: 1 | P11: 1 | Q11: 1 | R11: 1 | S11: 1 | T11: 1 | U11: 1 | V11: 1 | W11: 1 | X11: 1 | Y11: 1 | Z11: 1 | AA11: 1 | AB11: 1 | AC11: 1 | AD11: 1 | AE11: 1 | AF11: 1 | AG11: 1 | AH11: 1 | AI11: 1 | AJ11: 1 | AK11: 1 | AL11: 1 | AM11: 1 | AN11: 1 | AO11: 1 | AP11: 1 | AQ11: 1 | AR11: 1 | AS11: 1 | AT11: 1 | AU11: 1 | AV11: 1 | AW11: 1 | AX11: 1 | AY11: 1 | AZ11: 1 | BA11: 1 | BB11: 1 | BC11: 1 | BD11: 1 | BE11: 1 | BF11: 1 | BG11: 1 | BH11: 1 | BI11: 1 | BJ11: 1 | BK11: 1 | BL11: 1 | BM11: 1 | BN11: 1 | BO11: 1 | BP11: 1 | BQ11: 1 | BR11: 1
C12: Effective availability price (£/MW/h) | D12: =Avail_price*D$11 -> 0 | E12: 0 | F12: 0 | G12: 0 | H12: 0 | I12: 0 | J12: 0 | K12: 0 | L12: 0 | M12: 0 | N12: 0 | O12: 0 | P12: 0 | Q12: 0 | R12: 0 | S12: 0 | T12: 0 | U12: 0 | V12: 0 | W12: 0 | X12: 0 | Y12: 0 | Z12: 0 | AA12: 0 | AB12: 0 | AC12: 0 | AD12: 0 | AE12: 0 | AF12: 0 | AG12: 0 | AH12: 0 | AI12: 0 | AJ12: =Avail_price*AJ$11 -> 0 | AK12: 0 | AL12: 0 | AM12: 0 | AN12: 0 | AO12: 0 | AP12: 0 | AQ12: 0 | AR12: 0 | AS12: 0 | AT12: 0 | AU12: 0 | AV12: 0 | AW12: 0 | AX12: 0 | AY12: 0 | AZ12: 0 | BA12: 0 | BB12: 0 | BC12: 0 | BD12: 0 | BE12: 0 | BF12: 0 | BG12: 0 | BH12: 0 | BI12: 0 | BJ12: 0 | BK12: 0 | BL12: 0 | BM12: 0 | BN12: 0 | BO12: 0 | BP12: 0 | BQ12: 0 | BR12: 0
B14: Fixed Costs
C15: Upfront Costs (incured regardless of strategy duration) (£/yr) | D15: =Current_year -> 2026 | E15: =D15+1 -> 2027 | F15: 2028 | G15: 2029 | H15: 2030 | I15: 2031 | J15: 2032 | K15: 2033 | L15: 2034 | M15: 2035 | N15: 2036 | O15: 2037 | P15: 2038 | Q15: 2039 | R15: 2040 | S15: 2041 | T15: 2042 | U15: 2043 | V15: 2044 | W15: 2045 | X15: 2046 | Y15: 2047 | Z15: 2048 | AA15: 2049 | AB15: 2050 | AC15: 2051 | AD15: 2052 | AE15: 2053 | AF15: 2054 | AG15: 2055 | AH15: 2056 | AI15: 2057 | AJ15: 2058 | AK15: =AJ15+1 -> 2059 | AL15: 2060 | AM15: 2061 | AN15: 2062 | AO15: 2063 | AP15: 2064 | AQ15: 2065 | AR15: 2066 | AS15: 2067 | AT15: 2068 | AU15: 2069 | AV15: 2070 | AW15: 2071 | AX15: 2072 | AY15: 2073 | AZ15: 2074 | BA15: 2075 | BB15: 2076 | BC15: 2077 | BD15: 2078 | BE15: 2079 | BF15: 2080 | BG15: 2081 | BH15: 2082 | BI15: 2083 | BJ15: 2084 | BK15: 2085 | BL15: 2086 | BM15: 2087 | BN15: 2088 | BO15: 2089 | BP15: 2090 | BQ15: 2091 | BR15: 2092
A16: Config | B16: 1 | C16: =IF(INDIRECT("Config"&B16&"_name")="","",INDIRECT("Config"&B16&"_name")) -> Flexibility under Provider 1
A17: Config | B17: 2 | C17: Flexibility under [2]
A18: Config | B18: 3 | C18: Flexibility under [3]
A19: Config | B19: 4 | C19: Flexibility under [4]
A20: Config | B20: 5 | C20: Flexibility under [5]
A21: Config | B21: 6
A22: Config | B22: 7
A23: Config | B23: 8
A24: Config | B24: 9
A25: Config | B25: 10
C27: Annual Fixed costs (incurred only if strategy is still being pursued) (£/yr) | D27: =Current_year -> 2026 | E27: =D27+1 -> 2027 | F27: 2028 | G27: 2029 | H27: 2030 | I27: 2031 | J27: 2032 | K27: 2033 | L27: 2034 | M27: 2035 | N27: 2036 | O27: 2037 | P27: 2038 | Q27: 2039 | R27: 2040 | S27: 2041 | T27: 2042 | U27: 2043 | V27: 2044 | W27: 2045 | X27: 2046 | Y27: 2047 | Z27: 2048 | AA27: 2049 | AB27: 2050 | AC27: 2051 | AD27: 2052 | AE27: 2053 | AF27: 2054 | AG27: 2055 | AH27: 2056 | AI27: 2057 | AJ27: 2058 | AK27: =AJ27+1 -> 2059 | AL27: 2060 | AM27: 2061 | AN27: 2062 | AO27: 2063 | AP27: 2064 | AQ27: 2065 | AR27: 2066 | AS27: 2067 | AT27: 2068 | AU27: 2069 | AV27: 2070 | AW27: 2071 | AX27: 2072 | AY27: 2073 | AZ27: 2074 | BA27: 2075 | BB27: 2076 | BC27: 2077 | BD27: 2078 | BE27: 2079 | BF27: 2080 | BG27: 2081 | BH27: 2082 | BI27: 2083 | BJ27: 2084 | BK27: 2085 | BL27: 2086 | BM27: 2087 | BN27: 2088 | BO27: 2089 | BP27: 2090 | BQ27: 2091 | BR27: 2092
A28: Config | B28: 1 | C28: =IF(INDIRECT("Config"&B28&"_name")="","",INDIRECT("Config"&B28&"_name")) -> Flexibility under Provider 1
A29: Config | B29: 2 | C29: Flexibility under [2]
A30: Config | B30: 3 | C30: Flexibility under [3]
A31: Config | B31: 4 | C31: Flexibility under [4]
A32: Config | B32: 5 | C32: Flexibility under [5]
A33: Config | B33: 6
A34: Config | B34: 7
A35: Config | B35: 8
A36: Config | B36: 9
A37: Config | B37: 10
B39: Availability Volumes
C40: Average capacity of availability procured each year (MVA) | D40: =Current_year -> 2026 | E40: =D40+1 -> 2027 | F40: 2028 | G40: 2029 | H40: 2030 | I40: 2031 | J40: 2032 | K40: 2033 | L40: 2034 | M40: 2035 | N40: 2036 | O40: 2037 | P40: 2038 | Q40: 2039 | R40: 2040 | S40: 2041 | T40: 2042 | U40: 2043 | V40: 2044 | W40: 2045 | X40: 2046 | Y40: 2047 | Z40: 2048 | AA40: 2049 | AB40: 2050 | AC40: 2051 | AD40: 2052 | AE40: 2053 | AF40: 2054 | AG40: 2055 | AH40: 2056 | AI40: 2057 | AJ40: 2058 | AK40: =AJ40+1 -> 2059 | AL40: 2060 | AM40: 2061 | AN40: 2062 | AO40: 2063 | AP40: 2064 | AQ40: 2065 | AR40: 2066 | AS40: 2067 | AT40: 2068 | AU40: 2069 | AV40: 2070 | AW40: 2071 | AX40: 2072 | AY40: 2073 | AZ40: 2074 | BA40: 2075 | BB40: 2076 | BC40: 2077 | BD40: 2078 | BE40: 2079 | BF40: 2080 | BG40: 2081 | BH40: 2082 | BI40: 2083 | BJ40: 2084 | BK40: 2085 | BL40: 2086 | BM40: 2087 | BN40: 2088 | BO40: 2089 | BP40: 2090 | BQ40: 2091 | BR40: 2092
A41: Config | B41: 1 | C41: =IF(INDIRECT("Config"&B41&"_name")="","",INDIRECT("Config"&B41&"_name")) -> Flexibility under Provider 1 | D41: 0 | E41: ='Baseline Reinforcement'!E23 -> 0.67 | F41: ='Baseline Reinforcement'!F23 -> 0 | G41: 0 | H41: 0.3333333333 | I41: 0.8333333333 | J41: 1.333333333 | K41: 1.833333333 | L41: 2.333333333 | M41: 2.833333333 | N41: 3.333333333 | O41: 3.833333333 | P41: 4.333333333 | Q41: 4.833333333 | R41: 5.333333333 | S41: 5.833333333 | T41: 6.333333333 | U41: 6.833333333 | V41: 7.333333333 | W41: 7.833333333 | X41: 8.333333333 | Y41: 8.833333333 | Z41: 9.333333333 | AA41: 9.833333333 | AB41: 10.33333333 | AC41: 10.83333333 | AD41: 11.33333333 | AE41: 11.83333333 | AF41: 12.33333333 | AG41: 12.83333333 | AH41: 13.33333333 | AI41: 13.83333333 | AJ41: 14.33333333 | AK41: 14.83333333 | AL41: 15.33333333 | AM41: 15.83333333 | AN41: 16.33333333 | AO41: 16.83333333 | AP41: 17.33333333 | AQ41: 17.83333333 | AR41: 18.33333333 | AS41: 18.83333333 | AT41: 19.33333333 | AU41: 19.83333333 | AV41: 20.33333333 | AW41: 20.83333333 | AX41: 21.33333333 | AY41: 21.83333333 | AZ41: 22.33333333 | BA41: 22.83333333 | BB41: 23.33333333 | BC41: 23.83333333 | BD41: 24.33333333 | BE41: 24.83333333 | BF41: 25.33333333 | BG41: 25.83333333 | BH41: 26.33333333 | BI41: 26.83333333 | BJ41: 27.33333333 | BK41: 27.83333333 | BL41: 28.33333333 | BM41: 28.83333333 | BN41: 29.33333333 | BO41: 29.83333333 | BP41: 30.33333333 | BQ41: 30.83333333 | BR41: 31.33333333
A42: Config | B42: 2 | C42: Flexibility under [2] | D42: 0 | E42: 0 | F42: 0 | G42: 0.3333333333 | H42: 1 | I42: 1.666666667 | J42: 2.333333333 | K42: 3 | L42: 3.666666667 | M42: 4.333333333 | N42: 5 | O42: 5.666666667 | P42: 6.333333333 | Q42: 7 | R42: 7.666666667 | S42: 8.333333333 | T42: 9 | U42: 9.666666667 | V42: 10.33333333 | W42: 11 | X42: 11.66666667 | Y42: 12.33333333 | Z42: 13 | AA42: 13.66666667 | AB42: 14.33333333 | AC42: 15 | AD42: 15.66666667 | AE42: 16.33333333 | AF42: 17 | AG42: 17.66666667 | AH42: 18.33333333 | AI42: 19 | AJ42: 19.66666667 | AK42: 20.33333333 | AL42: 21 | AM42: 21.66666667 | AN42: 22.33333333 | AO42: 23 | AP42: 23.66666667 | AQ42: 24.33333333 | AR42: 25 | AS42: 25.66666667 | AT42: 26.33333333 | AU42: 27 | AV42: 27.66666667 | AW42: 28.33333333 | AX42: 29 | AY42: 29.66666667 | AZ42: 30.33333333 | BA42: 31 | BB42: 31.66666667 | BC42: 32.33333333 | BD42: 33 | BE42: 33.66666667 | BF42: 34.33333333 | BG42: 35 | BH42: 35.66666667 | BI42: 36.33333333 | BJ42: 37 | BK42: 37.66666667 | BL42: 38.33333333 | BM42: 39 | BN42: 39.66666667 | BO42: 40.33333333 | BP42: 41 | BQ42: 41.66666667 | BR42: 42.33333333
A43: Config | B43: 3 | C43: Flexibility under [3] | D43: 0 | E43: 0 | F43: 0 | G43: 0.8333333333 | H43: 1.666666667 | I43: 2.5 | J43: 3.333333333 | K43: 4.166666667 | L43: 5 | M43: 5.833333333 | N43: 6.666666667 | O43: 7.5 | P43: 8.333333333 | Q43: 9.166666667 | R43: 10 | S43: 10.83333333 | T43: 11.66666667 | U43: 12.5 | V43: 13.33333333 | W43: 14.16666667 | X43: 15 | Y43: 15.83333333 | Z43: 16.66666667 | AA43: 17.5 | AB43: 18.33333333 | AC43: 19.16666667 | AD43: 20 | AE43: 20.83333333 | AF43: 21.66666667 | AG43: 22.5 | AH43: 23.33333333 | AI43: 24.16666667 | AJ43: 25 | AK43: 25.83333333 | AL43: 26.66666667 | AM43: 27.5 | AN43: 28.33333333 | AO43: 29.16666667 | AP43: 30 | AQ43: 30.83333333 | AR43: 31.66666667 | AS43: 32.5 | AT43: 33.33333333 | AU43: 34.16666667 | AV43: 35 | AW43: 35.83333333 | AX43: 36.66666667 | AY43: 37.5 | AZ43: 38.33333333 | BA43: 39.16666667 | BB43: 40 | BC43: 40.83333333 | BD43: 41.66666667 | BE43: 42.5 | BF43: 43.33333333 | BG43: 44.16666667 | BH43: 45 | BI43: 45.83333333 | BJ43: 46.66666667 | BK43: 47.5 | BL43: 48.33333333 | BM43: 49.16666667 | BN43: 50 | BO43: 50.83333333 | BP43: 51.66666667 | BQ43: 52.5 | BR43: 53.33333333
A44: Config | B44: 4 | C44: Flexibility under [4] | D44: 0 | E44: 0 | F44: 0 | G44: 0 | H44: 0 | I44: 2.368475786e-14 | J44: 0.3333333333 | K44: 0.6666666667 | L44: 1 | M44: 1.333333333 | N44: 1.666666667 | O44: 2 | P44: 2.333333333 | Q44: 2.666666667 | R44: 3 | S44: 3.333333333 | T44: 3.666666667 | U44: 4 | V44: 4.333333333 | W44: 4.666666667 | X44: 5 | Y44: 5.333333333 | Z44: 5.666666667 | AA44: 6 | AB44: 6.333333333 | AC44: 6.666666667 | AD44: 7 | AE44: 7.333333333 | AF44: 7.666666667 | AG44: 8 | AH44: 8.333333333 | AI44: 8.666666667 | AJ44: 9 | AK44: 9.333333333 | AL44: 9.666666667 | AM44: 10 | AN44: 10.33333333 | AO44: 10.66666667 | AP44: 11 | AQ44: 11.33333333 | AR44: 11.66666667 | AS44: 12 | AT44: 12.33333333 | AU44: 12.66666667 | AV44: 13 | AW44: 13.33333333 | AX44: 13.66666667 | AY44: 14 | AZ44: 14.33333333 | BA44: 14.66666667 | BB44: 15 | BC44: 15.33333333 | BD44: 15.66666667 | BE44: 16 | BF44: 16.33333333 | BG44: 16.66666667 | BH44: 17 | BI44: 17.33333333 | BJ44: 17.66666667 | BK44: 18 | BL44: 18.33333333 | BM44: 18.66666667 | BN44: 19 | BO44: 19.33333333 | BP44: 19.66666667 | BQ44: 20 | BR44: 20.33333333
A45: Config | B45: 5 | C45: Flexibility under [5] | D45: 0 | E45: 0 | F45: 0 | G45: 0 | H45: 0 | I45: 0 | J45: 0 | K45: 0 | L45: 0 | M45: 0 | N45: 0 | O45: 0.1666666667 | P45: 0.3333333333 | Q45: 0.5 | R45: 0.6666666667 | S45: 0.8333333333 | T45: 1 | U45: 1.166666667 | V45: 1.333333333 | W45: 1.5 | X45: 1.666666667 | Y45: 1.833333333 | Z45: 2 | AA45: 2.166666667 | AB45: 2.333333333 | AC45: 2.5 | AD45: 2.666666667 | AE45: 2.833333333 | AF45: 3 | AG45: 3.166666667 | AH45: 3.333333333 | AI45: 3.5 | AJ45: 3.666666667 | AK45: 3.833333333 | AL45: 4 | AM45: 4.166666667 | AN45: 4.333333333 | AO45: 4.5 | AP45: 4.666666667 | AQ45: 4.833333333 | AR45: 5 | AS45: 5.166666667 | AT45: 5.333333333 | AU45: 5.5 | AV45: 5.666666667 | AW45: 5.833333333 | AX45: 6 | AY45: 6.166666667 | AZ45: 6.333333333 | BA45: 6.5 | BB45: 6.666666667 | BC45: 6.833333333 | BD45: 7 | BE45: 7.166666667 | BF45: 7.333333333 | BG45: 7.5 | BH45: 7.666666667 | BI45: 7.833333333 | BJ45: 8 | BK45: 8.166666667 | BL45: 8.333333333 | BM45: 8.5 | BN45: 8.666666667 | BO45: 8.833333333 | BP45: 9 | BQ45: 9.166666667 | BR45: 9.333333333
A46: Config | B46: 6
A47: Config | B47: 7
A48: Config | B48: 8
A49: Config | B49: 9
A50: Config | B50: 10
C52: Hours per day of availability required | D52: =Current_year -> 2026 | E52: =D52+1 -> 2027 | F52: 2028 | G52: 2029 | H52: 2030 | I52: 2031 | J52: 2032 | K52: 2033 | L52: 2034 | M52: 2035 | N52: 2036 | O52: 2037 | P52: 2038 | Q52: 2039 | R52: 2040 | S52: 2041 | T52: 2042 | U52: 2043 | V52: 2044 | W52: 2045 | X52: 2046 | Y52: 2047 | Z52: 2048 | AA52: 2049 | AB52: 2050 | AC52: 2051 | AD52: 2052 | AE52: 2053 | AF52: 2054 | AG52: 2055 | AH52: 2056 | AI52: 2057 | AJ52: 2058 | AK52: =AJ52+1 -> 2059 | AL52: 2060 | AM52: 2061 | AN52: 2062 | AO52: 2063 | AP52: 2064 | AQ52: 2065 | AR52: 2066 | AS52: 2067 | AT52: 2068 | AU52: 2069 | AV52: 2070 | AW52: 2071 | AX52: 2072 | AY52: 2073 | AZ52: 2074 | BA52: 2075 | BB52: 2076 | BC52: 2077 | BD52: 2078 | BE52: 2079 | BF52: 2080 | BG52: 2081 | BH52: 2082 | BI52: 2083 | BJ52: 2084 | BK52: 2085 | BL52: 2086 | BM52: 2087 | BN52: 2088 | BO52: 2089 | BP52: 2090 | BQ52: 2091 | BR52: 2092
A53: Config | B53: 1 | C53: =IF(INDIRECT("Config"&B53&"_name")="","",INDIRECT("Config"&B53&"_name")) -> Flexibility under Provider 1 | D53: 0 | E53: 0 | F53: 0
A54: Config | B54: 2 | C54: Flexibility under [2]
A55: Config | B55: 3 | C55: Flexibility under [3]
A56: Config | B56: 4 | C56: Flexibility under [4]
A57: Config | B57: 5 | C57: Flexibility under [5]
A58: Config | B58: 6
A59: Config | B59: 7
A60: Config | B60: 8
A61: Config | B61: 9
A62: Config | B62: 10
C64: Days per year of availability required | D64: =Current_year -> 2026 | E64: =D64+1 -> 2027 | F64: 2028 | G64: 2029 | H64: 2030 | I64: 2031 | J64: 2032 | K64: 2033 | L64: 2034 | M64: 2035 | N64: 2036 | O64: 2037 | P64: 2038 | Q64: 2039 | R64: 2040 | S64: 2041 | T64: 2042 | U64: 2043 | V64: 2044 | W64: 2045 | X64: 2046 | Y64: 2047 | Z64: 2048 | AA64: 2049 | AB64: 2050 | AC64: 2051 | AD64: 2052 | AE64: 2053 | AF64: 2054 | AG64: 2055 | AH64: 2056 | AI64: 2057 | AJ64: 2058 | AK64: =AJ64+1 -> 2059 | AL64: 2060 | AM64: 2061 | AN64: 2062 | AO64: 2063 | AP64: 2064 | AQ64: 2065 | AR64: 2066 | AS64: 2067 | AT64: 2068 | AU64: 2069 | AV64: 2070 | AW64: 2071 | AX64: 2072 | AY64: 2073 | AZ64: 2074 | BA64: 2075 | BB64: 2076 | BC64: 2077 | BD64: 2078 | BE64: 2079 | BF64: 2080 | BG64: 2081 | BH64: 2082 | BI64: 2083 | BJ64: 2084 | BK64: 2085 | BL64: 2086 | BM64: 2087 | BN64: 2088 | BO64: 2089 | BP64: 2090 | BQ64: 2091 | BR64: 2092
A65: Config | B65: 1 | C65: =IF(INDIRECT("Config"&B65&"_name")="","",INDIRECT("Config"&B65&"_name")) -> Flexibility under Provider 1 | D65: =339/D53 ->  | E65: =1007/E53 ->  | F65: =1007/F53 -> 
A66: Config | B66: 2 | C66: Flexibility under [2]
A67: Config | B67: 3 | C67: Flexibility under [3]
A68: Config | B68: 4 | C68: Flexibility under [4]
A69: Config | B69: 5 | C69: Flexibility under [5]
A70: Config | B70: 6
A71: Config | B71: 7
A72: Config | B72: 8
A73: Config | B73: 9
A74: Config | B74: 10
B76: Utilisation Volumes
C77: Expected annual volume of utilisation dispatched (MWh) | D77: =Current_year -> 2026 | E77: =D77+1 -> 2027 | F77: 2028 | G77: 2029 | H77: 2030 | I77: 2031 | J77: 2032 | K77: 2033 | L77: 2034 | M77: 2035 | N77: 2036 | O77: 2037 | P77: 2038 | Q77: 2039 | R77: 2040 | S77: 2041 | T77: 2042 | U77: 2043 | V77: 2044 | W77: 2045 | X77: 2046 | Y77: 2047 | Z77: 2048 | AA77: 2049 | AB77: 2050 | AC77: 2051 | AD77: 2052 | AE77: 2053 | AF77: 2054 | AG77: 2055 | AH77: 2056 | AI77: 2057 | AJ77: 2058 | AK77: =AJ77+1 -> 2059 | AL77: 2060 | AM77: 2061 | AN77: 2062 | AO77: 2063 | AP77: 2064 | AQ77: 2065 | AR77: 2066 | AS77: 2067 | AT77: 2068 | AU77: 2069 | AV77: 2070 | AW77: 2071 | AX77: 2072 | AY77: 2073 | AZ77: 2074 | BA77: 2075 | BB77: 2076 | BC77: 2077 | BD77: 2078 | BE77: 2079 | BF77: 2080 | BG77: 2081 | BH77: 2082 | BI77: 2083 | BJ77: 2084 | BK77: 2085 | BL77: 2086 | BM77: 2087 | BN77: 2088 | BO77: 2089 | BP77: 2090 | BQ77: 2091 | BR77: 2092
A78: Config | B78: 1 | C78: =IF(INDIRECT("Config"&B78&"_name")="","",INDIRECT("Config"&B78&"_name")) -> Flexibility under Provider 1 | D78: =48*D41 -> 0 | E78: =100*E41 -> 67 | F78: =100*F41 -> 0
A79: Config | B79: 2 | C79: Flexibility under [2]
A80: Config | B80: 3 | C80: Flexibility under [3]
A81: Config | B81: 4 | C81: Flexibility under [4]
A82: Config | B82: 5 | C82: Flexibility under [5]
A83: Config | B83: 6
A84: Config | B84: 7
A85: Config | B85: 8
A86: Config | B86: 9
A87: Config | B87: 10
A90: end

Sheet Flex Costs Summary
B1: =MATCH("end",A:A,0) -> 72
A2: Flexibility Requirements
C4: Upfront Costs (incured regardless of strategy duration) (£/yr) | D4: =Current_year -> 2026 | E4: =D4+1 -> 2027 | F4: =E4+1 -> 2028 | G4: =F4+1 -> 2029 | H4: =G4+1 -> 2030 | I4: =H4+1 -> 2031 | J4: =I4+1 -> 2032 | K4: =J4+1 -> 2033 | L4: =K4+1 -> 2034 | M4: =L4+1 -> 2035 | N4: =M4+1 -> 2036 | O4: =N4+1 -> 2037 | P4: =O4+1 -> 2038 | Q4: =P4+1 -> 2039 | R4: =Q4+1 -> 2040 | S4: =R4+1 -> 2041 | T4: =S4+1 -> 2042 | U4: =T4+1 -> 2043 | V4: =U4+1 -> 2044 | W4: =V4+1 -> 2045 | X4: =W4+1 -> 2046 | Y4: =X4+1 -> 2047 | Z4: =Y4+1 -> 2048 | AA4: =Z4+1 -> 2049 | AB4: =AA4+1 -> 2050 | AC4: =AB4+1 -> 2051 | AD4: =AC4+1 -> 2052 | AE4: =AD4+1 -> 2053 | AF4: =AE4+1 -> 2054 | AG4: =AF4+1 -> 2055 | AH4: =AG4+1 -> 2056 | AI4: =AH4+1 -> 2057 | AJ4: =AI4+1 -> 2058 | AK4: =AJ4+1 -> 2059 | AL4: =AK4+1 -> 2060 | AM4: =AL4+1 -> 2061 | AN4: =AM4+1 -> 2062 | AO4: =AN4+1 -> 2063 | AP4: =AO4+1 -> 2064 | AQ4: =AP4+1 -> 2065 | AR4: =AQ4+1 -> 2066 | AS4: =AR4+1 -> 2067 | AT4: =AS4+1 -> 2068 | AU4: =AT4+1 -> 2069 | AV4: =AU4+1 -> 2070 | AW4: =AV4+1 -> 2071 | AX4: =AW4+1 -> 2072 | AY4: =AX4+1 -> 2073 | AZ4: =AY4+1 -> 2074 | BA4: =AZ4+1 -> 2075 | BB4: =BA4+1 -> 2076 | BC4: =BB4+1 -> 2077 | BD4: =BC4+1 -> 2078 | BE4: =BD4+1 -> 2079 | BF4: =BE4+1 -> 2080 | BG4: =BF4+1 -> 2081 | BH4: =BG4+1 -> 2082 | BI4: =BH4+1 -> 2083 | BJ4: =BI4+1 -> 2084 | BK4: =BJ4+1 -> 2085 | BL4: =BK4+1 -> 2086 | BM4: =BL4+1 -> 2087 | BN4: =BM4+1 -> 2088 | BO4: =BN4+1 -> 2089 | BP4: =BO4+1 -> 2090 | BQ4: =BP4+1 -> 2091 | BR4: =BQ4+1 -> 2092
A5: Config | B5: 1 | C5: =IF(INDIRECT("Config"&B5&"_name")="","",INDIRECT("Config"&B5&"_name")) -> Flexibility under Provider 1 | D5: =IF($C5="","",IF(flex_cost_input_type="Input all flex costs directly",'Flex Cost Inputs'!D6,'Flex Volume and Cost Inputs'!D16)) -> 0 | E5: =IF($C5="","",IF(flex_cost_input_type="Input all flex costs directly",'Flex Cost Inputs'!E6,'Flex Volume and Cost Inputs'!E16)) -> 0 | F5: =IF($C5="","",IF(flex_cost_input_type="Input all flex costs directly",'Flex Cost Inputs'!F6,'Flex Volume and Cost Inputs'!F16)) -> 0 | G5: =IF($C5="","",IF(flex_cost_input_type="Input all flex costs directly",'Flex Cost Inputs'!G6,'Flex Volume and Cost Inputs'!G16)) -> 0 | H5: =IF($C5="","",IF(flex_cost_input_type="Input all flex costs directly",'Flex Cost Inputs'!H6,'Flex Volume and Cost Inputs'!H16)) -> 0 | I5: =IF($C5="","",IF(flex_cost_input_type="Input all flex costs directly",'Flex Cost Inputs'!I6,'Flex Volume and Cost Inputs'!I16)) -> 0 | J5: =IF($C5="","",IF(flex_cost_input_type="Input all flex costs directly",'Flex Cost Inputs'!J6,'Flex Volume and Cost Inputs'!J16)) -> 0 | K5: =IF($C5="","",IF(flex_cost_input_type="Input all flex costs directly",'Flex Cost Inputs'!K6,'Flex Volume and Cost Inputs'!K16)) -> 0 | L5: =IF($C5="","",IF(flex_cost_input_type="Input all flex costs directly",'Flex Cost Inputs'!L6,'Flex Volume and Cost Inputs'!L16)) -> 0 | M5: =IF($C5="","",IF(flex_cost_input_type="Input all flex costs directly",'Flex Cost Inputs'!M6,'Flex Volume and Cost Inputs'!M16)) -> 0 | N5: =IF($C5="","",IF(flex_cost_input_type="Input all flex costs directly",'Flex Cost Inputs'!N6,'Flex Volume and Cost Inputs'!N16)) -> 0 | O5: =IF($C5="","",IF(flex_cost_input_type="Input all flex costs directly",'Flex Cost Inputs'!O6,'Flex Volume and Cost Inputs'!O16)) -> 0 | P5: =IF($C5="","",IF(flex_cost_input_type="Input all flex costs directly",'Flex Cost Inputs'!P6,'Flex Volume and Cost Inputs'!P16)) -> 0 | Q5: =IF($C5="","",IF(flex_cost_input_type="Input all flex costs directly",'Flex Cost Inputs'!Q6,'Flex Volume and Cost Inputs'!Q16)) -> 0 | R5: =IF($C5="","",IF(flex_cost_input_type="Input all flex costs directly",'Flex Cost Inputs'!R6,'Flex Volume and Cost Inputs'!R16)) -> 0 | S5: =IF($C5="","",IF(flex_cost_input_type="Input all flex costs directly",'Flex Cost Inputs'!S6,'Flex Volume and Cost Inputs'!S16)) -> 0 | T5: =IF($C5="","",IF(flex_cost_input_type="Input all flex costs directly",'Flex Cost Inputs'!T6,'Flex Volume and Cost Inputs'!T16)) -> 0 | U5: =IF($C5="","",IF(flex_cost_input_type="Input all flex costs directly",'Flex Cost Inputs'!U6,'Flex Volume and Cost Inputs'!U16)) -> 0 | V5: =IF($C5="","",IF(flex_cost_input_type="Input all flex costs directly",'Flex Cost Inputs'!V6,'Flex Volume and Cost Inputs'!V16)) -> 0 | W5: =IF($C5="","",IF(flex_cost_input_type="Input all flex costs directly",'Flex Cost Inputs'!W6,'Flex Volume and Cost Inputs'!W16)) -> 0 | X5: =IF($C5="","",IF(flex_cost_input_type="Input all flex costs directly",'Flex Cost Inputs'!X6,'Flex Volume and Cost Inputs'!X16)) -> 0 | Y5: =IF($C5="","",IF(flex_cost_input_type="Input all flex costs directly",'Flex Cost Inputs'!Y6,'Flex Volume and Cost Inputs'!Y16)) -> 0 | Z5: =IF($C5="","",IF(flex_cost_input_type="Input all flex costs directly",'Flex Cost Inputs'!Z6,'Flex Volume and Cost Inputs'!Z16)) -> 0 | AA5: =IF($C5="","",IF(flex_cost_input_type="Input all flex costs directly",'Flex Cost Inputs'!AA6,'Flex Volume and Cost Inputs'!AA16)) -> 0 | AB5: =IF($C5="","",IF(flex_cost_input_type="Input all flex costs directly",'Flex Cost Inputs'!AB6,'Flex Volume and Cost Inputs'!AB16)) -> 0 | AC5: =IF($C5="","",IF(flex_cost_input_type="Input all flex costs directly",'Flex Cost Inputs'!AC6,'Flex Volume and Cost Inputs'!AC16)) -> 0 | AD5: =IF($C5="","",IF(flex_cost_input_type="Input all flex costs directly",'Flex Cost Inputs'!AD6,'Flex Volume and Cost Inputs'!AD16)) -> 0 | AE5: =IF($C5="","",IF(flex_cost_input_type="Input all flex costs directly",'Flex Cost Inputs'!AE6,'Flex Volume and Cost Inputs'!AE16)) -> 0 | AF5: =IF($C5="","",IF(flex_cost_input_type="Input all flex costs directly",'Flex Cost Inputs'!AF6,'Flex Volume and Cost Inputs'!AF16)) -> 0 | AG5: =IF($C5="","",IF(flex_cost_input_type="Input all flex costs directly",'Flex Cost Inputs'!AG6,'Flex Volume and Cost Inputs'!AG16)) -> 0 | AH5: =IF($C5="","",IF(flex_cost_input_type="Input all flex costs directly",'Flex Cost Inputs'!AH6,'Flex Volume and Cost Inputs'!AH16)) -> 0 | AI5: =IF($C5="","",IF(flex_cost_input_type="Input all flex costs directly",'Flex Cost Inputs'!AI6,'Flex Volume and Cost Inputs'!AI16)) -> 0 | AJ5: =IF($C5="","",IF(flex_cost_input_type="Input all flex costs directly",'Flex Cost Inputs'!AJ6,'Flex Volume and Cost Inputs'!AJ16)) -> 0 | AK5: =IF($C5="","",IF(flex_cost_input_type="Input all flex costs directly",'Flex Cost Inputs'!AK6,'Flex Volume and Cost Inputs'!AK16)) -> 0 | AL5: =IF($C5="","",IF(flex_cost_input_type="Input all flex costs directly",'Flex Cost Inputs'!AL6,'Flex Volume and Cost Inputs'!AL16)) -> 0 | AM5: =IF($C5="","",IF(flex_cost_input_type="Input all flex costs directly",'Flex Cost Inputs'!AM6,'Flex Volume and Cost Inputs'!AM16)) -> 0 | AN5: =IF($C5="","",IF(flex_cost_input_type="Input all flex costs directly",'Flex Cost Inputs'!AN6,'Flex Volume and Cost Inputs'!AN16)) -> 0 | AO5: =IF($C5="","",IF(flex_cost_input_type="Input all flex costs directly",'Flex Cost Inputs'!AO6,'Flex Volume and Cost Inputs'!AO16)) -> 0 | AP5: =IF($C5="","",IF(flex_cost_input_type="Input all flex costs directly",'Flex Cost Inputs'!AP6,'Flex Volume and Cost Inputs'!AP16)) -> 0 | AQ5: =IF($C5="","",IF(flex_cost_input_type="Input all flex costs directly",'Flex Cost Inputs'!AQ6,'Flex Volume and Cost Inputs'!AQ16)) -> 0 | AR5: =IF($C5="","",IF(flex_cost_input_type="Input all flex costs directly",'Flex Cost Inputs'!AR6,'Flex Volume and Cost Inputs'!AR16)) -> 0 | AS5: =IF($C5="","",IF(flex_cost_input_type="Input all flex costs directly",'Flex Cost Inputs'!AS6,'Flex Volume and Cost Inputs'!AS16)) -> 0 | AT5: =IF($C5="","",IF(flex_cost_input_type="Input all flex costs directly",'Flex Cost Inputs'!AT6,'Flex Volume and Cost Inputs'!AT16)) -> 0 | AU5: =IF($C5="","",IF(flex_cost_input_type="Input all flex costs directly",'Flex Cost Inputs'!AU6,'Flex Volume and Cost Inputs'!AU16)) -> 0 | AV5: =IF($C5="","",IF(flex_cost_input_type="Input all flex costs directly",'Flex Cost Inputs'!AV6,'Flex Volume and Cost Inputs'!AV16)) -> 0 | AW5: =IF($C5="","",IF(flex_cost_input_type="Input all flex costs directly",'Flex Cost Inputs'!AW6,'Flex Volume and Cost Inputs'!AW16)) -> 0 | AX5: =IF($C5="","",IF(flex_cost_input_type="Input all flex costs directly",'Flex Cost Inputs'!AX6,'Flex Volume and Cost Inputs'!AX16)) -> 0 | AY5: =IF($C5="","",IF(flex_cost_input_type="Input all flex costs directly",'Flex Cost Inputs'!AY6,'Flex Volume and Cost Inputs'!AY16)) -> 0 | AZ5: =IF($C5="","",IF(flex_cost_input_type="Input all flex costs directly",'Flex Cost Inputs'!AZ6,'Flex Volume and Cost Inputs'!AZ16)) -> 0 | BA5: =IF($C5="","",IF(flex_cost_input_type="Input all flex costs directly",'Flex Cost Inputs'!BA6,'Flex Volume and Cost Inputs'!BA16)) -> 0 | BB5: =IF($C5="","",IF(flex_cost_input_type="Input all flex costs directly",'Flex Cost Inputs'!BB6,'Flex Volume and Cost Inputs'!BB16)) -> 0 | BC5: =IF($C5="","",IF(flex_cost_input_type="Input all flex costs directly",'Flex Cost Inputs'!BC6,'Flex Volume and Cost Inputs'!BC16)) -> 0 | BD5: =IF($C5="","",IF(flex_cost_input_type="Input all flex costs directly",'Flex Cost Inputs'!BD6,'Flex Volume and Cost Inputs'!BD16)) -> 0 | BE5: =IF($C5="","",IF(flex_cost_input_type="Input all flex costs directly",'Flex Cost Inputs'!BE6,'Flex Volume and Cost Inputs'!BE16)) -> 0 | BF5: =IF($C5="","",IF(flex_cost_input_type="Input all flex costs directly",'Flex Cost Inputs'!BF6,'Flex Volume and Cost Inputs'!BF16)) -> 0 | BG5: =IF($C5="","",IF(flex_cost_input_type="Input all flex costs directly",'Flex Cost Inputs'!BG6,'Flex Volume and Cost Inputs'!BG16)) -> 0 | BH5: =IF($C5="","",IF(flex_cost_input_type="Input all flex costs directly",'Flex Cost Inputs'!BH6,'Flex Volume and Cost Inputs'!BH16)) -> 0 | BI5: =IF($C5="","",IF(flex_cost_input_type="Input all flex costs directly",'Flex Cost Inputs'!BI6,'Flex Volume and Cost Inputs'!BI16)) -> 0 | BJ5: =IF($C5="","",IF(flex_cost_input_type="Input all flex costs directly",'Flex Cost Inputs'!BJ6,'Flex Volume and Cost Inputs'!BJ16)) -> 0 | BK5: =IF($C5="","",IF(flex_cost_input_type="Input all flex costs directly",'Flex Cost Inputs'!BK6,'Flex Volume and Cost Inputs'!BK16)) -> 0 | BL5: =IF($C5="","",IF(flex_cost_input_type="Input all flex costs directly",'Flex Cost Inputs'!BL6,'Flex Volume and Cost Inputs'!BL16)) -> 0 | BM5: =IF($C5="","",IF(flex_cost_input_type="Input all flex costs directly",'Flex Cost Inputs'!BM6,'Flex Volume and Cost Inputs'!BM16)) -> 0 | BN5: =IF($C5="","",IF(flex_cost_input_type="Input all flex costs directly",'Flex Cost Inputs'!BN6,'Flex Volume and Cost Inputs'!BN16)) -> 0 | BO5: =IF($C5="","",IF(flex_cost_input_type="Input all flex costs directly",'Flex Cost Inputs'!BO6,'Flex Volume and Cost Inputs'!BO16)) -> 0 | BP5: =IF($C5="","",IF(flex_cost_input_type="Input all flex costs directly",'Flex Cost Inputs'!BP6,'Flex Volume and Cost Inputs'!BP16)) -> 0 | BQ5: =IF($C5="","",IF(flex_cost_input_type="Input all flex costs directly",'Flex Cost Inputs'!BQ6,'Flex Volume and Cost Inputs'!BQ16)) -> 0 | BR5: =IF($C5="","",IF(flex_cost_input_type="Input all flex costs directly",'Flex Cost Inputs'!BR6,'Flex Volume and Cost Inputs'!BR16)) -> 0
A6: Config | B6: 2 | C6: Flexibility under [2] | D6: =IF($C6="","",IF(flex_cost_input_type="Input all flex costs directly",'Flex Cost Inputs'!D7,'Flex Volume and Cost Inputs'!D17)) -> 0 | E6: =IF($C6="","",IF(flex_cost_input_type="Input all flex costs directly",'Flex Cost Inputs'!E7,'Flex Volume and Cost Inputs'!E17)) -> 0 | F6: =IF($C6="","",IF(flex_cost_input_type="Input all flex costs directly",'Flex Cost Inputs'!F7,'Flex Volume and Cost Inputs'!F17)) -> 0 | G6: =IF($C6="","",IF(flex_cost_input_type="Input all flex costs directly",'Flex Cost Inputs'!G7,'Flex Volume and Cost Inputs'!G17)) -> 0 | H6: =IF($C6="","",IF(flex_cost_input_type="Input all flex costs directly",'Flex Cost Inputs'!H7,'Flex Volume and Cost Inputs'!H17)) -> 0 | I6: =IF($C6="","",IF(flex_cost_input_type="Input all flex costs directly",'Flex Cost Inputs'!I7,'Flex Volume and Cost Inputs'!I17)) -> 0 | J6: =IF($C6="","",IF(flex_cost_input_type="Input all flex costs directly",'Flex Cost Inputs'!J7,'Flex Volume and Cost Inputs'!J17)) -> 0 | K6: =IF($C6="","",IF(flex_cost_input_type="Input all flex costs directly",'Flex Cost Inputs'!K7,'Flex Volume and Cost Inputs'!K17)) -> 0 | L6: =IF($C6="","",IF(flex_cost_input_type="Input all flex costs directly",'Flex Cost Inputs'!L7,'Flex Volume and Cost Inputs'!L17)) -> 0 | M6: =IF($C6="","",IF(flex_cost_input_type="Input all flex costs directly",'Flex Cost Inputs'!M7,'Flex Volume and Cost Inputs'!M17)) -> 0 | N6: =IF($C6="","",IF(flex_cost_input_type="Input all flex costs directly",'Flex Cost Inputs'!N7,'Flex Volume and Cost Inputs'!N17)) -> 0 | O6: =IF($C6="","",IF(flex_cost_input_type="Input all flex costs directly",'Flex Cost Inputs'!O7,'Flex Volume and Cost Inputs'!O17)) -> 0 | P6: =IF($C6="","",IF(flex_cost_input_type="Input all flex costs directly",'Flex Cost Inputs'!P7,'Flex Volume and Cost Inputs'!P17)) -> 0 | Q6: =IF($C6="","",IF(flex_cost_input_type="Input all flex costs directly",'Flex Cost Inputs'!Q7,'Flex Volume and Cost Inputs'!Q17)) -> 0 | R6: =IF($C6="","",IF(flex_cost_input_type="Input all flex costs directly",'Flex Cost Inputs'!R7,'Flex Volume and Cost Inputs'!R17)) -> 0 | S6: =IF($C6="","",IF(flex_cost_input_type="Input all flex costs directly",'Flex Cost Inputs'!S7,'Flex Volume and Cost Inputs'!S17)) -> 0 | T6: =IF($C6="","",IF(flex_cost_input_type="Input all flex costs directly",'Flex Cost Inputs'!T7,'Flex Volume and Cost Inputs'!T17)) -> 0 | U6: =IF($C6="","",IF(flex_cost_input_type="Input all flex costs directly",'Flex Cost Inputs'!U7,'Flex Volume and Cost Inputs'!U17)) -> 0 | V6: =IF($C6="","",IF(flex_cost_input_type="Input all flex costs directly",'Flex Cost Inputs'!V7,'Flex Volume and Cost Inputs'!V17)) -> 0 | W6: =IF($C6="","",IF(flex_cost_input_type="Input all flex costs directly",'Flex Cost Inputs'!W7,'Flex Volume and Cost Inputs'!W17)) -> 0 | X6: =IF($C6="","",IF(flex_cost_input_type="Input all flex costs directly",'Flex Cost Inputs'!X7,'Flex Volume and Cost Inputs'!X17)) -> 0 | Y6: =IF($C6="","",IF(flex_cost_input_type="Input all flex costs directly",'Flex Cost Inputs'!Y7,'Flex Volume and Cost Inputs'!Y17)) -> 0 | Z6: =IF($C6="","",IF(flex_cost_input_type="Input all flex costs directly",'Flex Cost Inputs'!Z7,'Flex Volume and Cost Inputs'!Z17)) -> 0 | AA6: =IF($C6="","",IF(flex_cost_input_type="Input all flex costs directly",'Flex Cost Inputs'!AA7,'Flex Volume and Cost Inputs'!AA17)) -> 0 | AB6: =IF($C6="","",IF(flex_cost_input_type="Input all flex costs directly",'Flex Cost Inputs'!AB7,'Flex Volume and Cost Inputs'!AB17)) -> 0 | AC6: =IF($C6="","",IF(flex_cost_input_type="Input all flex costs directly",'Flex Cost Inputs'!AC7,'Flex Volume and Cost Inputs'!AC17)) -> 0 | AD6: =IF($C6="","",IF(flex_cost_input_type="Input all flex costs directly",'Flex Cost Inputs'!AD7,'Flex Volume and Cost Inputs'!AD17)) -> 0 | AE6: =IF($C6="","",IF(flex_cost_input_type="Input all flex costs directly",'Flex Cost Inputs'!AE7,'Flex Volume and Cost Inputs'!AE17)) -> 0 | AF6: =IF($C6="","",IF(flex_cost_input_type="Input all flex costs directly",'Flex Cost Inputs'!AF7,'Flex Volume and Cost Inputs'!AF17)) -> 0 | AG6: =IF($C6="","",IF(flex_cost_input_type="Input all flex costs directly",'Flex Cost Inputs'!AG7,'Flex Volume and Cost Inputs'!AG17)) -> 0 | AH6: =IF($C6="","",IF(flex_cost_input_type="Input all flex costs directly",'Flex Cost Inputs'!AH7,'Flex Volume and Cost Inputs'!AH17)) -> 0 | AI6: =IF($C6="","",IF(flex_cost_input_type="Input all flex costs directly",'Flex Cost Inputs'!AI7,'Flex Volume and Cost Inputs'!AI17)) -> 0 | AJ6: =IF($C6="","",IF(flex_cost_input_type="Input all flex costs directly",'Flex Cost Inputs'!AJ7,'Flex Volume and Cost Inputs'!AJ17)) -> 0 | AK6: =IF($C6="","",IF(flex_cost_input_type="Input all flex costs directly",'Flex Cost Inputs'!AK7,'Flex Volume and Cost Inputs'!AK17)) -> 0 | AL6: =IF($C6="","",IF(flex_cost_input_type="Input all flex costs directly",'Flex Cost Inputs'!AL7,'Flex Volume and Cost Inputs'!AL17)) -> 0 | AM6: =IF($C6="","",IF(flex_cost_input_type="Input all flex costs directly",'Flex Cost Inputs'!AM7,'Flex Volume and Cost Inputs'!AM17)) -> 0 | AN6: =IF($C6="","",IF(flex_cost_input_type="Input all flex costs directly",'Flex Cost Inputs'!AN7,'Flex Volume and Cost Inputs'!AN17)) -> 0 | AO6: =IF($C6="","",IF(flex_cost_input_type="Input all flex costs directly",'Flex Cost Inputs'!AO7,'Flex Volume and Cost Inputs'!AO17)) -> 0 | AP6: =IF($C6="","",IF(flex_cost_input_type="Input all flex costs directly",'Flex Cost Inputs'!AP7,'Flex Volume and Cost Inputs'!AP17)) -> 0 | AQ6: =IF($C6="","",IF(flex_cost_input_type="Input all flex costs directly",'Flex Cost Inputs'!AQ7,'Flex Volume and Cost Inputs'!AQ17)) -> 0 | AR6: =IF($C6="","",IF(flex_cost_input_type="Input all flex costs directly",'Flex Cost Inputs'!AR7,'Flex Volume and Cost Inputs'!AR17)) -> 0 | AS6: =IF($C6="","",IF(flex_cost_input_type="Input all flex costs directly",'Flex Cost Inputs'!AS7,'Flex Volume and Cost Inputs'!AS17)) -> 0 | AT6: =IF($C6="","",IF(flex_cost_input_type="Input all flex costs directly",'Flex Cost Inputs'!AT7,'Flex Volume and Cost Inputs'!AT17)) -> 0 | AU6: =IF($C6="","",IF(flex_cost_input_type="Input all flex costs directly",'Flex Cost Inputs'!AU7,'Flex Volume and Cost Inputs'!AU17)) -> 0 | AV6: =IF($C6="","",IF(flex_cost_input_type="Input all flex costs directly",'Flex Cost Inputs'!AV7,'Flex Volume and Cost Inputs'!AV17)) -> 0 | AW6: =IF($C6="","",IF(flex_cost_input_type="Input all flex costs directly",'Flex Cost Inputs'!AW7,'Flex Volume and Cost Inputs'!AW17)) -> 0 | AX6: =IF($C6="","",IF(flex_cost_input_type="Input all flex costs directly",'Flex Cost Inputs'!AX7,'Flex Volume and Cost Inputs'!AX17)) -> 0 | AY6: =IF($C6="","",IF(flex_cost_input_type="Input all flex costs directly",'Flex Cost Inputs'!AY7,'Flex Volume and Cost Inputs'!AY17)) -> 0 | AZ6: =IF($C6="","",IF(flex_cost_input_type="Input all flex costs directly",'Flex Cost Inputs'!AZ7,'Flex Volume and Cost Inputs'!AZ17)) -> 0 | BA6: =IF($C6="","",IF(flex_cost_input_type="Input all flex costs directly",'Flex Cost Inputs'!BA7,'Flex Volume and Cost Inputs'!BA17)) -> 0 | BB6: =IF($C6="","",IF(flex_cost_input_type="Input all flex costs directly",'Flex Cost Inputs'!BB7,'Flex Volume and Cost Inputs'!BB17)) -> 0 | BC6: =IF($C6="","",IF(flex_cost_input_type="Input all flex costs directly",'Flex Cost Inputs'!BC7,'Flex Volume and Cost Inputs'!BC17)) -> 0 | BD6: =IF($C6="","",IF(flex_cost_input_type="Input all flex costs directly",'Flex Cost Inputs'!BD7,'Flex Volume and Cost Inputs'!BD17)) -> 0 | BE6: =IF($C6="","",IF(flex_cost_input_type="Input all flex costs directly",'Flex Cost Inputs'!BE7,'Flex Volume and Cost Inputs'!BE17)) -> 0 | BF6: =IF($C6="","",IF(flex_cost_input_type="Input all flex costs directly",'Flex Cost Inputs'!BF7,'Flex Volume and Cost Inputs'!BF17)) -> 0 | BG6: =IF($C6="","",IF(flex_cost_input_type="Input all flex costs directly",'Flex Cost Inputs'!BG7,'Flex Volume and Cost Inputs'!BG17)) -> 0 | BH6: =IF($C6="","",IF(flex_cost_input_type="Input all flex costs directly",'Flex Cost Inputs'!BH7,'Flex Volume and Cost Inputs'!BH17)) -> 0 | BI6: =IF($C6="","",IF(flex_cost_input_type="Input all flex costs directly",'Flex Cost Inputs'!BI7,'Flex Volume and Cost Inputs'!BI17)) -> 0 | BJ6: =IF($C6="","",IF(flex_cost_input_type="Input all flex costs directly",'Flex Cost Inputs'!BJ7,'Flex Volume and Cost Inputs'!BJ17)) -> 0 | BK6: =IF($C6="","",IF(flex_cost_input_type="Input all flex costs directly",'Flex Cost Inputs'!BK7,'Flex Volume and Cost Inputs'!BK17)) -> 0 | BL6: =IF($C6="","",IF(flex_cost_input_type="Input all flex costs directly",'Flex Cost Inputs'!BL7,'Flex Volume and Cost Inputs'!BL17)) -> 0 | BM6: =IF($C6="","",IF(flex_cost_input_type="Input all flex costs directly",'Flex Cost Inputs'!BM7,'Flex Volume and Cost Inputs'!BM17)) -> 0 | BN6: =IF($C6="","",IF(flex_cost_input_type="Input all flex costs directly",'Flex Cost Inputs'!BN7,'Flex Volume and Cost Inputs'!BN17)) -> 0 | BO6: =IF($C6="","",IF(flex_cost_input_type="Input all flex costs directly",'Flex Cost Inputs'!BO7,'Flex Volume and Cost Inputs'!BO17)) -> 0 | BP6: =IF($C6="","",IF(flex_cost_input_type="Input all flex costs directly",'Flex Cost Inputs'!BP7,'Flex Volume and Cost Inputs'!BP17)) -> 0 | BQ6: =IF($C6="","",IF(flex_cost_input_type="Input all flex costs directly",'Flex Cost Inputs'!BQ7,'Flex Volume and Cost Inputs'!BQ17)) -> 0 | BR6: =IF($C6="","",IF(flex_cost_input_type="Input all flex costs directly",'Flex Cost Inputs'!BR7,'Flex Volume and Cost Inputs'!BR17)) -> 0
A7: Config | B7: 3 | C7: Flexibility under [3] | D7: =IF($C7="","",IF(flex_cost_input_type="Input all flex costs directly",'Flex Cost Inputs'!D8,'Flex Volume and Cost Inputs'!D18)) -> 0 | E7: =IF($C7="","",IF(flex_cost_input_type="Input all flex costs directly",'Flex Cost Inputs'!E8,'Flex Volume and Cost Inputs'!E18)) -> 0 | F7: =IF($C7="","",IF(flex_cost_input_type="Input all flex costs directly",'Flex Cost Inputs'!F8,'Flex Volume and Cost Inputs'!F18)) -> 0 | G7: =IF($C7="","",IF(flex_cost_input_type="Input all flex costs directly",'Flex Cost Inputs'!G8,'Flex Volume and Cost Inputs'!G18)) -> 0 | H7: =IF($C7="","",IF(flex_cost_input_type="Input all flex costs directly",'Flex Cost Inputs'!H8,'Flex Volume and Cost Inputs'!H18)) -> 0 | I7: =IF($C7="","",IF(flex_cost_input_type="Input all flex costs directly",'Flex Cost Inputs'!I8,'Flex Volume and Cost Inputs'!I18)) -> 0 | J7: =IF($C7="","",IF(flex_cost_input_type="Input all flex costs directly",'Flex Cost Inputs'!J8,'Flex Volume and Cost Inputs'!J18)) -> 0 | K7: =IF($C7="","",IF(flex_cost_input_type="Input all flex costs directly",'Flex Cost Inputs'!K8,'Flex Volume and Cost Inputs'!K18)) -> 0 | L7: =IF($C7="","",IF(flex_cost_input_type="Input all flex costs directly",'Flex Cost Inputs'!L8,'Flex Volume and Cost Inputs'!L18)) -> 0 | M7: =IF($C7="","",IF(flex_cost_input_type="Input all flex costs directly",'Flex Cost Inputs'!M8,'Flex Volume and Cost Inputs'!M18)) -> 0 | N7: =IF($C7="","",IF(flex_cost_input_type="Input all flex costs directly",'Flex Cost Inputs'!N8,'Flex Volume and Cost Inputs'!N18)) -> 0 | O7: =IF($C7="","",IF(flex_cost_input_type="Input all flex costs directly",'Flex Cost Inputs'!O8,'Flex Volume and Cost Inputs'!O18)) -> 0 | P7: =IF($C7="","",IF(flex_cost_input_type="Input all flex costs directly",'Flex Cost Inputs'!P8,'Flex Volume and Cost Inputs'!P18)) -> 0 | Q7: =IF($C7="","",IF(flex_cost_input_type="Input all flex costs directly",'Flex Cost Inputs'!Q8,'Flex Volume and Cost Inputs'!Q18)) -> 0 | R7: =IF($C7="","",IF(flex_cost_input_type="Input all flex costs directly",'Flex Cost Inputs'!R8,'Flex Volume and Cost Inputs'!R18)) -> 0 | S7: =IF($C7="","",IF(flex_cost_input_type="Input all flex costs directly",'Flex Cost Inputs'!S8,'Flex Volume and Cost Inputs'!S18)) -> 0 | T7: =IF($C7="","",IF(flex_cost_input_type="Input all flex costs directly",'Flex Cost Inputs'!T8,'Flex Volume and Cost Inputs'!T18)) -> 0 | U7: =IF($C7="","",IF(flex_cost_input_type="Input all flex costs directly",'Flex Cost Inputs'!U8,'Flex Volume and Cost Inputs'!U18)) -> 0 | V7: =IF($C7="","",IF(flex_cost_input_type="Input all flex costs directly",'Flex Cost Inputs'!V8,'Flex Volume and Cost Inputs'!V18)) -> 0 | W7: =IF($C7="","",IF(flex_cost_input_type="Input all flex costs directly",'Flex Cost Inputs'!W8,'Flex Volume and Cost Inputs'!W18)) -> 0 | X7: =IF($C7="","",IF(flex_cost_input_type="Input all flex costs directly",'Flex Cost Inputs'!X8,'Flex Volume and Cost Inputs'!X18)) -> 0 | Y7: =IF($C7="","",IF(flex_cost_input_type="Input all flex costs directly",'Flex Cost Inputs'!Y8,'Flex Volume and Cost Inputs'!Y18)) -> 0 | Z7: =IF($C7="","",IF(flex_cost_input_type="Input all flex costs directly",'Flex Cost Inputs'!Z8,'Flex Volume and Cost Inputs'!Z18)) -> 0 | AA7: =IF($C7="","",IF(flex_cost_input_type="Input all flex costs directly",'Flex Cost Inputs'!AA8,'Flex Volume and Cost Inputs'!AA18)) -> 0 | AB7: =IF($C7="","",IF(flex_cost_input_type="Input all flex costs directly",'Flex Cost Inputs'!AB8,'Flex Volume and Cost Inputs'!AB18)) -> 0 | AC7: =IF($C7="","",IF(flex_cost_input_type="Input all flex costs directly",'Flex Cost Inputs'!AC8,'Flex Volume and Cost Inputs'!AC18)) -> 0 | AD7: =IF($C7="","",IF(flex_cost_input_type="Input all flex costs directly",'Flex Cost Inputs'!AD8,'Flex Volume and Cost Inputs'!AD18)) -> 0 | AE7: =IF($C7="","",IF(flex_cost_input_type="Input all flex costs directly",'Flex Cost Inputs'!AE8,'Flex Volume and Cost Inputs'!AE18)) -> 0 | AF7: =IF($C7="","",IF(flex_cost_input_type="Input all flex costs directly",'Flex Cost Inputs'!AF8,'Flex Volume and Cost Inputs'!AF18)) -> 0 | AG7: =IF($C7="","",IF(flex_cost_input_type="Input all flex costs directly",'Flex Cost Inputs'!AG8,'Flex Volume and Cost Inputs'!AG18)) -> 0 | AH7: =IF($C7="","",IF(flex_cost_input_type="Input all flex costs directly",'Flex Cost Inputs'!AH8,'Flex Volume and Cost Inputs'!AH18)) -> 0 | AI7: =IF($C7="","",IF(flex_cost_input_type="Input all flex costs directly",'Flex Cost Inputs'!AI8,'Flex Volume and Cost Inputs'!AI18)) -> 0 | AJ7: =IF($C7="","",IF(flex_cost_input_type="Input all flex costs directly",'Flex Cost Inputs'!AJ8,'Flex Volume and Cost Inputs'!AJ18)) -> 0 | AK7: =IF($C7="","",IF(flex_cost_input_type="Input all flex costs directly",'Flex Cost Inputs'!AK8,'Flex Volume and Cost Inputs'!AK18)) -> 0 | AL7: =IF($C7="","",IF(flex_cost_input_type="Input all flex costs directly",'Flex Cost Inputs'!AL8,'Flex Volume and Cost Inputs'!AL18)) -> 0 | AM7: =IF($C7="","",IF(flex_cost_input_type="Input all flex costs directly",'Flex Cost Inputs'!AM8,'Flex Volume and Cost Inputs'!AM18)) -> 0 | AN7: =IF($C7="","",IF(flex_cost_input_type="Input all flex costs directly",'Flex Cost Inputs'!AN8,'Flex Volume and Cost Inputs'!AN18)) -> 0 | AO7: =IF($C7="","",IF(flex_cost_input_type="Input all flex costs directly",'Flex Cost Inputs'!AO8,'Flex Volume and Cost Inputs'!AO18)) -> 0 | AP7: =IF($C7="","",IF(flex_cost_input_type="Input all flex costs directly",'Flex Cost Inputs'!AP8,'Flex Volume and Cost Inputs'!AP18)) -> 0 | AQ7: =IF($C7="","",IF(flex_cost_input_type="Input all flex costs directly",'Flex Cost Inputs'!AQ8,'Flex Volume and Cost Inputs'!AQ18)) -> 0 | AR7: =IF($C7="","",IF(flex_cost_input_type="Input all flex costs directly",'Flex Cost Inputs'!AR8,'Flex Volume and Cost Inputs'!AR18)) -> 0 | AS7: =IF($C7="","",IF(flex_cost_input_type="Input all flex costs directly",'Flex Cost Inputs'!AS8,'Flex Volume and Cost Inputs'!AS18)) -> 0 | AT7: =IF($C7="","",IF(flex_cost_input_type="Input all flex costs directly",'Flex Cost Inputs'!AT8,'Flex Volume and Cost Inputs'!AT18)) -> 0 | AU7: =IF($C7="","",IF(flex_cost_input_type="Input all flex costs directly",'Flex Cost Inputs'!AU8,'Flex Volume and Cost Inputs'!AU18)) -> 0 | AV7: =IF($C7="","",IF(flex_cost_input_type="Input all flex costs directly",'Flex Cost Inputs'!AV8,'Flex Volume and Cost Inputs'!AV18)) -> 0 | AW7: =IF($C7="","",IF(flex_cost_input_type="Input all flex costs directly",'Flex Cost Inputs'!AW8,'Flex Volume and Cost Inputs'!AW18)) -> 0 | AX7: =IF($C7="","",IF(flex_cost_input_type="Input all flex costs directly",'Flex Cost Inputs'!AX8,'Flex Volume and Cost Inputs'!AX18)) -> 0 | AY7: =IF($C7="","",IF(flex_cost_input_type="Input all flex costs directly",'Flex Cost Inputs'!AY8,'Flex Volume and Cost Inputs'!AY18)) -> 0 | AZ7: =IF($C7="","",IF(flex_cost_input_type="Input all flex costs directly",'Flex Cost Inputs'!AZ8,'Flex Volume and Cost Inputs'!AZ18)) -> 0 | BA7: =IF($C7="","",IF(flex_cost_input_type="Input all flex costs directly",'Flex Cost Inputs'!BA8,'Flex Volume and Cost Inputs'!BA18)) -> 0 | BB7: =IF($C7="","",IF(flex_cost_input_type="Input all flex costs directly",'Flex Cost Inputs'!BB8,'Flex Volume and Cost Inputs'!BB18)) -> 0 | BC7: =IF($C7="","",IF(flex_cost_input_type="Input all flex costs directly",'Flex Cost Inputs'!BC8,'Flex Volume and Cost Inputs'!BC18)) -> 0 | BD7: =IF($C7="","",IF(flex_cost_input_type="Input all flex costs directly",'Flex Cost Inputs'!BD8,'Flex Volume and Cost Inputs'!BD18)) -> 0 | BE7: =IF($C7="","",IF(flex_cost_input_type="Input all flex costs directly",'Flex Cost Inputs'!BE8,'Flex Volume and Cost Inputs'!BE18)) -> 0 | BF7: =IF($C7="","",IF(flex_cost_input_type="Input all flex costs directly",'Flex Cost Inputs'!BF8,'Flex Volume and Cost Inputs'!BF18)) -> 0 | BG7: =IF($C7="","",IF(flex_cost_input_type="Input all flex costs directly",'Flex Cost Inputs'!BG8,'Flex Volume and Cost Inputs'!BG18)) -> 0 | BH7: =IF($C7="","",IF(flex_cost_input_type="Input all flex costs directly",'Flex Cost Inputs'!BH8,'Flex Volume and Cost Inputs'!BH18)) -> 0 | BI7: =IF($C7="","",IF(flex_cost_input_type="Input all flex costs directly",'Flex Cost Inputs'!BI8,'Flex Volume and Cost Inputs'!BI18)) -> 0 | BJ7: =IF($C7="","",IF(flex_cost_input_type="Input all flex costs directly",'Flex Cost Inputs'!BJ8,'Flex Volume and Cost Inputs'!BJ18)) -> 0 | BK7: =IF($C7="","",IF(flex_cost_input_type="Input all flex costs directly",'Flex Cost Inputs'!BK8,'Flex Volume and Cost Inputs'!BK18)) -> 0 | BL7: =IF($C7="","",IF(flex_cost_input_type="Input all flex costs directly",'Flex Cost Inputs'!BL8,'Flex Volume and Cost Inputs'!BL18)) -> 0 | BM7: =IF($C7="","",IF(flex_cost_input_type="Input all flex costs directly",'Flex Cost Inputs'!BM8,'Flex Volume and Cost Inputs'!BM18)) -> 0 | BN7: =IF($C7="","",IF(flex_cost_input_type="Input all flex costs directly",'Flex Cost Inputs'!BN8,'Flex Volume and Cost Inputs'!BN18)) -> 0 | BO7: =IF($C7="","",IF(flex_cost_input_type="Input all flex costs directly",'Flex Cost Inputs'!BO8,'Flex Volume and Cost Inputs'!BO18)) -> 0 | BP7: =IF($C7="","",IF(flex_cost_input_type="Input all flex costs directly",'Flex Cost Inputs'!BP8,'Flex Volume and Cost Inputs'!BP18)) -> 0 | BQ7: =IF($C7="","",IF(flex_cost_input_type="Input all flex costs directly",'Flex Cost Inputs'!BQ8,'Flex Volume and Cost Inputs'!BQ18)) -> 0 | BR7: =IF($C7="","",IF(flex_cost_input_type="Input all flex costs directly",'Flex Cost Inputs'!BR8,'Flex Volume and Cost Inputs'!BR18)) -> 0
A8: Config | B8: 4 | C8: Flexibility under [4] | D8: =IF($C8="","",IF(flex_cost_input_type="Input all flex costs directly",'Flex Cost Inputs'!D9,'Flex Volume and Cost Inputs'!D19)) -> 0 | E8: =IF($C8="","",IF(flex_cost_input_type="Input all flex costs directly",'Flex Cost Inputs'!E9,'Flex Volume and Cost Inputs'!E19)) -> 0 | F8: =IF($C8="","",IF(flex_cost_input_type="Input all flex costs directly",'Flex Cost Inputs'!F9,'Flex Volume and Cost Inputs'!F19)) -> 0 | G8: =IF($C8="","",IF(flex_cost_input_type="Input all flex costs directly",'Flex Cost Inputs'!G9,'Flex Volume and Cost Inputs'!G19)) -> 0 | H8: =IF($C8="","",IF(flex_cost_input_type="Input all flex costs directly",'Flex Cost Inputs'!H9,'Flex Volume and Cost Inputs'!H19)) -> 0 | I8: =IF($C8="","",IF(flex_cost_input_type="Input all flex costs directly",'Flex Cost Inputs'!I9,'Flex Volume and Cost Inputs'!I19)) -> 0 | J8: =IF($C8="","",IF(flex_cost_input_type="Input all flex costs directly",'Flex Cost Inputs'!J9,'Flex Volume and Cost Inputs'!J19)) -> 0 | K8: =IF($C8="","",IF(flex_cost_input_type="Input all flex costs directly",'Flex Cost Inputs'!K9,'Flex Volume and Cost Inputs'!K19)) -> 0 | L8: =IF($C8="","",IF(flex_cost_input_type="Input all flex costs directly",'Flex Cost Inputs'!L9,'Flex Volume and Cost Inputs'!L19)) -> 0 | M8: =IF($C8="","",IF(flex_cost_input_type="Input all flex costs directly",'Flex Cost Inputs'!M9,'Flex Volume and Cost Inputs'!M19)) -> 0 | N8: =IF($C8="","",IF(flex_cost_input_type="Input all flex costs directly",'Flex Cost Inputs'!N9,'Flex Volume and Cost Inputs'!N19)) -> 0 | O8: =IF($C8="","",IF(flex_cost_input_type="Input all flex costs directly",'Flex Cost Inputs'!O9,'Flex Volume and Cost Inputs'!O19)) -> 0 | P8: =IF($C8="","",IF(flex_cost_input_type="Input all flex costs directly",'Flex Cost Inputs'!P9,'Flex Volume and Cost Inputs'!P19)) -> 0 | Q8: =IF($C8="","",IF(flex_cost_input_type="Input all flex costs directly",'Flex Cost Inputs'!Q9,'Flex Volume and Cost Inputs'!Q19)) -> 0 | R8: =IF($C8="","",IF(flex_cost_input_type="Input all flex costs directly",'Flex Cost Inputs'!R9,'Flex Volume and Cost Inputs'!R19)) -> 0 | S8: =IF($C8="","",IF(flex_cost_input_type="Input all flex costs directly",'Flex Cost Inputs'!S9,'Flex Volume and Cost Inputs'!S19)) -> 0 | T8: =IF($C8="","",IF(flex_cost_input_type="Input all flex costs directly",'Flex Cost Inputs'!T9,'Flex Volume and Cost Inputs'!T19)) -> 0 | U8: =IF($C8="","",IF(flex_cost_input_type="Input all flex costs directly",'Flex Cost Inputs'!U9,'Flex Volume and Cost Inputs'!U19)) -> 0 | V8: =IF($C8="","",IF(flex_cost_input_type="Input all flex costs directly",'Flex Cost Inputs'!V9,'Flex Volume and Cost Inputs'!V19)) -> 0 | W8: =IF($C8="","",IF(flex_cost_input_type="Input all flex costs directly",'Flex Cost Inputs'!W9,'Flex Volume and Cost Inputs'!W19)) -> 0 | X8: =IF($C8="","",IF(flex_cost_input_type="Input all flex costs directly",'Flex Cost Inputs'!X9,'Flex Volume and Cost Inputs'!X19)) -> 0 | Y8: =IF($C8="","",IF(flex_cost_input_type="Input all flex costs directly",'Flex Cost Inputs'!Y9,'Flex Volume and Cost Inputs'!Y19)) -> 0 | Z8: =IF($C8="","",IF(flex_cost_input_type="Input all flex costs directly",'Flex Cost Inputs'!Z9,'Flex Volume and Cost Inputs'!Z19)) -> 0 | AA8: =IF($C8="","",IF(flex_cost_input_type="Input all flex costs directly",'Flex Cost Inputs'!AA9,'Flex Volume and Cost Inputs'!AA19)) -> 0 | AB8: =IF($C8="","",IF(flex_cost_input_type="Input all flex costs directly",'Flex Cost Inputs'!AB9,'Flex Volume and Cost Inputs'!AB19)) -> 0 | AC8: =IF($C8="","",IF(flex_cost_input_type="Input all flex costs directly",'Flex Cost Inputs'!AC9,'Flex Volume and Cost Inputs'!AC19)) -> 0 | AD8: =IF($C8="","",IF(flex_cost_input_type="Input all flex costs directly",'Flex Cost Inputs'!AD9,'Flex Volume and Cost Inputs'!AD19)) -> 0 | AE8: =IF($C8="","",IF(flex_cost_input_type="Input all flex costs directly",'Flex Cost Inputs'!AE9,'Flex Volume and Cost Inputs'!AE19)) -> 0 | AF8: =IF($C8="","",IF(flex_cost_input_type="Input all flex costs directly",'Flex Cost Inputs'!AF9,'Flex Volume and Cost Inputs'!AF19)) -> 0 | AG8: =IF($C8="","",IF(flex_cost_input_type="Input all flex costs directly",'Flex Cost Inputs'!AG9,'Flex Volume and Cost Inputs'!AG19)) -> 0 | AH8: =IF($C8="","",IF(flex_cost_input_type="Input all flex costs directly",'Flex Cost Inputs'!AH9,'Flex Volume and Cost Inputs'!AH19)) -> 0 | AI8: =IF($C8="","",IF(flex_cost_input_type="Input all flex costs directly",'Flex Cost Inputs'!AI9,'Flex Volume and Cost Inputs'!AI19)) -> 0 | AJ8: =IF($C8="","",IF(flex_cost_input_type="Input all flex costs directly",'Flex Cost Inputs'!AJ9,'Flex Volume and Cost Inputs'!AJ19)) -> 0 | AK8: =IF($C8="","",IF(flex_cost_input_type="Input all flex costs directly",'Flex Cost Inputs'!AK9,'Flex Volume and Cost Inputs'!AK19)) -> 0 | AL8: =IF($C8="","",IF(flex_cost_input_type="Input all flex costs directly",'Flex Cost Inputs'!AL9,'Flex Volume and Cost Inputs'!AL19)) -> 0 | AM8: =IF($C8="","",IF(flex_cost_input_type="Input all flex costs directly",'Flex Cost Inputs'!AM9,'Flex Volume and Cost Inputs'!AM19)) -> 0 | AN8: =IF($C8="","",IF(flex_cost_input_type="Input all flex costs directly",'Flex Cost Inputs'!AN9,'Flex Volume and Cost Inputs'!AN19)) -> 0 | AO8: =IF($C8="","",IF(flex_cost_input_type="Input all flex costs directly",'Flex Cost Inputs'!AO9,'Flex Volume and Cost Inputs'!AO19)) -> 0 | AP8: =IF($C8="","",IF(flex_cost_input_type="Input all flex costs directly",'Flex Cost Inputs'!AP9,'Flex Volume and Cost Inputs'!AP19)) -> 0 | AQ8: =IF($C8="","",IF(flex_cost_input_type="Input all flex costs directly",'Flex Cost Inputs'!AQ9,'Flex Volume and Cost Inputs'!AQ19)) -> 0 | AR8: =IF($C8="","",IF(flex_cost_input_type="Input all flex costs directly",'Flex Cost Inputs'!AR9,'Flex Volume and Cost Inputs'!AR19)) -> 0 | AS8: =IF($C8="","",IF(flex_cost_input_type="Input all flex costs directly",'Flex Cost Inputs'!AS9,'Flex Volume and Cost Inputs'!AS19)) -> 0 | AT8: =IF($C8="","",IF(flex_cost_input_type="Input all flex costs directly",'Flex Cost Inputs'!AT9,'Flex Volume and Cost Inputs'!AT19)) -> 0 | AU8: =IF($C8="","",IF(flex_cost_input_type="Input all flex costs directly",'Flex Cost Inputs'!AU9,'Flex Volume and Cost Inputs'!AU19)) -> 0 | AV8: =IF($C8="","",IF(flex_cost_input_type="Input all flex costs directly",'Flex Cost Inputs'!AV9,'Flex Volume and Cost Inputs'!AV19)) -> 0 | AW8: =IF($C8="","",IF(flex_cost_input_type="Input all flex costs directly",'Flex Cost Inputs'!AW9,'Flex Volume and Cost Inputs'!AW19)) -> 0 | AX8: =IF($C8="","",IF(flex_cost_input_type="Input all flex costs directly",'Flex Cost Inputs'!AX9,'Flex Volume and Cost Inputs'!AX19)) -> 0 | AY8: =IF($C8="","",IF(flex_cost_input_type="Input all flex costs directly",'Flex Cost Inputs'!AY9,'Flex Volume and Cost Inputs'!AY19)) -> 0 | AZ8: =IF($C8="","",IF(flex_cost_input_type="Input all flex costs directly",'Flex Cost Inputs'!AZ9,'Flex Volume and Cost Inputs'!AZ19)) -> 0 | BA8: =IF($C8="","",IF(flex_cost_input_type="Input all flex costs directly",'Flex Cost Inputs'!BA9,'Flex Volume and Cost Inputs'!BA19)) -> 0 | BB8: =IF($C8="","",IF(flex_cost_input_type="Input all flex costs directly",'Flex Cost Inputs'!BB9,'Flex Volume and Cost Inputs'!BB19)) -> 0 | BC8: =IF($C8="","",IF(flex_cost_input_type="Input all flex costs directly",'Flex Cost Inputs'!BC9,'Flex Volume and Cost Inputs'!BC19)) -> 0 | BD8: =IF($C8="","",IF(flex_cost_input_type="Input all flex costs directly",'Flex Cost Inputs'!BD9,'Flex Volume and Cost Inputs'!BD19)) -> 0 | BE8: =IF($C8="","",IF(flex_cost_input_type="Input all flex costs directly",'Flex Cost Inputs'!BE9,'Flex Volume and Cost Inputs'!BE19)) -> 0 | BF8: =IF($C8="","",IF(flex_cost_input_type="Input all flex costs directly",'Flex Cost Inputs'!BF9,'Flex Volume and Cost Inputs'!BF19)) -> 0 | BG8: =IF($C8="","",IF(flex_cost_input_type="Input all flex costs directly",'Flex Cost Inputs'!BG9,'Flex Volume and Cost Inputs'!BG19)) -> 0 | BH8: =IF($C8="","",IF(flex_cost_input_type="Input all flex costs directly",'Flex Cost Inputs'!BH9,'Flex Volume and Cost Inputs'!BH19)) -> 0 | BI8: =IF($C8="","",IF(flex_cost_input_type="Input all flex costs directly",'Flex Cost Inputs'!BI9,'Flex Volume and Cost Inputs'!BI19)) -> 0 | BJ8: =IF($C8="","",IF(flex_cost_input_type="Input all flex costs directly",'Flex Cost Inputs'!BJ9,'Flex Volume and Cost Inputs'!BJ19)) -> 0 | BK8: =IF($C8="","",IF(flex_cost_input_type="Input all flex costs directly",'Flex Cost Inputs'!BK9,'Flex Volume and Cost Inputs'!BK19)) -> 0 | BL8: =IF($C8="","",IF(flex_cost_input_type="Input all flex costs directly",'Flex Cost Inputs'!BL9,'Flex Volume and Cost Inputs'!BL19)) -> 0 | BM8: =IF($C8="","",IF(flex_cost_input_type="Input all flex costs directly",'Flex Cost Inputs'!BM9,'Flex Volume and Cost Inputs'!BM19)) -> 0 | BN8: =IF($C8="","",IF(flex_cost_input_type="Input all flex costs directly",'Flex Cost Inputs'!BN9,'Flex Volume and Cost Inputs'!BN19)) -> 0 | BO8: =IF($C8="","",IF(flex_cost_input_type="Input all flex costs directly",'Flex Cost Inputs'!BO9,'Flex Volume and Cost Inputs'!BO19)) -> 0 | BP8: =IF($C8="","",IF(flex_cost_input_type="Input all flex costs directly",'Flex Cost Inputs'!BP9,'Flex Volume and Cost Inputs'!BP19)) -> 0 | BQ8: =IF($C8="","",IF(flex_cost_input_type="Input all flex costs directly",'Flex Cost Inputs'!BQ9,'Flex Volume and Cost Inputs'!BQ19)) -> 0 | BR8: =IF($C8="","",IF(flex_cost_input_type="Input all flex costs directly",'Flex Cost Inputs'!BR9,'Flex Volume and Cost Inputs'!BR19)) -> 0
A9: Config | B9: 5 | C9: Flexibility under [5] | D9: =IF($C9="","",IF(flex_cost_input_type="Input all flex costs directly",'Flex Cost Inputs'!D10,'Flex Volume and Cost Inputs'!D20)) -> 0 | E9: =IF($C9="","",IF(flex_cost_input_type="Input all flex costs directly",'Flex Cost Inputs'!E10,'Flex Volume and Cost Inputs'!E20)) -> 0 | F9: =IF($C9="","",IF(flex_cost_input_type="Input all flex costs directly",'Flex Cost Inputs'!F10,'Flex Volume and Cost Inputs'!F20)) -> 0 | G9: =IF($C9="","",IF(flex_cost_input_type="Input all flex costs directly",'Flex Cost Inputs'!G10,'Flex Volume and Cost Inputs'!G20)) -> 0 | H9: =IF($C9="","",IF(flex_cost_input_type="Input all flex costs directly",'Flex Cost Inputs'!H10,'Flex Volume and Cost Inputs'!H20)) -> 0 | I9: =IF($C9="","",IF(flex_cost_input_type="Input all flex costs directly",'Flex Cost Inputs'!I10,'Flex Volume and Cost Inputs'!I20)) -> 0 | J9: =IF($C9="","",IF(flex_cost_input_type="Input all flex costs directly",'Flex Cost Inputs'!J10,'Flex Volume and Cost Inputs'!J20)) -> 0 | K9: =IF($C9="","",IF(flex_cost_input_type="Input all flex costs directly",'Flex Cost Inputs'!K10,'Flex Volume and Cost Inputs'!K20)) -> 0 | L9: =IF($C9="","",IF(flex_cost_input_type="Input all flex costs directly",'Flex Cost Inputs'!L10,'Flex Volume and Cost Inputs'!L20)) -> 0 | M9: =IF($C9="","",IF(flex_cost_input_type="Input all flex costs directly",'Flex Cost Inputs'!M10,'Flex Volume and Cost Inputs'!M20)) -> 0 | N9: =IF($C9="","",IF(flex_cost_input_type="Input all flex costs directly",'Flex Cost Inputs'!N10,'Flex Volume and Cost Inputs'!N20)) -> 0 | O9: =IF($C9="","",IF(flex_cost_input_type="Input all flex costs directly",'Flex Cost Inputs'!O10,'Flex Volume and Cost Inputs'!O20)) -> 0 | P9: =IF($C9="","",IF(flex_cost_input_type="Input all flex costs directly",'Flex Cost Inputs'!P10,'Flex Volume and Cost Inputs'!P20)) -> 0 | Q9: =IF($C9="","",IF(flex_cost_input_type="Input all flex costs directly",'Flex Cost Inputs'!Q10,'Flex Volume and Cost Inputs'!Q20)) -> 0 | R9: =IF($C9="","",IF(flex_cost_input_type="Input all flex costs directly",'Flex Cost Inputs'!R10,'Flex Volume and Cost Inputs'!R20)) -> 0 | S9: =IF($C9="","",IF(flex_cost_input_type="Input all flex costs directly",'Flex Cost Inputs'!S10,'Flex Volume and Cost Inputs'!S20)) -> 0 | T9: =IF($C9="","",IF(flex_cost_input_type="Input all flex costs directly",'Flex Cost Inputs'!T10,'Flex Volume and Cost Inputs'!T20)) -> 0 | U9: =IF($C9="","",IF(flex_cost_input_type="Input all flex costs directly",'Flex Cost Inputs'!U10,'Flex Volume and Cost Inputs'!U20)) -> 0 | V9: =IF($C9="","",IF(flex_cost_input_type="Input all flex costs directly",'Flex Cost Inputs'!V10,'Flex Volume and Cost Inputs'!V20)) -> 0 | W9: =IF($C9="","",IF(flex_cost_input_type="Input all flex costs directly",'Flex Cost Inputs'!W10,'Flex Volume and Cost Inputs'!W20)) -> 0 | X9: =IF($C9="","",IF(flex_cost_input_type="Input all flex costs directly",'Flex Cost Inputs'!X10,'Flex Volume and Cost Inputs'!X20)) -> 0 | Y9: =IF($C9="","",IF(flex_cost_input_type="Input all flex costs directly",'Flex Cost Inputs'!Y10,'Flex Volume and Cost Inputs'!Y20)) -> 0 | Z9: =IF($C9="","",IF(flex_cost_input_type="Input all flex costs directly",'Flex Cost Inputs'!Z10,'Flex Volume and Cost Inputs'!Z20)) -> 0 | AA9: =IF($C9="","",IF(flex_cost_input_type="Input all flex costs directly",'Flex Cost Inputs'!AA10,'Flex Volume and Cost Inputs'!AA20)) -> 0 | AB9: =IF($C9="","",IF(flex_cost_input_type="Input all flex costs directly",'Flex Cost Inputs'!AB10,'Flex Volume and Cost Inputs'!AB20)) -> 0 | AC9: =IF($C9="","",IF(flex_cost_input_type="Input all flex costs directly",'Flex Cost Inputs'!AC10,'Flex Volume and Cost Inputs'!AC20)) -> 0 | AD9: =IF($C9="","",IF(flex_cost_input_type="Input all flex costs directly",'Flex Cost Inputs'!AD10,'Flex Volume and Cost Inputs'!AD20)) -> 0 | AE9: =IF($C9="","",IF(flex_cost_input_type="Input all flex costs directly",'Flex Cost Inputs'!AE10,'Flex Volume and Cost Inputs'!AE20)) -> 0 | AF9: =IF($C9="","",IF(flex_cost_input_type="Input all flex costs directly",'Flex Cost Inputs'!AF10,'Flex Volume and Cost Inputs'!AF20)) -> 0 | AG9: =IF($C9="","",IF(flex_cost_input_type="Input all flex costs directly",'Flex Cost Inputs'!AG10,'Flex Volume and Cost Inputs'!AG20)) -> 0 | AH9: =IF($C9="","",IF(flex_cost_input_type="Input all flex costs directly",'Flex Cost Inputs'!AH10,'Flex Volume and Cost Inputs'!AH20)) -> 0 | AI9: =IF($C9="","",IF(flex_cost_input_type="Input all flex costs directly",'Flex Cost Inputs'!AI10,'Flex Volume and Cost Inputs'!AI20)) -> 0 | AJ9: =IF($C9="","",IF(flex_cost_input_type="Input all flex costs directly",'Flex Cost Inputs'!AJ10,'Flex Volume and Cost Inputs'!AJ20)) -> 0 | AK9: =IF($C9="","",IF(flex_cost_input_type="Input all flex costs directly",'Flex Cost Inputs'!AK10,'Flex Volume and Cost Inputs'!AK20)) -> 0 | AL9: =IF($C9="","",IF(flex_cost_input_type="Input all flex costs directly",'Flex Cost Inputs'!AL10,'Flex Volume and Cost Inputs'!AL20)) -> 0 | AM9: =IF($C9="","",IF(flex_cost_input_type="Input all flex costs directly",'Flex Cost Inputs'!AM10,'Flex Volume and Cost Inputs'!AM20)) -> 0 | AN9: =IF($C9="","",IF(flex_cost_input_type="Input all flex costs directly",'Flex Cost Inputs'!AN10,'Flex Volume and Cost Inputs'!AN20)) -> 0 | AO9: =IF($C9="","",IF(flex_cost_input_type="Input all flex costs directly",'Flex Cost Inputs'!AO10,'Flex Volume and Cost Inputs'!AO20)) -> 0 | AP9: =IF($C9="","",IF(flex_cost_input_type="Input all flex costs directly",'Flex Cost Inputs'!AP10,'Flex Volume and Cost Inputs'!AP20)) -> 0 | AQ9: =IF($C9="","",IF(flex_cost_input_type="Input all flex costs directly",'Flex Cost Inputs'!AQ10,'Flex Volume and Cost Inputs'!AQ20)) -> 0 | AR9: =IF($C9="","",IF(flex_cost_input_type="Input all flex costs directly",'Flex Cost Inputs'!AR10,'Flex Volume and Cost Inputs'!AR20)) -> 0 | AS9: =IF($C9="","",IF(flex_cost_input_type="Input all flex costs directly",'Flex Cost Inputs'!AS10,'Flex Volume and Cost Inputs'!AS20)) -> 0 | AT9: =IF($C9="","",IF(flex_cost_input_type="Input all flex costs directly",'Flex Cost Inputs'!AT10,'Flex Volume and Cost Inputs'!AT20)) -> 0 | AU9: =IF($C9="","",IF(flex_cost_input_type="Input all flex costs directly",'Flex Cost Inputs'!AU10,'Flex Volume and Cost Inputs'!AU20)) -> 0 | AV9: =IF($C9="","",IF(flex_cost_input_type="Input all flex costs directly",'Flex Cost Inputs'!AV10,'Flex Volume and Cost Inputs'!AV20)) -> 0 | AW9: =IF($C9="","",IF(flex_cost_input_type="Input all flex costs directly",'Flex Cost Inputs'!AW10,'Flex Volume and Cost Inputs'!AW20)) -> 0 | AX9: =IF($C9="","",IF(flex_cost_input_type="Input all flex costs directly",'Flex Cost Inputs'!AX10,'Flex Volume and Cost Inputs'!AX20)) -> 0 | AY9: =IF($C9="","",IF(flex_cost_input_type="Input all flex costs directly",'Flex Cost Inputs'!AY10,'Flex Volume and Cost Inputs'!AY20)) -> 0 | AZ9: =IF($C9="","",IF(flex_cost_input_type="Input all flex costs directly",'Flex Cost Inputs'!AZ10,'Flex Volume and Cost Inputs'!AZ20)) -> 0 | BA9: =IF($C9="","",IF(flex_cost_input_type="Input all flex costs directly",'Flex Cost Inputs'!BA10,'Flex Volume and Cost Inputs'!BA20)) -> 0 | BB9: =IF($C9="","",IF(flex_cost_input_type="Input all flex costs directly",'Flex Cost Inputs'!BB10,'Flex Volume and Cost Inputs'!BB20)) -> 0 | BC9: =IF($C9="","",IF(flex_cost_input_type="Input all flex costs directly",'Flex Cost Inputs'!BC10,'Flex Volume and Cost Inputs'!BC20)) -> 0 | BD9: =IF($C9="","",IF(flex_cost_input_type="Input all flex costs directly",'Flex Cost Inputs'!BD10,'Flex Volume and Cost Inputs'!BD20)) -> 0 | BE9: =IF($C9="","",IF(flex_cost_input_type="Input all flex costs directly",'Flex Cost Inputs'!BE10,'Flex Volume and Cost Inputs'!BE20)) -> 0 | BF9: =IF($C9="","",IF(flex_cost_input_type="Input all flex costs directly",'Flex Cost Inputs'!BF10,'Flex Volume and Cost Inputs'!BF20)) -> 0 | BG9: =IF($C9="","",IF(flex_cost_input_type="Input all flex costs directly",'Flex Cost Inputs'!BG10,'Flex Volume and Cost Inputs'!BG20)) -> 0 | BH9: =IF($C9="","",IF(flex_cost_input_type="Input all flex costs directly",'Flex Cost Inputs'!BH10,'Flex Volume and Cost Inputs'!BH20)) -> 0 | BI9: =IF($C9="","",IF(flex_cost_input_type="Input all flex costs directly",'Flex Cost Inputs'!BI10,'Flex Volume and Cost Inputs'!BI20)) -> 0 | BJ9: =IF($C9="","",IF(flex_cost_input_type="Input all flex costs directly",'Flex Cost Inputs'!BJ10,'Flex Volume and Cost Inputs'!BJ20)) -> 0 | BK9: =IF($C9="","",IF(flex_cost_input_type="Input all flex costs directly",'Flex Cost Inputs'!BK10,'Flex Volume and Cost Inputs'!BK20)) -> 0 | BL9: =IF($C9="","",IF(flex_cost_input_type="Input all flex costs directly",'Flex Cost Inputs'!BL10,'Flex Volume and Cost Inputs'!BL20)) -> 0 | BM9: =IF($C9="","",IF(flex_cost_input_type="Input all flex costs directly",'Flex Cost Inputs'!BM10,'Flex Volume and Cost Inputs'!BM20)) -> 0 | BN9: =IF($C9="","",IF(flex_cost_input_type="Input all flex costs directly",'Flex Cost Inputs'!BN10,'Flex Volume and Cost Inputs'!BN20)) -> 0 | BO9: =IF($C9="","",IF(flex_cost_input_type="Input all flex costs directly",'Flex Cost Inputs'!BO10,'Flex Volume and Cost Inputs'!BO20)) -> 0 | BP9: =IF($C9="","",IF(flex_cost_input_type="Input all flex costs directly",'Flex Cost Inputs'!BP10,'Flex Volume and Cost Inputs'!BP20)) -> 0 | BQ9: =IF($C9="","",IF(flex_cost_input_type="Input all flex costs directly",'Flex Cost Inputs'!BQ10,'Flex Volume and Cost Inputs'!BQ20)) -> 0 | BR9: =IF($C9="","",IF(flex_cost_input_type="Input all flex costs directly",'Flex Cost Inputs'!BR10,'Flex Volume and Cost Inputs'!BR20)) -> 0
A10: Config | B10: 6 | D10: =IF($C10="","",IF(flex_cost_input_type="Input all flex costs directly",'Flex Cost Inputs'!D11,'Flex Volume and Cost Inputs'!D21)) ->  | E10: =IF($C10="","",IF(flex_cost_input_type="Input all flex costs directly",'Flex Cost Inputs'!E11,'Flex Volume and Cost Inputs'!E21)) ->  | F10: =IF($C10="","",IF(flex_cost_input_type="Input all flex costs directly",'Flex Cost Inputs'!F11,'Flex Volume and Cost Inputs'!F21)) ->  | G10: =IF($C10="","",IF(flex_cost_input_type="Input all flex costs directly",'Flex Cost Inputs'!G11,'Flex Volume and Cost Inputs'!G21)) ->  | H10: =IF($C10="","",IF(flex_cost_input_type="Input all flex costs directly",'Flex Cost Inputs'!H11,'Flex Volume and Cost Inputs'!H21)) ->  | I10: =IF($C10="","",IF(flex_cost_input_type="Input all flex costs directly",'Flex Cost Inputs'!I11,'Flex Volume and Cost Inputs'!I21)) ->  | J10: =IF($C10="","",IF(flex_cost_input_type="Input all flex costs directly",'Flex Cost Inputs'!J11,'Flex Volume and Cost Inputs'!J21)) ->  | K10: =IF($C10="","",IF(flex_cost_input_type="Input all flex costs directly",'Flex Cost Inputs'!K11,'Flex Volume and Cost Inputs'!K21)) ->  | L10: =IF($C10="","",IF(flex_cost_input_type="Input all flex costs directly",'Flex Cost Inputs'!L11,'Flex Volume and Cost Inputs'!L21)) ->  | M10: =IF($C10="","",IF(flex_cost_input_type="Input all flex costs directly",'Flex Cost Inputs'!M11,'Flex Volume and Cost Inputs'!M21)) ->  | N10: =IF($C10="","",IF(flex_cost_input_type="Input all flex costs directly",'Flex Cost Inputs'!N11,'Flex Volume and Cost Inputs'!N21)) ->  | O10: =IF($C10="","",IF(flex_cost_input_type="Input all flex costs directly",'Flex Cost Inputs'!O11,'Flex Volume and Cost Inputs'!O21)) ->  | P10: =IF($C10="","",IF(flex_cost_input_type="Input all flex costs directly",'Flex Cost Inputs'!P11,'Flex Volume and Cost Inputs'!P21)) ->  | Q10: =IF($C10="","",IF(flex_cost_input_type="Input all flex costs directly",'Flex Cost Inputs'!Q11,'Flex Volume and Cost Inputs'!Q21)) ->  | R10: =IF($C10="","",IF(flex_cost_input_type="Input all flex costs directly",'Flex Cost Inputs'!R11,'Flex Volume and Cost Inputs'!R21)) ->  | S10: =IF($C10="","",IF(flex_cost_input_type="Input all flex costs directly",'Flex Cost Inputs'!S11,'Flex Volume and Cost Inputs'!S21)) ->  | T10: =IF($C10="","",IF(flex_cost_input_type="Input all flex costs directly",'Flex Cost Inputs'!T11,'Flex Volume and Cost Inputs'!T21)) ->  | U10: =IF($C10="","",IF(flex_cost_input_type="Input all flex costs directly",'Flex Cost Inputs'!U11,'Flex Volume and Cost Inputs'!U21)) ->  | V10: =IF($C10="","",IF(flex_cost_input_type="Input all flex costs directly",'Flex Cost Inputs'!V11,'Flex Volume and Cost Inputs'!V21)) ->  | W10: =IF($C10="","",IF(flex_cost_input_type="Input all flex costs directly",'Flex Cost Inputs'!W11,'Flex Volume and Cost Inputs'!W21)) ->  | X10: =IF($C10="","",IF(flex_cost_input_type="Input all flex costs directly",'Flex Cost Inputs'!X11,'Flex Volume and Cost Inputs'!X21)) ->  | Y10: =IF($C10="","",IF(flex_cost_input_type="Input all flex costs directly",'Flex Cost Inputs'!Y11,'Flex Volume and Cost Inputs'!Y21)) ->  | Z10: =IF($C10="","",IF(flex_cost_input_type="Input all flex costs directly",'Flex Cost Inputs'!Z11,'Flex Volume and Cost Inputs'!Z21)) ->  | AA10: =IF($C10="","",IF(flex_cost_input_type="Input all flex costs directly",'Flex Cost Inputs'!AA11,'Flex Volume and Cost Inputs'!AA21)) ->  | AB10: =IF($C10="","",IF(flex_cost_input_type="Input all flex costs directly",'Flex Cost Inputs'!AB11,'Flex Volume and Cost Inputs'!AB21)) ->  | AC10: =IF($C10="","",IF(flex_cost_input_type="Input all flex costs directly",'Flex Cost Inputs'!AC11,'Flex Volume and Cost Inputs'!AC21)) ->  | AD10: =IF($C10="","",IF(flex_cost_input_type="Input all flex costs directly",'Flex Cost Inputs'!AD11,'Flex Volume and Cost Inputs'!AD21)) ->  | AE10: =IF($C10="","",IF(flex_cost_input_type="Input all flex costs directly",'Flex Cost Inputs'!AE11,'Flex Volume and Cost Inputs'!AE21)) ->  | AF10: =IF($C10="","",IF(flex_cost_input_type="Input all flex costs directly",'Flex Cost Inputs'!AF11,'Flex Volume and Cost Inputs'!AF21)) ->  | AG10: =IF($C10="","",IF(flex_cost_input_type="Input all flex costs directly",'Flex Cost Inputs'!AG11,'Flex Volume and Cost Inputs'!AG21)) ->  | AH10: =IF($C10="","",IF(flex_cost_input_type="Input all flex costs directly",'Flex Cost Inputs'!AH11,'Flex Volume and Cost Inputs'!AH21)) ->  | AI10: =IF($C10="","",IF(flex_cost_input_type="Input all flex costs directly",'Flex Cost Inputs'!AI11,'Flex Volume and Cost Inputs'!AI21)) ->  | AJ10: =IF($C10="","",IF(flex_cost_input_type="Input all flex costs directly",'Flex Cost Inputs'!AJ11,'Flex Volume and Cost Inputs'!AJ21)) ->  | AK10: =IF($C10="","",IF(flex_cost_input_type="Input all flex costs directly",'Flex Cost Inputs'!AK11,'Flex Volume and Cost Inputs'!AK21)) ->  | AL10: =IF($C10="","",IF(flex_cost_input_type="Input all flex costs directly",'Flex Cost Inputs'!AL11,'Flex Volume and Cost Inputs'!AL21)) ->  | AM10: =IF($C10="","",IF(flex_cost_input_type="Input all flex costs directly",'Flex Cost Inputs'!AM11,'Flex Volume and Cost Inputs'!AM21)) ->  | AN10: =IF($C10="","",IF(flex_cost_input_type="Input all flex costs directly",'Flex Cost Inputs'!AN11,'Flex Volume and Cost Inputs'!AN21)) ->  | AO10: =IF($C10="","",IF(flex_cost_input_type="Input all flex costs directly",'Flex Cost Inputs'!AO11,'Flex Volume and Cost Inputs'!AO21)) ->  | AP10: =IF($C10="","",IF(flex_cost_input_type="Input all flex costs directly",'Flex Cost Inputs'!AP11,'Flex Volume and Cost Inputs'!AP21)) ->  | AQ10: =IF($C10="","",IF(flex_cost_input_type="Input all flex costs directly",'Flex Cost Inputs'!AQ11,'Flex Volume and Cost Inputs'!AQ21)) ->  | AR10: =IF($C10="","",IF(flex_cost_input_type="Input all flex costs directly",'Flex Cost Inputs'!AR11,'Flex Volume and Cost Inputs'!AR21)) ->  | AS10: =IF($C10="","",IF(flex_cost_input_type="Input all flex costs directly",'Flex Cost Inputs'!AS11,'Flex Volume and Cost Inputs'!AS21)) ->  | AT10: =IF($C10="","",IF(flex_cost_input_type="Input all flex costs directly",'Flex Cost Inputs'!AT11,'Flex Volume and Cost Inputs'!AT21)) ->  | AU10: =IF($C10="","",IF(flex_cost_input_type="Input all flex costs directly",'Flex Cost Inputs'!AU11,'Flex Volume and Cost Inputs'!AU21)) ->  | AV10: =IF($C10="","",IF(flex_cost_input_type="Input all flex costs directly",'Flex Cost Inputs'!AV11,'Flex Volume and Cost Inputs'!AV21)) ->  | AW10: =IF($C10="","",IF(flex_cost_input_type="Input all flex costs directly",'Flex Cost Inputs'!AW11,'Flex Volume and Cost Inputs'!AW21)) ->  | AX10: =IF($C10="","",IF(flex_cost_input_type="Input all flex costs directly",'Flex Cost Inputs'!AX11,'Flex Volume and Cost Inputs'!AX21)) ->  | AY10: =IF($C10="","",IF(flex_cost_input_type="Input all flex costs directly",'Flex Cost Inputs'!AY11,'Flex Volume and Cost Inputs'!AY21)) ->  | AZ10: =IF($C10="","",IF(flex_cost_input_type="Input all flex costs directly",'Flex Cost Inputs'!AZ11,'Flex Volume and Cost Inputs'!AZ21)) ->  | BA10: =IF($C10="","",IF(flex_cost_input_type="Input all flex costs directly",'Flex Cost Inputs'!BA11,'Flex Volume and Cost Inputs'!BA21)) ->  | BB10: =IF($C10="","",IF(flex_cost_input_type="Input all flex costs directly",'Flex Cost Inputs'!BB11,'Flex Volume and Cost Inputs'!BB21)) ->  | BC10: =IF($C10="","",IF(flex_cost_input_type="Input all flex costs directly",'Flex Cost Inputs'!BC11,'Flex Volume and Cost Inputs'!BC21)) ->  | BD10: =IF($C10="","",IF(flex_cost_input_type="Input all flex costs directly",'Flex Cost Inputs'!BD11,'Flex Volume and Cost Inputs'!BD21)) ->  | BE10: =IF($C10="","",IF(flex_cost_input_type="Input all flex costs directly",'Flex Cost Inputs'!BE11,'Flex Volume and Cost Inputs'!BE21)) ->  | BF10: =IF($C10="","",IF(flex_cost_input_type="Input all flex costs directly",'Flex Cost Inputs'!BF11,'Flex Volume and Cost Inputs'!BF21)) ->  | BG10: =IF($C10="","",IF(flex_cost_input_type="Input all flex costs directly",'Flex Cost Inputs'!BG11,'Flex Volume and Cost Inputs'!BG21)) ->  | BH10: =IF($C10="","",IF(flex_cost_input_type="Input all flex costs directly",'Flex Cost Inputs'!BH11,'Flex Volume and Cost Inputs'!BH21)) ->  | BI10: =IF($C10="","",IF(flex_cost_input_type="Input all flex costs directly",'Flex Cost Inputs'!BI11,'Flex Volume and Cost Inputs'!BI21)) ->  | BJ10: =IF($C10="","",IF(flex_cost_input_type="Input all flex costs directly",'Flex Cost Inputs'!BJ11,'Flex Volume and Cost Inputs'!BJ21)) ->  | BK10: =IF($C10="","",IF(flex_cost_input_type="Input all flex costs directly",'Flex Cost Inputs'!BK11,'Flex Volume and Cost Inputs'!BK21)) ->  | BL10: =IF($C10="","",IF(flex_cost_input_type="Input all flex costs directly",'Flex Cost Inputs'!BL11,'Flex Volume and Cost Inputs'!BL21)) ->  | BM10: =IF($C10="","",IF(flex_cost_input_type="Input all flex costs directly",'Flex Cost Inputs'!BM11,'Flex Volume and Cost Inputs'!BM21)) ->  | BN10: =IF($C10="","",IF(flex_cost_input_type="Input all flex costs directly",'Flex Cost Inputs'!BN11,'Flex Volume and Cost Inputs'!BN21)) ->  | BO10: =IF($C10="","",IF(flex_cost_input_type="Input all flex costs directly",'Flex Cost Inputs'!BO11,'Flex Volume and Cost Inputs'!BO21)) ->  | BP10: =IF($C10="","",IF(flex_cost_input_type="Input all flex costs directly",'Flex Cost Inputs'!BP11,'Flex Volume and Cost Inputs'!BP21)) ->  | BQ10: =IF($C10="","",IF(flex_cost_input_type="Input all flex costs directly",'Flex Cost Inputs'!BQ11,'Flex Volume and Cost Inputs'!BQ21)) ->  | BR10: =IF($C10="","",IF(flex_cost_input_type="Input all flex costs directly",'Flex Cost Inputs'!BR11,'Flex Volume and Cost Inputs'!BR21)) -> 
A11: Config | B11: 7 | D11: =IF($C11="","",IF(flex_cost_input_type="Input all flex costs directly",'Flex Cost Inputs'!D12,'Flex Volume and Cost Inputs'!D22)) ->  | E11: =IF($C11="","",IF(flex_cost_input_type="Input all flex costs directly",'Flex Cost Inputs'!E12,'Flex Volume and Cost Inputs'!E22)) ->  | F11: =IF($C11="","",IF(flex_cost_input_type="Input all flex costs directly",'Flex Cost Inputs'!F12,'Flex Volume and Cost Inputs'!F22)) ->  | G11: =IF($C11="","",IF(flex_cost_input_type="Input all flex costs directly",'Flex Cost Inputs'!G12,'Flex Volume and Cost Inputs'!G22)) ->  | H11: =IF($C11="","",IF(flex_cost_input_type="Input all flex costs directly",'Flex Cost Inputs'!H12,'Flex Volume and Cost Inputs'!H22)) ->  | I11: =IF($C11="","",IF(flex_cost_input_type="Input all flex costs directly",'Flex Cost Inputs'!I12,'Flex Volume and Cost Inputs'!I22)) ->  | J11: =IF($C11="","",IF(flex_cost_input_type="Input all flex costs directly",'Flex Cost Inputs'!J12,'Flex Volume and Cost Inputs'!J22)) ->  | K11: =IF($C11="","",IF(flex_cost_input_type="Input all flex costs directly",'Flex Cost Inputs'!K12,'Flex Volume and Cost Inputs'!K22)) ->  | L11: =IF($C11="","",IF(flex_cost_input_type="Input all flex costs directly",'Flex Cost Inputs'!L12,'Flex Volume and Cost Inputs'!L22)) ->  | M11: =IF($C11="","",IF(flex_cost_input_type="Input all flex costs directly",'Flex Cost Inputs'!M12,'Flex Volume and Cost Inputs'!M22)) ->  | N11: =IF($C11="","",IF(flex_cost_input_type="Input all flex costs directly",'Flex Cost Inputs'!N12,'Flex Volume and Cost Inputs'!N22)) ->  | O11: =IF($C11="","",IF(flex_cost_input_type="Input all flex costs directly",'Flex Cost Inputs'!O12,'Flex Volume and Cost Inputs'!O22)) ->  | P11: =IF($C11="","",IF(flex_cost_input_type="Input all flex costs directly",'Flex Cost Inputs'!P12,'Flex Volume and Cost Inputs'!P22)) ->  | Q11: =IF($C11="","",IF(flex_cost_input_type="Input all flex costs directly",'Flex Cost Inputs'!Q12,'Flex Volume and Cost Inputs'!Q22)) ->  | R11: =IF($C11="","",IF(flex_cost_input_type="Input all flex costs directly",'Flex Cost Inputs'!R12,'Flex Volume and Cost Inputs'!R22)) ->  | S11: =IF($C11="","",IF(flex_cost_input_type="Input all flex costs directly",'Flex Cost Inputs'!S12,'Flex Volume and Cost Inputs'!S22)) ->  | T11: =IF($C11="","",IF(flex_cost_input_type="Input all flex costs directly",'Flex Cost Inputs'!T12,'Flex Volume and Cost Inputs'!T22)) ->  | U11: =IF($C11="","",IF(flex_cost_input_type="Input all flex costs directly",'Flex Cost Inputs'!U12,'Flex Volume and Cost Inputs'!U22)) ->  | V11: =IF($C11="","",IF(flex_cost_input_type="Input all flex costs directly",'Flex Cost Inputs'!V12,'Flex Volume and Cost Inputs'!V22)) ->  | W11: =IF($C11="","",IF(flex_cost_input_type="Input all flex costs directly",'Flex Cost Inputs'!W12,'Flex Volume and Cost Inputs'!W22)) ->  | X11: =IF($C11="","",IF(flex_cost_input_type="Input all flex costs directly",'Flex Cost Inputs'!X12,'Flex Volume and Cost Inputs'!X22)) ->  | Y11: =IF($C11="","",IF(flex_cost_input_type="Input all flex costs directly",'Flex Cost Inputs'!Y12,'Flex Volume and Cost Inputs'!Y22)) ->  | Z11: =IF($C11="","",IF(flex_cost_input_type="Input all flex costs directly",'Flex Cost Inputs'!Z12,'Flex Volume and Cost Inputs'!Z22)) ->  | AA11: =IF($C11="","",IF(flex_cost_input_type="Input all flex costs directly",'Flex Cost Inputs'!AA12,'Flex Volume and Cost Inputs'!AA22)) ->  | AB11: =IF($C11="","",IF(flex_cost_input_type="Input all flex costs directly",'Flex Cost Inputs'!AB12,'Flex Volume and Cost Inputs'!AB22)) ->  | AC11: =IF($C11="","",IF(flex_cost_input_type="Input all flex costs directly",'Flex Cost Inputs'!AC12,'Flex Volume and Cost Inputs'!AC22)) ->  | AD11: =IF($C11="","",IF(flex_cost_input_type="Input all flex costs directly",'Flex Cost Inputs'!AD12,'Flex Volume and Cost Inputs'!AD22)) ->  | AE11: =IF($C11="","",IF(flex_cost_input_type="Input all flex costs directly",'Flex Cost Inputs'!AE12,'Flex Volume and Cost Inputs'!AE22)) ->  | AF11: =IF($C11="","",IF(flex_cost_input_type="Input all flex costs directly",'Flex Cost Inputs'!AF12,'Flex Volume and Cost Inputs'!AF22)) ->  | AG11: =IF($C11="","",IF(flex_cost_input_type="Input all flex costs directly",'Flex Cost Inputs'!AG12,'Flex Volume and Cost Inputs'!AG22)) ->  | AH11: =IF($C11="","",IF(flex_cost_input_type="Input all flex costs directly",'Flex Cost Inputs'!AH12,'Flex Volume and Cost Inputs'!AH22)) ->  | AI11: =IF($C11="","",IF(flex_cost_input_type="Input all flex costs directly",'Flex Cost Inputs'!AI12,'Flex Volume and Cost Inputs'!AI22)) ->  | AJ11: =IF($C11="","",IF(flex_cost_input_type="Input all flex costs directly",'Flex Cost Inputs'!AJ12,'Flex Volume and Cost Inputs'!AJ22)) ->  | AK11: =IF($C11="","",IF(flex_cost_input_type="Input all flex costs directly",'Flex Cost Inputs'!AK12,'Flex Volume and Cost Inputs'!AK22)) ->  | AL11: =IF($C11="","",IF(flex_cost_input_type="Input all flex costs directly",'Flex Cost Inputs'!AL12,'Flex Volume and Cost Inputs'!AL22)) ->  | AM11: =IF($C11="","",IF(flex_cost_input_type="Input all flex costs directly",'Flex Cost Inputs'!AM12,'Flex Volume and Cost Inputs'!AM22)) ->  | AN11: =IF($C11="","",IF(flex_cost_input_type="Input all flex costs directly",'Flex Cost Inputs'!AN12,'Flex Volume and Cost Inputs'!AN22)) ->  | AO11: =IF($C11="","",IF(flex_cost_input_type="Input all flex costs directly",'Flex Cost Inputs'!AO12,'Flex Volume and Cost Inputs'!AO22)) ->  | AP11: =IF($C11="","",IF(flex_cost_input_type="Input all flex costs directly",'Flex Cost Inputs'!AP12,'Flex Volume and Cost Inputs'!AP22)) ->  | AQ11: =IF($C11="","",IF(flex_cost_input_type="Input all flex costs directly",'Flex Cost Inputs'!AQ12,'Flex Volume and Cost Inputs'!AQ22)) ->  | AR11: =IF($C11="","",IF(flex_cost_input_type="Input all flex costs directly",'Flex Cost Inputs'!AR12,'Flex Volume and Cost Inputs'!AR22)) ->  | AS11: =IF($C11="","",IF(flex_cost_input_type="Input all flex costs directly",'Flex Cost Inputs'!AS12,'Flex Volume and Cost Inputs'!AS22)) ->  | AT11: =IF($C11="","",IF(flex_cost_input_type="Input all flex costs directly",'Flex Cost Inputs'!AT12,'Flex Volume and Cost Inputs'!AT22)) ->  | AU11: =IF($C11="","",IF(flex_cost_input_type="Input all flex costs directly",'Flex Cost Inputs'!AU12,'Flex Volume and Cost Inputs'!AU22)) ->  | AV11: =IF($C11="","",IF(flex_cost_input_type="Input all flex costs directly",'Flex Cost Inputs'!AV12,'Flex Volume and Cost Inputs'!AV22)) ->  | AW11: =IF($C11="","",IF(flex_cost_input_type="Input all flex costs directly",'Flex Cost Inputs'!AW12,'Flex Volume and Cost Inputs'!AW22)) ->  | AX11: =IF($C11="","",IF(flex_cost_input_type="Input all flex costs directly",'Flex Cost Inputs'!AX12,'Flex Volume and Cost Inputs'!AX22)) ->  | AY11: =IF($C11="","",IF(flex_cost_input_type="Input all flex costs directly",'Flex Cost Inputs'!AY12,'Flex Volume and Cost Inputs'!AY22)) ->  | AZ11: =IF($C11="","",IF(flex_cost_input_type="Input all flex costs directly",'Flex Cost Inputs'!AZ12,'Flex Volume and Cost Inputs'!AZ22)) ->  | BA11: =IF($C11="","",IF(flex_cost_input_type="Input all flex costs directly",'Flex Cost Inputs'!BA12,'Flex Volume and Cost Inputs'!BA22)) ->  | BB11: =IF($C11="","",IF(flex_cost_input_type="Input all flex costs directly",'Flex Cost Inputs'!BB12,'Flex Volume and Cost Inputs'!BB22)) ->  | BC11: =IF($C11="","",IF(flex_cost_input_type="Input all flex costs directly",'Flex Cost Inputs'!BC12,'Flex Volume and Cost Inputs'!BC22)) ->  | BD11: =IF($C11="","",IF(flex_cost_input_type="Input all flex costs directly",'Flex Cost Inputs'!BD12,'Flex Volume and Cost Inputs'!BD22)) ->  | BE11: =IF($C11="","",IF(flex_cost_input_type="Input all flex costs directly",'Flex Cost Inputs'!BE12,'Flex Volume and Cost Inputs'!BE22)) ->  | BF11: =IF($C11="","",IF(flex_cost_input_type="Input all flex costs directly",'Flex Cost Inputs'!BF12,'Flex Volume and Cost Inputs'!BF22)) ->  | BG11: =IF($C11="","",IF(flex_cost_input_type="Input all flex costs directly",'Flex Cost Inputs'!BG12,'Flex Volume and Cost Inputs'!BG22)) ->  | BH11: =IF($C11="","",IF(flex_cost_input_type="Input all flex costs directly",'Flex Cost Inputs'!BH12,'Flex Volume and Cost Inputs'!BH22)) ->  | BI11: =IF($C11="","",IF(flex_cost_input_type="Input all flex costs directly",'Flex Cost Inputs'!BI12,'Flex Volume and Cost Inputs'!BI22)) ->  | BJ11: =IF($C11="","",IF(flex_cost_input_type="Input all flex costs directly",'Flex Cost Inputs'!BJ12,'Flex Volume and Cost Inputs'!BJ22)) ->  | BK11: =IF($C11="","",IF(flex_cost_input_type="Input all flex costs directly",'Flex Cost Inputs'!BK12,'Flex Volume and Cost Inputs'!BK22)) ->  | BL11: =IF($C11="","",IF(flex_cost_input_type="Input all flex costs directly",'Flex Cost Inputs'!BL12,'Flex Volume and Cost Inputs'!BL22)) ->  | BM11: =IF($C11="","",IF(flex_cost_input_type="Input all flex costs directly",'Flex Cost Inputs'!BM12,'Flex Volume and Cost Inputs'!BM22)) ->  | BN11: =IF($C11="","",IF(flex_cost_input_type="Input all flex costs directly",'Flex Cost Inputs'!BN12,'Flex Volume and Cost Inputs'!BN22)) ->  | BO11: =IF($C11="","",IF(flex_cost_input_type="Input all flex costs directly",'Flex Cost Inputs'!BO12,'Flex Volume and Cost Inputs'!BO22)) ->  | BP11: =IF($C11="","",IF(flex_cost_input_type="Input all flex costs directly",'Flex Cost Inputs'!BP12,'Flex Volume and Cost Inputs'!BP22)) ->  | BQ11: =IF($C11="","",IF(flex_cost_input_type="Input all flex costs directly",'Flex Cost Inputs'!BQ12,'Flex Volume and Cost Inputs'!BQ22)) ->  | BR11: =IF($C11="","",IF(flex_cost_input_type="Input all flex costs directly",'Flex Cost Inputs'!BR12,'Flex Volume and Cost Inputs'!BR22)) -> 
A12: Config | B12: 8 | D12: =IF($C12="","",IF(flex_cost_input_type="Input all flex costs directly",'Flex Cost Inputs'!D13,'Flex Volume and Cost Inputs'!D23)) ->  | E12: =IF($C12="","",IF(flex_cost_input_type="Input all flex costs directly",'Flex Cost Inputs'!E13,'Flex Volume and Cost Inputs'!E23)) ->  | F12: =IF($C12="","",IF(flex_cost_input_type="Input all flex costs directly",'Flex Cost Inputs'!F13,'Flex Volume and Cost Inputs'!F23)) ->  | G12: =IF($C12="","",IF(flex_cost_input_type="Input all flex costs directly",'Flex Cost Inputs'!G13,'Flex Volume and Cost Inputs'!G23)) ->  | H12: =IF($C12="","",IF(flex_cost_input_type="Input all flex costs directly",'Flex Cost Inputs'!H13,'Flex Volume and Cost Inputs'!H23)) ->  | I12: =IF($C12="","",IF(flex_cost_input_type="Input all flex costs directly",'Flex Cost Inputs'!I13,'Flex Volume and Cost Inputs'!I23)) ->  | J12: =IF($C12="","",IF(flex_cost_input_type="Input all flex costs directly",'Flex Cost Inputs'!J13,'Flex Volume and Cost Inputs'!J23)) ->  | K12: =IF($C12="","",IF(flex_cost_input_type="Input all flex costs directly",'Flex Cost Inputs'!K13,'Flex Volume and Cost Inputs'!K23)) ->  | L12: =IF($C12="","",IF(flex_cost_input_type="Input all flex costs directly",'Flex Cost Inputs'!L13,'Flex Volume and Cost Inputs'!L23)) ->  | M12: =IF($C12="","",IF(flex_cost_input_type="Input all flex costs directly",'Flex Cost Inputs'!M13,'Flex Volume and Cost Inputs'!M23)) ->  | N12: =IF($C12="","",IF(flex_cost_input_type="Input all flex costs directly",'Flex Cost Inputs'!N13,'Flex Volume and Cost Inputs'!N23)) ->  | O12: =IF($C12="","",IF(flex_cost_input_type="Input all flex costs directly",'Flex Cost Inputs'!O13,'Flex Volume and Cost Inputs'!O23)) ->  | P12: =IF($C12="","",IF(flex_cost_input_type="Input all flex costs directly",'Flex Cost Inputs'!P13,'Flex Volume and Cost Inputs'!P23)) ->  | Q12: =IF($C12="","",IF(flex_cost_input_type="Input all flex costs directly",'Flex Cost Inputs'!Q13,'Flex Volume and Cost Inputs'!Q23)) ->  | R12: =IF($C12="","",IF(flex_cost_input_type="Input all flex costs directly",'Flex Cost Inputs'!R13,'Flex Volume and Cost Inputs'!R23)) ->  | S12: =IF($C12="","",IF(flex_cost_input_type="Input all flex costs directly",'Flex Cost Inputs'!S13,'Flex Volume and Cost Inputs'!S23)) ->  | T12: =IF($C12="","",IF(flex_cost_input_type="Input all flex costs directly",'Flex Cost Inputs'!T13,'Flex Volume and Cost Inputs'!T23)) ->  | U12: =IF($C12="","",IF(flex_cost_input_type="Input all flex costs directly",'Flex Cost Inputs'!U13,'Flex Volume and Cost Inputs'!U23)) ->  | V12: =IF($C12="","",IF(flex_cost_input_type="Input all flex costs directly",'Flex Cost Inputs'!V13,'Flex Volume and Cost Inputs'!V23)) ->  | W12: =IF($C12="","",IF(flex_cost_input_type="Input all flex costs directly",'Flex Cost Inputs'!W13,'Flex Volume and Cost Inputs'!W23)) ->  | X12: =IF($C12="","",IF(flex_cost_input_type="Input all flex costs directly",'Flex Cost Inputs'!X13,'Flex Volume and Cost Inputs'!X23)) ->  | Y12: =IF($C12="","",IF(flex_cost_input_type="Input all flex costs directly",'Flex Cost Inputs'!Y13,'Flex Volume and Cost Inputs'!Y23)) ->  | Z12: =IF($C12="","",IF(flex_cost_input_type="Input all flex costs directly",'Flex Cost Inputs'!Z13,'Flex Volume and Cost Inputs'!Z23)) ->  | AA12: =IF($C12="","",IF(flex_cost_input_type="Input all flex costs directly",'Flex Cost Inputs'!AA13,'Flex Volume and Cost Inputs'!AA23)) ->  | AB12: =IF($C12="","",IF(flex_cost_input_type="Input all flex costs directly",'Flex Cost Inputs'!AB13,'Flex Volume and Cost Inputs'!AB23)) ->  | AC12: =IF($C12="","",IF(flex_cost_input_type="Input all flex costs directly",'Flex Cost Inputs'!AC13,'Flex Volume and Cost Inputs'!AC23)) ->  | AD12: =IF($C12="","",IF(flex_cost_input_type="Input all flex costs directly",'Flex Cost Inputs'!AD13,'Flex Volume and Cost Inputs'!AD23)) ->  | AE12: =IF($C12="","",IF(flex_cost_input_type="Input all flex costs directly",'Flex Cost Inputs'!AE13,'Flex Volume and Cost Inputs'!AE23)) ->  | AF12: =IF($C12="","",IF(flex_cost_input_type="Input all flex costs directly",'Flex Cost Inputs'!AF13,'Flex Volume and Cost Inputs'!AF23)) ->  | AG12: =IF($C12="","",IF(flex_cost_input_type="Input all flex costs directly",'Flex Cost Inputs'!AG13,'Flex Volume and Cost Inputs'!AG23)) ->  | AH12: =IF($C12="","",IF(flex_cost_input_type="Input all flex costs directly",'Flex Cost Inputs'!AH13,'Flex Volume and Cost Inputs'!AH23)) ->  | AI12: =IF($C12="","",IF(flex_cost_input_type="Input all flex costs directly",'Flex Cost Inputs'!AI13,'Flex Volume and Cost Inputs'!AI23)) ->  | AJ12: =IF($C12="","",IF(flex_cost_input_type="Input all flex costs directly",'Flex Cost Inputs'!AJ13,'Flex Volume and Cost Inputs'!AJ23)) ->  | AK12: =IF($C12="","",IF(flex_cost_input_type="Input all flex costs directly",'Flex Cost Inputs'!AK13,'Flex Volume and Cost Inputs'!AK23)) ->  | AL12: =IF($C12="","",IF(flex_cost_input_type="Input all flex costs directly",'Flex Cost Inputs'!AL13,'Flex Volume and Cost Inputs'!AL23)) ->  | AM12: =IF($C12="","",IF(flex_cost_input_type="Input all flex costs directly",'Flex Cost Inputs'!AM13,'Flex Volume and Cost Inputs'!AM23)) ->  | AN12: =IF($C12="","",IF(flex_cost_input_type="Input all flex costs directly",'Flex Cost Inputs'!AN13,'Flex Volume and Cost Inputs'!AN23)) ->  | AO12: =IF($C12="","",IF(flex_cost_input_type="Input all flex costs directly",'Flex Cost Inputs'!AO13,'Flex Volume and Cost Inputs'!AO23)) ->  | AP12: =IF($C12="","",IF(flex_cost_input_type="Input all flex costs directly",'Flex Cost Inputs'!AP13,'Flex Volume and Cost Inputs'!AP23)) ->  | AQ12: =IF($C12="","",IF(flex_cost_input_type="Input all flex costs directly",'Flex Cost Inputs'!AQ13,'Flex Volume and Cost Inputs'!AQ23)) ->  | AR12: =IF($C12="","",IF(flex_cost_input_type="Input all flex costs directly",'Flex Cost Inputs'!AR13,'Flex Volume and Cost Inputs'!AR23)) ->  | AS12: =IF($C12="","",IF(flex_cost_input_type="Input all flex costs directly",'Flex Cost Inputs'!AS13,'Flex Volume and Cost Inputs'!AS23)) ->  | AT12: =IF($C12="","",IF(flex_cost_input_type="Input all flex costs directly",'Flex Cost Inputs'!AT13,'Flex Volume and Cost Inputs'!AT23)) ->  | AU12: =IF($C12="","",IF(flex_cost_input_type="Input all flex costs directly",'Flex Cost Inputs'!AU13,'Flex Volume and Cost Inputs'!AU23)) ->  | AV12: =IF($C12="","",IF(flex_cost_input_type="Input all flex costs directly",'Flex Cost Inputs'!AV13,'Flex Volume and Cost Inputs'!AV23)) ->  | AW12: =IF($C12="","",IF(flex_cost_input_type="Input all flex costs directly",'Flex Cost Inputs'!AW13,'Flex Volume and Cost Inputs'!AW23)) ->  | AX12: =IF($C12="","",IF(flex_cost_input_type="Input all flex costs directly",'Flex Cost Inputs'!AX13,'Flex Volume and Cost Inputs'!AX23)) ->  | AY12: =IF($C12="","",IF(flex_cost_input_type="Input all flex costs directly",'Flex Cost Inputs'!AY13,'Flex Volume and Cost Inputs'!AY23)) ->  | AZ12: =IF($C12="","",IF(flex_cost_input_type="Input all flex costs directly",'Flex Cost Inputs'!AZ13,'Flex Volume and Cost Inputs'!AZ23)) ->  | BA12: =IF($C12="","",IF(flex_cost_input_type="Input all flex costs directly",'Flex Cost Inputs'!BA13,'Flex Volume and Cost Inputs'!BA23)) ->  | BB12: =IF($C12="","",IF(flex_cost_input_type="Input all flex costs directly",'Flex Cost Inputs'!BB13,'Flex Volume and Cost Inputs'!BB23)) ->  | BC12: =IF($C12="","",IF(flex_cost_input_type="Input all flex costs directly",'Flex Cost Inputs'!BC13,'Flex Volume and Cost Inputs'!BC23)) ->  | BD12: =IF($C12="","",IF(flex_cost_input_type="Input all flex costs directly",'Flex Cost Inputs'!BD13,'Flex Volume and Cost Inputs'!BD23)) ->  | BE12: =IF($C12="","",IF(flex_cost_input_type="Input all flex costs directly",'Flex Cost Inputs'!BE13,'Flex Volume and Cost Inputs'!BE23)) ->  | BF12: =IF($C12="","",IF(flex_cost_input_type="Input all flex costs directly",'Flex Cost Inputs'!BF13,'Flex Volume and Cost Inputs'!BF23)) ->  | BG12: =IF($C12="","",IF(flex_cost_input_type="Input all flex costs directly",'Flex Cost Inputs'!BG13,'Flex Volume and Cost Inputs'!BG23)) ->  | BH12: =IF($C12="","",IF(flex_cost_input_type="Input all flex costs directly",'Flex Cost Inputs'!BH13,'Flex Volume and Cost Inputs'!BH23)) ->  | BI12: =IF($C12="","",IF(flex_cost_input_type="Input all flex costs directly",'Flex Cost Inputs'!BI13,'Flex Volume and Cost Inputs'!BI23)) ->  | BJ12: =IF($C12="","",IF(flex_cost_input_type="Input all flex costs directly",'Flex Cost Inputs'!BJ13,'Flex Volume and Cost Inputs'!BJ23)) ->  | BK12: =IF($C12="","",IF(flex_cost_input_type="Input all flex costs directly",'Flex Cost Inputs'!BK13,'Flex Volume and Cost Inputs'!BK23)) ->  | BL12: =IF($C12="","",IF(flex_cost_input_type="Input all flex costs directly",'Flex Cost Inputs'!BL13,'Flex Volume and Cost Inputs'!BL23)) ->  | BM12: =IF($C12="","",IF(flex_cost_input_type="Input all flex costs directly",'Flex Cost Inputs'!BM13,'Flex Volume and Cost Inputs'!BM23)) ->  | BN12: =IF($C12="","",IF(flex_cost_input_type="Input all flex costs directly",'Flex Cost Inputs'!BN13,'Flex Volume and Cost Inputs'!BN23)) ->  | BO12: =IF($C12="","",IF(flex_cost_input_type="Input all flex costs directly",'Flex Cost Inputs'!BO13,'Flex Volume and Cost Inputs'!BO23)) ->  | BP12: =IF($C12="","",IF(flex_cost_input_type="Input all flex costs directly",'Flex Cost Inputs'!BP13,'Flex Volume and Cost Inputs'!BP23)) ->  | BQ12: =IF($C12="","",IF(flex_cost_input_type="Input all flex costs directly",'Flex Cost Inputs'!BQ13,'Flex Volume and Cost Inputs'!BQ23)) ->  | BR12: =IF($C12="","",IF(flex_cost_input_type="Input all flex costs directly",'Flex Cost Inputs'!BR13,'Flex Volume and Cost Inputs'!BR23)) -> 
A13: Config | B13: 9 | D13: =IF($C13="","",IF(flex_cost_input_type="Input all flex costs directly",'Flex Cost Inputs'!D14,'Flex Volume and Cost Inputs'!D24)) ->  | E13: =IF($C13="","",IF(flex_cost_input_type="Input all flex costs directly",'Flex Cost Inputs'!E14,'Flex Volume and Cost Inputs'!E24)) ->  | F13: =IF($C13="","",IF(flex_cost_input_type="Input all flex costs directly",'Flex Cost Inputs'!F14,'Flex Volume and Cost Inputs'!F24)) ->  | G13: =IF($C13="","",IF(flex_cost_input_type="Input all flex costs directly",'Flex Cost Inputs'!G14,'Flex Volume and Cost Inputs'!G24)) ->  | H13: =IF($C13="","",IF(flex_cost_input_type="Input all flex costs directly",'Flex Cost Inputs'!H14,'Flex Volume and Cost Inputs'!H24)) ->  | I13: =IF($C13="","",IF(flex_cost_input_type="Input all flex costs directly",'Flex Cost Inputs'!I14,'Flex Volume and Cost Inputs'!I24)) ->  | J13: =IF($C13="","",IF(flex_cost_input_type="Input all flex costs directly",'Flex Cost Inputs'!J14,'Flex Volume and Cost Inputs'!J24)) ->  | K13: =IF($C13="","",IF(flex_cost_input_type="Input all flex costs directly",'Flex Cost Inputs'!K14,'Flex Volume and Cost Inputs'!K24)) ->  | L13: =IF($C13="","",IF(flex_cost_input_type="Input all flex costs directly",'Flex Cost Inputs'!L14,'Flex Volume and Cost Inputs'!L24)) ->  | M13: =IF($C13="","",IF(flex_cost_input_type="Input all flex costs directly",'Flex Cost Inputs'!M14,'Flex Volume and Cost Inputs'!M24)) ->  | N13: =IF($C13="","",IF(flex_cost_input_type="Input all flex costs directly",'Flex Cost Inputs'!N14,'Flex Volume and Cost Inputs'!N24)) ->  | O13: =IF($C13="","",IF(flex_cost_input_type="Input all flex costs directly",'Flex Cost Inputs'!O14,'Flex Volume and Cost Inputs'!O24)) ->  | P13: =IF($C13="","",IF(flex_cost_input_type="Input all flex costs directly",'Flex Cost Inputs'!P14,'Flex Volume and Cost Inputs'!P24)) ->  | Q13: =IF($C13="","",IF(flex_cost_input_type="Input all flex costs directly",'Flex Cost Inputs'!Q14,'Flex Volume and Cost Inputs'!Q24)) ->  | R13: =IF($C13="","",IF(flex_cost_input_type="Input all flex costs directly",'Flex Cost Inputs'!R14,'Flex Volume and Cost Inputs'!R24)) ->  | S13: =IF($C13="","",IF(flex_cost_input_type="Input all flex costs directly",'Flex Cost Inputs'!S14,'Flex Volume and Cost Inputs'!S24)) ->  | T13: =IF($C13="","",IF(flex_cost_input_type="Input all flex costs directly",'Flex Cost Inputs'!T14,'Flex Volume and Cost Inputs'!T24)) ->  | U13: =IF($C13="","",IF(flex_cost_input_type="Input all flex costs directly",'Flex Cost Inputs'!U14,'Flex Volume and Cost Inputs'!U24)) ->  | V13: =IF($C13="","",IF(flex_cost_input_type="Input all flex costs directly",'Flex Cost Inputs'!V14,'Flex Volume and Cost Inputs'!V24)) ->  | W13: =IF($C13="","",IF(flex_cost_input_type="Input all flex costs directly",'Flex Cost Inputs'!W14,'Flex Volume and Cost Inputs'!W24)) ->  | X13: =IF($C13="","",IF(flex_cost_input_type="Input all flex costs directly",'Flex Cost Inputs'!X14,'Flex Volume and Cost Inputs'!X24)) ->  | Y13: =IF($C13="","",IF(flex_cost_input_type="Input all flex costs directly",'Flex Cost Inputs'!Y14,'Flex Volume and Cost Inputs'!Y24)) ->  | Z13: =IF($C13="","",IF(flex_cost_input_type="Input all flex costs directly",'Flex Cost Inputs'!Z14,'Flex Volume and Cost Inputs'!Z24)) ->  | AA13: =IF($C13="","",IF(flex_cost_input_type="Input all flex costs directly",'Flex Cost Inputs'!AA14,'Flex Volume and Cost Inputs'!AA24)) ->  | AB13: =IF($C13="","",IF(flex_cost_input_type="Input all flex costs directly",'Flex Cost Inputs'!AB14,'Flex Volume and Cost Inputs'!AB24)) ->  | AC13: =IF($C13="","",IF(flex_cost_input_type="Input all flex costs directly",'Flex Cost Inputs'!AC14,'Flex Volume and Cost Inputs'!AC24)) ->  | AD13: =IF($C13="","",IF(flex_cost_input_type="Input all flex costs directly",'Flex Cost Inputs'!AD14,'Flex Volume and Cost Inputs'!AD24)) ->  | AE13: =IF($C13="","",IF(flex_cost_input_type="Input all flex costs directly",'Flex Cost Inputs'!AE14,'Flex Volume and Cost Inputs'!AE24)) ->  | AF13: =IF($C13="","",IF(flex_cost_input_type="Input all flex costs directly",'Flex Cost Inputs'!AF14,'Flex Volume and Cost Inputs'!AF24)) ->  | AG13: =IF($C13="","",IF(flex_cost_input_type="Input all flex costs directly",'Flex Cost Inputs'!AG14,'Flex Volume and Cost Inputs'!AG24)) ->  | AH13: =IF($C13="","",IF(flex_cost_input_type="Input all flex costs directly",'Flex Cost Inputs'!AH14,'Flex Volume and Cost Inputs'!AH24)) ->  | AI13: =IF($C13="","",IF(flex_cost_input_type="Input all flex costs directly",'Flex Cost Inputs'!AI14,'Flex Volume and Cost Inputs'!AI24)) ->  | AJ13: =IF($C13="","",IF(flex_cost_input_type="Input all flex costs directly",'Flex Cost Inputs'!AJ14,'Flex Volume and Cost Inputs'!AJ24)) ->  | AK13: =IF($C13="","",IF(flex_cost_input_type="Input all flex costs directly",'Flex Cost Inputs'!AK14,'Flex Volume and Cost Inputs'!AK24)) ->  | AL13: =IF($C13="","",IF(flex_cost_input_type="Input all flex costs directly",'Flex Cost Inputs'!AL14,'Flex Volume and Cost Inputs'!AL24)) ->  | AM13: =IF($C13="","",IF(flex_cost_input_type="Input all flex costs directly",'Flex Cost Inputs'!AM14,'Flex Volume and Cost Inputs'!AM24)) ->  | AN13: =IF($C13="","",IF(flex_cost_input_type="Input all flex costs directly",'Flex Cost Inputs'!AN14,'Flex Volume and Cost Inputs'!AN24)) ->  | AO13: =IF($C13="","",IF(flex_cost_input_type="Input all flex costs directly",'Flex Cost Inputs'!AO14,'Flex Volume and Cost Inputs'!AO24)) ->  | AP13: =IF($C13="","",IF(flex_cost_input_type="Input all flex costs directly",'Flex Cost Inputs'!AP14,'Flex Volume and Cost Inputs'!AP24)) ->  | AQ13: =IF($C13="","",IF(flex_cost_input_type="Input all flex costs directly",'Flex Cost Inputs'!AQ14,'Flex Volume and Cost Inputs'!AQ24)) ->  | AR13: =IF($C13="","",IF(flex_cost_input_type="Input all flex costs directly",'Flex Cost Inputs'!AR14,'Flex Volume and Cost Inputs'!AR24)) ->  | AS13: =IF($C13="","",IF(flex_cost_input_type="Input all flex costs directly",'Flex Cost Inputs'!AS14,'Flex Volume and Cost Inputs'!AS24)) ->  | AT13: =IF($C13="","",IF(flex_cost_input_type="Input all flex costs directly",'Flex Cost Inputs'!AT14,'Flex Volume and Cost Inputs'!AT24)) ->  | AU13: =IF($C13="","",IF(flex_cost_input_type="Input all flex costs directly",'Flex Cost Inputs'!AU14,'Flex Volume and Cost Inputs'!AU24)) ->  | AV13: =IF($C13="","",IF(flex_cost_input_type="Input all flex costs directly",'Flex Cost Inputs'!AV14,'Flex Volume and Cost Inputs'!AV24)) ->  | AW13: =IF($C13="","",IF(flex_cost_input_type="Input all flex costs directly",'Flex Cost Inputs'!AW14,'Flex Volume and Cost Inputs'!AW24)) ->  | AX13: =IF($C13="","",IF(flex_cost_input_type="Input all flex costs directly",'Flex Cost Inputs'!AX14,'Flex Volume and Cost Inputs'!AX24)) ->  | AY13: =IF($C13="","",IF(flex_cost_input_type="Input all flex costs directly",'Flex Cost Inputs'!AY14,'Flex Volume and Cost Inputs'!AY24)) ->  | AZ13: =IF($C13="","",IF(flex_cost_input_type="Input all flex costs directly",'Flex Cost Inputs'!AZ14,'Flex Volume and Cost Inputs'!AZ24)) ->  | BA13: =IF($C13="","",IF(flex_cost_input_type="Input all flex costs directly",'Flex Cost Inputs'!BA14,'Flex Volume and Cost Inputs'!BA24)) ->  | BB13: =IF($C13="","",IF(flex_cost_input_type="Input all flex costs directly",'Flex Cost Inputs'!BB14,'Flex Volume and Cost Inputs'!BB24)) ->  | BC13: =IF($C13="","",IF(flex_cost_input_type="Input all flex costs directly",'Flex Cost Inputs'!BC14,'Flex Volume and Cost Inputs'!BC24)) ->  | BD13: =IF($C13="","",IF(flex_cost_input_type="Input all flex costs directly",'Flex Cost Inputs'!BD14,'Flex Volume and Cost Inputs'!BD24)) ->  | BE13: =IF($C13="","",IF(flex_cost_input_type="Input all flex costs directly",'Flex Cost Inputs'!BE14,'Flex Volume and Cost Inputs'!BE24)) ->  | BF13: =IF($C13="","",IF(flex_cost_input_type="Input all flex costs directly",'Flex Cost Inputs'!BF14,'Flex Volume and Cost Inputs'!BF24)) ->  | BG13: =IF($C13="","",IF(flex_cost_input_type="Input all flex costs directly",'Flex Cost Inputs'!BG14,'Flex Volume and Cost Inputs'!BG24)) ->  | BH13: =IF($C13="","",IF(flex_cost_input_type="Input all flex costs directly",'Flex Cost Inputs'!BH14,'Flex Volume and Cost Inputs'!BH24)) ->  | BI13: =IF($C13="","",IF(flex_cost_input_type="Input all flex costs directly",'Flex Cost Inputs'!BI14,'Flex Volume and Cost Inputs'!BI24)) ->  | BJ13: =IF($C13="","",IF(flex_cost_input_type="Input all flex costs directly",'Flex Cost Inputs'!BJ14,'Flex Volume and Cost Inputs'!BJ24)) ->  | BK13: =IF($C13="","",IF(flex_cost_input_type="Input all flex costs directly",'Flex Cost Inputs'!BK14,'Flex Volume and Cost Inputs'!BK24)) ->  | BL13: =IF($C13="","",IF(flex_cost_input_type="Input all flex costs directly",'Flex Cost Inputs'!BL14,'Flex Volume and Cost Inputs'!BL24)) ->  | BM13: =IF($C13="","",IF(flex_cost_input_type="Input all flex costs directly",'Flex Cost Inputs'!BM14,'Flex Volume and Cost Inputs'!BM24)) ->  | BN13: =IF($C13="","",IF(flex_cost_input_type="Input all flex costs directly",'Flex Cost Inputs'!BN14,'Flex Volume and Cost Inputs'!BN24)) ->  | BO13: =IF($C13="","",IF(flex_cost_input_type="Input all flex costs directly",'Flex Cost Inputs'!BO14,'Flex Volume and Cost Inputs'!BO24)) ->  | BP13: =IF($C13="","",IF(flex_cost_input_type="Input all flex costs directly",'Flex Cost Inputs'!BP14,'Flex Volume and Cost Inputs'!BP24)) ->  | BQ13: =IF($C13="","",IF(flex_cost_input_type="Input all flex costs directly",'Flex Cost Inputs'!BQ14,'Flex Volume and Cost Inputs'!BQ24)) ->  | BR13: =IF($C13="","",IF(flex_cost_input_type="Input all flex costs directly",'Flex Cost Inputs'!BR14,'Flex Volume and Cost Inputs'!BR24)) -> 
A14: Config | B14: 10 | D14: =IF($C14="","",IF(flex_cost_input_type="Input all flex costs directly",'Flex Cost Inputs'!D15,'Flex Volume and Cost Inputs'!D25)) ->  | E14: =IF($C14="","",IF(flex_cost_input_type="Input all flex costs directly",'Flex Cost Inputs'!E15,'Flex Volume and Cost Inputs'!E25)) ->  | F14: =IF($C14="","",IF(flex_cost_input_type="Input all flex costs directly",'Flex Cost Inputs'!F15,'Flex Volume and Cost Inputs'!F25)) ->  | G14: =IF($C14="","",IF(flex_cost_input_type="Input all flex costs directly",'Flex Cost Inputs'!G15,'Flex Volume and Cost Inputs'!G25)) ->  | H14: =IF($C14="","",IF(flex_cost_input_type="Input all flex costs directly",'Flex Cost Inputs'!H15,'Flex Volume and Cost Inputs'!H25)) ->  | I14: =IF($C14="","",IF(flex_cost_input_type="Input all flex costs directly",'Flex Cost Inputs'!I15,'Flex Volume and Cost Inputs'!I25)) ->  | J14: =IF($C14="","",IF(flex_cost_input_type="Input all flex costs directly",'Flex Cost Inputs'!J15,'Flex Volume and Cost Inputs'!J25)) ->  | K14: =IF($C14="","",IF(flex_cost_input_type="Input all flex costs directly",'Flex Cost Inputs'!K15,'Flex Volume and Cost Inputs'!K25)) ->  | L14: =IF($C14="","",IF(flex_cost_input_type="Input all flex costs directly",'Flex Cost Inputs'!L15,'Flex Volume and Cost Inputs'!L25)) ->  | M14: =IF($C14="","",IF(flex_cost_input_type="Input all flex costs directly",'Flex Cost Inputs'!M15,'Flex Volume and Cost Inputs'!M25)) ->  | N14: =IF($C14="","",IF(flex_cost_input_type="Input all flex costs directly",'Flex Cost Inputs'!N15,'Flex Volume and Cost Inputs'!N25)) ->  | O14: =IF($C14="","",IF(flex_cost_input_type="Input all flex costs directly",'Flex Cost Inputs'!O15,'Flex Volume and Cost Inputs'!O25)) ->  | P14: =IF($C14="","",IF(flex_cost_input_type="Input all flex costs directly",'Flex Cost Inputs'!P15,'Flex Volume and Cost Inputs'!P25)) ->  | Q14: =IF($C14="","",IF(flex_cost_input_type="Input all flex costs directly",'Flex Cost Inputs'!Q15,'Flex Volume and Cost Inputs'!Q25)) ->  | R14: =IF($C14="","",IF(flex_cost_input_type="Input all flex costs directly",'Flex Cost Inputs'!R15,'Flex Volume and Cost Inputs'!R25)) ->  | S14: =IF($C14="","",IF(flex_cost_input_type="Input all flex costs directly",'Flex Cost Inputs'!S15,'Flex Volume and Cost Inputs'!S25)) ->  | T14: =IF($C14="","",IF(flex_cost_input_type="Input all flex costs directly",'Flex Cost Inputs'!T15,'Flex Volume and Cost Inputs'!T25)) ->  | U14: =IF($C14="","",IF(flex_cost_input_type="Input all flex costs directly",'Flex Cost Inputs'!U15,'Flex Volume and Cost Inputs'!U25)) ->  | V14: =IF($C14="","",IF(flex_cost_input_type="Input all flex costs directly",'Flex Cost Inputs'!V15,'Flex Volume and Cost Inputs'!V25)) ->  | W14: =IF($C14="","",IF(flex_cost_input_type="Input all flex costs directly",'Flex Cost Inputs'!W15,'Flex Volume and Cost Inputs'!W25)) ->  | X14: =IF($C14="","",IF(flex_cost_input_type="Input all flex costs directly",'Flex Cost Inputs'!X15,'Flex Volume and Cost Inputs'!X25)) ->  | Y14: =IF($C14="","",IF(flex_cost_input_type="Input all flex costs directly",'Flex Cost Inputs'!Y15,'Flex Volume and Cost Inputs'!Y25)) ->  | Z14: =IF($C14="","",IF(flex_cost_input_type="Input all flex costs directly",'Flex Cost Inputs'!Z15,'Flex Volume and Cost Inputs'!Z25)) ->  | AA14: =IF($C14="","",IF(flex_cost_input_type="Input all flex costs directly",'Flex Cost Inputs'!AA15,'Flex Volume and Cost Inputs'!AA25)) ->  | AB14: =IF($C14="","",IF(flex_cost_input_type="Input all flex costs directly",'Flex Cost Inputs'!AB15,'Flex Volume and Cost Inputs'!AB25)) ->  | AC14: =IF($C14="","",IF(flex_cost_input_type="Input all flex costs directly",'Flex Cost Inputs'!AC15,'Flex Volume and Cost Inputs'!AC25)) ->  | AD14: =IF($C14="","",IF(flex_cost_input_type="Input all flex costs directly",'Flex Cost Inputs'!AD15,'Flex Volume and Cost Inputs'!AD25)) ->  | AE14: =IF($C14="","",IF(flex_cost_input_type="Input all flex costs directly",'Flex Cost Inputs'!AE15,'Flex Volume and Cost Inputs'!AE25)) ->  | AF14: =IF($C14="","",IF(flex_cost_input_type="Input all flex costs directly",'Flex Cost Inputs'!AF15,'Flex Volume and Cost Inputs'!AF25)) ->  | AG14: =IF($C14="","",IF(flex_cost_input_type="Input all flex costs directly",'Flex Cost Inputs'!AG15,'Flex Volume and Cost Inputs'!AG25)) ->  | AH14: =IF($C14="","",IF(flex_cost_input_type="Input all flex costs directly",'Flex Cost Inputs'!AH15,'Flex Volume and Cost Inputs'!AH25)) ->  | AI14: =IF($C14="","",IF(flex_cost_input_type="Input all flex costs directly",'Flex Cost Inputs'!AI15,'Flex Volume and Cost Inputs'!AI25)) ->  | AJ14: =IF($C14="","",IF(flex_cost_input_type="Input all flex costs directly",'Flex Cost Inputs'!AJ15,'Flex Volume and Cost Inputs'!AJ25)) ->  | AK14: =IF($C14="","",IF(flex_cost_input_type="Input all flex costs directly",'Flex Cost Inputs'!AK15,'Flex Volume and Cost Inputs'!AK25)) ->  | AL14: =IF($C14="","",IF(flex_cost_input_type="Input all flex costs directly",'Flex Cost Inputs'!AL15,'Flex Volume and Cost Inputs'!AL25)) ->  | AM14: =IF($C14="","",IF(flex_cost_input_type="Input all flex costs directly",'Flex Cost Inputs'!AM15,'Flex Volume and Cost Inputs'!AM25)) ->  | AN14: =IF($C14="","",IF(flex_cost_input_type="Input all flex costs directly",'Flex Cost Inputs'!AN15,'Flex Volume and Cost Inputs'!AN25)) ->  | AO14: =IF($C14="","",IF(flex_cost_input_type="Input all flex costs directly",'Flex Cost Inputs'!AO15,'Flex Volume and Cost Inputs'!AO25)) ->  | AP14: =IF($C14="","",IF(flex_cost_input_type="Input all flex costs directly",'Flex Cost Inputs'!AP15,'Flex Volume and Cost Inputs'!AP25)) ->  | AQ14: =IF($C14="","",IF(flex_cost_input_type="Input all flex costs directly",'Flex Cost Inputs'!AQ15,'Flex Volume and Cost Inputs'!AQ25)) ->  | AR14: =IF($C14="","",IF(flex_cost_input_type="Input all flex costs directly",'Flex Cost Inputs'!AR15,'Flex Volume and Cost Inputs'!AR25)) ->  | AS14: =IF($C14="","",IF(flex_cost_input_type="Input all flex costs directly",'Flex Cost Inputs'!AS15,'Flex Volume and Cost Inputs'!AS25)) ->  | AT14: =IF($C14="","",IF(flex_cost_input_type="Input all flex costs directly",'Flex Cost Inputs'!AT15,'Flex Volume and Cost Inputs'!AT25)) ->  | AU14: =IF($C14="","",IF(flex_cost_input_type="Input all flex costs directly",'Flex Cost Inputs'!AU15,'Flex Volume and Cost Inputs'!AU25)) ->  | AV14: =IF($C14="","",IF(flex_cost_input_type="Input all flex costs directly",'Flex Cost Inputs'!AV15,'Flex Volume and Cost Inputs'!AV25)) ->  | AW14: =IF($C14="","",IF(flex_cost_input_type="Input all flex costs directly",'Flex Cost Inputs'!AW15,'Flex Volume and Cost Inputs'!AW25)) ->  | AX14: =IF($C14="","",IF(flex_cost_input_type="Input all flex costs directly",'Flex Cost Inputs'!AX15,'Flex Volume and Cost Inputs'!AX25)) ->  | AY14: =IF($C14="","",IF(flex_cost_input_type="Input all flex costs directly",'Flex Cost Inputs'!AY15,'Flex Volume and Cost Inputs'!AY25)) ->  | AZ14: =IF($C14="","",IF(flex_cost_input_type="Input all flex costs directly",'Flex Cost Inputs'!AZ15,'Flex Volume and Cost Inputs'!AZ25)) ->  | BA14: =IF($C14="","",IF(flex_cost_input_type="Input all flex costs directly",'Flex Cost Inputs'!BA15,'Flex Volume and Cost Inputs'!BA25)) ->  | BB14: =IF($C14="","",IF(flex_cost_input_type="Input all flex costs directly",'Flex Cost Inputs'!BB15,'Flex Volume and Cost Inputs'!BB25)) ->  | BC14: =IF($C14="","",IF(flex_cost_input_type="Input all flex costs directly",'Flex Cost Inputs'!BC15,'Flex Volume and Cost Inputs'!BC25)) ->  | BD14: =IF($C14="","",IF(flex_cost_input_type="Input all flex costs directly",'Flex Cost Inputs'!BD15,'Flex Volume and Cost Inputs'!BD25)) ->  | BE14: =IF($C14="","",IF(flex_cost_input_type="Input all flex costs directly",'Flex Cost Inputs'!BE15,'Flex Volume and Cost Inputs'!BE25)) ->  | BF14: =IF($C14="","",IF(flex_cost_input_type="Input all flex costs directly",'Flex Cost Inputs'!BF15,'Flex Volume and Cost Inputs'!BF25)) ->  | BG14: =IF($C14="","",IF(flex_cost_input_type="Input all flex costs directly",'Flex Cost Inputs'!BG15,'Flex Volume and Cost Inputs'!BG25)) ->  | BH14: =IF($C14="","",IF(flex_cost_input_type="Input all flex costs directly",'Flex Cost Inputs'!BH15,'Flex Volume and Cost Inputs'!BH25)) ->  | BI14: =IF($C14="","",IF(flex_cost_input_type="Input all flex costs directly",'Flex Cost Inputs'!BI15,'Flex Volume and Cost Inputs'!BI25)) ->  | BJ14: =IF($C14="","",IF(flex_cost_input_type="Input all flex costs directly",'Flex Cost Inputs'!BJ15,'Flex Volume and Cost Inputs'!BJ25)) ->  | BK14: =IF($C14="","",IF(flex_cost_input_type="Input all flex costs directly",'Flex Cost Inputs'!BK15,'Flex Volume and Cost Inputs'!BK25)) ->  | BL14: =IF($C14="","",IF(flex_cost_input_type="Input all flex costs directly",'Flex Cost Inputs'!BL15,'Flex Volume and Cost Inputs'!BL25)) ->  | BM14: =IF($C14="","",IF(flex_cost_input_type="Input all flex costs directly",'Flex Cost Inputs'!BM15,'Flex Volume and Cost Inputs'!BM25)) ->  | BN14: =IF($C14="","",IF(flex_cost_input_type="Input all flex costs directly",'Flex Cost Inputs'!BN15,'Flex Volume and Cost Inputs'!BN25)) ->  | BO14: =IF($C14="","",IF(flex_cost_input_type="Input all flex costs directly",'Flex Cost Inputs'!BO15,'Flex Volume and Cost Inputs'!BO25)) ->  | BP14: =IF($C14="","",IF(flex_cost_input_type="Input all flex costs directly",'Flex Cost Inputs'!BP15,'Flex Volume and Cost Inputs'!BP25)) ->  | BQ14: =IF($C14="","",IF(flex_cost_input_type="Input all flex costs directly",'Flex Cost Inputs'!BQ15,'Flex Volume and Cost Inputs'!BQ25)) ->  | BR14: =IF($C14="","",IF(flex_cost_input_type="Input all flex costs directly",'Flex Cost Inputs'!BR15,'Flex Volume and Cost Inputs'!BR25)) -> 
C16: Annual Fixed costs (incurred only if strategy is still being pursued) (£/yr) | D16: =Current_year -> 2026 | E16: =D16+1 -> 2027 | F16: =E16+1 -> 2028 | G16: =F16+1 -> 2029 | H16: =G16+1 -> 2030 | I16: =H16+1 -> 2031 | J16: =I16+1 -> 2032 | K16: =J16+1 -> 2033 | L16: =K16+1 -> 2034 | M16: =L16+1 -> 2035 | N16: =M16+1 -> 2036 | O16: =N16+1 -> 2037 | P16: =O16+1 -> 2038 | Q16: =P16+1 -> 2039 | R16: =Q16+1 -> 2040 | S16: =R16+1 -> 2041 | T16: =S16+1 -> 2042 | U16: =T16+1 -> 2043 | V16: =U16+1 -> 2044 | W16: =V16+1 -> 2045 | X16: =W16+1 -> 2046 | Y16: =X16+1 -> 2047 | Z16: =Y16+1 -> 2048 | AA16: =Z16+1 -> 2049 | AB16: =AA16+1 -> 2050 | AC16: =AB16+1 -> 2051 | AD16: =AC16+1 -> 2052 | AE16: =AD16+1 -> 2053 | AF16: =AE16+1 -> 2054 | AG16: =AF16+1 -> 2055 | AH16: =AG16+1 -> 2056 | AI16: =AH16+1 -> 2057 | AJ16: =AI16+1 -> 2058 | AK16: =AJ16+1 -> 2059 | AL16: =AK16+1 -> 2060 | AM16: =AL16+1 -> 2061 | AN16: =AM16+1 -> 2062 | AO16: =AN16+1 -> 2063 | AP16: =AO16+1 -> 2064 | AQ16: =AP16+1 -> 2065 | AR16: =AQ16+1 -> 2066 | AS16: =AR16+1 -> 2067 | AT16: =AS16+1 -> 2068 | AU16: =AT16+1 -> 2069 | AV16: =AU16+1 -> 2070 | AW16: =AV16+1 -> 2071 | AX16: =AW16+1 -> 2072 | AY16: =AX16+1 -> 2073 | AZ16: =AY16+1 -> 2074 | BA16: =AZ16+1 -> 2075 | BB16: =BA16+1 -> 2076 | BC16: =BB16+1 -> 2077 | BD16: =BC16+1 -> 2078 | BE16: =BD16+1 -> 2079 | BF16: =BE16+1 -> 2080 | BG16: =BF16+1 -> 2081 | BH16: =BG16+1 -> 2082 | BI16: =BH16+1 -> 2083 | BJ16: =BI16+1 -> 2084 | BK16: =BJ16+1 -> 2085 | BL16: =BK16+1 -> 2086 | BM16: =BL16+1 -> 2087 | BN16: =BM16+1 -> 2088 | BO16: =BN16+1 -> 2089 | BP16: =BO16+1 -> 2090 | BQ16: =BP16+1 -> 2091 | BR16: =BQ16+1 -> 2092
A17: Config | B17: 1 | C17: =IF(INDIRECT("Config"&B17&"_name")="","",INDIRECT("Config"&B17&"_name")) -> Flexibility under Provider 1 | D17: =IF($C5="","",IF(flex_cost_input_type="Input all flex costs directly",'Flex Cost Inputs'!D18,'Flex Volume and Cost Inputs'!D28)) -> 0 | E17: =IF($C5="","",IF(flex_cost_input_type="Input all flex costs directly",'Flex Cost Inputs'!E18,'Flex Volume and Cost Inputs'!E28)) -> 0 | F17: =IF($C5="","",IF(flex_cost_input_type="Input all flex costs directly",'Flex Cost Inputs'!F18,'Flex Volume and Cost Inputs'!F28)) -> 0 | G17: =IF($C5="","",IF(flex_cost_input_type="Input all flex costs directly",'Flex Cost Inputs'!G18,'Flex Volume and Cost Inputs'!G28)) -> 0 | H17: =IF($C5="","",IF(flex_cost_input_type="Input all flex costs directly",'Flex Cost Inputs'!H18,'Flex Volume and Cost Inputs'!H28)) -> 0 | I17: =IF($C5="","",IF(flex_cost_input_type="Input all flex costs directly",'Flex Cost Inputs'!I18,'Flex Volume and Cost Inputs'!I28)) -> 0 | J17: =IF($C5="","",IF(flex_cost_input_type="Input all flex costs directly",'Flex Cost Inputs'!J18,'Flex Volume and Cost Inputs'!J28)) -> 0 | K17: =IF($C5="","",IF(flex_cost_input_type="Input all flex costs directly",'Flex Cost Inputs'!K18,'Flex Volume and Cost Inputs'!K28)) -> 0 | L17: =IF($C5="","",IF(flex_cost_input_type="Input all flex costs directly",'Flex Cost Inputs'!L18,'Flex Volume and Cost Inputs'!L28)) -> 0 | M17: =IF($C5="","",IF(flex_cost_input_type="Input all flex costs directly",'Flex Cost Inputs'!M18,'Flex Volume and Cost Inputs'!M28)) -> 0 | N17: =IF($C5="","",IF(flex_cost_input_type="Input all flex costs directly",'Flex Cost Inputs'!N18,'Flex Volume and Cost Inputs'!N28)) -> 0 | O17: =IF($C5="","",IF(flex_cost_input_type="Input all flex costs directly",'Flex Cost Inputs'!O18,'Flex Volume and Cost Inputs'!O28)) -> 0 | P17: =IF($C5="","",IF(flex_cost_input_type="Input all flex costs directly",'Flex Cost Inputs'!P18,'Flex Volume and Cost Inputs'!P28)) -> 0 | Q17: =IF($C5="","",IF(flex_cost_input_type="Input all flex costs directly",'Flex Cost Inputs'!Q18,'Flex Volume and Cost Inputs'!Q28)) -> 0 | R17: =IF($C5="","",IF(flex_cost_input_type="Input all flex costs directly",'Flex Cost Inputs'!R18,'Flex Volume and Cost Inputs'!R28)) -> 0 | S17: =IF($C5="","",IF(flex_cost_input_type="Input all flex costs directly",'Flex Cost Inputs'!S18,'Flex Volume and Cost Inputs'!S28)) -> 0 | T17: =IF($C5="","",IF(flex_cost_input_type="Input all flex costs directly",'Flex Cost Inputs'!T18,'Flex Volume and Cost Inputs'!T28)) -> 0 | U17: =IF($C5="","",IF(flex_cost_input_type="Input all flex costs directly",'Flex Cost Inputs'!U18,'Flex Volume and Cost Inputs'!U28)) -> 0 | V17: =IF($C5="","",IF(flex_cost_input_type="Input all flex costs directly",'Flex Cost Inputs'!V18,'Flex Volume and Cost Inputs'!V28)) -> 0 | W17: =IF($C5="","",IF(flex_cost_input_type="Input all flex costs directly",'Flex Cost Inputs'!W18,'Flex Volume and Cost Inputs'!W28)) -> 0 | X17: =IF($C5="","",IF(flex_cost_input_type="Input all flex costs directly",'Flex Cost Inputs'!X18,'Flex Volume and Cost Inputs'!X28)) -> 0 | Y17: =IF($C5="","",IF(flex_cost_input_type="Input all flex costs directly",'Flex Cost Inputs'!Y18,'Flex Volume and Cost Inputs'!Y28)) -> 0 | Z17: =IF($C5="","",IF(flex_cost_input_type="Input all flex costs directly",'Flex Cost Inputs'!Z18,'Flex Volume and Cost Inputs'!Z28)) -> 0 | AA17: =IF($C5="","",IF(flex_cost_input_type="Input all flex costs directly",'Flex Cost Inputs'!AA18,'Flex Volume and Cost Inputs'!AA28)) -> 0 | AB17: =IF($C5="","",IF(flex_cost_input_type="Input all flex costs directly",'Flex Cost Inputs'!AB18,'Flex Volume and Cost Inputs'!AB28)) -> 0 | AC17: =IF($C5="","",IF(flex_cost_input_type="Input all flex costs directly",'Flex Cost Inputs'!AC18,'Flex Volume and Cost Inputs'!AC28)) -> 0 | AD17: =IF($C5="","",IF(flex_cost_input_type="Input all flex costs directly",'Flex Cost Inputs'!AD18,'Flex Volume and Cost Inputs'!AD28)) -> 0 | AE17: =IF($C5="","",IF(flex_cost_input_type="Input all flex costs directly",'Flex Cost Inputs'!AE18,'Flex Volume and Cost Inputs'!AE28)) -> 0 | AF17: =IF($C5="","",IF(flex_cost_input_type="Input all flex costs directly",'Flex Cost Inputs'!AF18,'Flex Volume and Cost Inputs'!AF28)) -> 0 | AG17: =IF($C5="","",IF(flex_cost_input_type="Input all flex costs directly",'Flex Cost Inputs'!AG18,'Flex Volume and Cost Inputs'!AG28)) -> 0 | AH17: =IF($C5="","",IF(flex_cost_input_type="Input all flex costs directly",'Flex Cost Inputs'!AH18,'Flex Volume and Cost Inputs'!AH28)) -> 0 | AI17: =IF($C5="","",IF(flex_cost_input_type="Input all flex costs directly",'Flex Cost Inputs'!AI18,'Flex Volume and Cost Inputs'!AI28)) -> 0 | AJ17: =IF($C5="","",IF(flex_cost_input_type="Input all flex costs directly",'Flex Cost Inputs'!AJ18,'Flex Volume and Cost Inputs'!AJ28)) -> 0 | AK17: =IF($C5="","",IF(flex_cost_input_type="Input all flex costs directly",'Flex Cost Inputs'!AK18,'Flex Volume and Cost Inputs'!AK28)) -> 0 | AL17: =IF($C5="","",IF(flex_cost_input_type="Input all flex costs directly",'Flex Cost Inputs'!AL18,'Flex Volume and Cost Inputs'!AL28)) -> 0 | AM17: =IF($C5="","",IF(flex_cost_input_type="Input all flex costs directly",'Flex Cost Inputs'!AM18,'Flex Volume and Cost Inputs'!AM28)) -> 0 | AN17: =IF($C5="","",IF(flex_cost_input_type="Input all flex costs directly",'Flex Cost Inputs'!AN18,'Flex Volume and Cost Inputs'!AN28)) -> 0 | AO17: =IF($C5="","",IF(flex_cost_input_type="Input all flex costs directly",'Flex Cost Inputs'!AO18,'Flex Volume and Cost Inputs'!AO28)) -> 0 | AP17: =IF($C5="","",IF(flex_cost_input_type="Input all flex costs directly",'Flex Cost Inputs'!AP18,'Flex Volume and Cost Inputs'!AP28)) -> 0 | AQ17: =IF($C5="","",IF(flex_cost_input_type="Input all flex costs directly",'Flex Cost Inputs'!AQ18,'Flex Volume and Cost Inputs'!AQ28)) -> 0 | AR17: =IF($C5="","",IF(flex_cost_input_type="Input all flex costs directly",'Flex Cost Inputs'!AR18,'Flex Volume and Cost Inputs'!AR28)) -> 0 | AS17: =IF($C5="","",IF(flex_cost_input_type="Input all flex costs directly",'Flex Cost Inputs'!AS18,'Flex Volume and Cost Inputs'!AS28)) -> 0 | AT17: =IF($C5="","",IF(flex_cost_input_type="Input all flex costs directly",'Flex Cost Inputs'!AT18,'Flex Volume and Cost Inputs'!AT28)) -> 0 | AU17: =IF($C5="","",IF(flex_cost_input_type="Input all flex costs directly",'Flex Cost Inputs'!AU18,'Flex Volume and Cost Inputs'!AU28)) -> 0 | AV17: =IF($C5="","",IF(flex_cost_input_type="Input all flex costs directly",'Flex Cost Inputs'!AV18,'Flex Volume and Cost Inputs'!AV28)) -> 0 | AW17: =IF($C5="","",IF(flex_cost_input_type="Input all flex costs directly",'Flex Cost Inputs'!AW18,'Flex Volume and Cost Inputs'!AW28)) -> 0 | AX17: =IF($C5="","",IF(flex_cost_input_type="Input all flex costs directly",'Flex Cost Inputs'!AX18,'Flex Volume and Cost Inputs'!AX28)) -> 0 | AY17: =IF($C5="","",IF(flex_cost_input_type="Input all flex costs directly",'Flex Cost Inputs'!AY18,'Flex Volume and Cost Inputs'!AY28)) -> 0 | AZ17: =IF($C5="","",IF(flex_cost_input_type="Input all flex costs directly",'Flex Cost Inputs'!AZ18,'Flex Volume and Cost Inputs'!AZ28)) -> 0 | BA17: =IF($C5="","",IF(flex_cost_input_type="Input all flex costs directly",'Flex Cost Inputs'!BA18,'Flex Volume and Cost Inputs'!BA28)) -> 0 | BB17: =IF($C5="","",IF(flex_cost_input_type="Input all flex costs directly",'Flex Cost Inputs'!BB18,'Flex Volume and Cost Inputs'!BB28)) -> 0 | BC17: =IF($C5="","",IF(flex_cost_input_type="Input all flex costs directly",'Flex Cost Inputs'!BC18,'Flex Volume and Cost Inputs'!BC28)) -> 0 | BD17: =IF($C5="","",IF(flex_cost_input_type="Input all flex costs directly",'Flex Cost Inputs'!BD18,'Flex Volume and Cost Inputs'!BD28)) -> 0 | BE17: =IF($C5="","",IF(flex_cost_input_type="Input all flex costs directly",'Flex Cost Inputs'!BE18,'Flex Volume and Cost Inputs'!BE28)) -> 0 | BF17: =IF($C5="","",IF(flex_cost_input_type="Input all flex costs directly",'Flex Cost Inputs'!BF18,'Flex Volume and Cost Inputs'!BF28)) -> 0 | BG17: =IF($C5="","",IF(flex_cost_input_type="Input all flex costs directly",'Flex Cost Inputs'!BG18,'Flex Volume and Cost Inputs'!BG28)) -> 0 | BH17: =IF($C5="","",IF(flex_cost_input_type="Input all flex costs directly",'Flex Cost Inputs'!BH18,'Flex Volume and Cost Inputs'!BH28)) -> 0 | BI17: =IF($C5="","",IF(flex_cost_input_type="Input all flex costs directly",'Flex Cost Inputs'!BI18,'Flex Volume and Cost Inputs'!BI28)) -> 0 | BJ17: =IF($C5="","",IF(flex_cost_input_type="Input all flex costs directly",'Flex Cost Inputs'!BJ18,'Flex Volume and Cost Inputs'!BJ28)) -> 0 | BK17: =IF($C5="","",IF(flex_cost_input_type="Input all flex costs directly",'Flex Cost Inputs'!BK18,'Flex Volume and Cost Inputs'!BK28)) -> 0 | BL17: =IF($C5="","",IF(flex_cost_input_type="Input all flex costs directly",'Flex Cost Inputs'!BL18,'Flex Volume and Cost Inputs'!BL28)) -> 0 | BM17: =IF($C5="","",IF(flex_cost_input_type="Input all flex costs directly",'Flex Cost Inputs'!BM18,'Flex Volume and Cost Inputs'!BM28)) -> 0 | BN17: =IF($C5="","",IF(flex_cost_input_type="Input all flex costs directly",'Flex Cost Inputs'!BN18,'Flex Volume and Cost Inputs'!BN28)) -> 0 | BO17: =IF($C5="","",IF(flex_cost_input_type="Input all flex costs directly",'Flex Cost Inputs'!BO18,'Flex Volume and Cost Inputs'!BO28)) -> 0 | BP17: =IF($C5="","",IF(flex_cost_input_type="Input all flex costs directly",'Flex Cost Inputs'!BP18,'Flex Volume and Cost Inputs'!BP28)) -> 0 | BQ17: =IF($C5="","",IF(flex_cost_input_type="Input all flex costs directly",'Flex Cost Inputs'!BQ18,'Flex Volume and Cost Inputs'!BQ28)) -> 0 | BR17: =IF($C5="","",IF(flex_cost_input_type="Input all flex costs directly",'Flex Cost Inputs'!BR18,'Flex Volume and Cost Inputs'!BR28)) -> 0
A18: Config | B18: 2 | C18: Flexibility under [2] | D18: =IF($C6="","",IF(flex_cost_input_type="Input all flex costs directly",'Flex Cost Inputs'!D19,'Flex Volume and Cost Inputs'!D29)) -> 0 | E18: =IF($C6="","",IF(flex_cost_input_type="Input all flex costs directly",'Flex Cost Inputs'!E19,'Flex Volume and Cost Inputs'!E29)) -> 0 | F18: =IF($C6="","",IF(flex_cost_input_type="Input all flex costs directly",'Flex Cost Inputs'!F19,'Flex Volume and Cost Inputs'!F29)) -> 0 | G18: =IF($C6="","",IF(flex_cost_input_type="Input all flex costs directly",'Flex Cost Inputs'!G19,'Flex Volume and Cost Inputs'!G29)) -> 0 | H18: =IF($C6="","",IF(flex_cost_input_type="Input all flex costs directly",'Flex Cost Inputs'!H19,'Flex Volume and Cost Inputs'!H29)) -> 0 | I18: =IF($C6="","",IF(flex_cost_input_type="Input all flex costs directly",'Flex Cost Inputs'!I19,'Flex Volume and Cost Inputs'!I29)) -> 0 | J18: =IF($C6="","",IF(flex_cost_input_type="Input all flex costs directly",'Flex Cost Inputs'!J19,'Flex Volume and Cost Inputs'!J29)) -> 0 | K18: =IF($C6="","",IF(flex_cost_input_type="Input all flex costs directly",'Flex Cost Inputs'!K19,'Flex Volume and Cost Inputs'!K29)) -> 0 | L18: =IF($C6="","",IF(flex_cost_input_type="Input all flex costs directly",'Flex Cost Inputs'!L19,'Flex Volume and Cost Inputs'!L29)) -> 0 | M18: =IF($C6="","",IF(flex_cost_input_type="Input all flex costs directly",'Flex Cost Inputs'!M19,'Flex Volume and Cost Inputs'!M29)) -> 0 | N18: =IF($C6="","",IF(flex_cost_input_type="Input all flex costs directly",'Flex Cost Inputs'!N19,'Flex Volume and Cost Inputs'!N29)) -> 0 | O18: =IF($C6="","",IF(flex_cost_input_type="Input all flex costs directly",'Flex Cost Inputs'!O19,'Flex Volume and Cost Inputs'!O29)) -> 0 | P18: =IF($C6="","",IF(flex_cost_input_type="Input all flex costs directly",'Flex Cost Inputs'!P19,'Flex Volume and Cost Inputs'!P29)) -> 0 | Q18: =IF($C6="","",IF(flex_cost_input_type="Input all flex costs directly",'Flex Cost Inputs'!Q19,'Flex Volume and Cost Inputs'!Q29)) -> 0 | R18: =IF($C6="","",IF(flex_cost_input_type="Input all flex costs directly",'Flex Cost Inputs'!R19,'Flex Volume and Cost Inputs'!R29)) -> 0 | S18: =IF($C6="","",IF(flex_cost_input_type="Input all flex costs directly",'Flex Cost Inputs'!S19,'Flex Volume and Cost Inputs'!S29)) -> 0 | T18: =IF($C6="","",IF(flex_cost_input_type="Input all flex costs directly",'Flex Cost Inputs'!T19,'Flex Volume and Cost Inputs'!T29)) -> 0 | U18: =IF($C6="","",IF(flex_cost_input_type="Input all flex costs directly",'Flex Cost Inputs'!U19,'Flex Volume and Cost Inputs'!U29)) -> 0 | V18: =IF($C6="","",IF(flex_cost_input_type="Input all flex costs directly",'Flex Cost Inputs'!V19,'Flex Volume and Cost Inputs'!V29)) -> 0 | W18: =IF($C6="","",IF(flex_cost_input_type="Input all flex costs directly",'Flex Cost Inputs'!W19,'Flex Volume and Cost Inputs'!W29)) -> 0 | X18: =IF($C6="","",IF(flex_cost_input_type="Input all flex costs directly",'Flex Cost Inputs'!X19,'Flex Volume and Cost Inputs'!X29)) -> 0 | Y18: =IF($C6="","",IF(flex_cost_input_type="Input all flex costs directly",'Flex Cost Inputs'!Y19,'Flex Volume and Cost Inputs'!Y29)) -> 0 | Z18: =IF($C6="","",IF(flex_cost_input_type="Input all flex costs directly",'Flex Cost Inputs'!Z19,'Flex Volume and Cost Inputs'!Z29)) -> 0 | AA18: =IF($C6="","",IF(flex_cost_input_type="Input all flex costs directly",'Flex Cost Inputs'!AA19,'Flex Volume and Cost Inputs'!AA29)) -> 0 | AB18: =IF($C6="","",IF(flex_cost_input_type="Input all flex costs directly",'Flex Cost Inputs'!AB19,'Flex Volume and Cost Inputs'!AB29)) -> 0 | AC18: =IF($C6="","",IF(flex_cost_input_type="Input all flex costs directly",'Flex Cost Inputs'!AC19,'Flex Volume and Cost Inputs'!AC29)) -> 0 | AD18: =IF($C6="","",IF(flex_cost_input_type="Input all flex costs directly",'Flex Cost Inputs'!AD19,'Flex Volume and Cost Inputs'!AD29)) -> 0 | AE18: =IF($C6="","",IF(flex_cost_input_type="Input all flex costs directly",'Flex Cost Inputs'!AE19,'Flex Volume and Cost Inputs'!AE29)) -> 0 | AF18: =IF($C6="","",IF(flex_cost_input_type="Input all flex costs directly",'Flex Cost Inputs'!AF19,'Flex Volume and Cost Inputs'!AF29)) -> 0 | AG18: =IF($C6="","",IF(flex_cost_input_type="Input all flex costs directly",'Flex Cost Inputs'!AG19,'Flex Volume and Cost Inputs'!AG29)) -> 0 | AH18: =IF($C6="","",IF(flex_cost_input_type="Input all flex costs directly",'Flex Cost Inputs'!AH19,'Flex Volume and Cost Inputs'!AH29)) -> 0 | AI18: =IF($C6="","",IF(flex_cost_input_type="Input all flex costs directly",'Flex Cost Inputs'!AI19,'Flex Volume and Cost Inputs'!AI29)) -> 0 | AJ18: =IF($C6="","",IF(flex_cost_input_type="Input all flex costs directly",'Flex Cost Inputs'!AJ19,'Flex Volume and Cost Inputs'!AJ29)) -> 0 | AK18: =IF($C6="","",IF(flex_cost_input_type="Input all flex costs directly",'Flex Cost Inputs'!AK19,'Flex Volume and Cost Inputs'!AK29)) -> 0 | AL18: =IF($C6="","",IF(flex_cost_input_type="Input all flex costs directly",'Flex Cost Inputs'!AL19,'Flex Volume and Cost Inputs'!AL29)) -> 0 | AM18: =IF($C6="","",IF(flex_cost_input_type="Input all flex costs directly",'Flex Cost Inputs'!AM19,'Flex Volume and Cost Inputs'!AM29)) -> 0 | AN18: =IF($C6="","",IF(flex_cost_input_type="Input all flex costs directly",'Flex Cost Inputs'!AN19,'Flex Volume and Cost Inputs'!AN29)) -> 0 | AO18: =IF($C6="","",IF(flex_cost_input_type="Input all flex costs directly",'Flex Cost Inputs'!AO19,'Flex Volume and Cost Inputs'!AO29)) -> 0 | AP18: =IF($C6="","",IF(flex_cost_input_type="Input all flex costs directly",'Flex Cost Inputs'!AP19,'Flex Volume and Cost Inputs'!AP29)) -> 0 | AQ18: =IF($C6="","",IF(flex_cost_input_type="Input all flex costs directly",'Flex Cost Inputs'!AQ19,'Flex Volume and Cost Inputs'!AQ29)) -> 0 | AR18: =IF($C6="","",IF(flex_cost_input_type="Input all flex costs directly",'Flex Cost Inputs'!AR19,'Flex Volume and Cost Inputs'!AR29)) -> 0 | AS18: =IF($C6="","",IF(flex_cost_input_type="Input all flex costs directly",'Flex Cost Inputs'!AS19,'Flex Volume and Cost Inputs'!AS29)) -> 0 | AT18: =IF($C6="","",IF(flex_cost_input_type="Input all flex costs directly",'Flex Cost Inputs'!AT19,'Flex Volume and Cost Inputs'!AT29)) -> 0 | AU18: =IF($C6="","",IF(flex_cost_input_type="Input all flex costs directly",'Flex Cost Inputs'!AU19,'Flex Volume and Cost Inputs'!AU29)) -> 0 | AV18: =IF($C6="","",IF(flex_cost_input_type="Input all flex costs directly",'Flex Cost Inputs'!AV19,'Flex Volume and Cost Inputs'!AV29)) -> 0 | AW18: =IF($C6="","",IF(flex_cost_input_type="Input all flex costs directly",'Flex Cost Inputs'!AW19,'Flex Volume and Cost Inputs'!AW29)) -> 0 | AX18: =IF($C6="","",IF(flex_cost_input_type="Input all flex costs directly",'Flex Cost Inputs'!AX19,'Flex Volume and Cost Inputs'!AX29)) -> 0 | AY18: =IF($C6="","",IF(flex_cost_input_type="Input all flex costs directly",'Flex Cost Inputs'!AY19,'Flex Volume and Cost Inputs'!AY29)) -> 0 | AZ18: =IF($C6="","",IF(flex_cost_input_type="Input all flex costs directly",'Flex Cost Inputs'!AZ19,'Flex Volume and Cost Inputs'!AZ29)) -> 0 | BA18: =IF($C6="","",IF(flex_cost_input_type="Input all flex costs directly",'Flex Cost Inputs'!BA19,'Flex Volume and Cost Inputs'!BA29)) -> 0 | BB18: =IF($C6="","",IF(flex_cost_input_type="Input all flex costs directly",'Flex Cost Inputs'!BB19,'Flex Volume and Cost Inputs'!BB29)) -> 0 | BC18: =IF($C6="","",IF(flex_cost_input_type="Input all flex costs directly",'Flex Cost Inputs'!BC19,'Flex Volume and Cost Inputs'!BC29)) -> 0 | BD18: =IF($C6="","",IF(flex_cost_input_type="Input all flex costs directly",'Flex Cost Inputs'!BD19,'Flex Volume and Cost Inputs'!BD29)) -> 0 | BE18: =IF($C6="","",IF(flex_cost_input_type="Input all flex costs directly",'Flex Cost Inputs'!BE19,'Flex Volume and Cost Inputs'!BE29)) -> 0 | BF18: =IF($C6="","",IF(flex_cost_input_type="Input all flex costs directly",'Flex Cost Inputs'!BF19,'Flex Volume and Cost Inputs'!BF29)) -> 0 | BG18: =IF($C6="","",IF(flex_cost_input_type="Input all flex costs directly",'Flex Cost Inputs'!BG19,'Flex Volume and Cost Inputs'!BG29)) -> 0 | BH18: =IF($C6="","",IF(flex_cost_input_type="Input all flex costs directly",'Flex Cost Inputs'!BH19,'Flex Volume and Cost Inputs'!BH29)) -> 0 | BI18: =IF($C6="","",IF(flex_cost_input_type="Input all flex costs directly",'Flex Cost Inputs'!BI19,'Flex Volume and Cost Inputs'!BI29)) -> 0 | BJ18: =IF($C6="","",IF(flex_cost_input_type="Input all flex costs directly",'Flex Cost Inputs'!BJ19,'Flex Volume and Cost Inputs'!BJ29)) -> 0 | BK18: =IF($C6="","",IF(flex_cost_input_type="Input all flex costs directly",'Flex Cost Inputs'!BK19,'Flex Volume and Cost Inputs'!BK29)) -> 0 | BL18: =IF($C6="","",IF(flex_cost_input_type="Input all flex costs directly",'Flex Cost Inputs'!BL19,'Flex Volume and Cost Inputs'!BL29)) -> 0 | BM18: =IF($C6="","",IF(flex_cost_input_type="Input all flex costs directly",'Flex Cost Inputs'!BM19,'Flex Volume and Cost Inputs'!BM29)) -> 0 | BN18: =IF($C6="","",IF(flex_cost_input_type="Input all flex costs directly",'Flex Cost Inputs'!BN19,'Flex Volume and Cost Inputs'!BN29)) -> 0 | BO18: =IF($C6="","",IF(flex_cost_input_type="Input all flex costs directly",'Flex Cost Inputs'!BO19,'Flex Volume and Cost Inputs'!BO29)) -> 0 | BP18: =IF($C6="","",IF(flex_cost_input_type="Input all flex costs directly",'Flex Cost Inputs'!BP19,'Flex Volume and Cost Inputs'!BP29)) -> 0 | BQ18: =IF($C6="","",IF(flex_cost_input_type="Input all flex costs directly",'Flex Cost Inputs'!BQ19,'Flex Volume and Cost Inputs'!BQ29)) -> 0 | BR18: =IF($C6="","",IF(flex_cost_input_type="Input all flex costs directly",'Flex Cost Inputs'!BR19,'Flex Volume and Cost Inputs'!BR29)) -> 0
A19: Config | B19: 3 | C19: Flexibility under [3] | D19: =IF($C7="","",IF(flex_cost_input_type="Input all flex costs directly",'Flex Cost Inputs'!D20,'Flex Volume and Cost Inputs'!D30)) -> 0 | E19: =IF($C7="","",IF(flex_cost_input_type="Input all flex costs directly",'Flex Cost Inputs'!E20,'Flex Volume and Cost Inputs'!E30)) -> 0 | F19: =IF($C7="","",IF(flex_cost_input_type="Input all flex costs directly",'Flex Cost Inputs'!F20,'Flex Volume and Cost Inputs'!F30)) -> 0 | G19: =IF($C7="","",IF(flex_cost_input_type="Input all flex costs directly",'Flex Cost Inputs'!G20,'Flex Volume and Cost Inputs'!G30)) -> 0 | H19: =IF($C7="","",IF(flex_cost_input_type="Input all flex costs directly",'Flex Cost Inputs'!H20,'Flex Volume and Cost Inputs'!H30)) -> 0 | I19: =IF($C7="","",IF(flex_cost_input_type="Input all flex costs directly",'Flex Cost Inputs'!I20,'Flex Volume and Cost Inputs'!I30)) -> 0 | J19: =IF($C7="","",IF(flex_cost_input_type="Input all flex costs directly",'Flex Cost Inputs'!J20,'Flex Volume and Cost Inputs'!J30)) -> 0 | K19: =IF($C7="","",IF(flex_cost_input_type="Input all flex costs directly",'Flex Cost Inputs'!K20,'Flex Volume and Cost Inputs'!K30)) -> 0 | L19: =IF($C7="","",IF(flex_cost_input_type="Input all flex costs directly",'Flex Cost Inputs'!L20,'Flex Volume and Cost Inputs'!L30)) -> 0 | M19: =IF($C7="","",IF(flex_cost_input_type="Input all flex costs directly",'Flex Cost Inputs'!M20,'Flex Volume and Cost Inputs'!M30)) -> 0 | N19: =IF($C7="","",IF(flex_cost_input_type="Input all flex costs directly",'Flex Cost Inputs'!N20,'Flex Volume and Cost Inputs'!N30)) -> 0 | O19: =IF($C7="","",IF(flex_cost_input_type="Input all flex costs directly",'Flex Cost Inputs'!O20,'Flex Volume and Cost Inputs'!O30)) -> 0 | P19: =IF($C7="","",IF(flex_cost_input_type="Input all flex costs directly",'Flex Cost Inputs'!P20,'Flex Volume and Cost Inputs'!P30)) -> 0 | Q19: =IF($C7="","",IF(flex_cost_input_type="Input all flex costs directly",'Flex Cost Inputs'!Q20,'Flex Volume and Cost Inputs'!Q30)) -> 0 | R19: =IF($C7="","",IF(flex_cost_input_type="Input all flex costs directly",'Flex Cost Inputs'!R20,'Flex Volume and Cost Inputs'!R30)) -> 0 | S19: =IF($C7="","",IF(flex_cost_input_type="Input all flex costs directly",'Flex Cost Inputs'!S20,'Flex Volume and Cost Inputs'!S30)) -> 0 | T19: =IF($C7="","",IF(flex_cost_input_type="Input all flex costs directly",'Flex Cost Inputs'!T20,'Flex Volume and Cost Inputs'!T30)) -> 0 | U19: =IF($C7="","",IF(flex_cost_input_type="Input all flex costs directly",'Flex Cost Inputs'!U20,'Flex Volume and Cost Inputs'!U30)) -> 0 | V19: =IF($C7="","",IF(flex_cost_input_type="Input all flex costs directly",'Flex Cost Inputs'!V20,'Flex Volume and Cost Inputs'!V30)) -> 0 | W19: =IF($C7="","",IF(flex_cost_input_type="Input all flex costs directly",'Flex Cost Inputs'!W20,'Flex Volume and Cost Inputs'!W30)) -> 0 | X19: =IF($C7="","",IF(flex_cost_input_type="Input all flex costs directly",'Flex Cost Inputs'!X20,'Flex Volume and Cost Inputs'!X30)) -> 0 | Y19: =IF($C7="","",IF(flex_cost_input_type="Input all flex costs directly",'Flex Cost Inputs'!Y20,'Flex Volume and Cost Inputs'!Y30)) -> 0 | Z19: =IF($C7="","",IF(flex_cost_input_type="Input all flex costs directly",'Flex Cost Inputs'!Z20,'Flex Volume and Cost Inputs'!Z30)) -> 0 | AA19: =IF($C7="","",IF(flex_cost_input_type="Input all flex costs directly",'Flex Cost Inputs'!AA20,'Flex Volume and Cost Inputs'!AA30)) -> 0 | AB19: =IF($C7="","",IF(flex_cost_input_type="Input all flex costs directly",'Flex Cost Inputs'!AB20,'Flex Volume and Cost Inputs'!AB30)) -> 0 | AC19: =IF($C7="","",IF(flex_cost_input_type="Input all flex costs directly",'Flex Cost Inputs'!AC20,'Flex Volume and Cost Inputs'!AC30)) -> 0 | AD19: =IF($C7="","",IF(flex_cost_input_type="Input all flex costs directly",'Flex Cost Inputs'!AD20,'Flex Volume and Cost Inputs'!AD30)) -> 0 | AE19: =IF($C7="","",IF(flex_cost_input_type="Input all flex costs directly",'Flex Cost Inputs'!AE20,'Flex Volume and Cost Inputs'!AE30)) -> 0 | AF19: =IF($C7="","",IF(flex_cost_input_type="Input all flex costs directly",'Flex Cost Inputs'!AF20,'Flex Volume and Cost Inputs'!AF30)) -> 0 | AG19: =IF($C7="","",IF(flex_cost_input_type="Input all flex costs directly",'Flex Cost Inputs'!AG20,'Flex Volume and Cost Inputs'!AG30)) -> 0 | AH19: =IF($C7="","",IF(flex_cost_input_type="Input all flex costs directly",'Flex Cost Inputs'!AH20,'Flex Volume and Cost Inputs'!AH30)) -> 0 | AI19: =IF($C7="","",IF(flex_cost_input_type="Input all flex costs directly",'Flex Cost Inputs'!AI20,'Flex Volume and Cost Inputs'!AI30)) -> 0 | AJ19: =IF($C7="","",IF(flex_cost_input_type="Input all flex costs directly",'Flex Cost Inputs'!AJ20,'Flex Volume and Cost Inputs'!AJ30)) -> 0 | AK19: =IF($C7="","",IF(flex_cost_input_type="Input all flex costs directly",'Flex Cost Inputs'!AK20,'Flex Volume and Cost Inputs'!AK30)) -> 0 | AL19: =IF($C7="","",IF(flex_cost_input_type="Input all flex costs directly",'Flex Cost Inputs'!AL20,'Flex Volume and Cost Inputs'!AL30)) -> 0 | AM19: =IF($C7="","",IF(flex_cost_input_type="Input all flex costs directly",'Flex Cost Inputs'!AM20,'Flex Volume and Cost Inputs'!AM30)) -> 0 | AN19: =IF($C7="","",IF(flex_cost_input_type="Input all flex costs directly",'Flex Cost Inputs'!AN20,'Flex Volume and Cost Inputs'!AN30)) -> 0 | AO19: =IF($C7="","",IF(flex_cost_input_type="Input all flex costs directly",'Flex Cost Inputs'!AO20,'Flex Volume and Cost Inputs'!AO30)) -> 0 | AP19: =IF($C7="","",IF(flex_cost_input_type="Input all flex costs directly",'Flex Cost Inputs'!AP20,'Flex Volume and Cost Inputs'!AP30)) -> 0 | AQ19: =IF($C7="","",IF(flex_cost_input_type="Input all flex costs directly",'Flex Cost Inputs'!AQ20,'Flex Volume and Cost Inputs'!AQ30)) -> 0 | AR19: =IF($C7="","",IF(flex_cost_input_type="Input all flex costs directly",'Flex Cost Inputs'!AR20,'Flex Volume and Cost Inputs'!AR30)) -> 0 | AS19: =IF($C7="","",IF(flex_cost_input_type="Input all flex costs directly",'Flex Cost Inputs'!AS20,'Flex Volume and Cost Inputs'!AS30)) -> 0 | AT19: =IF($C7="","",IF(flex_cost_input_type="Input all flex costs directly",'Flex Cost Inputs'!AT20,'Flex Volume and Cost Inputs'!AT30)) -> 0 | AU19: =IF($C7="","",IF(flex_cost_input_type="Input all flex costs directly",'Flex Cost Inputs'!AU20,'Flex Volume and Cost Inputs'!AU30)) -> 0 | AV19: =IF($C7="","",IF(flex_cost_input_type="Input all flex costs directly",'Flex Cost Inputs'!AV20,'Flex Volume and Cost Inputs'!AV30)) -> 0 | AW19: =IF($C7="","",IF(flex_cost_input_type="Input all flex costs directly",'Flex Cost Inputs'!AW20,'Flex Volume and Cost Inputs'!AW30)) -> 0 | AX19: =IF($C7="","",IF(flex_cost_input_type="Input all flex costs directly",'Flex Cost Inputs'!AX20,'Flex Volume and Cost Inputs'!AX30)) -> 0 | AY19: =IF($C7="","",IF(flex_cost_input_type="Input all flex costs directly",'Flex Cost Inputs'!AY20,'Flex Volume and Cost Inputs'!AY30)) -> 0 | AZ19: =IF($C7="","",IF(flex_cost_input_type="Input all flex costs directly",'Flex Cost Inputs'!AZ20,'Flex Volume and Cost Inputs'!AZ30)) -> 0 | BA19: =IF($C7="","",IF(flex_cost_input_type="Input all flex costs directly",'Flex Cost Inputs'!BA20,'Flex Volume and Cost Inputs'!BA30)) -> 0 | BB19: =IF($C7="","",IF(flex_cost_input_type="Input all flex costs directly",'Flex Cost Inputs'!BB20,'Flex Volume and Cost Inputs'!BB30)) -> 0 | BC19: =IF($C7="","",IF(flex_cost_input_type="Input all flex costs directly",'Flex Cost Inputs'!BC20,'Flex Volume and Cost Inputs'!BC30)) -> 0 | BD19: =IF($C7="","",IF(flex_cost_input_type="Input all flex costs directly",'Flex Cost Inputs'!BD20,'Flex Volume and Cost Inputs'!BD30)) -> 0 | BE19: =IF($C7="","",IF(flex_cost_input_type="Input all flex costs directly",'Flex Cost Inputs'!BE20,'Flex Volume and Cost Inputs'!BE30)) -> 0 | BF19: =IF($C7="","",IF(flex_cost_input_type="Input all flex costs directly",'Flex Cost Inputs'!BF20,'Flex Volume and Cost Inputs'!BF30)) -> 0 | BG19: =IF($C7="","",IF(flex_cost_input_type="Input all flex costs directly",'Flex Cost Inputs'!BG20,'Flex Volume and Cost Inputs'!BG30)) -> 0 | BH19: =IF($C7="","",IF(flex_cost_input_type="Input all flex costs directly",'Flex Cost Inputs'!BH20,'Flex Volume and Cost Inputs'!BH30)) -> 0 | BI19: =IF($C7="","",IF(flex_cost_input_type="Input all flex costs directly",'Flex Cost Inputs'!BI20,'Flex Volume and Cost Inputs'!BI30)) -> 0 | BJ19: =IF($C7="","",IF(flex_cost_input_type="Input all flex costs directly",'Flex Cost Inputs'!BJ20,'Flex Volume and Cost Inputs'!BJ30)) -> 0 | BK19: =IF($C7="","",IF(flex_cost_input_type="Input all flex costs directly",'Flex Cost Inputs'!BK20,'Flex Volume and Cost Inputs'!BK30)) -> 0 | BL19: =IF($C7="","",IF(flex_cost_input_type="Input all flex costs directly",'Flex Cost Inputs'!BL20,'Flex Volume and Cost Inputs'!BL30)) -> 0 | BM19: =IF($C7="","",IF(flex_cost_input_type="Input all flex costs directly",'Flex Cost Inputs'!BM20,'Flex Volume and Cost Inputs'!BM30)) -> 0 | BN19: =IF($C7="","",IF(flex_cost_input_type="Input all flex costs directly",'Flex Cost Inputs'!BN20,'Flex Volume and Cost Inputs'!BN30)) -> 0 | BO19: =IF($C7="","",IF(flex_cost_input_type="Input all flex costs directly",'Flex Cost Inputs'!BO20,'Flex Volume and Cost Inputs'!BO30)) -> 0 | BP19: =IF($C7="","",IF(flex_cost_input_type="Input all flex costs directly",'Flex Cost Inputs'!BP20,'Flex Volume and Cost Inputs'!BP30)) -> 0 | BQ19: =IF($C7="","",IF(flex_cost_input_type="Input all flex costs directly",'Flex Cost Inputs'!BQ20,'Flex Volume and Cost Inputs'!BQ30)) -> 0 | BR19: =IF($C7="","",IF(flex_cost_input_type="Input all flex costs directly",'Flex Cost Inputs'!BR20,'Flex Volume and Cost Inputs'!BR30)) -> 0
A20: Config | B20: 4 | C20: Flexibility under [4] | D20: =IF($C8="","",IF(flex_cost_input_type="Input all flex costs directly",'Flex Cost Inputs'!D21,'Flex Volume and Cost Inputs'!D31)) -> 0 | E20: =IF($C8="","",IF(flex_cost_input_type="Input all flex costs directly",'Flex Cost Inputs'!E21,'Flex Volume and Cost Inputs'!E31)) -> 0 | F20: =IF($C8="","",IF(flex_cost_input_type="Input all flex costs directly",'Flex Cost Inputs'!F21,'Flex Volume and Cost Inputs'!F31)) -> 0 | G20: =IF($C8="","",IF(flex_cost_input_type="Input all flex costs directly",'Flex Cost Inputs'!G21,'Flex Volume and Cost Inputs'!G31)) -> 0 | H20: =IF($C8="","",IF(flex_cost_input_type="Input all flex costs directly",'Flex Cost Inputs'!H21,'Flex Volume and Cost Inputs'!H31)) -> 0 | I20: =IF($C8="","",IF(flex_cost_input_type="Input all flex costs directly",'Flex Cost Inputs'!I21,'Flex Volume and Cost Inputs'!I31)) -> 0 | J20: =IF($C8="","",IF(flex_cost_input_type="Input all flex costs directly",'Flex Cost Inputs'!J21,'Flex Volume and Cost Inputs'!J31)) -> 0 | K20: =IF($C8="","",IF(flex_cost_input_type="Input all flex costs directly",'Flex Cost Inputs'!K21,'Flex Volume and Cost Inputs'!K31)) -> 0 | L20: =IF($C8="","",IF(flex_cost_input_type="Input all flex costs directly",'Flex Cost Inputs'!L21,'Flex Volume and Cost Inputs'!L31)) -> 0 | M20: =IF($C8="","",IF(flex_cost_input_type="Input all flex costs directly",'Flex Cost Inputs'!M21,'Flex Volume and Cost Inputs'!M31)) -> 0 | N20: =IF($C8="","",IF(flex_cost_input_type="Input all flex costs directly",'Flex Cost Inputs'!N21,'Flex Volume and Cost Inputs'!N31)) -> 0 | O20: =IF($C8="","",IF(flex_cost_input_type="Input all flex costs directly",'Flex Cost Inputs'!O21,'Flex Volume and Cost Inputs'!O31)) -> 0 | P20: =IF($C8="","",IF(flex_cost_input_type="Input all flex costs directly",'Flex Cost Inputs'!P21,'Flex Volume and Cost Inputs'!P31)) -> 0 | Q20: =IF($C8="","",IF(flex_cost_input_type="Input all flex costs directly",'Flex Cost Inputs'!Q21,'Flex Volume and Cost Inputs'!Q31)) -> 0 | R20: =IF($C8="","",IF(flex_cost_input_type="Input all flex costs directly",'Flex Cost Inputs'!R21,'Flex Volume and Cost Inputs'!R31)) -> 0 | S20: =IF($C8="","",IF(flex_cost_input_type="Input all flex costs directly",'Flex Cost Inputs'!S21,'Flex Volume and Cost Inputs'!S31)) -> 0 | T20: =IF($C8="","",IF(flex_cost_input_type="Input all flex costs directly",'Flex Cost Inputs'!T21,'Flex Volume and Cost Inputs'!T31)) -> 0 | U20: =IF($C8="","",IF(flex_cost_input_type="Input all flex costs directly",'Flex Cost Inputs'!U21,'Flex Volume and Cost Inputs'!U31)) -> 0 | V20: =IF($C8="","",IF(flex_cost_input_type="Input all flex costs directly",'Flex Cost Inputs'!V21,'Flex Volume and Cost Inputs'!V31)) -> 0 | W20: =IF($C8="","",IF(flex_cost_input_type="Input all flex costs directly",'Flex Cost Inputs'!W21,'Flex Volume and Cost Inputs'!W31)) -> 0 | X20: =IF($C8="","",IF(flex_cost_input_type="Input all flex costs directly",'Flex Cost Inputs'!X21,'Flex Volume and Cost Inputs'!X31)) -> 0 | Y20: =IF($C8="","",IF(flex_cost_input_type="Input all flex costs directly",'Flex Cost Inputs'!Y21,'Flex Volume and Cost Inputs'!Y31)) -> 0 | Z20: =IF($C8="","",IF(flex_cost_input_type="Input all flex costs directly",'Flex Cost Inputs'!Z21,'Flex Volume and Cost Inputs'!Z31)) -> 0 | AA20: =IF($C8="","",IF(flex_cost_input_type="Input all flex costs directly",'Flex Cost Inputs'!AA21,'Flex Volume and Cost Inputs'!AA31)) -> 0 | AB20: =IF($C8="","",IF(flex_cost_input_type="Input all flex costs directly",'Flex Cost Inputs'!AB21,'Flex Volume and Cost Inputs'!AB31)) -> 0 | AC20: =IF($C8="","",IF(flex_cost_input_type="Input all flex costs directly",'Flex Cost Inputs'!AC21,'Flex Volume and Cost Inputs'!AC31)) -> 0 | AD20: =IF($C8="","",IF(flex_cost_input_type="Input all flex costs directly",'Flex Cost Inputs'!AD21,'Flex Volume and Cost Inputs'!AD31)) -> 0 | AE20: =IF($C8="","",IF(flex_cost_input_type="Input all flex costs directly",'Flex Cost Inputs'!AE21,'Flex Volume and Cost Inputs'!AE31)) -> 0 | AF20: =IF($C8="","",IF(flex_cost_input_type="Input all flex costs directly",'Flex Cost Inputs'!AF21,'Flex Volume and Cost Inputs'!AF31)) -> 0 | AG20: =IF($C8="","",IF(flex_cost_input_type="Input all flex costs directly",'Flex Cost Inputs'!AG21,'Flex Volume and Cost Inputs'!AG31)) -> 0 | AH20: =IF($C8="","",IF(flex_cost_input_type="Input all flex costs directly",'Flex Cost Inputs'!AH21,'Flex Volume and Cost Inputs'!AH31)) -> 0 | AI20: =IF($C8="","",IF(flex_cost_input_type="Input all flex costs directly",'Flex Cost Inputs'!AI21,'Flex Volume and Cost Inputs'!AI31)) -> 0 | AJ20: =IF($C8="","",IF(flex_cost_input_type="Input all flex costs directly",'Flex Cost Inputs'!AJ21,'Flex Volume and Cost Inputs'!AJ31)) -> 0 | AK20: =IF($C8="","",IF(flex_cost_input_type="Input all flex costs directly",'Flex Cost Inputs'!AK21,'Flex Volume and Cost Inputs'!AK31)) -> 0 | AL20: =IF($C8="","",IF(flex_cost_input_type="Input all flex costs directly",'Flex Cost Inputs'!AL21,'Flex Volume and Cost Inputs'!AL31)) -> 0 | AM20: =IF($C8="","",IF(flex_cost_input_type="Input all flex costs directly",'Flex Cost Inputs'!AM21,'Flex Volume and Cost Inputs'!AM31)) -> 0 | AN20: =IF($C8="","",IF(flex_cost_input_type="Input all flex costs directly",'Flex Cost Inputs'!AN21,'Flex Volume and Cost Inputs'!AN31)) -> 0 | AO20: =IF($C8="","",IF(flex_cost_input_type="Input all flex costs directly",'Flex Cost Inputs'!AO21,'Flex Volume and Cost Inputs'!AO31)) -> 0 | AP20: =IF($C8="","",IF(flex_cost_input_type="Input all flex costs directly",'Flex Cost Inputs'!AP21,'Flex Volume and Cost Inputs'!AP31)) -> 0 | AQ20: =IF($C8="","",IF(flex_cost_input_type="Input all flex costs directly",'Flex Cost Inputs'!AQ21,'Flex Volume and Cost Inputs'!AQ31)) -> 0 | AR20: =IF($C8="","",IF(flex_cost_input_type="Input all flex costs directly",'Flex Cost Inputs'!AR21,'Flex Volume and Cost Inputs'!AR31)) -> 0 | AS20: =IF($C8="","",IF(flex_cost_input_type="Input all flex costs directly",'Flex Cost Inputs'!AS21,'Flex Volume and Cost Inputs'!AS31)) -> 0 | AT20: =IF($C8="","",IF(flex_cost_input_type="Input all flex costs directly",'Flex Cost Inputs'!AT21,'Flex Volume and Cost Inputs'!AT31)) -> 0 | AU20: =IF($C8="","",IF(flex_cost_input_type="Input all flex costs directly",'Flex Cost Inputs'!AU21,'Flex Volume and Cost Inputs'!AU31)) -> 0 | AV20: =IF($C8="","",IF(flex_cost_input_type="Input all flex costs directly",'Flex Cost Inputs'!AV21,'Flex Volume and Cost Inputs'!AV31)) -> 0 | AW20: =IF($C8="","",IF(flex_cost_input_type="Input all flex costs directly",'Flex Cost Inputs'!AW21,'Flex Volume and Cost Inputs'!AW31)) -> 0 | AX20: =IF($C8="","",IF(flex_cost_input_type="Input all flex costs directly",'Flex Cost Inputs'!AX21,'Flex Volume and Cost Inputs'!AX31)) -> 0 | AY20: =IF($C8="","",IF(flex_cost_input_type="Input all flex costs directly",'Flex Cost Inputs'!AY21,'Flex Volume and Cost Inputs'!AY31)) -> 0 | AZ20: =IF($C8="","",IF(flex_cost_input_type="Input all flex costs directly",'Flex Cost Inputs'!AZ21,'Flex Volume and Cost Inputs'!AZ31)) -> 0 | BA20: =IF($C8="","",IF(flex_cost_input_type="Input all flex costs directly",'Flex Cost Inputs'!BA21,'Flex Volume and Cost Inputs'!BA31)) -> 0 | BB20: =IF($C8="","",IF(flex_cost_input_type="Input all flex costs directly",'Flex Cost Inputs'!BB21,'Flex Volume and Cost Inputs'!BB31)) -> 0 | BC20: =IF($C8="","",IF(flex_cost_input_type="Input all flex costs directly",'Flex Cost Inputs'!BC21,'Flex Volume and Cost Inputs'!BC31)) -> 0 | BD20: =IF($C8="","",IF(flex_cost_input_type="Input all flex costs directly",'Flex Cost Inputs'!BD21,'Flex Volume and Cost Inputs'!BD31)) -> 0 | BE20: =IF($C8="","",IF(flex_cost_input_type="Input all flex costs directly",'Flex Cost Inputs'!BE21,'Flex Volume and Cost Inputs'!BE31)) -> 0 | BF20: =IF($C8="","",IF(flex_cost_input_type="Input all flex costs directly",'Flex Cost Inputs'!BF21,'Flex Volume and Cost Inputs'!BF31)) -> 0 | BG20: =IF($C8="","",IF(flex_cost_input_type="Input all flex costs directly",'Flex Cost Inputs'!BG21,'Flex Volume and Cost Inputs'!BG31)) -> 0 | BH20: =IF($C8="","",IF(flex_cost_input_type="Input all flex costs directly",'Flex Cost Inputs'!BH21,'Flex Volume and Cost Inputs'!BH31)) -> 0 | BI20: =IF($C8="","",IF(flex_cost_input_type="Input all flex costs directly",'Flex Cost Inputs'!BI21,'Flex Volume and Cost Inputs'!BI31)) -> 0 | BJ20: =IF($C8="","",IF(flex_cost_input_type="Input all flex costs directly",'Flex Cost Inputs'!BJ21,'Flex Volume and Cost Inputs'!BJ31)) -> 0 | BK20: =IF($C8="","",IF(flex_cost_input_type="Input all flex costs directly",'Flex Cost Inputs'!BK21,'Flex Volume and Cost Inputs'!BK31)) -> 0 | BL20: =IF($C8="","",IF(flex_cost_input_type="Input all flex costs directly",'Flex Cost Inputs'!BL21,'Flex Volume and Cost Inputs'!BL31)) -> 0 | BM20: =IF($C8="","",IF(flex_cost_input_type="Input all flex costs directly",'Flex Cost Inputs'!BM21,'Flex Volume and Cost Inputs'!BM31)) -> 0 | BN20: =IF($C8="","",IF(flex_cost_input_type="Input all flex costs directly",'Flex Cost Inputs'!BN21,'Flex Volume and Cost Inputs'!BN31)) -> 0 | BO20: =IF($C8="","",IF(flex_cost_input_type="Input all flex costs directly",'Flex Cost Inputs'!BO21,'Flex Volume and Cost Inputs'!BO31)) -> 0 | BP20: =IF($C8="","",IF(flex_cost_input_type="Input all flex costs directly",'Flex Cost Inputs'!BP21,'Flex Volume and Cost Inputs'!BP31)) -> 0 | BQ20: =IF($C8="","",IF(flex_cost_input_type="Input all flex costs directly",'Flex Cost Inputs'!BQ21,'Flex Volume and Cost Inputs'!BQ31)) -> 0 | BR20: =IF($C8="","",IF(flex_cost_input_type="Input all flex costs directly",'Flex Cost Inputs'!BR21,'Flex Volume and Cost Inputs'!BR31)) -> 0
A21: Config | B21: 5 | C21: Flexibility under [5] | D21: =IF($C9="","",IF(flex_cost_input_type="Input all flex costs directly",'Flex Cost Inputs'!D22,'Flex Volume and Cost Inputs'!D32)) -> 0 | E21: =IF($C9="","",IF(flex_cost_input_type="Input all flex costs directly",'Flex Cost Inputs'!E22,'Flex Volume and Cost Inputs'!E32)) -> 0 | F21: =IF($C9="","",IF(flex_cost_input_type="Input all flex costs directly",'Flex Cost Inputs'!F22,'Flex Volume and Cost Inputs'!F32)) -> 0 | G21: =IF($C9="","",IF(flex_cost_input_type="Input all flex costs directly",'Flex Cost Inputs'!G22,'Flex Volume and Cost Inputs'!G32)) -> 0 | H21: =IF($C9="","",IF(flex_cost_input_type="Input all flex costs directly",'Flex Cost Inputs'!H22,'Flex Volume and Cost Inputs'!H32)) -> 0 | I21: =IF($C9="","",IF(flex_cost_input_type="Input all flex costs directly",'Flex Cost Inputs'!I22,'Flex Volume and Cost Inputs'!I32)) -> 0 | J21: =IF($C9="","",IF(flex_cost_input_type="Input all flex costs directly",'Flex Cost Inputs'!J22,'Flex Volume and Cost Inputs'!J32)) -> 0 | K21: =IF($C9="","",IF(flex_cost_input_type="Input all flex costs directly",'Flex Cost Inputs'!K22,'Flex Volume and Cost Inputs'!K32)) -> 0 | L21: =IF($C9="","",IF(flex_cost_input_type="Input all flex costs directly",'Flex Cost Inputs'!L22,'Flex Volume and Cost Inputs'!L32)) -> 0 | M21: =IF($C9="","",IF(flex_cost_input_type="Input all flex costs directly",'Flex Cost Inputs'!M22,'Flex Volume and Cost Inputs'!M32)) -> 0 | N21: =IF($C9="","",IF(flex_cost_input_type="Input all flex costs directly",'Flex Cost Inputs'!N22,'Flex Volume and Cost Inputs'!N32)) -> 0 | O21: =IF($C9="","",IF(flex_cost_input_type="Input all flex costs directly",'Flex Cost Inputs'!O22,'Flex Volume and Cost Inputs'!O32)) -> 0 | P21: =IF($C9="","",IF(flex_cost_input_type="Input all flex costs directly",'Flex Cost Inputs'!P22,'Flex Volume and Cost Inputs'!P32)) -> 0 | Q21: =IF($C9="","",IF(flex_cost_input_type="Input all flex costs directly",'Flex Cost Inputs'!Q22,'Flex Volume and Cost Inputs'!Q32)) -> 0 | R21: =IF($C9="","",IF(flex_cost_input_type="Input all flex costs directly",'Flex Cost Inputs'!R22,'Flex Volume and Cost Inputs'!R32)) -> 0 | S21: =IF($C9="","",IF(flex_cost_input_type="Input all flex costs directly",'Flex Cost Inputs'!S22,'Flex Volume and Cost Inputs'!S32)) -> 0 | T21: =IF($C9="","",IF(flex_cost_input_type="Input all flex costs directly",'Flex Cost Inputs'!T22,'Flex Volume and Cost Inputs'!T32)) -> 0 | U21: =IF($C9="","",IF(flex_cost_input_type="Input all flex costs directly",'Flex Cost Inputs'!U22,'Flex Volume and Cost Inputs'!U32)) -> 0 | V21: =IF($C9="","",IF(flex_cost_input_type="Input all flex costs directly",'Flex Cost Inputs'!V22,'Flex Volume and Cost Inputs'!V32)) -> 0 | W21: =IF($C9="","",IF(flex_cost_input_type="Input all flex costs directly",'Flex Cost Inputs'!W22,'Flex Volume and Cost Inputs'!W32)) -> 0 | X21: =IF($C9="","",IF(flex_cost_input_type="Input all flex costs directly",'Flex Cost Inputs'!X22,'Flex Volume and Cost Inputs'!X32)) -> 0 | Y21: =IF($C9="","",IF(flex_cost_input_type="Input all flex costs directly",'Flex Cost Inputs'!Y22,'Flex Volume and Cost Inputs'!Y32)) -> 0 | Z21: =IF($C9="","",IF(flex_cost_input_type="Input all flex costs directly",'Flex Cost Inputs'!Z22,'Flex Volume and Cost Inputs'!Z32)) -> 0 | AA21: =IF($C9="","",IF(flex_cost_input_type="Input all flex costs directly",'Flex Cost Inputs'!AA22,'Flex Volume and Cost Inputs'!AA32)) -> 0 | AB21: =IF($C9="","",IF(flex_cost_input_type="Input all flex costs directly",'Flex Cost Inputs'!AB22,'Flex Volume and Cost Inputs'!AB32)) -> 0 | AC21: =IF($C9="","",IF(flex_cost_input_type="Input all flex costs directly",'Flex Cost Inputs'!AC22,'Flex Volume and Cost Inputs'!AC32)) -> 0 | AD21: =IF($C9="","",IF(flex_cost_input_type="Input all flex costs directly",'Flex Cost Inputs'!AD22,'Flex Volume and Cost Inputs'!AD32)) -> 0 | AE21: =IF($C9="","",IF(flex_cost_input_type="Input all flex costs directly",'Flex Cost Inputs'!AE22,'Flex Volume and Cost Inputs'!AE32)) -> 0 | AF21: =IF($C9="","",IF(flex_cost_input_type="Input all flex costs directly",'Flex Cost Inputs'!AF22,'Flex Volume and Cost Inputs'!AF32)) -> 0 | AG21: =IF($C9="","",IF(flex_cost_input_type="Input all flex costs directly",'Flex Cost Inputs'!AG22,'Flex Volume and Cost Inputs'!AG32)) -> 0 | AH21: =IF($C9="","",IF(flex_cost_input_type="Input all flex costs directly",'Flex Cost Inputs'!AH22,'Flex Volume and Cost Inputs'!AH32)) -> 0 | AI21: =IF($C9="","",IF(flex_cost_input_type="Input all flex costs directly",'Flex Cost Inputs'!AI22,'Flex Volume and Cost Inputs'!AI32)) -> 0 | AJ21: =IF($C9="","",IF(flex_cost_input_type="Input all flex costs directly",'Flex Cost Inputs'!AJ22,'Flex Volume and Cost Inputs'!AJ32)) -> 0 | AK21: =IF($C9="","",IF(flex_cost_input_type="Input all flex costs directly",'Flex Cost Inputs'!AK22,'Flex Volume and Cost Inputs'!AK32)) -> 0 | AL21: =IF($C9="","",IF(flex_cost_input_type="Input all flex costs directly",'Flex Cost Inputs'!AL22,'Flex Volume and Cost Inputs'!AL32)) -> 0 | AM21: =IF($C9="","",IF(flex_cost_input_type="Input all flex costs directly",'Flex Cost Inputs'!AM22,'Flex Volume and Cost Inputs'!AM32)) -> 0 | AN21: =IF($C9="","",IF(flex_cost_input_type="Input all flex costs directly",'Flex Cost Inputs'!AN22,'Flex Volume and Cost Inputs'!AN32)) -> 0 | AO21: =IF($C9="","",IF(flex_cost_input_type="Input all flex costs directly",'Flex Cost Inputs'!AO22,'Flex Volume and Cost Inputs'!AO32)) -> 0 | AP21: =IF($C9="","",IF(flex_cost_input_type="Input all flex costs directly",'Flex Cost Inputs'!AP22,'Flex Volume and Cost Inputs'!AP32)) -> 0 | AQ21: =IF($C9="","",IF(flex_cost_input_type="Input all flex costs directly",'Flex Cost Inputs'!AQ22,'Flex Volume and Cost Inputs'!AQ32)) -> 0 | AR21: =IF($C9="","",IF(flex_cost_input_type="Input all flex costs directly",'Flex Cost Inputs'!AR22,'Flex Volume and Cost Inputs'!AR32)) -> 0 | AS21: =IF($C9="","",IF(flex_cost_input_type="Input all flex costs directly",'Flex Cost Inputs'!AS22,'Flex Volume and Cost Inputs'!AS32)) -> 0 | AT21: =IF($C9="","",IF(flex_cost_input_type="Input all flex costs directly",'Flex Cost Inputs'!AT22,'Flex Volume and Cost Inputs'!AT32)) -> 0 | AU21: =IF($C9="","",IF(flex_cost_input_type="Input all flex costs directly",'Flex Cost Inputs'!AU22,'Flex Volume and Cost Inputs'!AU32)) -> 0 | AV21: =IF($C9="","",IF(flex_cost_input_type="Input all flex costs directly",'Flex Cost Inputs'!AV22,'Flex Volume and Cost Inputs'!AV32)) -> 0 | AW21: =IF($C9="","",IF(flex_cost_input_type="Input all flex costs directly",'Flex Cost Inputs'!AW22,'Flex Volume and Cost Inputs'!AW32)) -> 0 | AX21: =IF($C9="","",IF(flex_cost_input_type="Input all flex costs directly",'Flex Cost Inputs'!AX22,'Flex Volume and Cost Inputs'!AX32)) -> 0 | AY21: =IF($C9="","",IF(flex_cost_input_type="Input all flex costs directly",'Flex Cost Inputs'!AY22,'Flex Volume and Cost Inputs'!AY32)) -> 0 | AZ21: =IF($C9="","",IF(flex_cost_input_type="Input all flex costs directly",'Flex Cost Inputs'!AZ22,'Flex Volume and Cost Inputs'!AZ32)) -> 0 | BA21: =IF($C9="","",IF(flex_cost_input_type="Input all flex costs directly",'Flex Cost Inputs'!BA22,'Flex Volume and Cost Inputs'!BA32)) -> 0 | BB21: =IF($C9="","",IF(flex_cost_input_type="Input all flex costs directly",'Flex Cost Inputs'!BB22,'Flex Volume and Cost Inputs'!BB32)) -> 0 | BC21: =IF($C9="","",IF(flex_cost_input_type="Input all flex costs directly",'Flex Cost Inputs'!BC22,'Flex Volume and Cost Inputs'!BC32)) -> 0 | BD21: =IF($C9="","",IF(flex_cost_input_type="Input all flex costs directly",'Flex Cost Inputs'!BD22,'Flex Volume and Cost Inputs'!BD32)) -> 0 | BE21: =IF($C9="","",IF(flex_cost_input_type="Input all flex costs directly",'Flex Cost Inputs'!BE22,'Flex Volume and Cost Inputs'!BE32)) -> 0 | BF21: =IF($C9="","",IF(flex_cost_input_type="Input all flex costs directly",'Flex Cost Inputs'!BF22,'Flex Volume and Cost Inputs'!BF32)) -> 0 | BG21: =IF($C9="","",IF(flex_cost_input_type="Input all flex costs directly",'Flex Cost Inputs'!BG22,'Flex Volume and Cost Inputs'!BG32)) -> 0 | BH21: =IF($C9="","",IF(flex_cost_input_type="Input all flex costs directly",'Flex Cost Inputs'!BH22,'Flex Volume and Cost Inputs'!BH32)) -> 0 | BI21: =IF($C9="","",IF(flex_cost_input_type="Input all flex costs directly",'Flex Cost Inputs'!BI22,'Flex Volume and Cost Inputs'!BI32)) -> 0 | BJ21: =IF($C9="","",IF(flex_cost_input_type="Input all flex costs directly",'Flex Cost Inputs'!BJ22,'Flex Volume and Cost Inputs'!BJ32)) -> 0 | BK21: =IF($C9="","",IF(flex_cost_input_type="Input all flex costs directly",'Flex Cost Inputs'!BK22,'Flex Volume and Cost Inputs'!BK32)) -> 0 | BL21: =IF($C9="","",IF(flex_cost_input_type="Input all flex costs directly",'Flex Cost Inputs'!BL22,'Flex Volume and Cost Inputs'!BL32)) -> 0 | BM21: =IF($C9="","",IF(flex_cost_input_type="Input all flex costs directly",'Flex Cost Inputs'!BM22,'Flex Volume and Cost Inputs'!BM32)) -> 0 | BN21: =IF($C9="","",IF(flex_cost_input_type="Input all flex costs directly",'Flex Cost Inputs'!BN22,'Flex Volume and Cost Inputs'!BN32)) -> 0 | BO21: =IF($C9="","",IF(flex_cost_input_type="Input all flex costs directly",'Flex Cost Inputs'!BO22,'Flex Volume and Cost Inputs'!BO32)) -> 0 | BP21: =IF($C9="","",IF(flex_cost_input_type="Input all flex costs directly",'Flex Cost Inputs'!BP22,'Flex Volume and Cost Inputs'!BP32)) -> 0 | BQ21: =IF($C9="","",IF(flex_cost_input_type="Input all flex costs directly",'Flex Cost Inputs'!BQ22,'Flex Volume and Cost Inputs'!BQ32)) -> 0 | BR21: =IF($C9="","",IF(flex_cost_input_type="Input all flex costs directly",'Flex Cost Inputs'!BR22,'Flex Volume and Cost Inputs'!BR32)) -> 0
